Workbook

Sheet мужчины б.
A1: Текущий рейтинг
A2: Мужчины, болдеринг
A3: на 9.03.2015 года | F3: КРБ-2013 | G3: ЧРБ-2014 | H3: КРБ-2014 | I3: ЧРБ-2015 | J3: общий рез-т
A4: № | B4: Фамилия, Имя | C4: Команда | D4: г.р. | E4: Подтвержденный разряд | F4: Пинск | G4: Минск | H4: Пинск | I4: Минск
F5: 22-25.11 | G5: 21-23.02 | H5: 22-23.11 | I5: 27.02-1.03
A6: 1 | B6: Клюжев Александр | C6: =VLOOKUP(B6:B67,'разряды м.'!$A$5:$AD$204,2,FALSE) -> ГУО «ГОЦТКДМ» | D6: =VLOOKUP(B6:B67,'разряды м.'!$A$5:$AD$204,3,FALSE) -> 1997 | E6: =VLOOKUP(B:B,'разряды м.'!$A$5:$AD$204,30,FALSE) -> МС | F6: 91.2 | G6: 82.9 | H6: 45.5 | I6: 80 | J6: =SUM(F6:I6) -> 299.6
A7: 2 | B7: Никифоровец Максим | C7: =VLOOKUP(B7:B68,'разряды м.'!$A$5:$AD$204,2,FALSE) -> Минск | D7: =VLOOKUP(B7:B68,'разряды м.'!$A$5:$AD$204,3,FALSE) -> 1997 | E7: =VLOOKUP(B:B,'разряды м.'!$A$5:$AD$204,30,FALSE) -> КМС | F7: 59.3 | G7: 66.3 | I7: 64 | J7: 189.6
A8: 3 | B8: Никифоровец Андрей | C8: =VLOOKUP(B8:B69,'разряды м.'!$A$5:$AD$204,2,FALSE) -> Минск | D8: =VLOOKUP(B8:B69,'разряды м.'!$A$5:$AD$204,3,FALSE) -> 1974 | E8: =VLOOKUP(B:B,'разряды м.'!$A$5:$AD$204,30,FALSE) -> МС | F8: 73 | H8: 70 | I8: 37.6 | J8: 180.6
A9: 4 | B9: Волосович Дмитрий | C9: =VLOOKUP(B9:B70,'разряды м.'!$A$5:$AD$204,2,FALSE) -> Гомельская обл. | D9: =VLOOKUP(B9:B70,'разряды м.'!$A$5:$AD$204,3,FALSE) -> 1995 | E9: =VLOOKUP(B:B,'разряды м.'!$A$5:$AD$204,30,FALSE) -> КМС | F9: 50.2 | G9: 45.6 | I9: 52 | J9: 147.8
A10: 5 | B10: Драбинко Артур | C10: =VLOOKUP(B10:B71,'разряды м.'!$A$5:$AD$204,2,FALSE) -> Бобруйск | D10: =VLOOKUP(B10:B71,'разряды м.'!$A$5:$AD$204,3,FALSE) -> 1994 | E10: =VLOOKUP(B:B,'разряды м.'!$A$5:$AD$204,30,FALSE) -> КМС | F10: 20.1 | G10: 42.3 | H10: 56 | J10: 118.4
A11: 6 | B11: Никоноров Дмитрий | C11: =VLOOKUP(B11:B72,'разряды м.'!$A$5:$AD$204,2,FALSE) -> Пуховичский р-н | D11: =VLOOKUP(B11:B72,'разряды м.'!$A$5:$AD$204,3,FALSE) -> 1997 | E11: =VLOOKUP(B:B,'разряды м.'!$A$5:$AD$204,30,FALSE) -> КМС | F11: 33.7 | G11: 28.2 | I11: 40.8 | J11: 102.7
A12: 7 | B12: Тарасенко Владислав | C12: =VLOOKUP(B12:B73,'разряды м.'!$A$5:$AD$204,2,FALSE) -> Пуховичский р-н | D12: =VLOOKUP(B12:B73,'разряды м.'!$A$5:$AD$204,3,FALSE) -> 1995 | E12: =VLOOKUP(B:B,'разряды м.'!$A$5:$AD$204,30,FALSE) -> КМС | F12: 39.2 | G12: 53.9 | J12: 93.1
A13: 8 | B13: Яцыно Павел | C13: =VLOOKUP(B13:B74,'разряды м.'!$A$5:$AD$204,2,FALSE) ->  | D13: =VLOOKUP(B13:B74,'разряды м.'!$A$5:$AD$204,3,FALSE) ->  | E13: =VLOOKUP(B:B,'разряды м.'!$A$5:$AD$204,30,FALSE) ->  | F13: 36.5 | G13: 19.2 | H13: 18.2 | I13: 17.6 | J13: 91.5
A14: 9 | B14: Максименя Денис | C14: =VLOOKUP(B14:B75,'разряды м.'!$A$5:$AD$204,2,FALSE) -> Минск | D14: =VLOOKUP(B14:B75,'разряды м.'!$A$5:$AD$204,3,FALSE) -> 1996 | E14: =VLOOKUP(B:B,'разряды м.'!$A$5:$AD$204,30,FALSE) -> КМС | F14: 22.8 | G14: 33.2 | H14: 30.1 | J14: 86.1
A15: 10 | B15: Логунов Никита | C15: =VLOOKUP(B15:B76,'разряды м.'!$A$5:$AD$204,2,FALSE) -> ДЮСШ «Омега» Гом. | D15: =VLOOKUP(B15:B76,'разряды м.'!$A$5:$AD$204,3,FALSE) -> 1999 | E15: =VLOOKUP(B:B,'разряды м.'!$A$5:$AD$204,30,FALSE) -> КМС | F15: 46.5 | G15: 35.7 | J15: 82.2
A16: 11 | B16: Федотов Сергей | C16: =VLOOKUP(B16:B77,'разряды м.'!$A$5:$AD$204,2,FALSE) -> Бобруйск | D16: =VLOOKUP(B16:B77,'разряды м.'!$A$5:$AD$204,3,FALSE) -> 1990 | E16: =VLOOKUP(B:B,'разряды м.'!$A$5:$AD$204,30,FALSE) -> КМС | G16: 39 | H16: 38.5 | J16: 77.5
A17: 12 | B17: Дюбенков Дмитрий | C17: =VLOOKUP(B17:B78,'разряды м.'!$A$5:$AD$204,2,FALSE) -> ГУО «ГОЦТКДМ» | D17: =VLOOKUP(B17:B78,'разряды м.'!$A$5:$AD$204,3,FALSE) -> 1992 | E17: =VLOOKUP(B:B,'разряды м.'!$A$5:$AD$204,30,FALSE) -> МС | F17: 16.4 | G17: 14.9 | I17: 44 | J17: 75.3
A18: 13 | B18: Пахомов Александр | C18: =VLOOKUP(B18:B79,'разряды м.'!$A$5:$AD$204,2,FALSE) -> Бобруйск | D18: =VLOOKUP(B18:B79,'разряды м.'!$A$5:$AD$204,3,FALSE) -> 1983 | E18: =VLOOKUP(B:B,'разряды м.'!$A$5:$AD$204,30,FALSE) -> КМС | F18: 28.3 | G18: 19.9 | H18: 23.8 | J18: 72
A19: 14 | B19: Морозов Юрий | C19: =VLOOKUP(B19:B80,'разряды м.'!$A$5:$AD$204,2,FALSE) -> Хан-Тенгри | D19: =VLOOKUP(B19:B80,'разряды м.'!$A$5:$AD$204,3,FALSE) -> 1992 | E19: =VLOOKUP(B:B,'разряды м.'!$A$5:$AD$204,30,FALSE) -> КМС | F19: 22.8 | G19: 23.2 | I19: 24.8 | J19: 70.8
A20: 15 | B20: Малаховский Александр | C20: =VLOOKUP(B20:B81,'разряды м.'!$A$5:$AD$204,2,FALSE) -> Хан-Тенгри | D20: =VLOOKUP(B20:B81,'разряды м.'!$A$5:$AD$204,3,FALSE) -> 1985 | E20: =VLOOKUP(B:B,'разряды м.'!$A$5:$AD$204,30,FALSE) -> 1 | F20: 31 | I20: 32 | J20: 63
A21: 16 | B21: Караваев Дмитрий | C21: =VLOOKUP(B21:B82,'разряды м.'!$A$5:$AD$204,2,FALSE) -> ДЮСШ "Омега" | D21: =VLOOKUP(B21:B82,'разряды м.'!$A$5:$AD$204,3,FALSE) -> 1993 | E21: =VLOOKUP(B:B,'разряды м.'!$A$5:$AD$204,30,FALSE) -> КМС | F21: 12.8 | G21: 25.7 | I21: 19.2 | J21: 57.7
A22: 17 | B22: Изидеров Никита | C22: =VLOOKUP(B22:B83,'разряды м.'!$A$5:$AD$204,2,FALSE) -> Полоцк | D22: =VLOOKUP(B22:B83,'разряды м.'!$A$5:$AD$204,3,FALSE) -> 1994 | E22: =VLOOKUP(B:B,'разряды м.'!$A$5:$AD$204,30,FALSE) -> КМС | G22: 21.6 | H22: 35.7 | J22: 57.3
A23: 18 | B23: Соковых Евгений | C23: =VLOOKUP(B23:B84,'разряды м.'!$A$5:$AD$204,2,FALSE) -> Хан-Тенгри | D23: =VLOOKUP(B23:B84,'разряды м.'!$A$5:$AD$204,3,FALSE) -> 1988 | E23: =VLOOKUP(B:B,'разряды м.'!$A$5:$AD$204,30,FALSE) -> КМС | F23: 25.5 | G23: 16.6 | I23: 12.8 | J23: 54.9
A24: 19 | B24: Демешко Александр | C24: =VLOOKUP(B24:B85,'разряды м.'!$A$5:$AD$204,2,FALSE) -> Хан-Тенгри | D24: =VLOOKUP(B24:B85,'разряды м.'!$A$5:$AD$204,3,FALSE) -> 1994 | E24: =VLOOKUP(B:B,'разряды м.'!$A$5:$AD$204,30,FALSE) -> 1 | F24: 18.2 | I24: 34.4 | J24: 52.6
A25: 20 | B25: Грибовский Павел | C25: =VLOOKUP(B25:B86,'разряды м.'!$A$5:$AD$204,2,FALSE) -> Бобруйск | D25: =VLOOKUP(B25:B86,'разряды м.'!$A$5:$AD$204,3,FALSE) -> 1885 | E25: =VLOOKUP(B:B,'разряды м.'!$A$5:$AD$204,30,FALSE) -> КМС | G25: 30.7 | H25: 19.6 | J25: 50.3
A26: 21 | B26: Саунин Кирилл | C26: =VLOOKUP(B26:B87,'разряды м.'!$A$5:$AD$204,2,FALSE) -> Пинск | D26: =VLOOKUP(B26:B87,'разряды м.'!$A$5:$AD$204,3,FALSE) -> 1989 | E26: =VLOOKUP(B:B,'разряды м.'!$A$5:$AD$204,30,FALSE) -> 1 | H26: 28 | I26: 20.8 | J26: 48.8
A27: 22 | B27: Денисман Юрий | C27: =VLOOKUP(B27:B88,'разряды м.'!$A$5:$AD$204,2,FALSE) -> MinskOnsight Мн. | D27: =VLOOKUP(B27:B88,'разряды м.'!$A$5:$AD$204,3,FALSE) -> 1982 | E27: =VLOOKUP(B:B,'разряды м.'!$A$5:$AD$204,30,FALSE) -> КМС | F27: 42.9 | G27: 0.8 | H27: 4.2 | J27: 47.9
A28: 23 | B28: Буйленков Павел | C28: =VLOOKUP(B28:B89,'разряды м.'!$A$5:$AD$204,2,FALSE) -> ГОЦТиКДиМ Гомель | D28: =VLOOKUP(B28:B89,'разряды м.'!$A$5:$AD$204,3,FALSE) -> 1993 | E28: =VLOOKUP(B:B,'разряды м.'!$A$5:$AD$204,30,FALSE) -> КМС | F28: 9.1 | G28: 6.6 | I28: 29.6 | J28: 45.3
A29: 24 | B29: Вальковский Владимир | C29: =VLOOKUP(B29:B90,'разряды м.'!$A$5:$AD$204,2,FALSE) -> ГОЦТиКДиМ Гомель | D29: =VLOOKUP(B29:B90,'разряды м.'!$A$5:$AD$204,3,FALSE) -> 1992 | E29: =VLOOKUP(B:B,'разряды м.'!$A$5:$AD$204,30,FALSE) -> КМС | G29: 13.3 | H29: 25.9 | J29: 39.2
A30: 25 | B30: Добрянский Александр | C30: =VLOOKUP(B30:B91,'разряды м.'!$A$5:$AD$204,2,FALSE) -> Шклов | D30: =VLOOKUP(B30:B91,'разряды м.'!$A$5:$AD$204,3,FALSE) -> 1994 | E30: =VLOOKUP(B:B,'разряды м.'!$A$5:$AD$204,30,FALSE) -> 1 | H30: 32.9 | J30: 32.9
A31: 26 | B31: Голубев Сергей | C31: =VLOOKUP(B31:B92,'разряды м.'!$A$5:$AD$204,2,FALSE) -> MinskOnsight Мн. | D31: =VLOOKUP(B31:B92,'разряды м.'!$A$5:$AD$204,3,FALSE) -> 1985 | E31: =VLOOKUP(B:B,'разряды м.'!$A$5:$AD$204,30,FALSE) -> 2 | F31: 10.9 | H31: 21.7 | J31: 32.6
A32: 27 | B32: Липский Кирилл | C32: =VLOOKUP(B32:B88,'разряды м.'!$A$5:$AD$204,2,FALSE) -> Минск | D32: =VLOOKUP(B32:B88,'разряды м.'!$A$5:$AD$204,3,FALSE) -> 1986 | E32: =VLOOKUP(B:B,'разряды м.'!$A$5:$AD$204,30,FALSE) -> 2 | H32: 7.7 | I32: 22.4 | J32: 30.1
A33: 28 | B33: Свито Иван | C33: =VLOOKUP(B33:B94,'разряды м.'!$A$5:$AD$204,2,FALSE) -> Хан-Тенгри | D33: =VLOOKUP(B33:B94,'разряды м.'!$A$5:$AD$204,3,FALSE) -> 1982 | E33: =VLOOKUP(B:B,'разряды м.'!$A$5:$AD$204,30,FALSE) -> 1 | G33: 2.5 | H33: 16.8 | I33: 10 | J33: 29.3
A34: 29 | B34: Яковлев Юрий | C34: =VLOOKUP(B34:B89,'разряды м.'!$A$5:$AD$204,2,FALSE) ->  | D34: =VLOOKUP(B34:B89,'разряды м.'!$A$5:$AD$204,3,FALSE) ->  | E34: =VLOOKUP(B:B,'разряды м.'!$A$5:$AD$204,30,FALSE) ->  | I34: 27.2 | J34: 27.2
A35: 30 | B35: Давыдов Денис | C35: =VLOOKUP(B35:B91,'разряды м.'!$A$5:$AD$204,2,FALSE) -> Минск | D35: =VLOOKUP(B35:B91,'разряды м.'!$A$5:$AD$204,3,FALSE) -> 2000 | E35: =VLOOKUP(B:B,'разряды м.'!$A$5:$AD$204,30,FALSE) -> 1 | H35: 10.5 | I35: 14.4 | J35: 24.9
A36: 31 | B36: Винчевский Максим | C36: =VLOOKUP(B36:B97,'разряды м.'!$A$5:$AD$204,2,FALSE) -> Хан-Тенгри | D36: =VLOOKUP(B36:B97,'разряды м.'!$A$5:$AD$204,3,FALSE) -> 1991 | E36: =VLOOKUP(B:B,'разряды м.'!$A$5:$AD$204,30,FALSE) -> 2 | H36: 15.4 | I36: 6.4 | J36: 21.8
A37: 32 | B37: Ченуша Алексей | C37: =VLOOKUP(B37:B93,'разряды м.'!$A$5:$AD$204,2,FALSE) -> Хан-Тенгри | D37: =VLOOKUP(B37:B93,'разряды м.'!$A$5:$AD$204,3,FALSE) -> 1969 | E37: =VLOOKUP(B:B,'разряды м.'!$A$5:$AD$204,30,FALSE) -> 1 | F37: 1.4 | I37: 16 | J37: 17.4
A38: 33 | B38: Бессер Родион | C38: =VLOOKUP(B38:B99,'разряды м.'!$A$5:$AD$204,2,FALSE) -> MinskOnsight Мн. | D38: =VLOOKUP(B38:B99,'разряды м.'!$A$5:$AD$204,3,FALSE) -> 1981 | E38: =VLOOKUP(B:B,'разряды м.'!$A$5:$AD$204,30,FALSE) -> 1 | F38: 6.8 | G38: 10 | J38: =SUM(F38:I38) -> 16.8
A39: 34 | B39: Максименя Александр | C39: =VLOOKUP(B39:B95,'разряды м.'!$A$5:$AD$204,2,FALSE) -> Хан-Тенгри | D39: =VLOOKUP(B39:B95,'разряды м.'!$A$5:$AD$204,3,FALSE) -> 1975 | E39: =VLOOKUP(B:B,'разряды м.'!$A$5:$AD$204,30,FALSE) -> 1 | F39: 6.8 | G39: 3.3 | I39: 6.4 | J39: 16.5
A40: 35 | B40: Ложкин Денис | C40: =VLOOKUP(B40:B101,'разряды м.'!$A$5:$AD$204,2,FALSE) -> MinskOnsight Мн. | D40: =VLOOKUP(B40:B101,'разряды м.'!$A$5:$AD$204,3,FALSE) -> 1983 | E40: =VLOOKUP(B:B,'разряды м.'!$A$5:$AD$204,30,FALSE) -> 1 | G40: 5.8 | H40: 10.5 | J40: 16.3
A41: 36 | B41: Стариков Павел | C41: =VLOOKUP(B41:B102,'разряды м.'!$A$5:$AD$204,2,FALSE) -> С/к «Торпедо» Мг. | D41: =VLOOKUP(B41:B102,'разряды м.'!$A$5:$AD$204,3,FALSE) -> 1996 | E41: =VLOOKUP(B:B,'разряды м.'!$A$5:$AD$204,30,FALSE) -> 2 | F41: 14.6 | J41: 14.6
A42: 37 | B42: Иванов Александр | C42: =VLOOKUP(B42:B103,'разряды м.'!$A$5:$AD$204,2,FALSE) -> Минск | D42: =VLOOKUP(B42:B103,'разряды м.'!$A$5:$AD$204,3,FALSE) -> 1992 | E42: =VLOOKUP(B:B,'разряды м.'!$A$5:$AD$204,30,FALSE) -> 2 | H42: 14 | J42: 14
A43: 38 | B43: Дудянов Евгений | C43: =VLOOKUP(B43:B99,'разряды м.'!$A$5:$AD$204,2,FALSE) -> ГОЦТиКДиМ Гомель | D43: =VLOOKUP(B43:B99,'разряды м.'!$A$5:$AD$204,3,FALSE) -> 1996 | E43: =VLOOKUP(B:B,'разряды м.'!$A$5:$AD$204,30,FALSE) -> 3 | H43: 6.3 | I43: 6.4 | J43: 12.7
A44: 39 | B44: Киселев Евгений | C44: =VLOOKUP(B44:B102,'разряды м.'!$A$5:$AD$204,2,FALSE) -> Шклов | D44: =VLOOKUP(B44:B102,'разряды м.'!$A$5:$AD$204,3,FALSE) -> 1999 | E44: =VLOOKUP(B:B,'разряды м.'!$A$5:$AD$204,30,FALSE) -> 1 | H44: 12.6 | J44: 12.6
A45: 40 | B45: Пуйто Антон | C45: =VLOOKUP(B45:B102,'разряды м.'!$A$5:$AD$204,2,FALSE) -> ГОЦТиКДиМ Гомель | D45: =VLOOKUP(B45:B102,'разряды м.'!$A$5:$AD$204,3,FALSE) -> 1998 | E45: =VLOOKUP(B:B,'разряды м.'!$A$5:$AD$204,30,FALSE) -> 1 | F45: 4.6 | H45: 7.7 | J45: 12.3
A46: 41 | B46: Гутиков Роман | C46: =VLOOKUP(B46:B102,'разряды м.'!$A$5:$AD$204,2,FALSE) -> Орша | D46: =VLOOKUP(B46:B102,'разряды м.'!$A$5:$AD$204,3,FALSE) -> 1989 | E46: =VLOOKUP(B:B,'разряды м.'!$A$5:$AD$204,30,FALSE) -> 1 | F46: 6.8 | G46: 5 | J46: 11.8
A47: 42 | B47: Пристромов Антон | C47: =VLOOKUP(B47:B103,'разряды м.'!$A$5:$AD$204,2,FALSE) -> ДЮСШ «Омега» Гом. | D47: =VLOOKUP(B47:B103,'разряды м.'!$A$5:$AD$204,3,FALSE) -> 1988 | E47: =VLOOKUP(B:B,'разряды м.'!$A$5:$AD$204,30,FALSE) -> КМС | G47: 11.6 | J47: 11.6
A48: 43 | B48: Зюзин Иван | C48: =VLOOKUP(B48:B104,'разряды м.'!$A$5:$AD$204,2,FALSE) -> Минск | D48: =VLOOKUP(B48:B104,'разряды м.'!$A$5:$AD$204,3,FALSE) -> 2001 | E48: =VLOOKUP(B:B,'разряды м.'!$A$5:$AD$204,30,FALSE) -> 1 | I48: 10 | J48: 10
A49: 44 | B49: Остроухов Егор | C49: =VLOOKUP(B49:B105,'разряды м.'!$A$5:$AD$204,2,FALSE) -> ПРЦДиМ Полоцк | D49: =VLOOKUP(B49:B105,'разряды м.'!$A$5:$AD$204,3,FALSE) -> 1973 | E49: =VLOOKUP(B:B,'разряды м.'!$A$5:$AD$204,30,FALSE) -> 1 | G49: 8.3 | I49: 1.6 | J49: 9.9
A50: 45 | B50: Таршис Иван | C50: =VLOOKUP(B50:B107,'разряды м.'!$A$5:$AD$204,2,FALSE) -> ГОЦТиКДиМ Гомель | D50: =VLOOKUP(B50:B107,'разряды м.'!$A$5:$AD$204,3,FALSE) -> 1998 | E50: =VLOOKUP(B:B,'разряды м.'!$A$5:$AD$204,30,FALSE) -> 1 | I50: 8 | J50: 8
A51: 46 | B51: Бабанов Игорь | C51: =VLOOKUP(B51:B107,'разряды м.'!$A$5:$AD$204,2,FALSE) -> С/к «Торпедо» | D51: =VLOOKUP(B51:B107,'разряды м.'!$A$5:$AD$204,3,FALSE) -> 1989 | E51: =VLOOKUP(B:B,'разряды м.'!$A$5:$AD$204,30,FALSE) -> КМС | G51: 7.5 | J51: 7.5
A52: 47 | B52: Денисевич Евгений | C52: =VLOOKUP(B52:B108,'разряды м.'!$A$5:$AD$204,2,FALSE) -> Брестская область | D52: =VLOOKUP(B52:B108,'разряды м.'!$A$5:$AD$204,3,FALSE) -> 1994 | E52: =VLOOKUP(B:B,'разряды м.'!$A$5:$AD$204,30,FALSE) -> КМС | F52: 6.8 | J52: 6.8
A53: 48 | B53: Харчик Максим | C53: =VLOOKUP(B53:B109,'разряды м.'!$A$5:$AD$204,2,FALSE) -> Брестская область | D53: =VLOOKUP(B53:B109,'разряды м.'!$A$5:$AD$204,3,FALSE) -> 1998 | E53: =VLOOKUP(B:B,'разряды м.'!$A$5:$AD$204,30,FALSE) -> 3 | H53: 5.6 | J53: 5.6
A54: 49 | B54: Живица Арсений | C54: =VLOOKUP(B54:B110,'разряды м.'!$A$5:$AD$204,2,FALSE) -> Минск | D54: =VLOOKUP(B54:B110,'разряды м.'!$A$5:$AD$204,3,FALSE) -> 2000 | E54: =VLOOKUP(B:B,'разряды м.'!$A$5:$AD$204,30,FALSE) -> 1 | H54: 1.05 | I54: 4.4 | J54: 5.45
A55: 50 | B55: Мертенс Андрей | C55: =VLOOKUP(B55:B111,'разряды м.'!$A$5:$AD$204,2,FALSE) -> г. Витебск | D55: =VLOOKUP(B55:B111,'разряды м.'!$A$5:$AD$204,3,FALSE) -> 1992 | E55: =VLOOKUP(B:B,'разряды м.'!$A$5:$AD$204,30,FALSE) -> 3 | H55: 4.9 | J55: 4.9
A56: 51 | B56: Дишук Вадим | C56: =VLOOKUP(B56:B115,'разряды м.'!$A$5:$AD$204,2,FALSE) -> Хан-Тенгри | D56: =VLOOKUP(B56:B115,'разряды м.'!$A$5:$AD$204,3,FALSE) -> 1985 | E56: =VLOOKUP(B:B,'разряды м.'!$A$5:$AD$204,30,FALSE) -> б/р | I56: 4.4 | J56: 4.4
A57: 52 | B57: Петровский Максим | C57: =VLOOKUP(B57:B115,'разряды м.'!$A$5:$AD$204,2,FALSE) -> Минск | D57: =VLOOKUP(B57:B115,'разряды м.'!$A$5:$AD$204,3,FALSE) -> 1987 | E57: =VLOOKUP(B:B,'разряды м.'!$A$5:$AD$204,30,FALSE) -> б/р | I57: 4.4 | J57: 4.4
A58: 53 | B58: Сычев Николай | C58: =VLOOKUP(B58:B114,'разряды м.'!$A$5:$AD$204,2,FALSE) -> Гомельская обл. | D58: =VLOOKUP(B58:B114,'разряды м.'!$A$5:$AD$204,3,FALSE) -> 1978 | E58: =VLOOKUP(B:B,'разряды м.'!$A$5:$AD$204,30,FALSE) -> 1 | G58: 4.1 | J58: 4.1
A59: 54 | B59: Федоров Игорь | C59: =VLOOKUP(B59:B115,'разряды м.'!$A$5:$AD$204,2,FALSE) -> Хан-Тенгри | D59: =VLOOKUP(B59:B115,'разряды м.'!$A$5:$AD$204,3,FALSE) -> 1977 | E59: =VLOOKUP(B:B,'разряды м.'!$A$5:$AD$204,30,FALSE) -> 1 | F59: 3.6 | J59: 3.6
A60: 55 | B60: Коновалов Евгений | C60: =VLOOKUP(B60:B116,'разряды м.'!$A$5:$AD$204,2,FALSE) ->  | D60: =VLOOKUP(B60:B116,'разряды м.'!$A$5:$AD$204,3,FALSE) ->  | E60: =VLOOKUP(B:B,'разряды м.'!$A$5:$AD$204,30,FALSE) ->  | H60: 3.15 | J60: 3.15
A61: 56 | B61: Рубенок Артем | C61: =VLOOKUP(B61:B117,'разряды м.'!$A$5:$AD$204,2,FALSE) -> Витебск | D61: =VLOOKUP(B61:B117,'разряды м.'!$A$5:$AD$204,3,FALSE) -> 1986 | E61: =VLOOKUP(B:B,'разряды м.'!$A$5:$AD$204,30,FALSE) -> 1 | H61: 3.15 | J61: 3.15
A62: 57 | B62: Сердаков Илья | C62: =VLOOKUP(B62:B118,'разряды м.'!$A$5:$AD$204,2,FALSE) -> ГОЦТиКДиМ Гомель | D62: =VLOOKUP(B62:B118,'разряды м.'!$A$5:$AD$204,3,FALSE) -> 1999 | E62: =VLOOKUP(B:B,'разряды м.'!$A$5:$AD$204,30,FALSE) -> КМС | F62: 1.4 | G62: 1.7 | J62: 3.1
A63: 58 | B63: Бруев Денис | C63: =VLOOKUP(B63:B119,'разряды м.'!$A$5:$AD$204,2,FALSE) ->  | D63: =VLOOKUP(B63:B119,'разряды м.'!$A$5:$AD$204,3,FALSE) ->  | E63: =VLOOKUP(B:B,'разряды м.'!$A$5:$AD$204,30,FALSE) ->  | F63: 2.7 | J63: 2.7
A64: 59 | B64: Морозов Игорь | C64: =VLOOKUP(B64:B125,'разряды м.'!$A$5:$AD$204,2,FALSE) -> Хан-Тенгри | D64: =VLOOKUP(B64:B125,'разряды м.'!$A$5:$AD$204,3,FALSE) -> 1970 | E64: =VLOOKUP(B:B,'разряды м.'!$A$5:$AD$204,30,FALSE) -> б/р | I64: 2.4 | J64: 2.4
A65: 60 | B65: Ионочкин Александр | C65: =VLOOKUP(B65:B121,'разряды м.'!$A$5:$AD$204,2,FALSE) ->  | D65: =VLOOKUP(B65:B121,'разряды м.'!$A$5:$AD$204,3,FALSE) ->  | E65: =VLOOKUP(B:B,'разряды м.'!$A$5:$AD$204,30,FALSE) ->  | H65: 1.05 | J65: 1.05
A66: 61 | B66: Чернявский Артем | C66: =VLOOKUP(B66:B127,'разряды м.'!$A$5:$AD$204,2,FALSE) -> Витебск | D66: =VLOOKUP(B66:B127,'разряды м.'!$A$5:$AD$204,3,FALSE) -> 1987 | E66: =VLOOKUP(B:B,'разряды м.'!$A$5:$AD$204,30,FALSE) -> б/р | J66: 0.8
A67: 62 | B67: Макеенко Михаил | C67: =VLOOKUP(B67:B121,'разряды м.'!$A$5:$AD$204,2,FALSE) ->  | D67: =VLOOKUP(B67:B121,'разряды м.'!$A$5:$AD$204,3,FALSE) ->  | E67: =VLOOKUP(B:B,'разряды м.'!$A$5:$AD$204,30,FALSE) ->  | H67: 0.7 | J67: =SUM(F67:I67) -> 0.7

Sheet женщины б.
A1: Текущий рейтинг
A2: Женщины, болдеринг
A3: на 9.03.2015 года | F3: КРБ-2013 | G3: ЧРБ-2014 | H3: КРБ-2014 | I3: ЧРБ-2015 | J3: общий рез-т
A4: № п/п | B4: Фамилия, Имя | C4: Команда | D4: г.р. | E4: Подтвержденный разряд | F4: Пинск | G4: Минск | H4: Пинск | I4: Минск
F5: 22-25.11 | G5: 21-23.02 | H5: 22-23.11 | I5: 27.02-1.03
A6: 1 | B6: Рак Ольга | C6: =VLOOKUP($B$6:$B$48,'разряды ж.'!$A$5:$AD$201,2,FALSE) -> Пуховичский р-н | D6: =VLOOKUP($B$6:$B$48,'разряды ж.'!$A$5:$AD$201,3,FALSE) -> 1985 | E6: =VLOOKUP($B$6:$B$48,'разряды ж.'!$A$5:$AD$201,30,FALSE) -> МС | F6: 89.5 | G6: 88 | H6: 36 | I6: 60.2 | J6: =SUM(F6:I6) -> 273.7
A7: 2 | B7: Малыженкова Лариса | C7: =VLOOKUP($B$6:$B$48,'разряды ж.'!$A$5:$AD$201,2,FALSE) -> Минск | D7: =VLOOKUP($B$6:$B$48,'разряды ж.'!$A$5:$AD$201,3,FALSE) -> 1975 | E7: =VLOOKUP($B$6:$B$48,'разряды ж.'!$A$5:$AD$201,30,FALSE) -> КМС | F7: 57.9 | G7: 69.1 | I7: 46.2 | J7: 173.2
A8: 3 | B8: Веретенникова Елена | C8: =VLOOKUP($B$6:$B$48,'разряды ж.'!$A$5:$AD$201,2,FALSE) -> Минск | D8: =VLOOKUP($B$6:$B$48,'разряды ж.'!$A$5:$AD$201,3,FALSE) -> 1991 | E8: =VLOOKUP($B$6:$B$48,'разряды ж.'!$A$5:$AD$201,30,FALSE) -> КМС | F8: 45.2 | G8: 54.9 | I8: 35.7 | J8: 135.8
A9: 4 | B9: Андреева Елена | C9: =VLOOKUP($B$6:$B$48,'разряды ж.'!$A$5:$AD$201,2,FALSE) -> Гомельская обл. | D9: =VLOOKUP($B$6:$B$48,'разряды ж.'!$A$5:$AD$201,3,FALSE) -> 1982 | E9: =VLOOKUP($B$6:$B$48,'разряды ж.'!$A$5:$AD$201,30,FALSE) -> КМС | F9: 35.3 | G9: 41.6 | H9: 13.5 | I9: 18.2 | J9: 108.6
A10: 5 | B10: Лясович Наталья | C10: =VLOOKUP($B$6:$B$48,'разряды ж.'!$A$5:$AD$201,2,FALSE) -> Витебск | D10: =VLOOKUP($B$6:$B$48,'разряды ж.'!$A$5:$AD$201,3,FALSE) -> 1985 | E10: =VLOOKUP($B$6:$B$48,'разряды ж.'!$A$5:$AD$201,30,FALSE) -> 1 | F10: 22.6 | G10: 37.8 | H10: 18.5 | I10: 23.1 | J10: 102
A11: 6 | B11: Зюзина Елена | C11: =VLOOKUP($B$6:$B$48,'разряды ж.'!$A$5:$AD$201,2,FALSE) -> Хан-Тенгри | D11: =VLOOKUP($B$6:$B$48,'разряды ж.'!$A$5:$AD$201,3,FALSE) -> 1978 | E11: =VLOOKUP($B$6:$B$48,'разряды ж.'!$A$5:$AD$201,30,FALSE) -> 1 | F11: 41.6 | G11: 28.4 | I11: 28.7 | J11: 98.7
A12: 7 | B12: Федоркевич Светлана | C12: =VLOOKUP($B$6:$B$48,'разряды ж.'!$A$5:$AD$201,2,FALSE) -> ГОЦТиКДиМ | D12: =VLOOKUP($B$6:$B$48,'разряды ж.'!$A$5:$AD$201,3,FALSE) -> 1992 | E12: =VLOOKUP($B$6:$B$48,'разряды ж.'!$A$5:$AD$201,30,FALSE) -> КМС | F12: 48.8 | G12: 45.4 | J12: 94.2
A13: 8 | B13: Кузина Юлия | C13: =VLOOKUP($B$6:$B$48,'разряды ж.'!$A$5:$AD$201,2,FALSE) -> Бобруйск | D13: =VLOOKUP($B$6:$B$48,'разряды ж.'!$A$5:$AD$201,3,FALSE) -> 1999 | E13: =VLOOKUP($B$6:$B$48,'разряды ж.'!$A$5:$AD$201,30,FALSE) -> 1 | F13: 29.8 | G13: 31.2 | H13: 26 | J13: 87
A14: 9 | B14: Чемякина Валентина | C14: =VLOOKUP($B$6:$B$48,'разряды ж.'!$A$5:$AD$201,2,FALSE) -> Минск | D14: =VLOOKUP($B$6:$B$48,'разряды ж.'!$A$5:$AD$201,3,FALSE) -> 1996 | E14: =VLOOKUP($B$6:$B$48,'разряды ж.'!$A$5:$AD$201,30,FALSE) -> 1 | F14: 38 | G14: 34.1 | J14: 72.1
A15: 10 | B15: Самсонова Мария | C15: =VLOOKUP($B$6:$B$48,'разряды ж.'!$A$5:$AD$201,2,FALSE) -> С/к «Торпедо» Мг. | D15: =VLOOKUP($B$6:$B$48,'разряды ж.'!$A$5:$AD$201,3,FALSE) -> 1984 | E15: =VLOOKUP($B$6:$B$48,'разряды ж.'!$A$5:$AD$201,30,FALSE) -> КМС | F15: 71.4 | J15: 71.4
A16: 11 | B16: Верниковская Мария | C16: =VLOOKUP($B$6:$B$48,'разряды ж.'!$A$5:$AD$201,2,FALSE) -> Пуховичский р-н | D16: =VLOOKUP($B$6:$B$48,'разряды ж.'!$A$5:$AD$201,3,FALSE) -> 2000 | E16: =VLOOKUP($B$6:$B$48,'разряды ж.'!$A$5:$AD$201,30,FALSE) -> 2 | F16: 20.8 | G16: 14.2 | I16: 20.3 | J16: 55.3
A17: 12 | B17: Баева Диана | C17: =VLOOKUP($B$6:$B$48,'разряды ж.'!$A$5:$AD$201,2,FALSE) -> МогилёвскийОЦФВиС | D17: =VLOOKUP($B$6:$B$48,'разряды ж.'!$A$5:$AD$201,3,FALSE) -> 2000 | E17: =VLOOKUP($B$6:$B$48,'разряды ж.'!$A$5:$AD$201,30,FALSE) -> 2 | F17: 17.2 | G17: 18 | H17: 11.5 | J17: 46.7
A18: 13 | B18: Веретенникова Екатерина | C18: =VLOOKUP($B$6:$B$48,'разряды ж.'!$A$5:$AD$201,2,FALSE) -> Минск | D18: =VLOOKUP($B$6:$B$48,'разряды ж.'!$A$5:$AD$201,3,FALSE) -> 1989 | E18: =VLOOKUP($B$6:$B$48,'разряды ж.'!$A$5:$AD$201,30,FALSE) -> б/р | F18: 11.8 | G18: 8.5 | H18: 7.5 | I18: 14 | J18: 41.8
A19: 14 | B19: Чуйко Полина | C19: =VLOOKUP($B$6:$B$48,'разряды ж.'!$A$5:$AD$201,2,FALSE) -> Минск | D19: =VLOOKUP($B$6:$B$48,'разряды ж.'!$A$5:$AD$201,3,FALSE) -> 1990 | E19: =VLOOKUP($B$6:$B$48,'разряды ж.'!$A$5:$AD$201,30,FALSE) -> 1 | G19: 22.7 | I19: 16.1 | J19: 38.8
A20: 15 | B20: Кореневская Вероника | C20: =VLOOKUP($B$6:$B$48,'разряды ж.'!$A$5:$AD$201,2,FALSE) -> Минск | D20: =VLOOKUP($B$6:$B$48,'разряды ж.'!$A$5:$AD$201,3,FALSE) -> 1997 | E20: =VLOOKUP($B$6:$B$48,'разряды ж.'!$A$5:$AD$201,30,FALSE) -> 2 | F20: 32.5 | H20: 4.5 | J20: 37
A21: 16 | B21: Шуляк Марина | C21: =VLOOKUP($B$6:$B$48,'разряды ж.'!$A$5:$AD$201,2,FALSE) -> Хан-Тенгри | D21: =VLOOKUP($B$6:$B$48,'разряды ж.'!$A$5:$AD$201,3,FALSE) -> 1989 | E21: =VLOOKUP($B$6:$B$48,'разряды ж.'!$A$5:$AD$201,30,FALSE) -> б/р | F21: 27.1 | I21: 9.8 | J21: 36.9
A22: 17 | B22: Титкина Дарья | C22: =VLOOKUP($B$6:$B$48,'разряды ж.'!$A$5:$AD$201,2,FALSE) -> Хан-Тенгри | D22: =VLOOKUP($B$6:$B$48,'разряды ж.'!$A$5:$AD$201,3,FALSE) -> 1986 | E22: =VLOOKUP($B$6:$B$48,'разряды ж.'!$A$5:$AD$201,30,FALSE) -> 2 | H22: 6 | I22: 25.9 | J22: 31.9
A23: 18 | B23: Якубович Карина | C23: =VLOOKUP($B$6:$B$48,'разряды ж.'!$A$5:$AD$201,2,FALSE) -> ЦТиКДМ г. Пинска | D23: =VLOOKUP($B$6:$B$48,'разряды ж.'!$A$5:$AD$201,3,FALSE) -> 1998 | E23: =VLOOKUP($B$6:$B$48,'разряды ж.'!$A$5:$AD$201,30,FALSE) -> 2 | F23: 13.6 | G23: 14.2 | J23: 27.8
A24: 19 | B24: Семейко Галина | C24: =VLOOKUP($B$6:$B$48,'разряды ж.'!$A$5:$AD$201,2,FALSE) -> Минск | D24: =VLOOKUP($B$6:$B$48,'разряды ж.'!$A$5:$AD$201,3,FALSE) -> 1982 | E24: =VLOOKUP($B$6:$B$48,'разряды ж.'!$A$5:$AD$201,30,FALSE) -> 1 | G24: 25.5 | J24: 25.5
A25: 20 | B25: Полещук Татьяна | C25: =VLOOKUP($B$6:$B$48,'разряды ж.'!$A$5:$AD$201,2,FALSE) ->  | D25: =VLOOKUP($B$6:$B$48,'разряды ж.'!$A$5:$AD$201,3,FALSE) ->  | E25: =VLOOKUP($B$6:$B$48,'разряды ж.'!$A$5:$AD$201,30,FALSE) ->  | F25: 24.4 | J25: 24.4
A26: 21 | B26: Мисюкевич Александра | C26: =VLOOKUP($B$6:$B$48,'разряды ж.'!$A$5:$AD$201,2,FALSE) -> Минск | D26: =VLOOKUP($B$6:$B$48,'разряды ж.'!$A$5:$AD$201,3,FALSE) -> 1994 | E26: =VLOOKUP($B$6:$B$48,'разряды ж.'!$A$5:$AD$201,30,FALSE) -> 2 | G26: 14.2 | H26: 9.5 | J26: 23.7
A27: 22 | B27: Сивчик Вероника | C27: =VLOOKUP($B$6:$B$48,'разряды ж.'!$A$5:$AD$201,2,FALSE) ->  | D27: =VLOOKUP($B$6:$B$48,'разряды ж.'!$A$5:$AD$201,3,FALSE) ->  | E27: =VLOOKUP($B$6:$B$48,'разряды ж.'!$A$5:$AD$201,30,FALSE) ->  | F27: 9.9 | G27: 10.4 | J27: 20.3
A28: 23 | B28: Верхоглядова Елена | C28: =VLOOKUP($B$6:$B$48,'разряды ж.'!$A$5:$AD$201,2,FALSE) -> Хан-Тенгри | D28: =VLOOKUP($B$6:$B$48,'разряды ж.'!$A$5:$AD$201,3,FALSE) -> 1987 | E28: =VLOOKUP($B$6:$B$48,'разряды ж.'!$A$5:$AD$201,30,FALSE) -> 1 | G28: 19.9 | J28: 19.9
A29: 24 | B29: Никифоровец Екатерина | C29: =VLOOKUP($B$6:$B$48,'разряды ж.'!$A$5:$AD$201,2,FALSE) ->  | D29: =VLOOKUP($B$6:$B$48,'разряды ж.'!$A$5:$AD$201,3,FALSE) ->  | E29: =VLOOKUP($B$6:$B$48,'разряды ж.'!$A$5:$AD$201,30,FALSE) ->  | F29: 19 | J29: 19
A30: 25 | B30: Вербанович Маргарита | C30: =VLOOKUP($B$6:$B$48,'разряды ж.'!$A$5:$AD$201,2,FALSE) -> Брестская область | D30: =VLOOKUP($B$6:$B$48,'разряды ж.'!$A$5:$AD$201,3,FALSE) -> 1999 | E30: =VLOOKUP($B$6:$B$48,'разряды ж.'!$A$5:$AD$201,30,FALSE) -> б/р | F30: 15.4 | J30: 15.4
A31: 26 | B31: Ракитская Анастасия | C31: =VLOOKUP($B$6:$B$48,'разряды ж.'!$A$5:$AD$201,2,FALSE) -> Хан-Тенгри | D31: =VLOOKUP($B$6:$B$48,'разряды ж.'!$A$5:$AD$201,3,FALSE) -> 1994 | E31: =VLOOKUP($B$6:$B$48,'разряды ж.'!$A$5:$AD$201,30,FALSE) -> б/р | F31: 4.1 | G31: 1.9 | I31: 7 | J31: 13
A32: 27 | B32: Разуменко Кристина | C32: =VLOOKUP($B$6:$B$48,'разряды ж.'!$A$5:$AD$201,2,FALSE) ->  | D32: =VLOOKUP($B$6:$B$48,'разряды ж.'!$A$5:$AD$201,3,FALSE) ->  | E32: =VLOOKUP($B$6:$B$48,'разряды ж.'!$A$5:$AD$201,30,FALSE) ->  | F32: 6.3 | G32: 6.6 | J32: 12.9
A33: 28 | B33: Кечик Юлия | C33: =VLOOKUP($B$6:$B$48,'разряды ж.'!$A$5:$AD$201,2,FALSE) -> Хан-Тенгри | D33: =VLOOKUP($B$6:$B$48,'разряды ж.'!$A$5:$AD$201,3,FALSE) -> 1987 | E33: =VLOOKUP($B$6:$B$48,'разряды ж.'!$A$5:$AD$201,30,FALSE) -> б/р | I33: 11.9 | J33: 11.9
A34: 29 | B34: Копусова Ксения | C34: =VLOOKUP($B$6:$B$48,'разряды ж.'!$A$5:$AD$201,2,FALSE) -> Минск | D34: =VLOOKUP($B$6:$B$48,'разряды ж.'!$A$5:$AD$201,3,FALSE) -> 2001 | E34: =VLOOKUP($B$6:$B$48,'разряды ж.'!$A$5:$AD$201,30,FALSE) -> 2 | I34: 8.4 | J34: 8.4
A35: 30 | B35: Кузичева Таисия | C35: =VLOOKUP($B$6:$B$48,'разряды ж.'!$A$5:$AD$201,2,FALSE) -> ГОЦТиКДиМ | D35: =VLOOKUP($B$6:$B$48,'разряды ж.'!$A$5:$AD$201,3,FALSE) -> 2000 | E35: =VLOOKUP($B$6:$B$48,'разряды ж.'!$A$5:$AD$201,30,FALSE) -> 2 | F35: 5.4 | G35: 2.8 | J35: 8.2
A36: 31 | B36: Воронина Татьяна | C36: =VLOOKUP($B$6:$B$48,'разряды ж.'!$A$5:$AD$201,2,FALSE) ->  | D36: =VLOOKUP($B$6:$B$48,'разряды ж.'!$A$5:$AD$201,3,FALSE) ->  | E36: =VLOOKUP($B$6:$B$48,'разряды ж.'!$A$5:$AD$201,30,FALSE) ->  | F36: 8.1 | J36: 8.1
A37: 32 | B37: Тарабуева Наталья | C37: =VLOOKUP($B$6:$B$48,'разряды ж.'!$A$5:$AD$201,2,FALSE) ->  | D37: =VLOOKUP($B$6:$B$48,'разряды ж.'!$A$5:$AD$201,3,FALSE) ->  | E37: =VLOOKUP($B$6:$B$48,'разряды ж.'!$A$5:$AD$201,30,FALSE) ->  | F37: 7.2 | J37: 7.2
A38: 33 | B38: Русинович Светлана | C38: =VLOOKUP($B$6:$B$48,'разряды ж.'!$A$5:$AD$201,2,FALSE) -> ГОЦТиКДиМ | D38: =VLOOKUP($B$6:$B$48,'разряды ж.'!$A$5:$AD$201,3,FALSE) -> 1991 | E38: =VLOOKUP($B$6:$B$48,'разряды ж.'!$A$5:$AD$201,30,FALSE) -> б/р | I38: 5.6 | J38: 5.6
A39: 34 | B39: Климович Янина | C39: =VLOOKUP($B$6:$B$48,'разряды ж.'!$A$5:$AD$201,2,FALSE) ->  | D39: =VLOOKUP($B$6:$B$48,'разряды ж.'!$A$5:$AD$201,3,FALSE) ->  | E39: =VLOOKUP($B$6:$B$48,'разряды ж.'!$A$5:$AD$201,30,FALSE) ->  | G39: 4.7 | J39: 4.7
A40: 35 | B40: Гацулина Анастасия | C40: =VLOOKUP($B$6:$B$48,'разряды ж.'!$A$5:$AD$201,2,FALSE) -> ГОЦТиКДиМ | D40: =VLOOKUP($B$6:$B$48,'разряды ж.'!$A$5:$AD$201,3,FALSE) -> 1997 | E40: =VLOOKUP($B$6:$B$48,'разряды ж.'!$A$5:$AD$201,30,FALSE) -> б/р | I40: 4.2 | J40: 4.2
A41: 36 | B41: Грищенко Екатерина | C41: =VLOOKUP($B$6:$B$48,'разряды ж.'!$A$5:$AD$201,2,FALSE) ->  | D41: =VLOOKUP($B$6:$B$48,'разряды ж.'!$A$5:$AD$201,3,FALSE) ->  | E41: =VLOOKUP($B$6:$B$48,'разряды ж.'!$A$5:$AD$201,30,FALSE) ->  | F41: 4.1 | J41: 4.1
A42: 37 | B42: Вежновец Екатерина | C42: =VLOOKUP($B$6:$B$48,'разряды ж.'!$A$5:$AD$201,2,FALSE) -> Минск | D42: =VLOOKUP($B$6:$B$48,'разряды ж.'!$A$5:$AD$201,3,FALSE) -> 0 | E42: =VLOOKUP($B$6:$B$48,'разряды ж.'!$A$5:$AD$201,30,FALSE) -> 3 | H42: 3 | J42: 3
A43: 38 | B43: Причинич Евгения | C43: =VLOOKUP($B$6:$B$48,'разряды ж.'!$A$5:$AD$201,2,FALSE) -> ГОЦТиКДиМ | D43: =VLOOKUP($B$6:$B$48,'разряды ж.'!$A$5:$AD$201,3,FALSE) -> 1990 | E43: =VLOOKUP($B$6:$B$48,'разряды ж.'!$A$5:$AD$201,30,FALSE) -> б/р | I43: 2.8 | J43: 2.8
A44: 39 | B44: Савицкая Екатерина | C44: =VLOOKUP($B$6:$B$48,'разряды ж.'!$A$5:$AD$201,2,FALSE) ->  | D44: =VLOOKUP($B$6:$B$48,'разряды ж.'!$A$5:$AD$201,3,FALSE) ->  | E44: =VLOOKUP($B$6:$B$48,'разряды ж.'!$A$5:$AD$201,30,FALSE) ->  | F44: 2.7 | J44: 2.7
A45: 40 | B45: Шпунтова Анна | C45: =VLOOKUP($B$6:$B$48,'разряды ж.'!$A$5:$AD$201,2,FALSE) ->  | D45: =VLOOKUP($B$6:$B$48,'разряды ж.'!$A$5:$AD$201,3,FALSE) ->  | E45: =VLOOKUP($B$6:$B$48,'разряды ж.'!$A$5:$AD$201,30,FALSE) ->  | F45: 1.4 | G45: 0.9 | J45: 2.3
A46: 41 | B46: Комарчук Елена | C46: =VLOOKUP($B$6:$B$48,'разряды ж.'!$A$5:$AD$201,2,FALSE) ->  | D46: =VLOOKUP($B$6:$B$48,'разряды ж.'!$A$5:$AD$201,3,FALSE) ->  | E46: =VLOOKUP($B$6:$B$48,'разряды ж.'!$A$5:$AD$201,30,FALSE) ->  | H46: 1.5 | J46: 1.5
A47: 42 | B47: Самохвалова Анастасия | C47: =VLOOKUP($B$6:$B$48,'разряды ж.'!$A$5:$AD$201,2,FALSE) -> Гомельская обл. | D47: =VLOOKUP($B$6:$B$48,'разряды ж.'!$A$5:$AD$201,3,FALSE) -> 1997 | E47: =VLOOKUP($B$6:$B$48,'разряды ж.'!$A$5:$AD$201,30,FALSE) -> б/р | I47: 1.4 | J47: 1.4
A48: 43 | B48: Клещёнок Светлана | C48: =VLOOKUP($B$6:$B$48,'разряды ж.'!$A$5:$AD$201,2,FALSE) ->  | D48: =VLOOKUP($B$6:$B$48,'разряды ж.'!$A$5:$AD$201,3,FALSE) ->  | E48: =VLOOKUP($B$6:$B$48,'разряды ж.'!$A$5:$AD$201,30,FALSE) ->  | F48: 1.4 | J48: 1.4

Sheet мужчины ск.
A1: Текущий рейтинг. Скорость. Мужчины.
B2: на 1.11.2015 года | F2: ЧРБ-2013 | G2: КБ-2014 | H2: ЧРБ-2015 | I2: КБ-2015 | J2: общий рез-т
A3: Место | B3: Фамилия Имя | C3: Команда | D3: г.р. | E3: Подтвержденный разряд | F3: Витебск | G3: Витебск | H3: Витебск | I3: Могилев
F4: 5-8.12. | G4: 10-13.04. | H4: 17-20.04. | I4: 29-31.10.
A5: 1 | B5: Караваев Дмитрий | C5: =VLOOKUP(B5:B28,'разряды м.'!$A$5:$AD$3004,2,FALSE) -> ДЮСШ "Омега" | D5: =VLOOKUP(B5:B66,'разряды м.'!$A$5:$AD$204,3,FALSE) -> 1993 | E5: =VLOOKUP(B:B,'разряды м.'!$A$5:$AD$300,30,FALSE) -> КМС | F5: 49.1 | G5: 51.2 | H5: 71.31782391 | I5: 28.8 | J5: =SUM(F5:I5) -> 200.4178239
A6: 2 | B6: Дюбенков Дмитрий | C6: =VLOOKUP(B6:B29,'разряды м.'!$A$5:$AD$3004,2,FALSE) -> ГУО «ГОЦТКДМ» | D6: =VLOOKUP(B6:B67,'разряды м.'!$A$5:$AD$204,3,FALSE) -> 1992 | E6: =VLOOKUP(B:B,'разряды м.'!$A$5:$AD$300,30,FALSE) -> МС | F6: 78.7 | G6: 27.6 | H6: 2.487831067 | I6: 82.8 | J6: =SUM(F6:I6) -> 191.5878311
A7: 3 | B7: Клюжев Александр | C7: =VLOOKUP(B7:B30,'разряды м.'!$A$5:$AD$3004,2,FALSE) -> ГУО «ГОЦТКДМ» | D7: =VLOOKUP(B7:B68,'разряды м.'!$A$5:$AD$204,3,FALSE) -> 1997 | E7: =VLOOKUP(B:B,'разряды м.'!$A$5:$AD$300,30,FALSE) -> МС | F7: 40.6 | G7: 37.7 | H7: 42.29312813 | I7: 51.3 | J7: =SUM(F7:I7) -> 171.8931281
A8: 4 | B8: Сердаков Илья | C8: =VLOOKUP(B8:B31,'разряды м.'!$A$5:$AD$3004,2,FALSE) -> ГОЦТиКДиМ Гомель | D8: =VLOOKUP(B8:B69,'разряды м.'!$A$5:$AD$204,3,FALSE) -> 1999 | E8: =VLOOKUP(B:B,'разряды м.'!$A$5:$AD$300,30,FALSE) -> КМС | F8: 16.1 | G8: 10.8 | H8: 30.68324982 | I8: 42.3 | J8: =SUM(F8:I8) -> 99.88324982
A9: 5 | B9: Логунов Никита | C9: =VLOOKUP(B9:B32,'разряды м.'!$A$5:$AD$3004,2,FALSE) -> ДЮСШ «Омега» Гом. | D9: =VLOOKUP(B9:B70,'разряды м.'!$A$5:$AD$204,3,FALSE) -> 1999 | E9: =VLOOKUP(B:B,'разряды м.'!$A$5:$AD$300,30,FALSE) -> КМС | F9: 33.9 | H9: 34.00035791 | I9: 31.5 | J9: =SUM(F9:I9) -> 99.40035791
A10: 6 | B10: Никифоровец Андрей | C10: =VLOOKUP(B10:B33,'разряды м.'!$A$5:$AD$3004,2,FALSE) -> Минск | D10: =VLOOKUP(B10:B71,'разряды м.'!$A$5:$AD$204,3,FALSE) -> 1974 | E10: =VLOOKUP(B:B,'разряды м.'!$A$5:$AD$300,30,FALSE) -> МС | F10: 37.3 | G10: 15.5 | H10: 4.975662133 | I10: 20.7 | J10: =SUM(F10:I10) -> 78.47566213
A11: 7 | B11: Вальковский Владимир | C11: =VLOOKUP(B11:B34,'разряды м.'!$A$5:$AD$3004,2,FALSE) -> ГОЦТиКДиМ Гомель | D11: =VLOOKUP(B11:B72,'разряды м.'!$A$5:$AD$204,3,FALSE) -> 1992 | E11: =VLOOKUP(B:B,'разряды м.'!$A$5:$AD$300,30,FALSE) -> КМС | G11: 20.9 | H11: 54.73228346 | J11: =SUM(F11:I11) -> 75.63228346
A12: 8 | B12: Пуйто Антон | C12: =VLOOKUP(B12:B35,'разряды м.'!$A$5:$AD$3004,2,FALSE) -> ГОЦТиКДиМ Гомель | D12: =VLOOKUP(B12:B73,'разряды м.'!$A$5:$AD$204,3,FALSE) -> 1998 | E12: =VLOOKUP(B:B,'разряды м.'!$A$5:$AD$300,30,FALSE) -> 1 | F12: 17.8 | G12: 12.8 | I12: 38.7 | J12: =SUM(F12:I12) -> 69.3
A13: 9 | B13: Бабанов Игорь | C13: =VLOOKUP(B13:B36,'разряды м.'!$A$5:$AD$3004,2,FALSE) -> С/к «Торпедо» | D13: 1989 | E13: =VLOOKUP(B:B,'разряды м.'!$A$5:$AD$300,30,FALSE) -> КМС | J13: 64.8
A14: 10 | B14: Денисевич Евгений | C14: =VLOOKUP(B14:B37,'разряды м.'!$A$5:$AD$3004,2,FALSE) -> Брестская область | D14: =VLOOKUP(B14:B75,'разряды м.'!$A$5:$AD$204,3,FALSE) -> 1994 | E14: =VLOOKUP(B:B,'разряды м.'!$A$5:$AD$300,30,FALSE) -> КМС | F14: 61.8 | J14: =SUM(F14:I14) -> 61.8
A15: 11 | B15: Буйленков Павел | C15: =VLOOKUP(B15:B38,'разряды м.'!$A$5:$AD$3004,2,FALSE) -> ГОЦТиКДиМ Гомель | D15: =VLOOKUP(B15:B76,'разряды м.'!$A$5:$AD$204,3,FALSE) -> 1993 | E15: =VLOOKUP(B:B,'разряды м.'!$A$5:$AD$300,30,FALSE) -> КМС | F15: 14.4 | G15: 18.2 | H15: 2.487831067 | I15: 26.1 | J15: =SUM(F15:I15) -> 61.18783107
A16: 12 | B16: Никифоровец Максим | C16: =VLOOKUP(B16:B39,'разряды м.'!$A$5:$AD$3004,2,FALSE) -> Минск | D16: =VLOOKUP(B16:B77,'разряды м.'!$A$5:$AD$204,3,FALSE) -> 1997 | E16: =VLOOKUP(B:B,'разряды м.'!$A$5:$AD$300,30,FALSE) -> КМС | F16: 25.4 | I16: 35.1 | J16: =SUM(F16:I16) -> 60.5
A17: 13 | B17: Аблажевич Виктор | C17: =VLOOKUP(B17:B40,'разряды м.'!$A$5:$AD$3004,2,FALSE) -> ДЮСШ «Омега» Гом. | D17: =VLOOKUP(B17:B78,'разряды м.'!$A$5:$AD$204,3,FALSE) -> 2000 | E17: =VLOOKUP(B:B,'разряды м.'!$A$5:$AD$300,30,FALSE) -> 2 | F17: 2.5 | G17: 4.7 | H17: 27.36614173 | I17: 18 | J17: =SUM(F17:I17) -> 52.56614173
A18: 14 | B18: Покаместов Илья | C18: =VLOOKUP(B18:B41,'разряды м.'!$A$5:$AD$3004,2,FALSE) -> Витебск | D18: =VLOOKUP(B18:B79,'разряды м.'!$A$5:$AD$204,3,FALSE) -> 1977 | E18: =VLOOKUP(B:B,'разряды м.'!$A$5:$AD$300,30,FALSE) -> 1 | F18: 22.9 | G18: 8.8 | J18: =SUM(F18:I18) -> 31.7
A19: 15 | B19: Волосович Дмитрий | C19: =VLOOKUP(B19:B42,'разряды м.'!$A$5:$AD$3004,2,FALSE) -> Гомельская обл. | D19: =VLOOKUP(B19:B80,'разряды м.'!$A$5:$AD$204,3,FALSE) -> 1995 | E19: =VLOOKUP(B:B,'разряды м.'!$A$5:$AD$300,30,FALSE) -> КМС | F19: 30.5 | J19: =SUM(F19:I19) -> 30.5
A20: 16 | B20: Пристромов Антон | C20: =VLOOKUP(B20:B43,'разряды м.'!$A$5:$AD$3004,2,FALSE) -> ДЮСШ «Омега» Гом. | D20: =VLOOKUP(B20:B81,'разряды м.'!$A$5:$AD$204,3,FALSE) -> 1988 | E20: =VLOOKUP(B:B,'разряды м.'!$A$5:$AD$300,30,FALSE) -> КМС | F20: 27.9 | J20: =SUM(F20:I20) -> 27.9
A21: 17 | B21: Лялюк Александр | C21: =VLOOKUP(B21:B44,'разряды м.'!$A$5:$AD$3004,2,FALSE) -> г. Витебск | D21: =VLOOKUP(B21:B82,'разряды м.'!$A$5:$AD$204,3,FALSE) -> 1989 | E21: =VLOOKUP(B:B,'разряды м.'!$A$5:$AD$300,30,FALSE) -> 2 | H21: 24.04903364 | J21: =SUM(F21:I21) -> 24.04903364
A22: 18 | B22: Таршис Иван | C22: =VLOOKUP(B22:B45,'разряды м.'!$A$5:$AD$3004,2,FALSE) -> ГОЦТиКДиМ Гомель | D22: 1998 | E22: =VLOOKUP(B:B,'разряды м.'!$A$5:$AD$300,30,FALSE) -> 1 | I22: 23.4 | J22: =SUM(F22:I22) -> 23.4
A23: 19 | B23: Талдыкин Илья | C23: =VLOOKUP(B23:B46,'разряды м.'!$A$5:$AD$3004,2,FALSE) -> ДЮСШ «Омега» Гом. | D23: =VLOOKUP(B23:B84,'разряды м.'!$A$5:$AD$204,3,FALSE) -> 2000 | E23: =VLOOKUP(B:B,'разряды м.'!$A$5:$AD$300,30,FALSE) -> 2 | F23: 4.2 | H23: 19.07337151 | J23: =SUM(F23:I23) -> 23.27337151
A24: 20 | B24: Живица Арсений | C24: =VLOOKUP(B24:B47,'разряды м.'!$A$5:$AD$3004,2,FALSE) -> Минск | D24: =VLOOKUP(B24:B85,'разряды м.'!$A$5:$AD$204,3,FALSE) -> 2000 | E24: =VLOOKUP(B:B,'разряды м.'!$A$5:$AD$300,30,FALSE) -> 1 | F24: 11 | I24: 10.8 | J24: =SUM(F24:I24) -> 21.8
A25: 21 | B25: Мертенс Андрей | C25: =VLOOKUP(B25:B48,'разряды м.'!$A$5:$AD$3004,2,FALSE) -> г. Витебск | D25: =VLOOKUP(B25:B86,'разряды м.'!$A$5:$AD$204,3,FALSE) -> 1992 | E25: =VLOOKUP(B:B,'разряды м.'!$A$5:$AD$300,30,FALSE) -> 3 | H25: 21.56120258 | J25: =SUM(F25:I25) -> 21.56120258
A26: 22 | B26: Никоноров Дмитрий | C26: =VLOOKUP(B26:B49,'разряды м.'!$A$5:$AD$3004,2,FALSE) -> Пуховичский р-н | D26: =VLOOKUP(B26:B87,'разряды м.'!$A$5:$AD$204,3,FALSE) -> 1997 | E26: =VLOOKUP(B:B,'разряды м.'!$A$5:$AD$300,30,FALSE) -> КМС | F26: 20.3 | J26: =SUM(F26:I26) -> 20.3
A27: 23 | B27: Зюзин Иван | C27: =VLOOKUP(B27:B50,'разряды м.'!$A$5:$AD$3004,2,FALSE) -> Минск | D27: =VLOOKUP(B27:B88,'разряды м.'!$A$5:$AD$204,3,FALSE) -> 2001 | E27: =VLOOKUP(B:B,'разряды м.'!$A$5:$AD$300,30,FALSE) -> 1 | H27: 16.58554044 | I27: 3.6 | J27: =SUM(F27:I27) -> 20.18554044
A28: 24 | B28: Степаненко Олег | C28: =VLOOKUP(B28:B51,'разряды м.'!$A$5:$AD$3004,2,FALSE) -> ДЮСШ «Омега» Гом. | D28: =VLOOKUP(B28:B89,'разряды м.'!$A$5:$AD$204,3,FALSE) -> 2001 | E28: =VLOOKUP(B:B,'разряды м.'!$A$5:$AD$300,30,FALSE) -> 2 | H28: 14.09770938 | I28: 5.4 | J28: =SUM(F28:I28) -> 19.49770938
A29: 25 | B29: Журавлев Артем | C29: =VLOOKUP(B29:B52,'разряды м.'!$A$5:$AD$3004,2,FALSE) -> ГОЦТиКДиМ Гомель | D29: 2000 | E29: =VLOOKUP(B:B,'разряды м.'!$A$5:$AD$300,30,FALSE) -> 2 | I29: 16.2 | J29: =SUM(F29:I29) -> 16.2
A30: 26 | B30: Давыдов Денис | C30: =VLOOKUP(B30:B53,'разряды м.'!$A$5:$AD$3004,2,FALSE) -> Минск | D30: =VLOOKUP(B30:B91,'разряды м.'!$A$5:$AD$204,3,FALSE) -> 2000 | E30: =VLOOKUP(B:B,'разряды м.'!$A$5:$AD$300,30,FALSE) -> 1 | F30: 9.3 | G30: 6.7 | J30: =SUM(F30:I30) -> 16
A31: 27 | B31: Корявко Владислав | C31: =VLOOKUP(B31:B54,'разряды м.'!$A$5:$AD$3004,2,FALSE) -> СК "Торпедо" | D31: 1990 | E31: =VLOOKUP(B:B,'разряды м.'!$A$5:$AD$300,30,FALSE) -> б/р | I31: 14.4 | J31: =SUM(F31:I31) -> 14.4
A32: 28 | B32: Силивончик Виктор | C32: =VLOOKUP(B32:B55,'разряды м.'!$A$5:$AD$3004,2,FALSE) ->  | D32: =VLOOKUP(B32:B93,'разряды м.'!$A$5:$AD$204,3,FALSE) ->  | E32: =VLOOKUP(B:B,'разряды м.'!$A$5:$AD$300,30,FALSE) ->  | F32: 12.7 | J32: =SUM(F32:I32) -> 12.7
A33: 29 | B33: Бегляков Александр | C33: =VLOOKUP(B33:B56,'разряды м.'!$A$5:$AD$3004,2,FALSE) -> Шкловский район | D33: 1981 | E33: =VLOOKUP(B:B,'разряды м.'!$A$5:$AD$300,30,FALSE) -> б/р | I33: 12.6 | J33: =SUM(F33:I33) -> 12.6
A34: 30 | B34: Капитонов Илья | C34: =VLOOKUP(B34:B57,'разряды м.'!$A$5:$AD$3004,2,FALSE) ->  | D34: =VLOOKUP(B34:B95,'разряды м.'!$A$5:$AD$204,3,FALSE) ->  | E34: =VLOOKUP(B:B,'разряды м.'!$A$5:$AD$300,30,FALSE) ->  | H34: 11.60987831 | J34: =SUM(F34:I34) -> 11.60987831
A35: 31 | B35: Бережной Максим | C35: =VLOOKUP(B35:B58,'разряды м.'!$A$5:$AD$3004,2,FALSE) -> РЦЭК | D35: =VLOOKUP(B35:B96,'разряды м.'!$A$5:$AD$204,3,FALSE) -> 2000 | E35: =VLOOKUP(B:B,'разряды м.'!$A$5:$AD$300,30,FALSE) -> 3 | H35: 9.951324266 | J35: =SUM(F35:I35) -> 9.951324266
A36: 32 | B36: Афанасенко Владимир | C36: =VLOOKUP(B36:B59,'разряды м.'!$A$5:$AD$3004,2,FALSE) -> Шкловский район | D36: 1987 | E36: =VLOOKUP(B:B,'разряды м.'!$A$5:$AD$300,30,FALSE) -> 2 | I36: 9 | J36: =SUM(F36:I36) -> 9
A37: 33 | B37: Писарев Кирилл | C37: =VLOOKUP(B37:B60,'разряды м.'!$A$5:$AD$3004,2,FALSE) -> ДЮСШ «Омега» Гом. | D37: =VLOOKUP(B37:B98,'разряды м.'!$A$5:$AD$204,3,FALSE) -> 2001 | E37: =VLOOKUP(B:B,'разряды м.'!$A$5:$AD$300,30,FALSE) -> 1 | H37: 8.292770222 | J37: =SUM(F37:I37) -> 8.292770222
A38: 34 | B38: Главацкий Сергей | C38: =VLOOKUP(B38:B61,'разряды м.'!$A$5:$AD$3004,2,FALSE) -> Пуховичский р-н | D38: =VLOOKUP(B38:B99,'разряды м.'!$A$5:$AD$204,3,FALSE) -> 1998 | E38: =VLOOKUP(B:B,'разряды м.'!$A$5:$AD$300,30,FALSE) -> 1 | F38: 7.6 | J38: =SUM(F38:I38) -> 7.6
A39: 35 | B39: Добрянский Александр | C39: =VLOOKUP(B39:B62,'разряды м.'!$A$5:$AD$3004,2,FALSE) -> Шклов | D39: 1994 | E39: =VLOOKUP(B:B,'разряды м.'!$A$5:$AD$300,30,FALSE) -> 1 | I39: 7.2 | J39: =SUM(F39:I39) -> 7.2
A40: 36 | B40: Самухин Василий | C40: =VLOOKUP(B40:B63,'разряды м.'!$A$5:$AD$3004,2,FALSE) -> Минск | D40: =VLOOKUP(B40:B101,'разряды м.'!$A$5:$AD$204,3,FALSE) -> 2000 | E40: =VLOOKUP(B:B,'разряды м.'!$A$5:$AD$300,30,FALSE) -> 3 | H40: 6.634216178 | J40: =SUM(F40:I40) -> 6.634216178
A41: 37 | B41: Ахламенок Олег | C41: =VLOOKUP(B41:B64,'разряды м.'!$A$5:$AD$3004,2,FALSE) ->  | D41: =VLOOKUP(B41:B102,'разряды м.'!$A$5:$AD$204,3,FALSE) ->  | E41: =VLOOKUP(B:B,'разряды м.'!$A$5:$AD$300,30,FALSE) ->  | F41: 5.9 | J41: =SUM(F41:I41) -> 5.9
A42: 38 | B42: Огарко Михаил | C42: =VLOOKUP(B42:B65,'разряды м.'!$A$5:$AD$3004,2,FALSE) ->  | D42: =VLOOKUP(B42:B103,'разряды м.'!$A$5:$AD$204,3,FALSE) ->  | E42: =VLOOKUP(B:B,'разряды м.'!$A$5:$AD$300,30,FALSE) ->  | F42: 0.8 | G42: 1.3 | J42: =SUM(F42:I42) -> 2.1
A43: 39 | B43: Демешко Кирилл | C43: =VLOOKUP(B43:B66,'разряды м.'!$A$5:$AD$3004,2,FALSE) -> г. Минск | D43: 1996 | E43: =VLOOKUP(B:B,'разряды м.'!$A$5:$AD$300,30,FALSE) -> б/р | I43: 1.8 | J43: =SUM(F43:I43) -> 1.8
A44: 40 | B44: Стрельский Максим | C44: =VLOOKUP(B44:B67,'разряды м.'!$A$5:$AD$3004,2,FALSE) -> Пуховичский р-н | D44: =VLOOKUP(B44:B105,'разряды м.'!$A$5:$AD$204,3,FALSE) -> 1998 | E44: =VLOOKUP(B:B,'разряды м.'!$A$5:$AD$300,30,FALSE) -> б/р | F44: 1.7 | J44: =SUM(F44:I44) -> 1.7
A45: 41 | B45: Астапов Максим | C45: =VLOOKUP(B45:B68,'разряды м.'!$A$5:$AD$3004,2,FALSE) -> ГОЦТиКДиМ Гомель | D45: 2001 | E45: =VLOOKUP(B:B,'разряды м.'!$A$5:$AD$300,30,FALSE) -> 2 | I45: 0.9 | J45: =SUM(F45:I45) -> 0.9

Sheet женщины ск.
A1: Текущий рейтинг. Скорость. Женщины.
B3: на 1.11.2015 года | F3: ЧРБ-2013 | G3: КБ-2014 | H3: ЧРБ-2015 | I3: КБ-2015 | J3: общий рез-т
A4: Место | B4: Фамилия Имя | C4: Команда | D4: г.р. | E4: Подтвержденный разряд | F4: Витебск | G4: Витебск | H4: Витебск | I4: Могилев
F5: 5-8.12. | G5: 10-13.04. | H5: 17-20.04.15 | I5: 29-31.10.15
A6: 1 | B6: Федоркевич Светлана | C6: =VLOOKUP(B6:B16,'разряды ж.'!$A$5:$AD$201,2,FALSE) -> ГОЦТиКДиМ | D6: =VLOOKUP(B6:B16,'разряды ж.'!$A$5:$AD$201,3,FALSE) -> 1992 | E6: =VLOOKUP(B6:B34,'разряды ж.'!$A$5:$AD$201,30,FALSE) -> КМС | F6: 21.4 | G6: 23.4 | J6: =SUM(F6:I6) -> 44.8
A7: 2 | B7: Кореневская Вероника | C7: =VLOOKUP(B7:B17,'разряды ж.'!$A$5:$AD$201,2,FALSE) -> Минск | D7: =VLOOKUP(B7:B17,'разряды ж.'!$A$5:$AD$201,3,FALSE) -> 1997 | E7: =VLOOKUP(B7:B35,'разряды ж.'!$A$5:$AD$201,30,FALSE) -> 2 | F7: 5.5 | G7: 14.6 | H7: 13.43434343 | J7: =SUM(F7:I7) -> 33.53434343
A8: 3 | B8: Пагудо Екатерина | C8: =VLOOKUP(B8:B18,'разряды ж.'!$A$5:$AD$201,2,FALSE) -> Минск | D8: 2000 | E8: =VLOOKUP(B8:B36,'разряды ж.'!$A$5:$AD$201,30,FALSE) -> 2 | I8: 17.1 | J8: =SUM(F8:I8) -> 17.1
A9: 4 | B9: Ермохина Дарья | C9: =VLOOKUP(B9:B19,'разряды ж.'!$A$5:$AD$201,2,FALSE) -> РЦЭК | D9: =VLOOKUP(B9:B19,'разряды ж.'!$A$5:$AD$201,3,FALSE) -> 1999 | E9: =VLOOKUP(B9:B37,'разряды ж.'!$A$5:$AD$201,30,FALSE) -> 1 юн | G9: 7.9 | H9: 8.720538721 | J9: =SUM(F9:I9) -> 16.62053872
A10: 5 | B10: Кузина Юлия | C10: =VLOOKUP(B10:B20,'разряды ж.'!$A$5:$AD$201,2,FALSE) -> Бобруйск | D10: =VLOOKUP(B10:B20,'разряды ж.'!$A$5:$AD$201,3,FALSE) -> 1999 | E10: =VLOOKUP(B10:B38,'разряды ж.'!$A$5:$AD$201,30,FALSE) -> 1 | F10: 14.9 | J10: =SUM(F10:I10) -> 14.9
A11: 6 | B11: Андреенко Алина | C11: ГУО «ГОЦТКДМ» | D11: 1998 | E11: =VLOOKUP(B11:B39,'разряды ж.'!$A$5:$AD$201,30,FALSE) -> б/р | I11: 11.1 | J11: =SUM(F11:I11) -> 11.1
A12: 7 | B12: Якубович Карина | C12: =VLOOKUP(B12:B22,'разряды ж.'!$A$5:$AD$201,2,FALSE) -> ЦТиКДМ г. Пинска | D12: =VLOOKUP(B12:B22,'разряды ж.'!$A$5:$AD$201,3,FALSE) -> 1998 | E12: =VLOOKUP(B12:B40,'разряды ж.'!$A$5:$AD$201,30,FALSE) -> 2 | F12: 10 | J12: =SUM(F12:I12) -> 10
A13: 8 | B13: Разуменко Кристина | C13: =VLOOKUP(B13:B23,'разряды ж.'!$A$5:$AD$201,2,FALSE) ->  | D13: =VLOOKUP(B13:B23,'разряды ж.'!$A$5:$AD$201,3,FALSE) ->  | E13: =VLOOKUP(B13:B41,'разряды ж.'!$A$5:$AD$201,30,FALSE) ->  | F13: 6.8 | I13: 2.4 | J13: =SUM(F13:I13) -> 9.2
A14: 9 | B14: Копусова Ксения | C14: =VLOOKUP(B14:B24,'разряды ж.'!$A$5:$AD$201,2,FALSE) -> Минск | D14: =VLOOKUP(B14:B24,'разряды ж.'!$A$5:$AD$201,3,FALSE) -> 2001 | E14: =VLOOKUP(B14:B42,'разряды ж.'!$A$5:$AD$201,30,FALSE) -> 2 | H14: 5.185185185 | I14: 3.6 | J14: =SUM(F14:I14) -> 8.785185185
A15: 10 | B15: Болсун Софья | C15: =VLOOKUP(B15:B25,'разряды ж.'!$A$5:$AD$201,2,FALSE) -> ДЮСШ "Омега" | D15: =VLOOKUP(B15:B25,'разряды ж.'!$A$5:$AD$201,3,FALSE) -> 1998 | E15: =VLOOKUP(B15:B43,'разряды ж.'!$A$5:$AD$201,30,FALSE) -> б/р | F15: 4.2 | G15: 3.5 | J15: =SUM(F15:I15) -> 7.7
A16: 11 | B16: Коноплева Марина | C16: =VLOOKUP(B16:B26,'разряды ж.'!$A$5:$AD$201,2,FALSE) -> ДЮСШ "Омега" | D16: =VLOOKUP(B16:B26,'разряды ж.'!$A$5:$AD$201,3,FALSE) -> 2001 | E16: =VLOOKUP(B16:B44,'разряды ж.'!$A$5:$AD$201,30,FALSE) -> 2 | H16: 0.9427609428 | I16: 6.6 | J16: =SUM(F16:I16) -> 7.542760943
A17: 12 | B17: Русинович Светлана | C17: =VLOOKUP(B17:B27,'разряды ж.'!$A$5:$AD$201,2,FALSE) -> ГОЦТиКДиМ | D17: =VLOOKUP(B17:B27,'разряды ж.'!$A$5:$AD$201,3,FALSE) -> 1991 | E17: =VLOOKUP(B17:B45,'разряды ж.'!$A$5:$AD$201,30,FALSE) -> б/р | H17: 1.885521886 | I17: 1.2 | J17: =SUM(F17:I17) -> 3.085521886
A18: 13 | B18: Кузичева Таисия | C18: =VLOOKUP(B18:B28,'разряды ж.'!$A$5:$AD$201,2,FALSE) -> ГОЦТиКДиМ | D18: =VLOOKUP(B18:B28,'разряды ж.'!$A$5:$AD$201,3,FALSE) -> 2000 | E18: =VLOOKUP(B18:B46,'разряды ж.'!$A$5:$AD$201,30,FALSE) -> 2 | F18: 2.9 | J18: =SUM(F18:I18) -> 2.9
A19: 14 | B19: Гацулина Анастасия | C19: =VLOOKUP(B19:B29,'разряды ж.'!$A$5:$AD$201,2,FALSE) -> ГОЦТиКДиМ | D19: =VLOOKUP(B19:B29,'разряды ж.'!$A$5:$AD$201,3,FALSE) -> 1997 | E19: =VLOOKUP(B19:B47,'разряды ж.'!$A$5:$AD$201,30,FALSE) -> б/р | H19: 2.828282828 | J19: =SUM(F19:I19) -> 2.828282828
A20: 15 | B20: Тарасенко Анна | C20: =VLOOKUP(B20:B30,'разряды ж.'!$A$5:$AD$201,2,FALSE) ->  | D20: =VLOOKUP(B20:B30,'разряды ж.'!$A$5:$AD$201,3,FALSE) ->  | E20: =VLOOKUP(B20:B48,'разряды ж.'!$A$5:$AD$201,30,FALSE) ->  | F20: 1.9 | J20: =SUM(F20:I20) -> 1.9
A21: 16 | B21: Белковец Екатерина | C21: =VLOOKUP(B21:B31,'разряды ж.'!$A$5:$AD$201,2,FALSE) ->  | D21: =VLOOKUP(B21:B31,'разряды ж.'!$A$5:$AD$201,3,FALSE) ->  | E21: =VLOOKUP(B21:B49,'разряды ж.'!$A$5:$AD$201,30,FALSE) ->  | G21: 1.8 | J21: =SUM(F21:I21) -> 1.8
A22: 17 | B22: Баталко Мария | C22: =VLOOKUP(B22:B32,'разряды ж.'!$A$5:$AD$201,2,FALSE) ->  | D22: =VLOOKUP(B22:B32,'разряды ж.'!$A$5:$AD$201,3,FALSE) ->  | E22: =VLOOKUP(B22:B50,'разряды ж.'!$A$5:$AD$201,30,FALSE) ->  | F22: 1 | J22: =SUM(F22:I22) -> 1

Sheet мужчины тр.
A1: Текущий рейтинг
A2: Мужчины, трудность
A3: на 1.11.2015 года | F3: ЧРБ-2013 | G3: КБ-2014 | H3: ЧРБ-2015 | I3: КБ-2015 | J3: общий рез-т
A4: М | B4: Фамилия, Имя | C4: Команда | D4: г.р. | E4: Подтвержденный разряд | F4: Витебск | G4: Витебск | H4: Витебск | I4: Могилев
F5: 5-8.12.13 | G5: 10-13.04. | H5: 17-20.04.15 | I5: 29-31.10.15
A6: 1 | B6: Клюжев Александр | C6: =VLOOKUP(B6:B42,'разряды м.'!$A$5:$AD$300,2,FALSE) -> ГУО «ГОЦТКДМ» | D6: =VLOOKUP(B6:B42,'разряды м.'!$A$5:$AD$204,3,FALSE) -> 1997 | E6: =VLOOKUP(B:B,'разряды м.'!$A$5:$AD$300,30,FALSE) -> МС | F6: 76.27520861 | G6: 44.4 | H6: 86.09884622 | I6: 99.8 | J6: =SUM(F6:I6) -> 306.5740548
A7: 2 | B7: Никифоровец Андрей | C7: =VLOOKUP(B7:B43,'разряды м.'!$A$5:$AD$300,2,FALSE) -> Минск | D7: =VLOOKUP(B7:B43,'разряды м.'!$A$5:$AD$204,3,FALSE) -> 1974 | E7: =VLOOKUP(B:B,'разряды м.'!$A$5:$AD$300,30,FALSE) -> МС | F7: 95.34401076 | G7: 63.9 | H7: 66.96576928 | I7: 79.9 | J7: =SUM(F7:I7) -> 306.10978
A8: 3 | B8: Логунов Никита | C8: =VLOOKUP(B8:B44,'разряды м.'!$A$5:$AD$300,2,FALSE) -> ДЮСШ «Омега» Гом. | D8: =VLOOKUP(B8:B44,'разряды м.'!$A$5:$AD$204,3,FALSE) -> 1999 | E8: =VLOOKUP(B:B,'разряды м.'!$A$5:$AD$300,30,FALSE) -> КМС | F8: 61.973607 | G8: 44.4 | H8: 52.61596158 | I8: 18 | J8: =SUM(F8:I8) -> 176.9895686
A9: 4 | B9: Яцыно Павел | C9: =VLOOKUP(B9:B45,'разряды м.'!$A$5:$AD$300,2,FALSE) -> Витебск | D9: 1986 | E9: =VLOOKUP(B:B,'разряды м.'!$A$5:$AD$300,30,FALSE) -> КМС | F9: 41.28395666 | G9: 32 | H9: 43.04942311 | I9: 42.9 | J9: =SUM(F9:I9) -> 159.2333798
A10: 5 | B10: Изидеров Никита | C10: =VLOOKUP(B10:B46,'разряды м.'!$A$5:$AD$300,2,FALSE) -> Полоцк | D10: =VLOOKUP(B10:B46,'разряды м.'!$A$5:$AD$204,3,FALSE) -> 1994 | E10: =VLOOKUP(B:B,'разряды м.'!$A$5:$AD$300,30,FALSE) -> КМС | F10: 52.43920592 | H10: 33.48288464 | I10: 50.9 | J10: =SUM(F10:I10) -> 136.8220906
A11: 6 | B11: Дюбенков Дмитрий | C11: =VLOOKUP(B11:B47,'разряды м.'!$A$5:$AD$300,2,FALSE) -> ГУО «ГОЦТКДМ» | D11: =VLOOKUP(B11:B47,'разряды м.'!$A$5:$AD$204,3,FALSE) -> 1992 | E11: =VLOOKUP(B:B,'разряды м.'!$A$5:$AD$300,30,FALSE) -> МС | F11: 25.74288291 | G11: 17.1 | H11: 39.22280772 | I11: 39.9 | J11: =SUM(F11:I11) -> 121.9656906
A12: 7 | B12: Караваев Дмитрий | C12: =VLOOKUP(B12:B48,'разряды м.'!$A$5:$AD$300,2,FALSE) -> ДЮСШ "Омега" | D12: =VLOOKUP(B12:B48,'разряды м.'!$A$5:$AD$204,3,FALSE) -> 1993 | E12: =VLOOKUP(B:B,'разряды м.'!$A$5:$AD$300,30,FALSE) -> КМС | F12: 29.55664334 | G12: 9.2 | H12: 33.48288464 | I12: 46.9 | J12: =SUM(F12:I12) -> 119.139528
A13: 8 | B13: Сердаков Илья | C13: =VLOOKUP(B13:B49,'разряды м.'!$A$5:$AD$300,2,FALSE) -> ГОЦТиКДиМ Гомель | D13: =VLOOKUP(B13:B49,'разряды м.'!$A$5:$AD$204,3,FALSE) -> 1999 | E13: =VLOOKUP(B:B,'разряды м.'!$A$5:$AD$300,30,FALSE) -> КМС | F13: 13.34816151 | G13: 23.4 | H13: 25.82965387 | I13: 27.9 | J13: =SUM(F13:I13) -> 90.47781537
A14: 9 | B14: Никифоровец Максим | C14: =VLOOKUP(B14:B50,'разряды м.'!$A$5:$AD$300,2,FALSE) -> Минск | D14: =VLOOKUP(B14:B50,'разряды м.'!$A$5:$AD$204,3,FALSE) -> 1997 | E14: =VLOOKUP(B:B,'разряды м.'!$A$5:$AD$300,30,FALSE) -> КМС | F14: 21.92912248 | I14: 54.9 | J14: =SUM(F14:I14) -> 76.82912248
A15: 10 | B15: Аблажевич Виктор | C15: =VLOOKUP(B15:B51,'разряды м.'!$A$5:$AD$300,2,FALSE) -> ДЮСШ «Омега» Гом. | D15: =VLOOKUP(B15:B51,'разряды м.'!$A$5:$AD$204,3,FALSE) -> 2000 | E15: =VLOOKUP(B:B,'разряды м.'!$A$5:$AD$300,30,FALSE) -> 2 | F15: 6.674080753 | G15: 4.3 | H15: 22.95969232 | I15: 32.4 | J15: =SUM(F15:I15) -> 66.33377308
A16: 11 | B16: Буйленков Павел | C16: =VLOOKUP(B16:B52,'разряды м.'!$A$5:$AD$300,2,FALSE) -> ГОЦТиКДиМ Гомель | D16: =VLOOKUP(B16:B52,'разряды м.'!$A$5:$AD$204,3,FALSE) -> 1993 | E16: =VLOOKUP(B:B,'разряды м.'!$A$5:$AD$300,30,FALSE) -> КМС | F16: 7.627520861 | G16: 29.1 | H16: 13.39315386 | I16: 16 | J16: =SUM(F16:I16) -> 66.12067472
A17: 12 | B17: Федотов Сергей | C17: =VLOOKUP(B17:B53,'разряды м.'!$A$5:$AD$300,2,FALSE) -> Бобруйск | D17: 1990 | E17: =VLOOKUP(B:B,'разряды м.'!$A$5:$AD$300,30,FALSE) -> КМС | I17: 64.9 | J17: =SUM(F17:I17) -> 64.9
A18: 13 | B18: Ченуша Алексей | C18: =VLOOKUP(B18:B54,'разряды м.'!$A$5:$AD$300,2,FALSE) -> Хан-Тенгри | D18: =VLOOKUP(B18:B54,'разряды м.'!$A$5:$AD$204,3,FALSE) -> 1969 | E18: =VLOOKUP(B:B,'разряды м.'!$A$5:$AD$300,30,FALSE) -> 1 | F18: 15.25504172 | G18: 12.8 | I18: 32.4 | J18: =SUM(F18:I18) -> 60.45504172
A19: 14 | B19: Волосович Дмитрий | C19: =VLOOKUP(B19:B55,'разряды м.'!$A$5:$AD$300,2,FALSE) -> Гомельская обл. | D19: =VLOOKUP(B19:B55,'разряды м.'!$A$5:$AD$204,3,FALSE) -> 1995 | E19: =VLOOKUP(B:B,'разряды м.'!$A$5:$AD$300,30,FALSE) -> КМС | F19: 48.62544549 | J19: =SUM(F19:I19) -> 48.62544549
A20: 15 | B20: Остроухов Егор | C20: =VLOOKUP(B20:B56,'разряды м.'!$A$5:$AD$300,2,FALSE) -> ПРЦДиМ Полоцк | D20: =VLOOKUP(B20:B56,'разряды м.'!$A$5:$AD$204,3,FALSE) -> 1973 | E20: =VLOOKUP(B:B,'разряды м.'!$A$5:$AD$300,30,FALSE) -> 1 | F20: 21.92912248 | I20: 22 | J20: =SUM(F20:I20) -> 43.92912248
A21: 16 | B21: Пуйто Антон | C21: =VLOOKUP(B21:B57,'разряды м.'!$A$5:$AD$300,2,FALSE) -> ГОЦТиКДиМ Гомель | D21: =VLOOKUP(B21:B57,'разряды м.'!$A$5:$AD$204,3,FALSE) -> 1998 | E21: =VLOOKUP(B:B,'разряды м.'!$A$5:$AD$300,30,FALSE) -> 1 | F21: 8.580960969 | G21: 21.3 | I21: 14 | J21: =SUM(F21:I21) -> 43.88096097
A22: 17 | B22: Голубев Денис | C22: =VLOOKUP(B22:B58,'разряды м.'!$A$5:$AD$300,2,FALSE) -> Витебск | D22: =VLOOKUP(B22:B58,'разряды м.'!$A$5:$AD$204,3,FALSE) -> 1994 | E22: =VLOOKUP(B:B,'разряды м.'!$A$5:$AD$300,30,FALSE) -> КМС | F22: 41.28395666 | J22: =SUM(F22:I22) -> 41.28395666
A23: 18 | B23: Пристромов Антон | C23: =VLOOKUP(B23:B59,'разряды м.'!$A$5:$AD$300,2,FALSE) -> ДЮСШ «Омега» Гом. | D23: =VLOOKUP(B23:B59,'разряды м.'!$A$5:$AD$204,3,FALSE) -> 1988 | E23: =VLOOKUP(B:B,'разряды м.'!$A$5:$AD$300,30,FALSE) -> КМС | F23: 41.28395666 | J23: =SUM(F23:I23) -> 41.28395666
A24: 19 | B24: Таршис Иван | C24: =VLOOKUP(B24:B60,'разряды м.'!$A$5:$AD$300,2,FALSE) -> ГОЦТиКДиМ Гомель | D24: 1998 | E24: =VLOOKUP(B:B,'разряды м.'!$A$5:$AD$300,30,FALSE) -> 1 | I24: 36.9 | J24: =SUM(F24:I24) -> 36.9
A25: 20 | B25: Малаховский Александр | C25: =VLOOKUP(B25:B61,'разряды м.'!$A$5:$AD$300,2,FALSE) -> Хан-Тенгри | D25: =VLOOKUP(B25:B61,'разряды м.'!$A$5:$AD$204,3,FALSE) -> 1985 | E25: =VLOOKUP(B:B,'разряды м.'!$A$5:$AD$300,30,FALSE) -> 1 | F25: 33.84712382 | J25: =SUM(F25:I25) -> 33.84712382
A26: 21 | B26: Никоноров Дмитрий | C26: =VLOOKUP(B26:B62,'разряды м.'!$A$5:$AD$300,2,FALSE) -> Пуховичский р-н | D26: =VLOOKUP(B26:B62,'разряды м.'!$A$5:$AD$204,3,FALSE) -> 1997 | E26: =VLOOKUP(B:B,'разряды м.'!$A$5:$AD$300,30,FALSE) -> КМС | F26: 33.84712382 | J26: =SUM(F26:I26) -> 33.84712382
A27: 22 | B27: Талдыкин Илья | C27: =VLOOKUP(B27:B63,'разряды м.'!$A$5:$AD$300,2,FALSE) -> ДЮСШ «Омега» Гом. | D27: =VLOOKUP(B27:B63,'разряды м.'!$A$5:$AD$204,3,FALSE) -> 2000 | E27: =VLOOKUP(B:B,'разряды м.'!$A$5:$AD$300,30,FALSE) -> 2 | F27: 1.906880215 | H27: 28.69961541 | J27: =SUM(F27:I27) -> 30.60649562
A28: 23 | B28: Вальковский Владимир | C28: =VLOOKUP(B28:B64,'разряды м.'!$A$5:$AD$300,2,FALSE) -> ГОЦТиКДиМ Гомель | D28: =VLOOKUP(B28:B64,'разряды м.'!$A$5:$AD$204,3,FALSE) -> 1992 | E28: =VLOOKUP(B:B,'разряды м.'!$A$5:$AD$300,30,FALSE) -> КМС | G28: 26.3 | J28: =SUM(F28:I28) -> 26.3
A29: 24 | B29: Денисевич Евгений | C29: =VLOOKUP(B29:B65,'разряды м.'!$A$5:$AD$300,2,FALSE) -> Брестская область | D29: =VLOOKUP(B29:B65,'разряды м.'!$A$5:$AD$204,3,FALSE) -> 1994 | E29: =VLOOKUP(B:B,'разряды м.'!$A$5:$AD$300,30,FALSE) -> КМС | F29: 25.74288291 | J29: =SUM(F29:I29) -> 25.74288291
A30: 25 | B30: Степаненко Олег | C30: =VLOOKUP(B30:B66,'разряды м.'!$A$5:$AD$300,2,FALSE) -> ДЮСШ «Омега» Гом. | D30: =VLOOKUP(B30:B66,'разряды м.'!$A$5:$AD$204,3,FALSE) -> 2001 | E30: =VLOOKUP(B:B,'разряды м.'!$A$5:$AD$300,30,FALSE) -> 2 | H30: 15.30646155 | I30: 10.3 | J30: =SUM(F30:I30) -> 25.60646155
A31: 26 | B31: Афанасенко Владимир | C31: =VLOOKUP(B31:B67,'разряды м.'!$A$5:$AD$300,2,FALSE) -> Шкловский район | D31: 1987 | E31: =VLOOKUP(B:B,'разряды м.'!$A$5:$AD$300,30,FALSE) -> 2 | I31: 25 | J31: =SUM(F31:I31) -> 25
A32: 27 | B32: Саунин Кирилл | C32: =VLOOKUP(B32:B68,'разряды м.'!$A$5:$AD$300,2,FALSE) -> Пинск | D32: 1989 | E32: =VLOOKUP(B:B,'разряды м.'!$A$5:$AD$300,30,FALSE) -> 1 | I32: 25 | J32: =SUM(F32:I32) -> 25
A33: 28 | B33: Рубенок Артем | C33: =VLOOKUP(B33:B69,'разряды м.'!$A$5:$AD$300,2,FALSE) -> Витебск | D33: =VLOOKUP(B33:B69,'разряды м.'!$A$5:$AD$204,3,FALSE) -> 1986 | E33: =VLOOKUP(B:B,'разряды м.'!$A$5:$AD$300,30,FALSE) -> 1 | G33: 6.4 | H33: 9.566538469 | I33: 7 | J33: =SUM(F33:I33) -> 22.96653847
A34: 29 | B34: Бережной Максим | C34: =VLOOKUP(B34:B70,'разряды м.'!$A$5:$AD$300,2,FALSE) -> РЦЭК | D34: =VLOOKUP(B34:B70,'разряды м.'!$A$5:$AD$204,3,FALSE) -> 2000 | E34: =VLOOKUP(B:B,'разряды м.'!$A$5:$AD$300,30,FALSE) -> 3 | H34: 20.08973078 | J34: =SUM(F34:I34) -> 20.08973078
A35: 30 | B35: Грибовский Павел | C35: =VLOOKUP(B35:B71,'разряды м.'!$A$5:$AD$300,2,FALSE) -> Бобруйск | D35: 1985 | E35: =VLOOKUP(B:B,'разряды м.'!$A$5:$AD$300,30,FALSE) -> КМС | I35: 20 | J35: =SUM(F35:I35) -> 20
A36: 31 | B36: Кухоренко Максим | C36: =VLOOKUP(B36:B72,'разряды м.'!$A$5:$AD$300,2,FALSE) -> Витебск | D36: =VLOOKUP(B36:B72,'разряды м.'!$A$5:$AD$204,3,FALSE) -> 1985 | E36: =VLOOKUP(B:B,'разряды м.'!$A$5:$AD$300,30,FALSE) -> 1 | G36: 19.2 | J36: =SUM(F36:I36) -> 19.2
A37: 32 | B37: Соковых Евгений | C37: =VLOOKUP(B37:B73,'разряды м.'!$A$5:$AD$300,2,FALSE) -> Хан-Тенгри | D37: =VLOOKUP(B37:B73,'разряды м.'!$A$5:$AD$204,3,FALSE) -> 1988 | E37: =VLOOKUP(B:B,'разряды м.'!$A$5:$AD$300,30,FALSE) -> КМС | F37: 19.06880215 | J37: =SUM(F37:I37) -> 19.06880215
A38: 33 | B38: Зюзин Иван | C38: =VLOOKUP(B38:B74,'разряды м.'!$A$5:$AD$300,2,FALSE) -> Минск | D38: =VLOOKUP(B38:B74,'разряды м.'!$A$5:$AD$204,3,FALSE) -> 2001 | E38: =VLOOKUP(B:B,'разряды м.'!$A$5:$AD$300,30,FALSE) -> 1 | H38: 7.653230775 | I38: 10.3 | J38: =SUM(F38:I38) -> 17.95323077
A39: 34 | B39: Писарев Кирилл | C39: =VLOOKUP(B39:B75,'разряды м.'!$A$5:$AD$300,2,FALSE) -> ДЮСШ «Омега» Гом. | D39: =VLOOKUP(B39:B75,'разряды м.'!$A$5:$AD$204,3,FALSE) -> 2001 | E39: =VLOOKUP(B:B,'разряды м.'!$A$5:$AD$300,30,FALSE) -> 1 | H39: 17.21976924 | J39: =SUM(F39:I39) -> 17.21976924
A40: 35 | B40: Денисман Юрий | C40: =VLOOKUP(B40:B76,'разряды м.'!$A$5:$AD$300,2,FALSE) -> MinskOnsight Мн. | D40: =VLOOKUP(B40:B76,'разряды м.'!$A$5:$AD$204,3,FALSE) -> 1982 | E40: =VLOOKUP(B:B,'разряды м.'!$A$5:$AD$300,30,FALSE) -> КМС | F40: 17.16192194 | J40: =SUM(F40:I40) -> 17.16192194
A41: 36 | B41: Живица Арсений | C41: =VLOOKUP(B41:B77,'разряды м.'!$A$5:$AD$300,2,FALSE) -> Минск | D41: =VLOOKUP(B41:B77,'разряды м.'!$A$5:$AD$204,3,FALSE) -> 2000 | E41: =VLOOKUP(B:B,'разряды м.'!$A$5:$AD$300,30,FALSE) -> 1 | F41: 11.44128129 | I41: 3 | J41: =SUM(F41:I41) -> 14.44128129
A42: 37 | B42: Болденко Валерий | C42: =VLOOKUP(B42:B78,'разряды м.'!$A$5:$AD$300,2,FALSE) -> ДЮСШ «Омега» Гом. | D42: =VLOOKUP(B42:B78,'разряды м.'!$A$5:$AD$204,3,FALSE) -> 1993 | E42: =VLOOKUP(B:B,'разряды м.'!$A$5:$AD$300,30,FALSE) -> 1 | G42: 12.8 | J42: =SUM(F42:I42) -> 12.8
A43: 38 | B43: Ложкин Денис | C43: =VLOOKUP(B43:B79,'разряды м.'!$A$5:$AD$300,2,FALSE) -> MinskOnsight Мн. | D43: =VLOOKUP(B43:B79,'разряды м.'!$A$5:$AD$204,3,FALSE) -> 1983 | E43: =VLOOKUP(B:B,'разряды м.'!$A$5:$AD$300,30,FALSE) -> 1 | G43: 12.8 | J43: =SUM(F43:I43) -> 12.8
A44: 39 | B44: Карпов Роман | C44: =VLOOKUP(B44:B80,'разряды м.'!$A$5:$AD$300,2,FALSE) -> MinskOnsight Мн. | D44: =VLOOKUP(B44:B80,'разряды м.'!$A$5:$AD$204,3,FALSE) -> 1981 | E44: =VLOOKUP(B:B,'разряды м.'!$A$5:$AD$300,30,FALSE) -> 2 | F44: 9.534401076 | G44: 2.8 | J44: =SUM(F44:I44) -> 12.33440108
A45: 40 | B45: Мертенс Андрей | C45: =VLOOKUP(B45:B81,'разряды м.'!$A$5:$AD$300,2,FALSE) -> г. Витебск | D45: =VLOOKUP(B45:B81,'разряды м.'!$A$5:$AD$204,3,FALSE) -> 1992 | E45: =VLOOKUP(B:B,'разряды м.'!$A$5:$AD$300,30,FALSE) -> 3 | H45: 11.47984616 | J45: =SUM(F45:I45) -> 11.47984616
A46: 41 | B46: Давыдов Денис | C46: =VLOOKUP(B46:B82,'разряды м.'!$A$5:$AD$300,2,FALSE) -> Минск | D46: =VLOOKUP(B46:B82,'разряды м.'!$A$5:$AD$204,3,FALSE) -> 2000 | E46: =VLOOKUP(B:B,'разряды м.'!$A$5:$AD$300,30,FALSE) -> 1 | F46: 4.767200538 | G46: 6.4 | J46: =SUM(F46:I46) -> 11.16720054
A47: 42 | B47: Бабанов Игорь | C47: =VLOOKUP(B47:B83,'разряды м.'!$A$5:$AD$300,2,FALSE) -> С/к «Торпедо» | D47: 1989 | E47: =VLOOKUP(B:B,'разряды м.'!$A$5:$AD$300,30,FALSE) -> КМС | I47: 10.3 | J47: =SUM(F47:I47) -> 10.3
A48: 43 | B48: Бессер Родион | C48: =VLOOKUP(B48:B84,'разряды м.'!$A$5:$AD$300,2,FALSE) -> MinskOnsight Мн. | D48: =VLOOKUP(B48:B84,'разряды м.'!$A$5:$AD$204,3,FALSE) -> 1981 | E48: =VLOOKUP(B:B,'разряды м.'!$A$5:$AD$300,30,FALSE) -> 1 | G48: 9.2 | J48: =SUM(F48:I48) -> 9.2
A49: 44 | B49: Добрянский Александр | C49: =VLOOKUP(B49:B85,'разряды м.'!$A$5:$AD$300,2,FALSE) -> Шклов | D49: 1994 | E49: =VLOOKUP(B:B,'разряды м.'!$A$5:$AD$300,30,FALSE) -> 1 | I49: 7 | J49: =SUM(F49:I49) -> 7
A50: 45 | B50: Демешко Кирилл | C50: =VLOOKUP(B50:B86,'разряды м.'!$A$5:$AD$300,2,FALSE) -> г. Минск | D50: 1996 | E50: =VLOOKUP(B:B,'разряды м.'!$A$5:$AD$300,30,FALSE) -> б/р | I50: 7 | J50: =SUM(F50:I50) -> 7
A51: 46 | B51: Зуенок Александр | C51: =VLOOKUP(B51:B87,'разряды м.'!$A$5:$AD$300,2,FALSE) ->  | D51: =VLOOKUP(B51:B87,'разряды м.'!$A$5:$AD$204,3,FALSE) ->  | E51: =VLOOKUP(B:B,'разряды м.'!$A$5:$AD$300,30,FALSE) ->  | H51: 5.739923081 | J51: =SUM(F51:I51) -> 5.739923081
A52: 47 | B52: Магер Даниил | C52: =VLOOKUP(B52:B88,'разряды м.'!$A$5:$AD$300,2,FALSE) -> Полоцк | D52: =VLOOKUP(B52:B88,'разряды м.'!$A$5:$AD$204,3,FALSE) -> 1998 | E52: =VLOOKUP(B:B,'разряды м.'!$A$5:$AD$300,30,FALSE) -> юн | F52: 5.720640646 | J52: =SUM(F52:I52) -> 5.720640646
A53: 48 | B53: Корявко Владислав | C53: =VLOOKUP(B53:B89,'разряды м.'!$A$5:$AD$300,2,FALSE) -> СК "Торпедо" | D53: 1990 | E53: =VLOOKUP(B:B,'разряды м.'!$A$5:$AD$300,30,FALSE) -> б/р | I53: 5 | J53: =SUM(F53:I53) -> 5
A54: 49 | B54: Журавлев Артем | C54: =VLOOKUP(B54:B90,'разряды м.'!$A$5:$AD$300,2,FALSE) -> ГОЦТиКДиМ Гомель | D54: 2000 | E54: =VLOOKUP(B:B,'разряды м.'!$A$5:$AD$300,30,FALSE) -> 2 | I54: 4 | J54: =SUM(F54:I54) -> 4
A55: 50 | B55: Капитонов Илья | C55: =VLOOKUP(B55:B91,'разряды м.'!$A$5:$AD$300,2,FALSE) ->  | D55: =VLOOKUP(B55:B91,'разряды м.'!$A$5:$AD$204,3,FALSE) ->  | E55: =VLOOKUP(B:B,'разряды м.'!$A$5:$AD$300,30,FALSE) ->  | H55: 3.826615387 | J55: =SUM(F55:I55) -> 3.826615387
A56: 51 | B56: Главацкий Сергей | C56: =VLOOKUP(B56:B92,'разряды м.'!$A$5:$AD$300,2,FALSE) -> Пуховичский р-н | D56: =VLOOKUP(B56:B92,'разряды м.'!$A$5:$AD$204,3,FALSE) -> 1998 | E56: =VLOOKUP(B:B,'разряды м.'!$A$5:$AD$300,30,FALSE) -> 1 | F56: 3.813760431 | J56: =SUM(F56:I56) -> 3.813760431
A57: 52 | B57: Циркунов Александр | C57: =VLOOKUP(B57:B93,'разряды м.'!$A$5:$AD$300,2,FALSE) -> Витебск | D57: =VLOOKUP(B57:B93,'разряды м.'!$A$5:$AD$204,3,FALSE) -> 1988 | E57: =VLOOKUP(B:B,'разряды м.'!$A$5:$AD$300,30,FALSE) -> 2 | F57: 2.860320323 | J57: =SUM(F57:I57) -> 2.860320323
A58: 53 | B58: Бегляков Александр | C58: =VLOOKUP(B58:B94,'разряды м.'!$A$5:$AD$300,2,FALSE) -> Шкловский район | D58: 1981 | E58: =VLOOKUP(B:B,'разряды м.'!$A$5:$AD$300,30,FALSE) -> б/р | I58: 2 | J58: =SUM(F58:I58) -> 2
A59: 54 | B59: Самухин Василий | C59: =VLOOKUP(B59:B95,'разряды м.'!$A$5:$AD$300,2,FALSE) -> Минск | D59: =VLOOKUP(B59:B95,'разряды м.'!$A$5:$AD$204,3,FALSE) -> 2000 | E59: =VLOOKUP(B:B,'разряды м.'!$A$5:$AD$300,30,FALSE) -> 3 | H59: 1.913307694 | J59: =SUM(F59:I59) -> 1.913307694
A60: 55 | B60: Огарко Михаил | C60: =VLOOKUP(B60:B96,'разряды м.'!$A$5:$AD$300,2,FALSE) ->  | D60: =VLOOKUP(B60:B96,'разряды м.'!$A$5:$AD$204,3,FALSE) ->  | E60: =VLOOKUP(B:B,'разряды м.'!$A$5:$AD$300,30,FALSE) ->  | G60: 1.4 | J60: =SUM(F60:I60) -> 1.4
A61: 56 | B61: Астапов Максим | C61: =VLOOKUP(B61:B97,'разряды м.'!$A$5:$AD$300,2,FALSE) -> ГОЦТиКДиМ Гомель | D61: 2001 | E61: =VLOOKUP(B:B,'разряды м.'!$A$5:$AD$300,30,FALSE) -> 2 | I61: 1 | J61: =SUM(F61:I61) -> 1
A62: 57 | B62: Стрельский Максим | C62: =VLOOKUP(B62:B98,'разряды м.'!$A$5:$AD$300,2,FALSE) -> Пуховичский р-н | D62: =VLOOKUP(B62:B98,'разряды м.'!$A$5:$AD$204,3,FALSE) -> 1998 | E62: =VLOOKUP(B:B,'разряды м.'!$A$5:$AD$300,30,FALSE) -> б/р | F62: 0.9534401076 | J62: =SUM(F62:I62) -> 0.9534401076

Sheet женщины тр.
A1: Текущий рейтинг
A2: Женщины, трудность
A3: на 1.11.2015 года | F3: ЧРБ-2013 | G3: КБ-2014 | H3: ЧРБ-2015 | I3: КБ-2015
A4: Место | B4: Фамилия, Имя | C4: Команда | D4: г.р. | E4: Подтвержденный разряд | F4: Витебск | G4: Витебск | H4: Витебск | I4: Могилев | J4: общий рез-т
F5: 5-8.12.13 | G5: 10-13.04.14 | H5: 17-20.04.15 | I5: 29-31.10.15
A6: 1 | B6: Лясович Наталья | C6: =VLOOKUP($B$6:$B$31,'разряды ж.'!$A$5:$AD$201,2,FALSE) -> Витебск | D6: =VLOOKUP($B$6:$B$31,'разряды ж.'!$A$5:$AD$201,3,FALSE) -> 1985 | E6: =VLOOKUP($B$6:$B$31,'разряды ж.'!$A$5:$AD$201,30,FALSE) -> 1 | F6: 11.30668085 | G6: 16.9 | H6: 16.21088641 | I6: 23.3 | J6: =SUM(F6:I6) -> 67.71756726
A7: 2 | B7: Малыженкова Лариса | C7: =VLOOKUP($B$6:$B$31,'разряды ж.'!$A$5:$AD$201,2,FALSE) -> Минск | D7: =VLOOKUP($B$6:$B$31,'разряды ж.'!$A$5:$AD$201,3,FALSE) -> 1975 | E7: =VLOOKUP($B$6:$B$31,'разряды ж.'!$A$5:$AD$201,30,FALSE) -> КМС | F7: 30.94460021 | H7: 23.75083358 | J7: =SUM(F7:I7) -> 54.69543379
A8: 3 | B8: Федоркевич Светлана | C8: =VLOOKUP($B$6:$B$31,'разряды ж.'!$A$5:$AD$201,2,FALSE) -> ГОЦТиКДиМ | D8: =VLOOKUP($B$6:$B$31,'разряды ж.'!$A$5:$AD$201,3,FALSE) -> 1992 | E8: =VLOOKUP($B$6:$B$31,'разряды ж.'!$A$5:$AD$201,30,FALSE) -> КМС | F8: 22.01827323 | G8: 30.1 | J8: =SUM(F8:I8) -> 52.11827323
A9: 4 | B9: Самсонова Мария | C9: =VLOOKUP($B$6:$B$31,'разряды ж.'!$A$5:$AD$201,2,FALSE) -> С/к «Торпедо» Мг. | D9: =VLOOKUP($B$6:$B$31,'разряды ж.'!$A$5:$AD$201,3,FALSE) -> 1984 | E9: =VLOOKUP($B$6:$B$31,'разряды ж.'!$A$5:$AD$201,30,FALSE) -> КМС | F9: 42.84636953 | J9: =SUM(F9:I9) -> 42.84636953
A10: 5 | B10: Кореневская Вероника | C10: =VLOOKUP($B$6:$B$31,'разряды ж.'!$A$5:$AD$201,2,FALSE) -> Минск | D10: =VLOOKUP($B$6:$B$31,'разряды ж.'!$A$5:$AD$201,3,FALSE) -> 1997 | E10: =VLOOKUP($B$6:$B$31,'разряды ж.'!$A$5:$AD$201,30,FALSE) -> 2 | F10: 13.68703471 | G10: 8.6 | H10: 10.55592603 | J10: =SUM(F10:I10) -> 32.84296074
A11: 6 | B11: Коноплева Марина | C11: =VLOOKUP($B$6:$B$31,'разряды ж.'!$A$5:$AD$201,2,FALSE) -> ДЮСШ "Омега" | D11: 2001 | E11: =VLOOKUP($B$6:$B$31,'разряды ж.'!$A$5:$AD$201,30,FALSE) -> 2 | H11: 3.769973584 | I11: 15.5 | J11: =SUM(F11:I11) -> 19.26997358
A12: 7 | B12: Веретенникова Елена | C12: =VLOOKUP($B$6:$B$31,'разряды ж.'!$A$5:$AD$201,2,FALSE) -> Минск | D12: =VLOOKUP($B$6:$B$31,'разряды ж.'!$A$5:$AD$201,3,FALSE) -> 1991 | E12: =VLOOKUP($B$6:$B$31,'разряды ж.'!$A$5:$AD$201,30,FALSE) -> КМС | G12: 16.9 | J12: =SUM(F12:I12) -> 16.9
A13: 8 | B13: Копусова Ксения | C13: =VLOOKUP($B$6:$B$31,'разряды ж.'!$A$5:$AD$201,2,FALSE) -> Минск | D13: 2001 | E13: =VLOOKUP($B$6:$B$31,'разряды ж.'!$A$5:$AD$201,30,FALSE) -> 2 | H13: 6.785952451 | I13: 9.7 | J13: =SUM(F13:I13) -> 16.48595245
A14: 9 | B14: Кузина Юлия | C14: =VLOOKUP($B$6:$B$31,'разряды ж.'!$A$5:$AD$201,2,FALSE) -> Бобруйск | D14: =VLOOKUP($B$6:$B$31,'разряды ж.'!$A$5:$AD$201,3,FALSE) -> 1999 | E14: =VLOOKUP($B$6:$B$31,'разряды ж.'!$A$5:$AD$201,30,FALSE) -> 1 | F14: 16.06738857 | J14: =SUM(F14:I14) -> 16.06738857
A15: 10 | B15: Разуменко Кристина | C15: =VLOOKUP($B$6:$B$31,'разряды ж.'!$A$5:$AD$201,2,FALSE) ->  | D15: =VLOOKUP($B$6:$B$31,'разряды ж.'!$A$5:$AD$201,3,FALSE) ->  | E15: =VLOOKUP($B$6:$B$31,'разряды ж.'!$A$5:$AD$201,30,FALSE) ->  | F15: 5.355796191 | I15: 4.3 | J15: =SUM(F15:I15) -> 9.655796191
A16: 11 | B16: Якубович Карина | C16: =VLOOKUP($B$6:$B$31,'разряды ж.'!$A$5:$AD$201,2,FALSE) -> ЦТиКДМ г. Пинска | D16: =VLOOKUP($B$6:$B$31,'разряды ж.'!$A$5:$AD$201,3,FALSE) -> 1998 | E16: =VLOOKUP($B$6:$B$31,'разряды ж.'!$A$5:$AD$201,30,FALSE) -> 2 | F16: 8.926326984 | J16: =SUM(F16:I16) -> 8.926326984
A17: 12 | B17: Ермохина Дарья | C17: =VLOOKUP($B$6:$B$31,'разряды ж.'!$A$5:$AD$201,2,FALSE) -> РЦЭК | D17: =VLOOKUP($B$6:$B$31,'разряды ж.'!$A$5:$AD$201,3,FALSE) -> 1999 | E17: =VLOOKUP($B$6:$B$31,'разряды ж.'!$A$5:$AD$201,30,FALSE) -> 1 юн | G17: 5.7 | H17: 2.26198415 | J17: =SUM(F17:I17) -> 7.96198415
A18: 13 | B18: Шуляк Марина | C18: =VLOOKUP($B$6:$B$31,'разряды ж.'!$A$5:$AD$201,2,FALSE) -> Хан-Тенгри | D18: =VLOOKUP($B$6:$B$31,'разряды ж.'!$A$5:$AD$201,3,FALSE) -> 1989 | E18: =VLOOKUP($B$6:$B$31,'разряды ж.'!$A$5:$AD$201,30,FALSE) -> б/р | F18: 7.141061588 | J18: =SUM(F18:I18) -> 7.141061588
A19: 14 | B19: Пагудо Екатерина | C19: =VLOOKUP($B$6:$B$31,'разряды ж.'!$A$5:$AD$201,2,FALSE) -> Минск | D19: 2000 | E19: =VLOOKUP($B$6:$B$31,'разряды ж.'!$A$5:$AD$201,30,FALSE) -> 2 | I19: 5.8 | J19: =SUM(F19:I19) -> 5.8
A20: 15 | B20: Веретенникова Екатерина | C20: =VLOOKUP($B$6:$B$31,'разряды ж.'!$A$5:$AD$201,2,FALSE) -> Минск | D20: =VLOOKUP($B$6:$B$31,'разряды ж.'!$A$5:$AD$201,3,FALSE) -> 1989 | E20: =VLOOKUP($B$6:$B$31,'разряды ж.'!$A$5:$AD$201,30,FALSE) -> б/р | G20: 5.7 | J20: =SUM(F20:I20) -> 5.7
A21: 16 | B21: Гацулина Анастасия | C21: =VLOOKUP($B$6:$B$31,'разряды ж.'!$A$5:$AD$201,2,FALSE) -> ГОЦТиКДиМ | D21: 1997 | E21: =VLOOKUP($B$6:$B$31,'разряды ж.'!$A$5:$AD$201,30,FALSE) -> б/р | H21: 5.277963017 | J21: =SUM(F21:I21) -> 5.277963017
A22: 17 | B22: Болсун Софья | C22: =VLOOKUP($B$6:$B$31,'разряды ж.'!$A$5:$AD$201,2,FALSE) -> ДЮСШ "Омега" | D22: =VLOOKUP($B$6:$B$31,'разряды ж.'!$A$5:$AD$201,3,FALSE) -> 1998 | E22: =VLOOKUP($B$6:$B$31,'разряды ж.'!$A$5:$AD$201,30,FALSE) -> б/р | F22: 1.785265397 | G22: 2.1 | J22: =SUM(F22:I22) -> 3.885265397
A23: 18 | B23: Русинович Светлана | C23: =VLOOKUP($B$6:$B$31,'разряды ж.'!$A$5:$AD$201,2,FALSE) -> ГОЦТиКДиМ | D23: 1990 | E23: =VLOOKUP($B$6:$B$31,'разряды ж.'!$A$5:$AD$201,30,FALSE) -> б/р | H23: 1.130992075 | I23: 2.7 | J23: =SUM(F23:I23) -> 3.830992075
A24: 19 | B24: Кузичева Таисия | C24: =VLOOKUP($B$6:$B$31,'разряды ж.'!$A$5:$AD$201,2,FALSE) -> ГОЦТиКДиМ | D24: =VLOOKUP($B$6:$B$31,'разряды ж.'!$A$5:$AD$201,3,FALSE) -> 2000 | E24: =VLOOKUP($B$6:$B$31,'разряды ж.'!$A$5:$AD$201,30,FALSE) -> 2 | F24: 3.570530794 | J24: =SUM(F24:I24) -> 3.570530794
A25: 20 | B25: Белковец Екатерина | C25: =VLOOKUP($B$6:$B$31,'разряды ж.'!$A$5:$AD$201,2,FALSE) ->  | D25: =VLOOKUP($B$6:$B$31,'разряды ж.'!$A$5:$AD$201,3,FALSE) ->  | E25: =VLOOKUP($B$6:$B$31,'разряды ж.'!$A$5:$AD$201,30,FALSE) ->  | G25: 2.1 | J25: =SUM(F25:I25) -> 2.1
A26: 21 | B26: Андреенко Алина | C26: =VLOOKUP($B$6:$B$31,'разряды ж.'!$A$5:$AD$201,2,FALSE) -> ГОЦТиКДиМ | D26: 1998 | E26: =VLOOKUP($B$6:$B$31,'разряды ж.'!$A$5:$AD$201,30,FALSE) -> б/р | I26: 1.2 | J26: =SUM(F26:I26) -> 1.2

Sheet разряды м.
D2: 2013 | F2: 2014 | P2: 2015 | AA2: 2013
D3: Чемпионат и первенство Беларуси, Витебск, 5-9.12.2013 | F3: Первенство Беларуси, Минск, 21-22.02.2014 | G3: Чемпионат Беларуси, Минск, 21-23.02.2014 | H3: Первенство Беларуси, Минск, 21-23.03.2014 | I3: Первенство Гомеля, 4-6.04.2014 | K3: Кубок Беларуси, Витебск, 12-13.04.2014 | M3: Первенство Беларуси, Гомель, 7-8.11.2014 | O3: Кубок Беларуси, Пинск, 22-23.11.2014 | P3: Первенство Гом. обл., 31.01-1.02.1015 | Q3: Чемпионат и первенство Беларуси, Минск, 27.02-1.03.2015 | R3: Первенство Беларуси, Минск, 21-22.03.2015 | S3: Первенство Гомеля, 3-5.04.2015 | U3: Чемпионат и первенство Беларуси, Витебск, 17-20.04.2015 | W3: Первенство Минска, Минск, 16-17.05.2015 | Y3: Первенство и Кубок Беларуси, 29-31.10.2015 | AA3: Первенство Беларуси, Пинск, 21-22.11.2013 | AC3: Кубок Беларуси, Пинск, 22-24.11.2013 | AD3: Текущий разряд
A4: Фамилия, Имя | B4: команда | C4: г.р. | D4: С | E4: Т | F4: Б | G4: Б | H4: Б | I4: С | J4: Т | K4: С | L4: Т | M4: С | N4: Т | O4: Б | P4: Б | Q4: Б | R4: Б | S4: С | T4: Т | U4: С | V4: Т | W4: С | X4: Т | Y4: С | Z4: Т | AA4: Т | AB4: С | AC4: Б
A5: Аблажевич Виктор | B5: ДЮСШ «Омега» Гом. | C5: 2000 | E5: 3 | K5: 2 | L5: 2 | Q5: 2 | U5: 2 | Y5: 2 | Z5: 2 | AA5: 2 | AB5: 3 | AD5: =IF(OR(D5="МС",E5="МС",F5="МС",G5="МС",H5="МС",I5="МС",J5="МС",K5="МС",L5="МС",M5="МС",N5="МС",O5="МС",P5="МС",Q5="МС",R5="МС",S5="МС",T5="МС",U5="МС",V5="МС",W5="МС",X5="МС",Y5="МС",Z5="МС",AA5="МС",AB5="МС",AC5="МС"),"МС",IF(OR(D5="КМС",E5="КМС",F5="КМС",G5="КМС",H5="КМС",I5="КМС",J5="КМС",K5="КМС",L5="КМС",M5="КМС",N5="КМС",O5="КМС",P5="КМС",Q5="КМС",R5="КМС",S5="КМС",T5="КМС",U5="КМС",V5="КМС",W5="КМС",X5="КМС",Y5="КМС",Z5="КМС",AA5="КМС",AB5="КМС",AC5="КМС"),"КМС",IF(OR(D5=1,E5=1,F5=1,G5=1,H5=1,I5=1,J5=1,K5=1,L5=1,M5=1,N5=1,O5=1,P5=1,Q5=1,R5=1,S5=1,T5=1,U5=1,V5=1,W5=1,X5=1,Y5=1,Z5=1,AA5=1,AB5=1,AC5=1),1,IF(OR(D5=2,E5=2,F5=2,G5=2,H5=2,I5=2,J5=2,K5=2,L5=2,M5=2,N5=2,O5=2,P5=2,Q5=2,R5=2,S5=2,T5=2,U5=2,V5=2,W5=2,X5=2,Y5=2,Z5=2,AA5=2,AB5=2,AC5=2),2,IF(OR(D5=3,E5=3,F5=3,G5=3,H5=3,I5=3,J5=3,K5=3,L5=3,M5=3,N5=3,O5=3,P5=3,Q5=3,R5=3,S5=3,T5=3,U5=3,V5=3,W5=3,X5=3,Y5=3,Z5=3,AA5=3,AB5=3,AC5=3),3,IF(OR(D5="1 юн",E5="1 юн",F5="1 юн",G5="1 юн",H5="1 юн",I5="1 юн",J5="1 юн",K5="1 юн",L5="1 юн",M5="1 юн",N5="1 юн",O5="1 юн",P5="1 юн",Q5="1 юн",R5="1 юн",S5="1 юн",T5="1 юн",U5="1 юн",V5="1 юн",W5="1 юн",X5="1 юн",Y5="1 юн",Z5="1 юн",AA5="1 юн",AB5="1 юн",AC5="1 юн"),"1 юн",IF(OR(D5="юн",E5="юн",F5="юн",G5="юн",H5="юн",I5="юн",J5="юн",K5="юн",L5="юн",M5="юн",N5="юн",O5="юн",P5="юн",Q5="юн",R5="юн",S5="юн",T5="юн",U5="юн",V5="юн",W5="юн",X5="юн",Y5="юн",Z5="юн",AA5="юн",AB5="юн",AC5="юн"),"юн","б/р"))))))) -> 2
A6: Адамович Дмитрий | B6: Брестская область | C6: 1997 | AD6: =IF(OR(D6="МС",E6="МС",F6="МС",G6="МС",H6="МС",I6="МС",J6="МС",K6="МС",L6="МС",M6="МС",N6="МС",O6="МС",P6="МС",Q6="МС",R6="МС",S6="МС",T6="МС",U6="МС",V6="МС",W6="МС",X6="МС",Y6="МС",Z6="МС",AA6="МС",AB6="МС",AC6="МС"),"МС",IF(OR(D6="КМС",E6="КМС",F6="КМС",G6="КМС",H6="КМС",I6="КМС",J6="КМС",K6="КМС",L6="КМС",M6="КМС",N6="КМС",O6="КМС",P6="КМС",Q6="КМС",R6="КМС",S6="КМС",T6="КМС",U6="КМС",V6="КМС",W6="КМС",X6="КМС",Y6="КМС",Z6="КМС",AA6="КМС",AB6="КМС",AC6="КМС"),"КМС",IF(OR(D6=1,E6=1,F6=1,G6=1,H6=1,I6=1,J6=1,K6=1,L6=1,M6=1,N6=1,O6=1,P6=1,Q6=1,R6=1,S6=1,T6=1,U6=1,V6=1,W6=1,X6=1,Y6=1,Z6=1,AA6=1,AB6=1,AC6=1),1,IF(OR(D6=2,E6=2,F6=2,G6=2,H6=2,I6=2,J6=2,K6=2,L6=2,M6=2,N6=2,O6=2,P6=2,Q6=2,R6=2,S6=2,T6=2,U6=2,V6=2,W6=2,X6=2,Y6=2,Z6=2,AA6=2,AB6=2,AC6=2),2,IF(OR(D6=3,E6=3,F6=3,G6=3,H6=3,I6=3,J6=3,K6=3,L6=3,M6=3,N6=3,O6=3,P6=3,Q6=3,R6=3,S6=3,T6=3,U6=3,V6=3,W6=3,X6=3,Y6=3,Z6=3,AA6=3,AB6=3,AC6=3),3,IF(OR(D6="1 юн",E6="1 юн",F6="1 юн",G6="1 юн",H6="1 юн",I6="1 юн",J6="1 юн",K6="1 юн",L6="1 юн",M6="1 юн",N6="1 юн",O6="1 юн",P6="1 юн",Q6="1 юн",R6="1 юн",S6="1 юн",T6="1 юн",U6="1 юн",V6="1 юн",W6="1 юн",X6="1 юн",Y6="1 юн",Z6="1 юн",AA6="1 юн",AB6="1 юн",AC6="1 юн"),"1 юн",IF(OR(D6="юн",E6="юн",F6="юн",G6="юн",H6="юн",I6="юн",J6="юн",K6="юн",L6="юн",M6="юн",N6="юн",O6="юн",P6="юн",Q6="юн",R6="юн",S6="юн",T6="юн",U6="юн",V6="юн",W6="юн",X6="юн",Y6="юн",Z6="юн",AA6="юн",AB6="юн",AC6="юн"),"юн","б/р"))))))) -> б/р
A7: Аксенов Павел | B7: Витебск | C7: 1989 | G7: 1 | AD7: =IF(OR(D7="МС",E7="МС",F7="МС",G7="МС",H7="МС",I7="МС",J7="МС",K7="МС",L7="МС",M7="МС",N7="МС",O7="МС",P7="МС",Q7="МС",R7="МС",S7="МС",T7="МС",U7="МС",V7="МС",W7="МС",X7="МС",Y7="МС",Z7="МС",AA7="МС",AB7="МС",AC7="МС"),"МС",IF(OR(D7="КМС",E7="КМС",F7="КМС",G7="КМС",H7="КМС",I7="КМС",J7="КМС",K7="КМС",L7="КМС",M7="КМС",N7="КМС",O7="КМС",P7="КМС",Q7="КМС",R7="КМС",S7="КМС",T7="КМС",U7="КМС",V7="КМС",W7="КМС",X7="КМС",Y7="КМС",Z7="КМС",AA7="КМС",AB7="КМС",AC7="КМС"),"КМС",IF(OR(D7=1,E7=1,F7=1,G7=1,H7=1,I7=1,J7=1,K7=1,L7=1,M7=1,N7=1,O7=1,P7=1,Q7=1,R7=1,S7=1,T7=1,U7=1,V7=1,W7=1,X7=1,Y7=1,Z7=1,AA7=1,AB7=1,AC7=1),1,IF(OR(D7=2,E7=2,F7=2,G7=2,H7=2,I7=2,J7=2,K7=2,L7=2,M7=2,N7=2,O7=2,P7=2,Q7=2,R7=2,S7=2,T7=2,U7=2,V7=2,W7=2,X7=2,Y7=2,Z7=2,AA7=2,AB7=2,AC7=2),2,IF(OR(D7=3,E7=3,F7=3,G7=3,H7=3,I7=3,J7=3,K7=3,L7=3,M7=3,N7=3,O7=3,P7=3,Q7=3,R7=3,S7=3,T7=3,U7=3,V7=3,W7=3,X7=3,Y7=3,Z7=3,AA7=3,AB7=3,AC7=3),3,IF(OR(D7="1 юн",E7="1 юн",F7="1 юн",G7="1 юн",H7="1 юн",I7="1 юн",J7="1 юн",K7="1 юн",L7="1 юн",M7="1 юн",N7="1 юн",O7="1 юн",P7="1 юн",Q7="1 юн",R7="1 юн",S7="1 юн",T7="1 юн",U7="1 юн",V7="1 юн",W7="1 юн",X7="1 юн",Y7="1 юн",Z7="1 юн",AA7="1 юн",AB7="1 юн",AC7="1 юн"),"1 юн",IF(OR(D7="юн",E7="юн",F7="юн",G7="юн",H7="юн",I7="юн",J7="юн",K7="юн",L7="юн",M7="юн",N7="юн",O7="юн",P7="юн",Q7="юн",R7="юн",S7="юн",T7="юн",U7="юн",V7="юн",W7="юн",X7="юн",Y7="юн",Z7="юн",AA7="юн",AB7="юн",AC7="юн"),"юн","б/р"))))))) -> 1
A8: Астапов Максим | B8: ГОЦТиКДиМ Гомель | C8: 2001 | H8: 3 | I8: 2 | M8: 1 юн | N8: 2 | Q8: 3 | Y8: юн | Z8: юн | AB8: юн | AD8: =IF(OR(D8="МС",E8="МС",F8="МС",G8="МС",H8="МС",I8="МС",J8="МС",K8="МС",L8="МС",M8="МС",N8="МС",O8="МС",P8="МС",Q8="МС",R8="МС",S8="МС",T8="МС",U8="МС",V8="МС",W8="МС",X8="МС",Y8="МС",Z8="МС",AA8="МС",AB8="МС",AC8="МС"),"МС",IF(OR(D8="КМС",E8="КМС",F8="КМС",G8="КМС",H8="КМС",I8="КМС",J8="КМС",K8="КМС",L8="КМС",M8="КМС",N8="КМС",O8="КМС",P8="КМС",Q8="КМС",R8="КМС",S8="КМС",T8="КМС",U8="КМС",V8="КМС",W8="КМС",X8="КМС",Y8="КМС",Z8="КМС",AA8="КМС",AB8="КМС",AC8="КМС"),"КМС",IF(OR(D8=1,E8=1,F8=1,G8=1,H8=1,I8=1,J8=1,K8=1,L8=1,M8=1,N8=1,O8=1,P8=1,Q8=1,R8=1,S8=1,T8=1,U8=1,V8=1,W8=1,X8=1,Y8=1,Z8=1,AA8=1,AB8=1,AC8=1),1,IF(OR(D8=2,E8=2,F8=2,G8=2,H8=2,I8=2,J8=2,K8=2,L8=2,M8=2,N8=2,O8=2,P8=2,Q8=2,R8=2,S8=2,T8=2,U8=2,V8=2,W8=2,X8=2,Y8=2,Z8=2,AA8=2,AB8=2,AC8=2),2,IF(OR(D8=3,E8=3,F8=3,G8=3,H8=3,I8=3,J8=3,K8=3,L8=3,M8=3,N8=3,O8=3,P8=3,Q8=3,R8=3,S8=3,T8=3,U8=3,V8=3,W8=3,X8=3,Y8=3,Z8=3,AA8=3,AB8=3,AC8=3),3,IF(OR(D8="1 юн",E8="1 юн",F8="1 юн",G8="1 юн",H8="1 юн",I8="1 юн",J8="1 юн",K8="1 юн",L8="1 юн",M8="1 юн",N8="1 юн",O8="1 юн",P8="1 юн",Q8="1 юн",R8="1 юн",S8="1 юн",T8="1 юн",U8="1 юн",V8="1 юн",W8="1 юн",X8="1 юн",Y8="1 юн",Z8="1 юн",AA8="1 юн",AB8="1 юн",AC8="1 юн"),"1 юн",IF(OR(D8="юн",E8="юн",F8="юн",G8="юн",H8="юн",I8="юн",J8="юн",K8="юн",L8="юн",M8="юн",N8="юн",O8="юн",P8="юн",Q8="юн",R8="юн",S8="юн",T8="юн",U8="юн",V8="юн",W8="юн",X8="юн",Y8="юн",Z8="юн",AA8="юн",AB8="юн",AC8="юн"),"юн","б/р"))))))) -> 2
A9: Астапчик Дмитрий | B9: Пуховичский р-н | C9: 2003 | H9: юн | M9: юн | N9: юн | T9: юн | X9: юн | AD9: =IF(OR(D9="МС",E9="МС",F9="МС",G9="МС",H9="МС",I9="МС",J9="МС",K9="МС",L9="МС",M9="МС",N9="МС",O9="МС",P9="МС",Q9="МС",R9="МС",S9="МС",T9="МС",U9="МС",V9="МС",W9="МС",X9="МС",Y9="МС",Z9="МС",AA9="МС",AB9="МС",AC9="МС"),"МС",IF(OR(D9="КМС",E9="КМС",F9="КМС",G9="КМС",H9="КМС",I9="КМС",J9="КМС",K9="КМС",L9="КМС",M9="КМС",N9="КМС",O9="КМС",P9="КМС",Q9="КМС",R9="КМС",S9="КМС",T9="КМС",U9="КМС",V9="КМС",W9="КМС",X9="КМС",Y9="КМС",Z9="КМС",AA9="КМС",AB9="КМС",AC9="КМС"),"КМС",IF(OR(D9=1,E9=1,F9=1,G9=1,H9=1,I9=1,J9=1,K9=1,L9=1,M9=1,N9=1,O9=1,P9=1,Q9=1,R9=1,S9=1,T9=1,U9=1,V9=1,W9=1,X9=1,Y9=1,Z9=1,AA9=1,AB9=1,AC9=1),1,IF(OR(D9=2,E9=2,F9=2,G9=2,H9=2,I9=2,J9=2,K9=2,L9=2,M9=2,N9=2,O9=2,P9=2,Q9=2,R9=2,S9=2,T9=2,U9=2,V9=2,W9=2,X9=2,Y9=2,Z9=2,AA9=2,AB9=2,AC9=2),2,IF(OR(D9=3,E9=3,F9=3,G9=3,H9=3,I9=3,J9=3,K9=3,L9=3,M9=3,N9=3,O9=3,P9=3,Q9=3,R9=3,S9=3,T9=3,U9=3,V9=3,W9=3,X9=3,Y9=3,Z9=3,AA9=3,AB9=3,AC9=3),3,IF(OR(D9="1 юн",E9="1 юн",F9="1 юн",G9="1 юн",H9="1 юн",I9="1 юн",J9="1 юн",K9="1 юн",L9="1 юн",M9="1 юн",N9="1 юн",O9="1 юн",P9="1 юн",Q9="1 юн",R9="1 юн",S9="1 юн",T9="1 юн",U9="1 юн",V9="1 юн",W9="1 юн",X9="1 юн",Y9="1 юн",Z9="1 юн",AA9="1 юн",AB9="1 юн",AC9="1 юн"),"1 юн",IF(OR(D9="юн",E9="юн",F9="юн",G9="юн",H9="юн",I9="юн",J9="юн",K9="юн",L9="юн",M9="юн",N9="юн",O9="юн",P9="юн",Q9="юн",R9="юн",S9="юн",T9="юн",U9="юн",V9="юн",W9="юн",X9="юн",Y9="юн",Z9="юн",AA9="юн",AB9="юн",AC9="юн"),"юн","б/р"))))))) -> юн
A10: Астапчик Павел | B10: Пуховичский р-н | C10: 2006 | N10: юн | R10: юн | T10: юн | X10: 1 юн | AD10: =IF(OR(D10="МС",E10="МС",F10="МС",G10="МС",H10="МС",I10="МС",J10="МС",K10="МС",L10="МС",M10="МС",N10="МС",O10="МС",P10="МС",Q10="МС",R10="МС",S10="МС",T10="МС",U10="МС",V10="МС",W10="МС",X10="МС",Y10="МС",Z10="МС",AA10="МС",AB10="МС",AC10="МС"),"МС",IF(OR(D10="КМС",E10="КМС",F10="КМС",G10="КМС",H10="КМС",I10="КМС",J10="КМС",K10="КМС",L10="КМС",M10="КМС",N10="КМС",O10="КМС",P10="КМС",Q10="КМС",R10="КМС",S10="КМС",T10="КМС",U10="КМС",V10="КМС",W10="КМС",X10="КМС",Y10="КМС",Z10="КМС",AA10="КМС",AB10="КМС",AC10="КМС"),"КМС",IF(OR(D10=1,E10=1,F10=1,G10=1,H10=1,I10=1,J10=1,K10=1,L10=1,M10=1,N10=1,O10=1,P10=1,Q10=1,R10=1,S10=1,T10=1,U10=1,V10=1,W10=1,X10=1,Y10=1,Z10=1,AA10=1,AB10=1,AC10=1),1,IF(OR(D10=2,E10=2,F10=2,G10=2,H10=2,I10=2,J10=2,K10=2,L10=2,M10=2,N10=2,O10=2,P10=2,Q10=2,R10=2,S10=2,T10=2,U10=2,V10=2,W10=2,X10=2,Y10=2,Z10=2,AA10=2,AB10=2,AC10=2),2,IF(OR(D10=3,E10=3,F10=3,G10=3,H10=3,I10=3,J10=3,K10=3,L10=3,M10=3,N10=3,O10=3,P10=3,Q10=3,R10=3,S10=3,T10=3,U10=3,V10=3,W10=3,X10=3,Y10=3,Z10=3,AA10=3,AB10=3,AC10=3),3,IF(OR(D10="1 юн",E10="1 юн",F10="1 юн",G10="1 юн",H10="1 юн",I10="1 юн",J10="1 юн",K10="1 юн",L10="1 юн",M10="1 юн",N10="1 юн",O10="1 юн",P10="1 юн",Q10="1 юн",R10="1 юн",S10="1 юн",T10="1 юн",U10="1 юн",V10="1 юн",W10="1 юн",X10="1 юн",Y10="1 юн",Z10="1 юн",AA10="1 юн",AB10="1 юн",AC10="1 юн"),"1 юн",IF(OR(D10="юн",E10="юн",F10="юн",G10="юн",H10="юн",I10="юн",J10="юн",K10="юн",L10="юн",M10="юн",N10="юн",O10="юн",P10="юн",Q10="юн",R10="юн",S10="юн",T10="юн",U10="юн",V10="юн",W10="юн",X10="юн",Y10="юн",Z10="юн",AA10="юн",AB10="юн",AC10="юн"),"юн","б/р"))))))) -> 1 юн
A11: Афанасенко Владимир | B11: Шкловский район | C11: 1987 | Z11: 2 | AD11: =IF(OR(D11="МС",E11="МС",F11="МС",G11="МС",H11="МС",I11="МС",J11="МС",K11="МС",L11="МС",M11="МС",N11="МС",O11="МС",P11="МС",Q11="МС",R11="МС",S11="МС",T11="МС",U11="МС",V11="МС",W11="МС",X11="МС",Y11="МС",Z11="МС",AA11="МС",AB11="МС",AC11="МС"),"МС",IF(OR(D11="КМС",E11="КМС",F11="КМС",G11="КМС",H11="КМС",I11="КМС",J11="КМС",K11="КМС",L11="КМС",M11="КМС",N11="КМС",O11="КМС",P11="КМС",Q11="КМС",R11="КМС",S11="КМС",T11="КМС",U11="КМС",V11="КМС",W11="КМС",X11="КМС",Y11="КМС",Z11="КМС",AA11="КМС",AB11="КМС",AC11="КМС"),"КМС",IF(OR(D11=1,E11=1,F11=1,G11=1,H11=1,I11=1,J11=1,K11=1,L11=1,M11=1,N11=1,O11=1,P11=1,Q11=1,R11=1,S11=1,T11=1,U11=1,V11=1,W11=1,X11=1,Y11=1,Z11=1,AA11=1,AB11=1,AC11=1),1,IF(OR(D11=2,E11=2,F11=2,G11=2,H11=2,I11=2,J11=2,K11=2,L11=2,M11=2,N11=2,O11=2,P11=2,Q11=2,R11=2,S11=2,T11=2,U11=2,V11=2,W11=2,X11=2,Y11=2,Z11=2,AA11=2,AB11=2,AC11=2),2,IF(OR(D11=3,E11=3,F11=3,G11=3,H11=3,I11=3,J11=3,K11=3,L11=3,M11=3,N11=3,O11=3,P11=3,Q11=3,R11=3,S11=3,T11=3,U11=3,V11=3,W11=3,X11=3,Y11=3,Z11=3,AA11=3,AB11=3,AC11=3),3,IF(OR(D11="1 юн",E11="1 юн",F11="1 юн",G11="1 юн",H11="1 юн",I11="1 юн",J11="1 юн",K11="1 юн",L11="1 юн",M11="1 юн",N11="1 юн",O11="1 юн",P11="1 юн",Q11="1 юн",R11="1 юн",S11="1 юн",T11="1 юн",U11="1 юн",V11="1 юн",W11="1 юн",X11="1 юн",Y11="1 юн",Z11="1 юн",AA11="1 юн",AB11="1 юн",AC11="1 юн"),"1 юн",IF(OR(D11="юн",E11="юн",F11="юн",G11="юн",H11="юн",I11="юн",J11="юн",K11="юн",L11="юн",M11="юн",N11="юн",O11="юн",P11="юн",Q11="юн",R11="юн",S11="юн",T11="юн",U11="юн",V11="юн",W11="юн",X11="юн",Y11="юн",Z11="юн",AA11="юн",AB11="юн",AC11="юн"),"юн","б/р"))))))) -> 2
A12: Бабанов Игорь | B12: С/к «Торпедо» | C12: 1989 | G12: 1 | Y12: КМС | AD12: =IF(OR(D12="МС",E12="МС",F12="МС",G12="МС",H12="МС",I12="МС",J12="МС",K12="МС",L12="МС",M12="МС",N12="МС",O12="МС",P12="МС",Q12="МС",R12="МС",S12="МС",T12="МС",U12="МС",V12="МС",W12="МС",X12="МС",Y12="МС",Z12="МС",AA12="МС",AB12="МС",AC12="МС"),"МС",IF(OR(D12="КМС",E12="КМС",F12="КМС",G12="КМС",H12="КМС",I12="КМС",J12="КМС",K12="КМС",L12="КМС",M12="КМС",N12="КМС",O12="КМС",P12="КМС",Q12="КМС",R12="КМС",S12="КМС",T12="КМС",U12="КМС",V12="КМС",W12="КМС",X12="КМС",Y12="КМС",Z12="КМС",AA12="КМС",AB12="КМС",AC12="КМС"),"КМС",IF(OR(D12=1,E12=1,F12=1,G12=1,H12=1,I12=1,J12=1,K12=1,L12=1,M12=1,N12=1,O12=1,P12=1,Q12=1,R12=1,S12=1,T12=1,U12=1,V12=1,W12=1,X12=1,Y12=1,Z12=1,AA12=1,AB12=1,AC12=1),1,IF(OR(D12=2,E12=2,F12=2,G12=2,H12=2,I12=2,J12=2,K12=2,L12=2,M12=2,N12=2,O12=2,P12=2,Q12=2,R12=2,S12=2,T12=2,U12=2,V12=2,W12=2,X12=2,Y12=2,Z12=2,AA12=2,AB12=2,AC12=2),2,IF(OR(D12=3,E12=3,F12=3,G12=3,H12=3,I12=3,J12=3,K12=3,L12=3,M12=3,N12=3,O12=3,P12=3,Q12=3,R12=3,S12=3,T12=3,U12=3,V12=3,W12=3,X12=3,Y12=3,Z12=3,AA12=3,AB12=3,AC12=3),3,IF(OR(D12="1 юн",E12="1 юн",F12="1 юн",G12="1 юн",H12="1 юн",I12="1 юн",J12="1 юн",K12="1 юн",L12="1 юн",M12="1 юн",N12="1 юн",O12="1 юн",P12="1 юн",Q12="1 юн",R12="1 юн",S12="1 юн",T12="1 юн",U12="1 юн",V12="1 юн",W12="1 юн",X12="1 юн",Y12="1 юн",Z12="1 юн",AA12="1 юн",AB12="1 юн",AC12="1 юн"),"1 юн",IF(OR(D12="юн",E12="юн",F12="юн",G12="юн",H12="юн",I12="юн",J12="юн",K12="юн",L12="юн",M12="юн",N12="юн",O12="юн",P12="юн",Q12="юн",R12="юн",S12="юн",T12="юн",U12="юн",V12="юн",W12="юн",X12="юн",Y12="юн",Z12="юн",AA12="юн",AB12="юн",AC12="юн"),"юн","б/р"))))))) -> КМС
A13: Бадей Никита | B13: РЦЭК | C13: 2004 | AD13: =IF(OR(D13="МС",E13="МС",F13="МС",G13="МС",H13="МС",I13="МС",J13="МС",K13="МС",L13="МС",M13="МС",N13="МС",O13="МС",P13="МС",Q13="МС",R13="МС",S13="МС",T13="МС",U13="МС",V13="МС",W13="МС",X13="МС",Y13="МС",Z13="МС",AA13="МС",AB13="МС",AC13="МС"),"МС",IF(OR(D13="КМС",E13="КМС",F13="КМС",G13="КМС",H13="КМС",I13="КМС",J13="КМС",K13="КМС",L13="КМС",M13="КМС",N13="КМС",O13="КМС",P13="КМС",Q13="КМС",R13="КМС",S13="КМС",T13="КМС",U13="КМС",V13="КМС",W13="КМС",X13="КМС",Y13="КМС",Z13="КМС",AA13="КМС",AB13="КМС",AC13="КМС"),"КМС",IF(OR(D13=1,E13=1,F13=1,G13=1,H13=1,I13=1,J13=1,K13=1,L13=1,M13=1,N13=1,O13=1,P13=1,Q13=1,R13=1,S13=1,T13=1,U13=1,V13=1,W13=1,X13=1,Y13=1,Z13=1,AA13=1,AB13=1,AC13=1),1,IF(OR(D13=2,E13=2,F13=2,G13=2,H13=2,I13=2,J13=2,K13=2,L13=2,M13=2,N13=2,O13=2,P13=2,Q13=2,R13=2,S13=2,T13=2,U13=2,V13=2,W13=2,X13=2,Y13=2,Z13=2,AA13=2,AB13=2,AC13=2),2,IF(OR(D13=3,E13=3,F13=3,G13=3,H13=3,I13=3,J13=3,K13=3,L13=3,M13=3,N13=3,O13=3,P13=3,Q13=3,R13=3,S13=3,T13=3,U13=3,V13=3,W13=3,X13=3,Y13=3,Z13=3,AA13=3,AB13=3,AC13=3),3,IF(OR(D13="1 юн",E13="1 юн",F13="1 юн",G13="1 юн",H13="1 юн",I13="1 юн",J13="1 юн",K13="1 юн",L13="1 юн",M13="1 юн",N13="1 юн",O13="1 юн",P13="1 юн",Q13="1 юн",R13="1 юн",S13="1 юн",T13="1 юн",U13="1 юн",V13="1 юн",W13="1 юн",X13="1 юн",Y13="1 юн",Z13="1 юн",AA13="1 юн",AB13="1 юн",AC13="1 юн"),"1 юн",IF(OR(D13="юн",E13="юн",F13="юн",G13="юн",H13="юн",I13="юн",J13="юн",K13="юн",L13="юн",M13="юн",N13="юн",O13="юн",P13="юн",Q13="юн",R13="юн",S13="юн",T13="юн",U13="юн",V13="юн",W13="юн",X13="юн",Y13="юн",Z13="юн",AA13="юн",AB13="юн",AC13="юн"),"юн","б/р"))))))) -> б/р
A14: Батраков Андрей | B14: Брестская область | C14: 1998 | D14: 3 | E14: 2 | F14: 2 | AD14: =IF(OR(D14="МС",E14="МС",F14="МС",G14="МС",H14="МС",I14="МС",J14="МС",K14="МС",L14="МС",M14="МС",N14="МС",O14="МС",P14="МС",Q14="МС",R14="МС",S14="МС",T14="МС",U14="МС",V14="МС",W14="МС",X14="МС",Y14="МС",Z14="МС",AA14="МС",AB14="МС",AC14="МС"),"МС",IF(OR(D14="КМС",E14="КМС",F14="КМС",G14="КМС",H14="КМС",I14="КМС",J14="КМС",K14="КМС",L14="КМС",M14="КМС",N14="КМС",O14="КМС",P14="КМС",Q14="КМС",R14="КМС",S14="КМС",T14="КМС",U14="КМС",V14="КМС",W14="КМС",X14="КМС",Y14="КМС",Z14="КМС",AA14="КМС",AB14="КМС",AC14="КМС"),"КМС",IF(OR(D14=1,E14=1,F14=1,G14=1,H14=1,I14=1,J14=1,K14=1,L14=1,M14=1,N14=1,O14=1,P14=1,Q14=1,R14=1,S14=1,T14=1,U14=1,V14=1,W14=1,X14=1,Y14=1,Z14=1,AA14=1,AB14=1,AC14=1),1,IF(OR(D14=2,E14=2,F14=2,G14=2,H14=2,I14=2,J14=2,K14=2,L14=2,M14=2,N14=2,O14=2,P14=2,Q14=2,R14=2,S14=2,T14=2,U14=2,V14=2,W14=2,X14=2,Y14=2,Z14=2,AA14=2,AB14=2,AC14=2),2,IF(OR(D14=3,E14=3,F14=3,G14=3,H14=3,I14=3,J14=3,K14=3,L14=3,M14=3,N14=3,O14=3,P14=3,Q14=3,R14=3,S14=3,T14=3,U14=3,V14=3,W14=3,X14=3,Y14=3,Z14=3,AA14=3,AB14=3,AC14=3),3,IF(OR(D14="1 юн",E14="1 юн",F14="1 юн",G14="1 юн",H14="1 юн",I14="1 юн",J14="1 юн",K14="1 юн",L14="1 юн",M14="1 юн",N14="1 юн",O14="1 юн",P14="1 юн",Q14="1 юн",R14="1 юн",S14="1 юн",T14="1 юн",U14="1 юн",V14="1 юн",W14="1 юн",X14="1 юн",Y14="1 юн",Z14="1 юн",AA14="1 юн",AB14="1 юн",AC14="1 юн"),"1 юн",IF(OR(D14="юн",E14="юн",F14="юн",G14="юн",H14="юн",I14="юн",J14="юн",K14="юн",L14="юн",M14="юн",N14="юн",O14="юн",P14="юн",Q14="юн",R14="юн",S14="юн",T14="юн",U14="юн",V14="юн",W14="юн",X14="юн",Y14="юн",Z14="юн",AA14="юн",AB14="юн",AC14="юн"),"юн","б/р"))))))) -> 2
A15: Батура Дмитрий | B15: МогилёвскийОЦФВиС | C15: 2004 | H15: юн | AA15: юн | AB15: юн | AD15: =IF(OR(D15="МС",E15="МС",F15="МС",G15="МС",H15="МС",I15="МС",J15="МС",K15="МС",L15="МС",M15="МС",N15="МС",O15="МС",P15="МС",Q15="МС",R15="МС",S15="МС",T15="МС",U15="МС",V15="МС",W15="МС",X15="МС",Y15="МС",Z15="МС",AA15="МС",AB15="МС",AC15="МС"),"МС",IF(OR(D15="КМС",E15="КМС",F15="КМС",G15="КМС",H15="КМС",I15="КМС",J15="КМС",K15="КМС",L15="КМС",M15="КМС",N15="КМС",O15="КМС",P15="КМС",Q15="КМС",R15="КМС",S15="КМС",T15="КМС",U15="КМС",V15="КМС",W15="КМС",X15="КМС",Y15="КМС",Z15="КМС",AA15="КМС",AB15="КМС",AC15="КМС"),"КМС",IF(OR(D15=1,E15=1,F15=1,G15=1,H15=1,I15=1,J15=1,K15=1,L15=1,M15=1,N15=1,O15=1,P15=1,Q15=1,R15=1,S15=1,T15=1,U15=1,V15=1,W15=1,X15=1,Y15=1,Z15=1,AA15=1,AB15=1,AC15=1),1,IF(OR(D15=2,E15=2,F15=2,G15=2,H15=2,I15=2,J15=2,K15=2,L15=2,M15=2,N15=2,O15=2,P15=2,Q15=2,R15=2,S15=2,T15=2,U15=2,V15=2,W15=2,X15=2,Y15=2,Z15=2,AA15=2,AB15=2,AC15=2),2,IF(OR(D15=3,E15=3,F15=3,G15=3,H15=3,I15=3,J15=3,K15=3,L15=3,M15=3,N15=3,O15=3,P15=3,Q15=3,R15=3,S15=3,T15=3,U15=3,V15=3,W15=3,X15=3,Y15=3,Z15=3,AA15=3,AB15=3,AC15=3),3,IF(OR(D15="1 юн",E15="1 юн",F15="1 юн",G15="1 юн",H15="1 юн",I15="1 юн",J15="1 юн",K15="1 юн",L15="1 юн",M15="1 юн",N15="1 юн",O15="1 юн",P15="1 юн",Q15="1 юн",R15="1 юн",S15="1 юн",T15="1 юн",U15="1 юн",V15="1 юн",W15="1 юн",X15="1 юн",Y15="1 юн",Z15="1 юн",AA15="1 юн",AB15="1 юн",AC15="1 юн"),"1 юн",IF(OR(D15="юн",E15="юн",F15="юн",G15="юн",H15="юн",I15="юн",J15="юн",K15="юн",L15="юн",M15="юн",N15="юн",O15="юн",P15="юн",Q15="юн",R15="юн",S15="юн",T15="юн",U15="юн",V15="юн",W15="юн",X15="юн",Y15="юн",Z15="юн",AA15="юн",AB15="юн",AC15="юн"),"юн","б/р"))))))) -> юн
A16: Бегляков Александр | B16: Шкловский район | C16: 1981 | AD16: =IF(OR(D16="МС",E16="МС",F16="МС",G16="МС",H16="МС",I16="МС",J16="МС",K16="МС",L16="МС",M16="МС",N16="МС",O16="МС",P16="МС",Q16="МС",R16="МС",S16="МС",T16="МС",U16="МС",V16="МС",W16="МС",X16="МС",Y16="МС",Z16="МС",AA16="МС",AB16="МС",AC16="МС"),"МС",IF(OR(D16="КМС",E16="КМС",F16="КМС",G16="КМС",H16="КМС",I16="КМС",J16="КМС",K16="КМС",L16="КМС",M16="КМС",N16="КМС",O16="КМС",P16="КМС",Q16="КМС",R16="КМС",S16="КМС",T16="КМС",U16="КМС",V16="КМС",W16="КМС",X16="КМС",Y16="КМС",Z16="КМС",AA16="КМС",AB16="КМС",AC16="КМС"),"КМС",IF(OR(D16=1,E16=1,F16=1,G16=1,H16=1,I16=1,J16=1,K16=1,L16=1,M16=1,N16=1,O16=1,P16=1,Q16=1,R16=1,S16=1,T16=1,U16=1,V16=1,W16=1,X16=1,Y16=1,Z16=1,AA16=1,AB16=1,AC16=1),1,IF(OR(D16=2,E16=2,F16=2,G16=2,H16=2,I16=2,J16=2,K16=2,L16=2,M16=2,N16=2,O16=2,P16=2,Q16=2,R16=2,S16=2,T16=2,U16=2,V16=2,W16=2,X16=2,Y16=2,Z16=2,AA16=2,AB16=2,AC16=2),2,IF(OR(D16=3,E16=3,F16=3,G16=3,H16=3,I16=3,J16=3,K16=3,L16=3,M16=3,N16=3,O16=3,P16=3,Q16=3,R16=3,S16=3,T16=3,U16=3,V16=3,W16=3,X16=3,Y16=3,Z16=3,AA16=3,AB16=3,AC16=3),3,IF(OR(D16="1 юн",E16="1 юн",F16="1 юн",G16="1 юн",H16="1 юн",I16="1 юн",J16="1 юн",K16="1 юн",L16="1 юн",M16="1 юн",N16="1 юн",O16="1 юн",P16="1 юн",Q16="1 юн",R16="1 юн",S16="1 юн",T16="1 юн",U16="1 юн",V16="1 юн",W16="1 юн",X16="1 юн",Y16="1 юн",Z16="1 юн",AA16="1 юн",AB16="1 юн",AC16="1 юн"),"1 юн",IF(OR(D16="юн",E16="юн",F16="юн",G16="юн",H16="юн",I16="юн",J16="юн",K16="юн",L16="юн",M16="юн",N16="юн",O16="юн",P16="юн",Q16="юн",R16="юн",S16="юн",T16="юн",U16="юн",V16="юн",W16="юн",X16="юн",Y16="юн",Z16="юн",AA16="юн",AB16="юн",AC16="юн"),"юн","б/р"))))))) -> б/р
A17: Беляцкий Артем | B17: СШ № 1 г. Ветка | C17: 2002 | H17: 1 юн | I17: 1 юн | M17: 1 юн | N17: 1 юн | P17: 1 юн | R17: 3 | S17: 2 | T17: 1 юн | AA17: юн | AB17: юн | AD17: =IF(OR(D17="МС",E17="МС",F17="МС",G17="МС",H17="МС",I17="МС",J17="МС",K17="МС",L17="МС",M17="МС",N17="МС",O17="МС",P17="МС",Q17="МС",R17="МС",S17="МС",T17="МС",U17="МС",V17="МС",W17="МС",X17="МС",Y17="МС",Z17="МС",AA17="МС",AB17="МС",AC17="МС"),"МС",IF(OR(D17="КМС",E17="КМС",F17="КМС",G17="КМС",H17="КМС",I17="КМС",J17="КМС",K17="КМС",L17="КМС",M17="КМС",N17="КМС",O17="КМС",P17="КМС",Q17="КМС",R17="КМС",S17="КМС",T17="КМС",U17="КМС",V17="КМС",W17="КМС",X17="КМС",Y17="КМС",Z17="КМС",AA17="КМС",AB17="КМС",AC17="КМС"),"КМС",IF(OR(D17=1,E17=1,F17=1,G17=1,H17=1,I17=1,J17=1,K17=1,L17=1,M17=1,N17=1,O17=1,P17=1,Q17=1,R17=1,S17=1,T17=1,U17=1,V17=1,W17=1,X17=1,Y17=1,Z17=1,AA17=1,AB17=1,AC17=1),1,IF(OR(D17=2,E17=2,F17=2,G17=2,H17=2,I17=2,J17=2,K17=2,L17=2,M17=2,N17=2,O17=2,P17=2,Q17=2,R17=2,S17=2,T17=2,U17=2,V17=2,W17=2,X17=2,Y17=2,Z17=2,AA17=2,AB17=2,AC17=2),2,IF(OR(D17=3,E17=3,F17=3,G17=3,H17=3,I17=3,J17=3,K17=3,L17=3,M17=3,N17=3,O17=3,P17=3,Q17=3,R17=3,S17=3,T17=3,U17=3,V17=3,W17=3,X17=3,Y17=3,Z17=3,AA17=3,AB17=3,AC17=3),3,IF(OR(D17="1 юн",E17="1 юн",F17="1 юн",G17="1 юн",H17="1 юн",I17="1 юн",J17="1 юн",K17="1 юн",L17="1 юн",M17="1 юн",N17="1 юн",O17="1 юн",P17="1 юн",Q17="1 юн",R17="1 юн",S17="1 юн",T17="1 юн",U17="1 юн",V17="1 юн",W17="1 юн",X17="1 юн",Y17="1 юн",Z17="1 юн",AA17="1 юн",AB17="1 юн",AC17="1 юн"),"1 юн",IF(OR(D17="юн",E17="юн",F17="юн",G17="юн",H17="юн",I17="юн",J17="юн",K17="юн",L17="юн",M17="юн",N17="юн",O17="юн",P17="юн",Q17="юн",R17="юн",S17="юн",T17="юн",U17="юн",V17="юн",W17="юн",X17="юн",Y17="юн",Z17="юн",AA17="юн",AB17="юн",AC17="юн"),"юн","б/р"))))))) -> 2
A18: Бережной Максим | B18: РЦЭК | C18: 2000 | Q18: 3 | AA18: юн | AB18: юн | AD18: =IF(OR(D18="МС",E18="МС",F18="МС",G18="МС",H18="МС",I18="МС",J18="МС",K18="МС",L18="МС",M18="МС",N18="МС",O18="МС",P18="МС",Q18="МС",R18="МС",S18="МС",T18="МС",U18="МС",V18="МС",W18="МС",X18="МС",Y18="МС",Z18="МС",AA18="МС",AB18="МС",AC18="МС"),"МС",IF(OR(D18="КМС",E18="КМС",F18="КМС",G18="КМС",H18="КМС",I18="КМС",J18="КМС",K18="КМС",L18="КМС",M18="КМС",N18="КМС",O18="КМС",P18="КМС",Q18="КМС",R18="КМС",S18="КМС",T18="КМС",U18="КМС",V18="КМС",W18="КМС",X18="КМС",Y18="КМС",Z18="КМС",AA18="КМС",AB18="КМС",AC18="КМС"),"КМС",IF(OR(D18=1,E18=1,F18=1,G18=1,H18=1,I18=1,J18=1,K18=1,L18=1,M18=1,N18=1,O18=1,P18=1,Q18=1,R18=1,S18=1,T18=1,U18=1,V18=1,W18=1,X18=1,Y18=1,Z18=1,AA18=1,AB18=1,AC18=1),1,IF(OR(D18=2,E18=2,F18=2,G18=2,H18=2,I18=2,J18=2,K18=2,L18=2,M18=2,N18=2,O18=2,P18=2,Q18=2,R18=2,S18=2,T18=2,U18=2,V18=2,W18=2,X18=2,Y18=2,Z18=2,AA18=2,AB18=2,AC18=2),2,IF(OR(D18=3,E18=3,F18=3,G18=3,H18=3,I18=3,J18=3,K18=3,L18=3,M18=3,N18=3,O18=3,P18=3,Q18=3,R18=3,S18=3,T18=3,U18=3,V18=3,W18=3,X18=3,Y18=3,Z18=3,AA18=3,AB18=3,AC18=3),3,IF(OR(D18="1 юн",E18="1 юн",F18="1 юн",G18="1 юн",H18="1 юн",I18="1 юн",J18="1 юн",K18="1 юн",L18="1 юн",M18="1 юн",N18="1 юн",O18="1 юн",P18="1 юн",Q18="1 юн",R18="1 юн",S18="1 юн",T18="1 юн",U18="1 юн",V18="1 юн",W18="1 юн",X18="1 юн",Y18="1 юн",Z18="1 юн",AA18="1 юн",AB18="1 юн",AC18="1 юн"),"1 юн",IF(OR(D18="юн",E18="юн",F18="юн",G18="юн",H18="юн",I18="юн",J18="юн",K18="юн",L18="юн",M18="юн",N18="юн",O18="юн",P18="юн",Q18="юн",R18="юн",S18="юн",T18="юн",U18="юн",V18="юн",W18="юн",X18="юн",Y18="юн",Z18="юн",AA18="юн",AB18="юн",AC18="юн"),"юн","б/р"))))))) -> 3
A19: Бережной Тимофей | B19: Фрунзенский ФОЦ | C19: 2003 | H19: 1 юн | I19: 2 | J19: 2 | M19: 2 | N19: 1 юн | R19: 2 | S19: 2 | T19: 2 | X19: 3 | AA19: 1 юн | AB19: 1 юн | AD19: =IF(OR(D19="МС",E19="МС",F19="МС",G19="МС",H19="МС",I19="МС",J19="МС",K19="МС",L19="МС",M19="МС",N19="МС",O19="МС",P19="МС",Q19="МС",R19="МС",S19="МС",T19="МС",U19="МС",V19="МС",W19="МС",X19="МС",Y19="МС",Z19="МС",AA19="МС",AB19="МС",AC19="МС"),"МС",IF(OR(D19="КМС",E19="КМС",F19="КМС",G19="КМС",H19="КМС",I19="КМС",J19="КМС",K19="КМС",L19="КМС",M19="КМС",N19="КМС",O19="КМС",P19="КМС",Q19="КМС",R19="КМС",S19="КМС",T19="КМС",U19="КМС",V19="КМС",W19="КМС",X19="КМС",Y19="КМС",Z19="КМС",AA19="КМС",AB19="КМС",AC19="КМС"),"КМС",IF(OR(D19=1,E19=1,F19=1,G19=1,H19=1,I19=1,J19=1,K19=1,L19=1,M19=1,N19=1,O19=1,P19=1,Q19=1,R19=1,S19=1,T19=1,U19=1,V19=1,W19=1,X19=1,Y19=1,Z19=1,AA19=1,AB19=1,AC19=1),1,IF(OR(D19=2,E19=2,F19=2,G19=2,H19=2,I19=2,J19=2,K19=2,L19=2,M19=2,N19=2,O19=2,P19=2,Q19=2,R19=2,S19=2,T19=2,U19=2,V19=2,W19=2,X19=2,Y19=2,Z19=2,AA19=2,AB19=2,AC19=2),2,IF(OR(D19=3,E19=3,F19=3,G19=3,H19=3,I19=3,J19=3,K19=3,L19=3,M19=3,N19=3,O19=3,P19=3,Q19=3,R19=3,S19=3,T19=3,U19=3,V19=3,W19=3,X19=3,Y19=3,Z19=3,AA19=3,AB19=3,AC19=3),3,IF(OR(D19="1 юн",E19="1 юн",F19="1 юн",G19="1 юн",H19="1 юн",I19="1 юн",J19="1 юн",K19="1 юн",L19="1 юн",M19="1 юн",N19="1 юн",O19="1 юн",P19="1 юн",Q19="1 юн",R19="1 юн",S19="1 юн",T19="1 юн",U19="1 юн",V19="1 юн",W19="1 юн",X19="1 юн",Y19="1 юн",Z19="1 юн",AA19="1 юн",AB19="1 юн",AC19="1 юн"),"1 юн",IF(OR(D19="юн",E19="юн",F19="юн",G19="юн",H19="юн",I19="юн",J19="юн",K19="юн",L19="юн",M19="юн",N19="юн",O19="юн",P19="юн",Q19="юн",R19="юн",S19="юн",T19="юн",U19="юн",V19="юн",W19="юн",X19="юн",Y19="юн",Z19="юн",AA19="юн",AB19="юн",AC19="юн"),"юн","б/р"))))))) -> 2
A20: Бессер Родион | B20: MinskOnsight Мн. | C20: 1981 | G20: 1 | L20: 1 | AD20: =IF(OR(D20="МС",E20="МС",F20="МС",G20="МС",H20="МС",I20="МС",J20="МС",K20="МС",L20="МС",M20="МС",N20="МС",O20="МС",P20="МС",Q20="МС",R20="МС",S20="МС",T20="МС",U20="МС",V20="МС",W20="МС",X20="МС",Y20="МС",Z20="МС",AA20="МС",AB20="МС",AC20="МС"),"МС",IF(OR(D20="КМС",E20="КМС",F20="КМС",G20="КМС",H20="КМС",I20="КМС",J20="КМС",K20="КМС",L20="КМС",M20="КМС",N20="КМС",O20="КМС",P20="КМС",Q20="КМС",R20="КМС",S20="КМС",T20="КМС",U20="КМС",V20="КМС",W20="КМС",X20="КМС",Y20="КМС",Z20="КМС",AA20="КМС",AB20="КМС",AC20="КМС"),"КМС",IF(OR(D20=1,E20=1,F20=1,G20=1,H20=1,I20=1,J20=1,K20=1,L20=1,M20=1,N20=1,O20=1,P20=1,Q20=1,R20=1,S20=1,T20=1,U20=1,V20=1,W20=1,X20=1,Y20=1,Z20=1,AA20=1,AB20=1,AC20=1),1,IF(OR(D20=2,E20=2,F20=2,G20=2,H20=2,I20=2,J20=2,K20=2,L20=2,M20=2,N20=2,O20=2,P20=2,Q20=2,R20=2,S20=2,T20=2,U20=2,V20=2,W20=2,X20=2,Y20=2,Z20=2,AA20=2,AB20=2,AC20=2),2,IF(OR(D20=3,E20=3,F20=3,G20=3,H20=3,I20=3,J20=3,K20=3,L20=3,M20=3,N20=3,O20=3,P20=3,Q20=3,R20=3,S20=3,T20=3,U20=3,V20=3,W20=3,X20=3,Y20=3,Z20=3,AA20=3,AB20=3,AC20=3),3,IF(OR(D20="1 юн",E20="1 юн",F20="1 юн",G20="1 юн",H20="1 юн",I20="1 юн",J20="1 юн",K20="1 юн",L20="1 юн",M20="1 юн",N20="1 юн",O20="1 юн",P20="1 юн",Q20="1 юн",R20="1 юн",S20="1 юн",T20="1 юн",U20="1 юн",V20="1 юн",W20="1 юн",X20="1 юн",Y20="1 юн",Z20="1 юн",AA20="1 юн",AB20="1 юн",AC20="1 юн"),"1 юн",IF(OR(D20="юн",E20="юн",F20="юн",G20="юн",H20="юн",I20="юн",J20="юн",K20="юн",L20="юн",M20="юн",N20="юн",O20="юн",P20="юн",Q20="юн",R20="юн",S20="юн",T20="юн",U20="юн",V20="юн",W20="юн",X20="юн",Y20="юн",Z20="юн",AA20="юн",AB20="юн",AC20="юн"),"юн","б/р"))))))) -> 1
A21: Бецковский Артем | B21: Могилевская область | C21: 2000 | AB21: 3 | AD21: =IF(OR(D21="МС",E21="МС",F21="МС",G21="МС",H21="МС",I21="МС",J21="МС",K21="МС",L21="МС",M21="МС",N21="МС",O21="МС",P21="МС",Q21="МС",R21="МС",S21="МС",T21="МС",U21="МС",V21="МС",W21="МС",X21="МС",Y21="МС",Z21="МС",AA21="МС",AB21="МС",AC21="МС"),"МС",IF(OR(D21="КМС",E21="КМС",F21="КМС",G21="КМС",H21="КМС",I21="КМС",J21="КМС",K21="КМС",L21="КМС",M21="КМС",N21="КМС",O21="КМС",P21="КМС",Q21="КМС",R21="КМС",S21="КМС",T21="КМС",U21="КМС",V21="КМС",W21="КМС",X21="КМС",Y21="КМС",Z21="КМС",AA21="КМС",AB21="КМС",AC21="КМС"),"КМС",IF(OR(D21=1,E21=1,F21=1,G21=1,H21=1,I21=1,J21=1,K21=1,L21=1,M21=1,N21=1,O21=1,P21=1,Q21=1,R21=1,S21=1,T21=1,U21=1,V21=1,W21=1,X21=1,Y21=1,Z21=1,AA21=1,AB21=1,AC21=1),1,IF(OR(D21=2,E21=2,F21=2,G21=2,H21=2,I21=2,J21=2,K21=2,L21=2,M21=2,N21=2,O21=2,P21=2,Q21=2,R21=2,S21=2,T21=2,U21=2,V21=2,W21=2,X21=2,Y21=2,Z21=2,AA21=2,AB21=2,AC21=2),2,IF(OR(D21=3,E21=3,F21=3,G21=3,H21=3,I21=3,J21=3,K21=3,L21=3,M21=3,N21=3,O21=3,P21=3,Q21=3,R21=3,S21=3,T21=3,U21=3,V21=3,W21=3,X21=3,Y21=3,Z21=3,AA21=3,AB21=3,AC21=3),3,IF(OR(D21="1 юн",E21="1 юн",F21="1 юн",G21="1 юн",H21="1 юн",I21="1 юн",J21="1 юн",K21="1 юн",L21="1 юн",M21="1 юн",N21="1 юн",O21="1 юн",P21="1 юн",Q21="1 юн",R21="1 юн",S21="1 юн",T21="1 юн",U21="1 юн",V21="1 юн",W21="1 юн",X21="1 юн",Y21="1 юн",Z21="1 юн",AA21="1 юн",AB21="1 юн",AC21="1 юн"),"1 юн",IF(OR(D21="юн",E21="юн",F21="юн",G21="юн",H21="юн",I21="юн",J21="юн",K21="юн",L21="юн",M21="юн",N21="юн",O21="юн",P21="юн",Q21="юн",R21="юн",S21="юн",T21="юн",U21="юн",V21="юн",W21="юн",X21="юн",Y21="юн",Z21="юн",AA21="юн",AB21="юн",AC21="юн"),"юн","б/р"))))))) -> 3
A22: Бобков Константин | B22: ДЮСШ «Омега» Гом. | C22: 2005 | H22: юн | I22: 1 юн | J22: 2 | M22: 1 юн | N22: 1 юн | R22: 3 | W22: юн | X22: 1 юн | AA22: 1 юн | AB22: юн | AD22: =IF(OR(D22="МС",E22="МС",F22="МС",G22="МС",H22="МС",I22="МС",J22="МС",K22="МС",L22="МС",M22="МС",N22="МС",O22="МС",P22="МС",Q22="МС",R22="МС",S22="МС",T22="МС",U22="МС",V22="МС",W22="МС",X22="МС",Y22="МС",Z22="МС",AA22="МС",AB22="МС",AC22="МС"),"МС",IF(OR(D22="КМС",E22="КМС",F22="КМС",G22="КМС",H22="КМС",I22="КМС",J22="КМС",K22="КМС",L22="КМС",M22="КМС",N22="КМС",O22="КМС",P22="КМС",Q22="КМС",R22="КМС",S22="КМС",T22="КМС",U22="КМС",V22="КМС",W22="КМС",X22="КМС",Y22="КМС",Z22="КМС",AA22="КМС",AB22="КМС",AC22="КМС"),"КМС",IF(OR(D22=1,E22=1,F22=1,G22=1,H22=1,I22=1,J22=1,K22=1,L22=1,M22=1,N22=1,O22=1,P22=1,Q22=1,R22=1,S22=1,T22=1,U22=1,V22=1,W22=1,X22=1,Y22=1,Z22=1,AA22=1,AB22=1,AC22=1),1,IF(OR(D22=2,E22=2,F22=2,G22=2,H22=2,I22=2,J22=2,K22=2,L22=2,M22=2,N22=2,O22=2,P22=2,Q22=2,R22=2,S22=2,T22=2,U22=2,V22=2,W22=2,X22=2,Y22=2,Z22=2,AA22=2,AB22=2,AC22=2),2,IF(OR(D22=3,E22=3,F22=3,G22=3,H22=3,I22=3,J22=3,K22=3,L22=3,M22=3,N22=3,O22=3,P22=3,Q22=3,R22=3,S22=3,T22=3,U22=3,V22=3,W22=3,X22=3,Y22=3,Z22=3,AA22=3,AB22=3,AC22=3),3,IF(OR(D22="1 юн",E22="1 юн",F22="1 юн",G22="1 юн",H22="1 юн",I22="1 юн",J22="1 юн",K22="1 юн",L22="1 юн",M22="1 юн",N22="1 юн",O22="1 юн",P22="1 юн",Q22="1 юн",R22="1 юн",S22="1 юн",T22="1 юн",U22="1 юн",V22="1 юн",W22="1 юн",X22="1 юн",Y22="1 юн",Z22="1 юн",AA22="1 юн",AB22="1 юн",AC22="1 юн"),"1 юн",IF(OR(D22="юн",E22="юн",F22="юн",G22="юн",H22="юн",I22="юн",J22="юн",K22="юн",L22="юн",M22="юн",N22="юн",O22="юн",P22="юн",Q22="юн",R22="юн",S22="юн",T22="юн",U22="юн",V22="юн",W22="юн",X22="юн",Y22="юн",Z22="юн",AA22="юн",AB22="юн",AC22="юн"),"юн","б/р"))))))) -> 2
A23: Болденко Валерий | B23: ДЮСШ «Омега» Гом. | C23: 1993 | K23: 2 | L23: 1 | P23: 3 | AD23: =IF(OR(D23="МС",E23="МС",F23="МС",G23="МС",H23="МС",I23="МС",J23="МС",K23="МС",L23="МС",M23="МС",N23="МС",O23="МС",P23="МС",Q23="МС",R23="МС",S23="МС",T23="МС",U23="МС",V23="МС",W23="МС",X23="МС",Y23="МС",Z23="МС",AA23="МС",AB23="МС",AC23="МС"),"МС",IF(OR(D23="КМС",E23="КМС",F23="КМС",G23="КМС",H23="КМС",I23="КМС",J23="КМС",K23="КМС",L23="КМС",M23="КМС",N23="КМС",O23="КМС",P23="КМС",Q23="КМС",R23="КМС",S23="КМС",T23="КМС",U23="КМС",V23="КМС",W23="КМС",X23="КМС",Y23="КМС",Z23="КМС",AA23="КМС",AB23="КМС",AC23="КМС"),"КМС",IF(OR(D23=1,E23=1,F23=1,G23=1,H23=1,I23=1,J23=1,K23=1,L23=1,M23=1,N23=1,O23=1,P23=1,Q23=1,R23=1,S23=1,T23=1,U23=1,V23=1,W23=1,X23=1,Y23=1,Z23=1,AA23=1,AB23=1,AC23=1),1,IF(OR(D23=2,E23=2,F23=2,G23=2,H23=2,I23=2,J23=2,K23=2,L23=2,M23=2,N23=2,O23=2,P23=2,Q23=2,R23=2,S23=2,T23=2,U23=2,V23=2,W23=2,X23=2,Y23=2,Z23=2,AA23=2,AB23=2,AC23=2),2,IF(OR(D23=3,E23=3,F23=3,G23=3,H23=3,I23=3,J23=3,K23=3,L23=3,M23=3,N23=3,O23=3,P23=3,Q23=3,R23=3,S23=3,T23=3,U23=3,V23=3,W23=3,X23=3,Y23=3,Z23=3,AA23=3,AB23=3,AC23=3),3,IF(OR(D23="1 юн",E23="1 юн",F23="1 юн",G23="1 юн",H23="1 юн",I23="1 юн",J23="1 юн",K23="1 юн",L23="1 юн",M23="1 юн",N23="1 юн",O23="1 юн",P23="1 юн",Q23="1 юн",R23="1 юн",S23="1 юн",T23="1 юн",U23="1 юн",V23="1 юн",W23="1 юн",X23="1 юн",Y23="1 юн",Z23="1 юн",AA23="1 юн",AB23="1 юн",AC23="1 юн"),"1 юн",IF(OR(D23="юн",E23="юн",F23="юн",G23="юн",H23="юн",I23="юн",J23="юн",K23="юн",L23="юн",M23="юн",N23="юн",O23="юн",P23="юн",Q23="юн",R23="юн",S23="юн",T23="юн",U23="юн",V23="юн",W23="юн",X23="юн",Y23="юн",Z23="юн",AA23="юн",AB23="юн",AC23="юн"),"юн","б/р"))))))) -> 1
A24: Буйленков Павел | B24: ГОЦТиКДиМ Гомель | C24: 1993 | G24: 1 | K24: 1 | L24: КМС | P24: 3 | Q24: 1 | Y24: 2 | AC24: 2 | AD24: =IF(OR(D24="МС",E24="МС",F24="МС",G24="МС",H24="МС",I24="МС",J24="МС",K24="МС",L24="МС",M24="МС",N24="МС",O24="МС",P24="МС",Q24="МС",R24="МС",S24="МС",T24="МС",U24="МС",V24="МС",W24="МС",X24="МС",Y24="МС",Z24="МС",AA24="МС",AB24="МС",AC24="МС"),"МС",IF(OR(D24="КМС",E24="КМС",F24="КМС",G24="КМС",H24="КМС",I24="КМС",J24="КМС",K24="КМС",L24="КМС",M24="КМС",N24="КМС",O24="КМС",P24="КМС",Q24="КМС",R24="КМС",S24="КМС",T24="КМС",U24="КМС",V24="КМС",W24="КМС",X24="КМС",Y24="КМС",Z24="КМС",AA24="КМС",AB24="КМС",AC24="КМС"),"КМС",IF(OR(D24=1,E24=1,F24=1,G24=1,H24=1,I24=1,J24=1,K24=1,L24=1,M24=1,N24=1,O24=1,P24=1,Q24=1,R24=1,S24=1,T24=1,U24=1,V24=1,W24=1,X24=1,Y24=1,Z24=1,AA24=1,AB24=1,AC24=1),1,IF(OR(D24=2,E24=2,F24=2,G24=2,H24=2,I24=2,J24=2,K24=2,L24=2,M24=2,N24=2,O24=2,P24=2,Q24=2,R24=2,S24=2,T24=2,U24=2,V24=2,W24=2,X24=2,Y24=2,Z24=2,AA24=2,AB24=2,AC24=2),2,IF(OR(D24=3,E24=3,F24=3,G24=3,H24=3,I24=3,J24=3,K24=3,L24=3,M24=3,N24=3,O24=3,P24=3,Q24=3,R24=3,S24=3,T24=3,U24=3,V24=3,W24=3,X24=3,Y24=3,Z24=3,AA24=3,AB24=3,AC24=3),3,IF(OR(D24="1 юн",E24="1 юн",F24="1 юн",G24="1 юн",H24="1 юн",I24="1 юн",J24="1 юн",K24="1 юн",L24="1 юн",M24="1 юн",N24="1 юн",O24="1 юн",P24="1 юн",Q24="1 юн",R24="1 юн",S24="1 юн",T24="1 юн",U24="1 юн",V24="1 юн",W24="1 юн",X24="1 юн",Y24="1 юн",Z24="1 юн",AA24="1 юн",AB24="1 юн",AC24="1 юн"),"1 юн",IF(OR(D24="юн",E24="юн",F24="юн",G24="юн",H24="юн",I24="юн",J24="юн",K24="юн",L24="юн",M24="юн",N24="юн",O24="юн",P24="юн",Q24="юн",R24="юн",S24="юн",T24="юн",U24="юн",V24="юн",W24="юн",X24="юн",Y24="юн",Z24="юн",AA24="юн",AB24="юн",AC24="юн"),"юн","б/р"))))))) -> КМС
A25: Бурый Алексей | B25: Пуховичский р-н | C25: 2002 | H25: юн | M25: юн | N25: 2 | S25: 2 | T25: 2 | Y25: 3 | Z25: 3 | AD25: =IF(OR(D25="МС",E25="МС",F25="МС",G25="МС",H25="МС",I25="МС",J25="МС",K25="МС",L25="МС",M25="МС",N25="МС",O25="МС",P25="МС",Q25="МС",R25="МС",S25="МС",T25="МС",U25="МС",V25="МС",W25="МС",X25="МС",Y25="МС",Z25="МС",AA25="МС",AB25="МС",AC25="МС"),"МС",IF(OR(D25="КМС",E25="КМС",F25="КМС",G25="КМС",H25="КМС",I25="КМС",J25="КМС",K25="КМС",L25="КМС",M25="КМС",N25="КМС",O25="КМС",P25="КМС",Q25="КМС",R25="КМС",S25="КМС",T25="КМС",U25="КМС",V25="КМС",W25="КМС",X25="КМС",Y25="КМС",Z25="КМС",AA25="КМС",AB25="КМС",AC25="КМС"),"КМС",IF(OR(D25=1,E25=1,F25=1,G25=1,H25=1,I25=1,J25=1,K25=1,L25=1,M25=1,N25=1,O25=1,P25=1,Q25=1,R25=1,S25=1,T25=1,U25=1,V25=1,W25=1,X25=1,Y25=1,Z25=1,AA25=1,AB25=1,AC25=1),1,IF(OR(D25=2,E25=2,F25=2,G25=2,H25=2,I25=2,J25=2,K25=2,L25=2,M25=2,N25=2,O25=2,P25=2,Q25=2,R25=2,S25=2,T25=2,U25=2,V25=2,W25=2,X25=2,Y25=2,Z25=2,AA25=2,AB25=2,AC25=2),2,IF(OR(D25=3,E25=3,F25=3,G25=3,H25=3,I25=3,J25=3,K25=3,L25=3,M25=3,N25=3,O25=3,P25=3,Q25=3,R25=3,S25=3,T25=3,U25=3,V25=3,W25=3,X25=3,Y25=3,Z25=3,AA25=3,AB25=3,AC25=3),3,IF(OR(D25="1 юн",E25="1 юн",F25="1 юн",G25="1 юн",H25="1 юн",I25="1 юн",J25="1 юн",K25="1 юн",L25="1 юн",M25="1 юн",N25="1 юн",O25="1 юн",P25="1 юн",Q25="1 юн",R25="1 юн",S25="1 юн",T25="1 юн",U25="1 юн",V25="1 юн",W25="1 юн",X25="1 юн",Y25="1 юн",Z25="1 юн",AA25="1 юн",AB25="1 юн",AC25="1 юн"),"1 юн",IF(OR(D25="юн",E25="юн",F25="юн",G25="юн",H25="юн",I25="юн",J25="юн",K25="юн",L25="юн",M25="юн",N25="юн",O25="юн",P25="юн",Q25="юн",R25="юн",S25="юн",T25="юн",U25="юн",V25="юн",W25="юн",X25="юн",Y25="юн",Z25="юн",AA25="юн",AB25="юн",AC25="юн"),"юн","б/р"))))))) -> 2
A26: Быкадоров Артем | B26: Пуховичский р-н | C26: 2005 | H26: юн | N26: юн | S26: юн | AD26: =IF(OR(D26="МС",E26="МС",F26="МС",G26="МС",H26="МС",I26="МС",J26="МС",K26="МС",L26="МС",M26="МС",N26="МС",O26="МС",P26="МС",Q26="МС",R26="МС",S26="МС",T26="МС",U26="МС",V26="МС",W26="МС",X26="МС",Y26="МС",Z26="МС",AA26="МС",AB26="МС",AC26="МС"),"МС",IF(OR(D26="КМС",E26="КМС",F26="КМС",G26="КМС",H26="КМС",I26="КМС",J26="КМС",K26="КМС",L26="КМС",M26="КМС",N26="КМС",O26="КМС",P26="КМС",Q26="КМС",R26="КМС",S26="КМС",T26="КМС",U26="КМС",V26="КМС",W26="КМС",X26="КМС",Y26="КМС",Z26="КМС",AA26="КМС",AB26="КМС",AC26="КМС"),"КМС",IF(OR(D26=1,E26=1,F26=1,G26=1,H26=1,I26=1,J26=1,K26=1,L26=1,M26=1,N26=1,O26=1,P26=1,Q26=1,R26=1,S26=1,T26=1,U26=1,V26=1,W26=1,X26=1,Y26=1,Z26=1,AA26=1,AB26=1,AC26=1),1,IF(OR(D26=2,E26=2,F26=2,G26=2,H26=2,I26=2,J26=2,K26=2,L26=2,M26=2,N26=2,O26=2,P26=2,Q26=2,R26=2,S26=2,T26=2,U26=2,V26=2,W26=2,X26=2,Y26=2,Z26=2,AA26=2,AB26=2,AC26=2),2,IF(OR(D26=3,E26=3,F26=3,G26=3,H26=3,I26=3,J26=3,K26=3,L26=3,M26=3,N26=3,O26=3,P26=3,Q26=3,R26=3,S26=3,T26=3,U26=3,V26=3,W26=3,X26=3,Y26=3,Z26=3,AA26=3,AB26=3,AC26=3),3,IF(OR(D26="1 юн",E26="1 юн",F26="1 юн",G26="1 юн",H26="1 юн",I26="1 юн",J26="1 юн",K26="1 юн",L26="1 юн",M26="1 юн",N26="1 юн",O26="1 юн",P26="1 юн",Q26="1 юн",R26="1 юн",S26="1 юн",T26="1 юн",U26="1 юн",V26="1 юн",W26="1 юн",X26="1 юн",Y26="1 юн",Z26="1 юн",AA26="1 юн",AB26="1 юн",AC26="1 юн"),"1 юн",IF(OR(D26="юн",E26="юн",F26="юн",G26="юн",H26="юн",I26="юн",J26="юн",K26="юн",L26="юн",M26="юн",N26="юн",O26="юн",P26="юн",Q26="юн",R26="юн",S26="юн",T26="юн",U26="юн",V26="юн",W26="юн",X26="юн",Y26="юн",Z26="юн",AA26="юн",AB26="юн",AC26="юн"),"юн","б/р"))))))) -> юн
A27: Вальковский Владимир | B27: ГОЦТиКДиМ Гомель | C27: 1992 | G27: 1 | K27: КМС | L27: КМС | O27: 1 | U27: КМС | AD27: =IF(OR(D27="МС",E27="МС",F27="МС",G27="МС",H27="МС",I27="МС",J27="МС",K27="МС",L27="МС",M27="МС",N27="МС",O27="МС",P27="МС",Q27="МС",R27="МС",S27="МС",T27="МС",U27="МС",V27="МС",W27="МС",X27="МС",Y27="МС",Z27="МС",AA27="МС",AB27="МС",AC27="МС"),"МС",IF(OR(D27="КМС",E27="КМС",F27="КМС",G27="КМС",H27="КМС",I27="КМС",J27="КМС",K27="КМС",L27="КМС",M27="КМС",N27="КМС",O27="КМС",P27="КМС",Q27="КМС",R27="КМС",S27="КМС",T27="КМС",U27="КМС",V27="КМС",W27="КМС",X27="КМС",Y27="КМС",Z27="КМС",AA27="КМС",AB27="КМС",AC27="КМС"),"КМС",IF(OR(D27=1,E27=1,F27=1,G27=1,H27=1,I27=1,J27=1,K27=1,L27=1,M27=1,N27=1,O27=1,P27=1,Q27=1,R27=1,S27=1,T27=1,U27=1,V27=1,W27=1,X27=1,Y27=1,Z27=1,AA27=1,AB27=1,AC27=1),1,IF(OR(D27=2,E27=2,F27=2,G27=2,H27=2,I27=2,J27=2,K27=2,L27=2,M27=2,N27=2,O27=2,P27=2,Q27=2,R27=2,S27=2,T27=2,U27=2,V27=2,W27=2,X27=2,Y27=2,Z27=2,AA27=2,AB27=2,AC27=2),2,IF(OR(D27=3,E27=3,F27=3,G27=3,H27=3,I27=3,J27=3,K27=3,L27=3,M27=3,N27=3,O27=3,P27=3,Q27=3,R27=3,S27=3,T27=3,U27=3,V27=3,W27=3,X27=3,Y27=3,Z27=3,AA27=3,AB27=3,AC27=3),3,IF(OR(D27="1 юн",E27="1 юн",F27="1 юн",G27="1 юн",H27="1 юн",I27="1 юн",J27="1 юн",K27="1 юн",L27="1 юн",M27="1 юн",N27="1 юн",O27="1 юн",P27="1 юн",Q27="1 юн",R27="1 юн",S27="1 юн",T27="1 юн",U27="1 юн",V27="1 юн",W27="1 юн",X27="1 юн",Y27="1 юн",Z27="1 юн",AA27="1 юн",AB27="1 юн",AC27="1 юн"),"1 юн",IF(OR(D27="юн",E27="юн",F27="юн",G27="юн",H27="юн",I27="юн",J27="юн",K27="юн",L27="юн",M27="юн",N27="юн",O27="юн",P27="юн",Q27="юн",R27="юн",S27="юн",T27="юн",U27="юн",V27="юн",W27="юн",X27="юн",Y27="юн",Z27="юн",AA27="юн",AB27="юн",AC27="юн"),"юн","б/р"))))))) -> КМС
A28: Василец Александр | B28: ДЮСШ «Омега» Гом. | C28: 1987 | P28: 1 | AD28: =IF(OR(D28="МС",E28="МС",F28="МС",G28="МС",H28="МС",I28="МС",J28="МС",K28="МС",L28="МС",M28="МС",N28="МС",O28="МС",P28="МС",Q28="МС",R28="МС",S28="МС",T28="МС",U28="МС",V28="МС",W28="МС",X28="МС",Y28="МС",Z28="МС",AA28="МС",AB28="МС",AC28="МС"),"МС",IF(OR(D28="КМС",E28="КМС",F28="КМС",G28="КМС",H28="КМС",I28="КМС",J28="КМС",K28="КМС",L28="КМС",M28="КМС",N28="КМС",O28="КМС",P28="КМС",Q28="КМС",R28="КМС",S28="КМС",T28="КМС",U28="КМС",V28="КМС",W28="КМС",X28="КМС",Y28="КМС",Z28="КМС",AA28="КМС",AB28="КМС",AC28="КМС"),"КМС",IF(OR(D28=1,E28=1,F28=1,G28=1,H28=1,I28=1,J28=1,K28=1,L28=1,M28=1,N28=1,O28=1,P28=1,Q28=1,R28=1,S28=1,T28=1,U28=1,V28=1,W28=1,X28=1,Y28=1,Z28=1,AA28=1,AB28=1,AC28=1),1,IF(OR(D28=2,E28=2,F28=2,G28=2,H28=2,I28=2,J28=2,K28=2,L28=2,M28=2,N28=2,O28=2,P28=2,Q28=2,R28=2,S28=2,T28=2,U28=2,V28=2,W28=2,X28=2,Y28=2,Z28=2,AA28=2,AB28=2,AC28=2),2,IF(OR(D28=3,E28=3,F28=3,G28=3,H28=3,I28=3,J28=3,K28=3,L28=3,M28=3,N28=3,O28=3,P28=3,Q28=3,R28=3,S28=3,T28=3,U28=3,V28=3,W28=3,X28=3,Y28=3,Z28=3,AA28=3,AB28=3,AC28=3),3,IF(OR(D28="1 юн",E28="1 юн",F28="1 юн",G28="1 юн",H28="1 юн",I28="1 юн",J28="1 юн",K28="1 юн",L28="1 юн",M28="1 юн",N28="1 юн",O28="1 юн",P28="1 юн",Q28="1 юн",R28="1 юн",S28="1 юн",T28="1 юн",U28="1 юн",V28="1 юн",W28="1 юн",X28="1 юн",Y28="1 юн",Z28="1 юн",AA28="1 юн",AB28="1 юн",AC28="1 юн"),"1 юн",IF(OR(D28="юн",E28="юн",F28="юн",G28="юн",H28="юн",I28="юн",J28="юн",K28="юн",L28="юн",M28="юн",N28="юн",O28="юн",P28="юн",Q28="юн",R28="юн",S28="юн",T28="юн",U28="юн",V28="юн",W28="юн",X28="юн",Y28="юн",Z28="юн",AA28="юн",AB28="юн",AC28="юн"),"юн","б/р"))))))) -> 1
A29: Васильев Даниил | B29: ЦТКиЭ г Бобруйска | C29: 2001 | H29: 2 | Y29: 2 | Z29: 2 | AA29: юн | AB29: юн | AD29: =IF(OR(D29="МС",E29="МС",F29="МС",G29="МС",H29="МС",I29="МС",J29="МС",K29="МС",L29="МС",M29="МС",N29="МС",O29="МС",P29="МС",Q29="МС",R29="МС",S29="МС",T29="МС",U29="МС",V29="МС",W29="МС",X29="МС",Y29="МС",Z29="МС",AA29="МС",AB29="МС",AC29="МС"),"МС",IF(OR(D29="КМС",E29="КМС",F29="КМС",G29="КМС",H29="КМС",I29="КМС",J29="КМС",K29="КМС",L29="КМС",M29="КМС",N29="КМС",O29="КМС",P29="КМС",Q29="КМС",R29="КМС",S29="КМС",T29="КМС",U29="КМС",V29="КМС",W29="КМС",X29="КМС",Y29="КМС",Z29="КМС",AA29="КМС",AB29="КМС",AC29="КМС"),"КМС",IF(OR(D29=1,E29=1,F29=1,G29=1,H29=1,I29=1,J29=1,K29=1,L29=1,M29=1,N29=1,O29=1,P29=1,Q29=1,R29=1,S29=1,T29=1,U29=1,V29=1,W29=1,X29=1,Y29=1,Z29=1,AA29=1,AB29=1,AC29=1),1,IF(OR(D29=2,E29=2,F29=2,G29=2,H29=2,I29=2,J29=2,K29=2,L29=2,M29=2,N29=2,O29=2,P29=2,Q29=2,R29=2,S29=2,T29=2,U29=2,V29=2,W29=2,X29=2,Y29=2,Z29=2,AA29=2,AB29=2,AC29=2),2,IF(OR(D29=3,E29=3,F29=3,G29=3,H29=3,I29=3,J29=3,K29=3,L29=3,M29=3,N29=3,O29=3,P29=3,Q29=3,R29=3,S29=3,T29=3,U29=3,V29=3,W29=3,X29=3,Y29=3,Z29=3,AA29=3,AB29=3,AC29=3),3,IF(OR(D29="1 юн",E29="1 юн",F29="1 юн",G29="1 юн",H29="1 юн",I29="1 юн",J29="1 юн",K29="1 юн",L29="1 юн",M29="1 юн",N29="1 юн",O29="1 юн",P29="1 юн",Q29="1 юн",R29="1 юн",S29="1 юн",T29="1 юн",U29="1 юн",V29="1 юн",W29="1 юн",X29="1 юн",Y29="1 юн",Z29="1 юн",AA29="1 юн",AB29="1 юн",AC29="1 юн"),"1 юн",IF(OR(D29="юн",E29="юн",F29="юн",G29="юн",H29="юн",I29="юн",J29="юн",K29="юн",L29="юн",M29="юн",N29="юн",O29="юн",P29="юн",Q29="юн",R29="юн",S29="юн",T29="юн",U29="юн",V29="юн",W29="юн",X29="юн",Y29="юн",Z29="юн",AA29="юн",AB29="юн",AC29="юн"),"юн","б/р"))))))) -> 2
A30: Ведерников Илья | B30: РЦЭК | C30: 2004 | H30: 1 юн | M30: 2 | N30: 1 юн | AA30: юн | AB30: юн | AD30: =IF(OR(D30="МС",E30="МС",F30="МС",G30="МС",H30="МС",I30="МС",J30="МС",K30="МС",L30="МС",M30="МС",N30="МС",O30="МС",P30="МС",Q30="МС",R30="МС",S30="МС",T30="МС",U30="МС",V30="МС",W30="МС",X30="МС",Y30="МС",Z30="МС",AA30="МС",AB30="МС",AC30="МС"),"МС",IF(OR(D30="КМС",E30="КМС",F30="КМС",G30="КМС",H30="КМС",I30="КМС",J30="КМС",K30="КМС",L30="КМС",M30="КМС",N30="КМС",O30="КМС",P30="КМС",Q30="КМС",R30="КМС",S30="КМС",T30="КМС",U30="КМС",V30="КМС",W30="КМС",X30="КМС",Y30="КМС",Z30="КМС",AA30="КМС",AB30="КМС",AC30="КМС"),"КМС",IF(OR(D30=1,E30=1,F30=1,G30=1,H30=1,I30=1,J30=1,K30=1,L30=1,M30=1,N30=1,O30=1,P30=1,Q30=1,R30=1,S30=1,T30=1,U30=1,V30=1,W30=1,X30=1,Y30=1,Z30=1,AA30=1,AB30=1,AC30=1),1,IF(OR(D30=2,E30=2,F30=2,G30=2,H30=2,I30=2,J30=2,K30=2,L30=2,M30=2,N30=2,O30=2,P30=2,Q30=2,R30=2,S30=2,T30=2,U30=2,V30=2,W30=2,X30=2,Y30=2,Z30=2,AA30=2,AB30=2,AC30=2),2,IF(OR(D30=3,E30=3,F30=3,G30=3,H30=3,I30=3,J30=3,K30=3,L30=3,M30=3,N30=3,O30=3,P30=3,Q30=3,R30=3,S30=3,T30=3,U30=3,V30=3,W30=3,X30=3,Y30=3,Z30=3,AA30=3,AB30=3,AC30=3),3,IF(OR(D30="1 юн",E30="1 юн",F30="1 юн",G30="1 юн",H30="1 юн",I30="1 юн",J30="1 юн",K30="1 юн",L30="1 юн",M30="1 юн",N30="1 юн",O30="1 юн",P30="1 юн",Q30="1 юн",R30="1 юн",S30="1 юн",T30="1 юн",U30="1 юн",V30="1 юн",W30="1 юн",X30="1 юн",Y30="1 юн",Z30="1 юн",AA30="1 юн",AB30="1 юн",AC30="1 юн"),"1 юн",IF(OR(D30="юн",E30="юн",F30="юн",G30="юн",H30="юн",I30="юн",J30="юн",K30="юн",L30="юн",M30="юн",N30="юн",O30="юн",P30="юн",Q30="юн",R30="юн",S30="юн",T30="юн",U30="юн",V30="юн",W30="юн",X30="юн",Y30="юн",Z30="юн",AA30="юн",AB30="юн",AC30="юн"),"юн","б/р"))))))) -> 2
A31: Веревкин Владислав | B31: Речица | C31: 1999 | AD31: =IF(OR(D31="МС",E31="МС",F31="МС",G31="МС",H31="МС",I31="МС",J31="МС",K31="МС",L31="МС",M31="МС",N31="МС",O31="МС",P31="МС",Q31="МС",R31="МС",S31="МС",T31="МС",U31="МС",V31="МС",W31="МС",X31="МС",Y31="МС",Z31="МС",AA31="МС",AB31="МС",AC31="МС"),"МС",IF(OR(D31="КМС",E31="КМС",F31="КМС",G31="КМС",H31="КМС",I31="КМС",J31="КМС",K31="КМС",L31="КМС",M31="КМС",N31="КМС",O31="КМС",P31="КМС",Q31="КМС",R31="КМС",S31="КМС",T31="КМС",U31="КМС",V31="КМС",W31="КМС",X31="КМС",Y31="КМС",Z31="КМС",AA31="КМС",AB31="КМС",AC31="КМС"),"КМС",IF(OR(D31=1,E31=1,F31=1,G31=1,H31=1,I31=1,J31=1,K31=1,L31=1,M31=1,N31=1,O31=1,P31=1,Q31=1,R31=1,S31=1,T31=1,U31=1,V31=1,W31=1,X31=1,Y31=1,Z31=1,AA31=1,AB31=1,AC31=1),1,IF(OR(D31=2,E31=2,F31=2,G31=2,H31=2,I31=2,J31=2,K31=2,L31=2,M31=2,N31=2,O31=2,P31=2,Q31=2,R31=2,S31=2,T31=2,U31=2,V31=2,W31=2,X31=2,Y31=2,Z31=2,AA31=2,AB31=2,AC31=2),2,IF(OR(D31=3,E31=3,F31=3,G31=3,H31=3,I31=3,J31=3,K31=3,L31=3,M31=3,N31=3,O31=3,P31=3,Q31=3,R31=3,S31=3,T31=3,U31=3,V31=3,W31=3,X31=3,Y31=3,Z31=3,AA31=3,AB31=3,AC31=3),3,IF(OR(D31="1 юн",E31="1 юн",F31="1 юн",G31="1 юн",H31="1 юн",I31="1 юн",J31="1 юн",K31="1 юн",L31="1 юн",M31="1 юн",N31="1 юн",O31="1 юн",P31="1 юн",Q31="1 юн",R31="1 юн",S31="1 юн",T31="1 юн",U31="1 юн",V31="1 юн",W31="1 юн",X31="1 юн",Y31="1 юн",Z31="1 юн",AA31="1 юн",AB31="1 юн",AC31="1 юн"),"1 юн",IF(OR(D31="юн",E31="юн",F31="юн",G31="юн",H31="юн",I31="юн",J31="юн",K31="юн",L31="юн",M31="юн",N31="юн",O31="юн",P31="юн",Q31="юн",R31="юн",S31="юн",T31="юн",U31="юн",V31="юн",W31="юн",X31="юн",Y31="юн",Z31="юн",AA31="юн",AB31="юн",AC31="юн"),"юн","б/р"))))))) -> б/р
A32: Виниченко Андрей | B32: Хан-Тенгри | C32: 1988 | G32: 1 | AD32: =IF(OR(D32="МС",E32="МС",F32="МС",G32="МС",H32="МС",I32="МС",J32="МС",K32="МС",L32="МС",M32="МС",N32="МС",O32="МС",P32="МС",Q32="МС",R32="МС",S32="МС",T32="МС",U32="МС",V32="МС",W32="МС",X32="МС",Y32="МС",Z32="МС",AA32="МС",AB32="МС",AC32="МС"),"МС",IF(OR(D32="КМС",E32="КМС",F32="КМС",G32="КМС",H32="КМС",I32="КМС",J32="КМС",K32="КМС",L32="КМС",M32="КМС",N32="КМС",O32="КМС",P32="КМС",Q32="КМС",R32="КМС",S32="КМС",T32="КМС",U32="КМС",V32="КМС",W32="КМС",X32="КМС",Y32="КМС",Z32="КМС",AA32="КМС",AB32="КМС",AC32="КМС"),"КМС",IF(OR(D32=1,E32=1,F32=1,G32=1,H32=1,I32=1,J32=1,K32=1,L32=1,M32=1,N32=1,O32=1,P32=1,Q32=1,R32=1,S32=1,T32=1,U32=1,V32=1,W32=1,X32=1,Y32=1,Z32=1,AA32=1,AB32=1,AC32=1),1,IF(OR(D32=2,E32=2,F32=2,G32=2,H32=2,I32=2,J32=2,K32=2,L32=2,M32=2,N32=2,O32=2,P32=2,Q32=2,R32=2,S32=2,T32=2,U32=2,V32=2,W32=2,X32=2,Y32=2,Z32=2,AA32=2,AB32=2,AC32=2),2,IF(OR(D32=3,E32=3,F32=3,G32=3,H32=3,I32=3,J32=3,K32=3,L32=3,M32=3,N32=3,O32=3,P32=3,Q32=3,R32=3,S32=3,T32=3,U32=3,V32=3,W32=3,X32=3,Y32=3,Z32=3,AA32=3,AB32=3,AC32=3),3,IF(OR(D32="1 юн",E32="1 юн",F32="1 юн",G32="1 юн",H32="1 юн",I32="1 юн",J32="1 юн",K32="1 юн",L32="1 юн",M32="1 юн",N32="1 юн",O32="1 юн",P32="1 юн",Q32="1 юн",R32="1 юн",S32="1 юн",T32="1 юн",U32="1 юн",V32="1 юн",W32="1 юн",X32="1 юн",Y32="1 юн",Z32="1 юн",AA32="1 юн",AB32="1 юн",AC32="1 юн"),"1 юн",IF(OR(D32="юн",E32="юн",F32="юн",G32="юн",H32="юн",I32="юн",J32="юн",K32="юн",L32="юн",M32="юн",N32="юн",O32="юн",P32="юн",Q32="юн",R32="юн",S32="юн",T32="юн",U32="юн",V32="юн",W32="юн",X32="юн",Y32="юн",Z32="юн",AA32="юн",AB32="юн",AC32="юн"),"юн","б/р"))))))) -> 1
A33: Винчевский Максим | B33: Хан-Тенгри | C33: 1991 | O33: 2 | AD33: =IF(OR(D33="МС",E33="МС",F33="МС",G33="МС",H33="МС",I33="МС",J33="МС",K33="МС",L33="МС",M33="МС",N33="МС",O33="МС",P33="МС",Q33="МС",R33="МС",S33="МС",T33="МС",U33="МС",V33="МС",W33="МС",X33="МС",Y33="МС",Z33="МС",AA33="МС",AB33="МС",AC33="МС"),"МС",IF(OR(D33="КМС",E33="КМС",F33="КМС",G33="КМС",H33="КМС",I33="КМС",J33="КМС",K33="КМС",L33="КМС",M33="КМС",N33="КМС",O33="КМС",P33="КМС",Q33="КМС",R33="КМС",S33="КМС",T33="КМС",U33="КМС",V33="КМС",W33="КМС",X33="КМС",Y33="КМС",Z33="КМС",AA33="КМС",AB33="КМС",AC33="КМС"),"КМС",IF(OR(D33=1,E33=1,F33=1,G33=1,H33=1,I33=1,J33=1,K33=1,L33=1,M33=1,N33=1,O33=1,P33=1,Q33=1,R33=1,S33=1,T33=1,U33=1,V33=1,W33=1,X33=1,Y33=1,Z33=1,AA33=1,AB33=1,AC33=1),1,IF(OR(D33=2,E33=2,F33=2,G33=2,H33=2,I33=2,J33=2,K33=2,L33=2,M33=2,N33=2,O33=2,P33=2,Q33=2,R33=2,S33=2,T33=2,U33=2,V33=2,W33=2,X33=2,Y33=2,Z33=2,AA33=2,AB33=2,AC33=2),2,IF(OR(D33=3,E33=3,F33=3,G33=3,H33=3,I33=3,J33=3,K33=3,L33=3,M33=3,N33=3,O33=3,P33=3,Q33=3,R33=3,S33=3,T33=3,U33=3,V33=3,W33=3,X33=3,Y33=3,Z33=3,AA33=3,AB33=3,AC33=3),3,IF(OR(D33="1 юн",E33="1 юн",F33="1 юн",G33="1 юн",H33="1 юн",I33="1 юн",J33="1 юн",K33="1 юн",L33="1 юн",M33="1 юн",N33="1 юн",O33="1 юн",P33="1 юн",Q33="1 юн",R33="1 юн",S33="1 юн",T33="1 юн",U33="1 юн",V33="1 юн",W33="1 юн",X33="1 юн",Y33="1 юн",Z33="1 юн",AA33="1 юн",AB33="1 юн",AC33="1 юн"),"1 юн",IF(OR(D33="юн",E33="юн",F33="юн",G33="юн",H33="юн",I33="юн",J33="юн",K33="юн",L33="юн",M33="юн",N33="юн",O33="юн",P33="юн",Q33="юн",R33="юн",S33="юн",T33="юн",U33="юн",V33="юн",W33="юн",X33="юн",Y33="юн",Z33="юн",AA33="юн",AB33="юн",AC33="юн"),"юн","б/р"))))))) -> 2
A34: Власенко Алексей | B34: ГОЦТиКДиМ Гомель | C34: 1997 | AD34: =IF(OR(D34="МС",E34="МС",F34="МС",G34="МС",H34="МС",I34="МС",J34="МС",K34="МС",L34="МС",M34="МС",N34="МС",O34="МС",P34="МС",Q34="МС",R34="МС",S34="МС",T34="МС",U34="МС",V34="МС",W34="МС",X34="МС",Y34="МС",Z34="МС",AA34="МС",AB34="МС",AC34="МС"),"МС",IF(OR(D34="КМС",E34="КМС",F34="КМС",G34="КМС",H34="КМС",I34="КМС",J34="КМС",K34="КМС",L34="КМС",M34="КМС",N34="КМС",O34="КМС",P34="КМС",Q34="КМС",R34="КМС",S34="КМС",T34="КМС",U34="КМС",V34="КМС",W34="КМС",X34="КМС",Y34="КМС",Z34="КМС",AA34="КМС",AB34="КМС",AC34="КМС"),"КМС",IF(OR(D34=1,E34=1,F34=1,G34=1,H34=1,I34=1,J34=1,K34=1,L34=1,M34=1,N34=1,O34=1,P34=1,Q34=1,R34=1,S34=1,T34=1,U34=1,V34=1,W34=1,X34=1,Y34=1,Z34=1,AA34=1,AB34=1,AC34=1),1,IF(OR(D34=2,E34=2,F34=2,G34=2,H34=2,I34=2,J34=2,K34=2,L34=2,M34=2,N34=2,O34=2,P34=2,Q34=2,R34=2,S34=2,T34=2,U34=2,V34=2,W34=2,X34=2,Y34=2,Z34=2,AA34=2,AB34=2,AC34=2),2,IF(OR(D34=3,E34=3,F34=3,G34=3,H34=3,I34=3,J34=3,K34=3,L34=3,M34=3,N34=3,O34=3,P34=3,Q34=3,R34=3,S34=3,T34=3,U34=3,V34=3,W34=3,X34=3,Y34=3,Z34=3,AA34=3,AB34=3,AC34=3),3,IF(OR(D34="1 юн",E34="1 юн",F34="1 юн",G34="1 юн",H34="1 юн",I34="1 юн",J34="1 юн",K34="1 юн",L34="1 юн",M34="1 юн",N34="1 юн",O34="1 юн",P34="1 юн",Q34="1 юн",R34="1 юн",S34="1 юн",T34="1 юн",U34="1 юн",V34="1 юн",W34="1 юн",X34="1 юн",Y34="1 юн",Z34="1 юн",AA34="1 юн",AB34="1 юн",AC34="1 юн"),"1 юн",IF(OR(D34="юн",E34="юн",F34="юн",G34="юн",H34="юн",I34="юн",J34="юн",K34="юн",L34="юн",M34="юн",N34="юн",O34="юн",P34="юн",Q34="юн",R34="юн",S34="юн",T34="юн",U34="юн",V34="юн",W34="юн",X34="юн",Y34="юн",Z34="юн",AA34="юн",AB34="юн",AC34="юн"),"юн","б/р"))))))) -> б/р
A35: Волосович Дмитрий | B35: Гомельская обл. | C35: 1995 | D35: 2 | E35: КМС | G35: КМС | P35: КМС | Q35: КМС | AC35: КМС | AD35: =IF(OR(D35="МС",E35="МС",F35="МС",G35="МС",H35="МС",I35="МС",J35="МС",K35="МС",L35="МС",M35="МС",N35="МС",O35="МС",P35="МС",Q35="МС",R35="МС",S35="МС",T35="МС",U35="МС",V35="МС",W35="МС",X35="МС",Y35="МС",Z35="МС",AA35="МС",AB35="МС",AC35="МС"),"МС",IF(OR(D35="КМС",E35="КМС",F35="КМС",G35="КМС",H35="КМС",I35="КМС",J35="КМС",K35="КМС",L35="КМС",M35="КМС",N35="КМС",O35="КМС",P35="КМС",Q35="КМС",R35="КМС",S35="КМС",T35="КМС",U35="КМС",V35="КМС",W35="КМС",X35="КМС",Y35="КМС",Z35="КМС",AA35="КМС",AB35="КМС",AC35="КМС"),"КМС",IF(OR(D35=1,E35=1,F35=1,G35=1,H35=1,I35=1,J35=1,K35=1,L35=1,M35=1,N35=1,O35=1,P35=1,Q35=1,R35=1,S35=1,T35=1,U35=1,V35=1,W35=1,X35=1,Y35=1,Z35=1,AA35=1,AB35=1,AC35=1),1,IF(OR(D35=2,E35=2,F35=2,G35=2,H35=2,I35=2,J35=2,K35=2,L35=2,M35=2,N35=2,O35=2,P35=2,Q35=2,R35=2,S35=2,T35=2,U35=2,V35=2,W35=2,X35=2,Y35=2,Z35=2,AA35=2,AB35=2,AC35=2),2,IF(OR(D35=3,E35=3,F35=3,G35=3,H35=3,I35=3,J35=3,K35=3,L35=3,M35=3,N35=3,O35=3,P35=3,Q35=3,R35=3,S35=3,T35=3,U35=3,V35=3,W35=3,X35=3,Y35=3,Z35=3,AA35=3,AB35=3,AC35=3),3,IF(OR(D35="1 юн",E35="1 юн",F35="1 юн",G35="1 юн",H35="1 юн",I35="1 юн",J35="1 юн",K35="1 юн",L35="1 юн",M35="1 юн",N35="1 юн",O35="1 юн",P35="1 юн",Q35="1 юн",R35="1 юн",S35="1 юн",T35="1 юн",U35="1 юн",V35="1 юн",W35="1 юн",X35="1 юн",Y35="1 юн",Z35="1 юн",AA35="1 юн",AB35="1 юн",AC35="1 юн"),"1 юн",IF(OR(D35="юн",E35="юн",F35="юн",G35="юн",H35="юн",I35="юн",J35="юн",K35="юн",L35="юн",M35="юн",N35="юн",O35="юн",P35="юн",Q35="юн",R35="юн",S35="юн",T35="юн",U35="юн",V35="юн",W35="юн",X35="юн",Y35="юн",Z35="юн",AA35="юн",AB35="юн",AC35="юн"),"юн","б/р"))))))) -> КМС
A36: Волчек Алексей | B36: РЦЭК | C36: 2001 | H36: юн | AD36: =IF(OR(D36="МС",E36="МС",F36="МС",G36="МС",H36="МС",I36="МС",J36="МС",K36="МС",L36="МС",M36="МС",N36="МС",O36="МС",P36="МС",Q36="МС",R36="МС",S36="МС",T36="МС",U36="МС",V36="МС",W36="МС",X36="МС",Y36="МС",Z36="МС",AA36="МС",AB36="МС",AC36="МС"),"МС",IF(OR(D36="КМС",E36="КМС",F36="КМС",G36="КМС",H36="КМС",I36="КМС",J36="КМС",K36="КМС",L36="КМС",M36="КМС",N36="КМС",O36="КМС",P36="КМС",Q36="КМС",R36="КМС",S36="КМС",T36="КМС",U36="КМС",V36="КМС",W36="КМС",X36="КМС",Y36="КМС",Z36="КМС",AA36="КМС",AB36="КМС",AC36="КМС"),"КМС",IF(OR(D36=1,E36=1,F36=1,G36=1,H36=1,I36=1,J36=1,K36=1,L36=1,M36=1,N36=1,O36=1,P36=1,Q36=1,R36=1,S36=1,T36=1,U36=1,V36=1,W36=1,X36=1,Y36=1,Z36=1,AA36=1,AB36=1,AC36=1),1,IF(OR(D36=2,E36=2,F36=2,G36=2,H36=2,I36=2,J36=2,K36=2,L36=2,M36=2,N36=2,O36=2,P36=2,Q36=2,R36=2,S36=2,T36=2,U36=2,V36=2,W36=2,X36=2,Y36=2,Z36=2,AA36=2,AB36=2,AC36=2),2,IF(OR(D36=3,E36=3,F36=3,G36=3,H36=3,I36=3,J36=3,K36=3,L36=3,M36=3,N36=3,O36=3,P36=3,Q36=3,R36=3,S36=3,T36=3,U36=3,V36=3,W36=3,X36=3,Y36=3,Z36=3,AA36=3,AB36=3,AC36=3),3,IF(OR(D36="1 юн",E36="1 юн",F36="1 юн",G36="1 юн",H36="1 юн",I36="1 юн",J36="1 юн",K36="1 юн",L36="1 юн",M36="1 юн",N36="1 юн",O36="1 юн",P36="1 юн",Q36="1 юн",R36="1 юн",S36="1 юн",T36="1 юн",U36="1 юн",V36="1 юн",W36="1 юн",X36="1 юн",Y36="1 юн",Z36="1 юн",AA36="1 юн",AB36="1 юн",AC36="1 юн"),"1 юн",IF(OR(D36="юн",E36="юн",F36="юн",G36="юн",H36="юн",I36="юн",J36="юн",K36="юн",L36="юн",M36="юн",N36="юн",O36="юн",P36="юн",Q36="юн",R36="юн",S36="юн",T36="юн",U36="юн",V36="юн",W36="юн",X36="юн",Y36="юн",Z36="юн",AA36="юн",AB36="юн",AC36="юн"),"юн","б/р"))))))) -> юн
A37: Гатальский Дмитрий | B37: СШ № 1 г. Ветка | C37: 2003 | M37: 1 юн | AD37: =IF(OR(D37="МС",E37="МС",F37="МС",G37="МС",H37="МС",I37="МС",J37="МС",K37="МС",L37="МС",M37="МС",N37="МС",O37="МС",P37="МС",Q37="МС",R37="МС",S37="МС",T37="МС",U37="МС",V37="МС",W37="МС",X37="МС",Y37="МС",Z37="МС",AA37="МС",AB37="МС",AC37="МС"),"МС",IF(OR(D37="КМС",E37="КМС",F37="КМС",G37="КМС",H37="КМС",I37="КМС",J37="КМС",K37="КМС",L37="КМС",M37="КМС",N37="КМС",O37="КМС",P37="КМС",Q37="КМС",R37="КМС",S37="КМС",T37="КМС",U37="КМС",V37="КМС",W37="КМС",X37="КМС",Y37="КМС",Z37="КМС",AA37="КМС",AB37="КМС",AC37="КМС"),"КМС",IF(OR(D37=1,E37=1,F37=1,G37=1,H37=1,I37=1,J37=1,K37=1,L37=1,M37=1,N37=1,O37=1,P37=1,Q37=1,R37=1,S37=1,T37=1,U37=1,V37=1,W37=1,X37=1,Y37=1,Z37=1,AA37=1,AB37=1,AC37=1),1,IF(OR(D37=2,E37=2,F37=2,G37=2,H37=2,I37=2,J37=2,K37=2,L37=2,M37=2,N37=2,O37=2,P37=2,Q37=2,R37=2,S37=2,T37=2,U37=2,V37=2,W37=2,X37=2,Y37=2,Z37=2,AA37=2,AB37=2,AC37=2),2,IF(OR(D37=3,E37=3,F37=3,G37=3,H37=3,I37=3,J37=3,K37=3,L37=3,M37=3,N37=3,O37=3,P37=3,Q37=3,R37=3,S37=3,T37=3,U37=3,V37=3,W37=3,X37=3,Y37=3,Z37=3,AA37=3,AB37=3,AC37=3),3,IF(OR(D37="1 юн",E37="1 юн",F37="1 юн",G37="1 юн",H37="1 юн",I37="1 юн",J37="1 юн",K37="1 юн",L37="1 юн",M37="1 юн",N37="1 юн",O37="1 юн",P37="1 юн",Q37="1 юн",R37="1 юн",S37="1 юн",T37="1 юн",U37="1 юн",V37="1 юн",W37="1 юн",X37="1 юн",Y37="1 юн",Z37="1 юн",AA37="1 юн",AB37="1 юн",AC37="1 юн"),"1 юн",IF(OR(D37="юн",E37="юн",F37="юн",G37="юн",H37="юн",I37="юн",J37="юн",K37="юн",L37="юн",M37="юн",N37="юн",O37="юн",P37="юн",Q37="юн",R37="юн",S37="юн",T37="юн",U37="юн",V37="юн",W37="юн",X37="юн",Y37="юн",Z37="юн",AA37="юн",AB37="юн",AC37="юн"),"юн","б/р"))))))) -> 1 юн
A38: Германович Олег | B38: Гомельская обл. | C38: 1999 | AD38: =IF(OR(D38="МС",E38="МС",F38="МС",G38="МС",H38="МС",I38="МС",J38="МС",K38="МС",L38="МС",M38="МС",N38="МС",O38="МС",P38="МС",Q38="МС",R38="МС",S38="МС",T38="МС",U38="МС",V38="МС",W38="МС",X38="МС",Y38="МС",Z38="МС",AA38="МС",AB38="МС",AC38="МС"),"МС",IF(OR(D38="КМС",E38="КМС",F38="КМС",G38="КМС",H38="КМС",I38="КМС",J38="КМС",K38="КМС",L38="КМС",M38="КМС",N38="КМС",O38="КМС",P38="КМС",Q38="КМС",R38="КМС",S38="КМС",T38="КМС",U38="КМС",V38="КМС",W38="КМС",X38="КМС",Y38="КМС",Z38="КМС",AA38="КМС",AB38="КМС",AC38="КМС"),"КМС",IF(OR(D38=1,E38=1,F38=1,G38=1,H38=1,I38=1,J38=1,K38=1,L38=1,M38=1,N38=1,O38=1,P38=1,Q38=1,R38=1,S38=1,T38=1,U38=1,V38=1,W38=1,X38=1,Y38=1,Z38=1,AA38=1,AB38=1,AC38=1),1,IF(OR(D38=2,E38=2,F38=2,G38=2,H38=2,I38=2,J38=2,K38=2,L38=2,M38=2,N38=2,O38=2,P38=2,Q38=2,R38=2,S38=2,T38=2,U38=2,V38=2,W38=2,X38=2,Y38=2,Z38=2,AA38=2,AB38=2,AC38=2),2,IF(OR(D38=3,E38=3,F38=3,G38=3,H38=3,I38=3,J38=3,K38=3,L38=3,M38=3,N38=3,O38=3,P38=3,Q38=3,R38=3,S38=3,T38=3,U38=3,V38=3,W38=3,X38=3,Y38=3,Z38=3,AA38=3,AB38=3,AC38=3),3,IF(OR(D38="1 юн",E38="1 юн",F38="1 юн",G38="1 юн",H38="1 юн",I38="1 юн",J38="1 юн",K38="1 юн",L38="1 юн",M38="1 юн",N38="1 юн",O38="1 юн",P38="1 юн",Q38="1 юн",R38="1 юн",S38="1 юн",T38="1 юн",U38="1 юн",V38="1 юн",W38="1 юн",X38="1 юн",Y38="1 юн",Z38="1 юн",AA38="1 юн",AB38="1 юн",AC38="1 юн"),"1 юн",IF(OR(D38="юн",E38="юн",F38="юн",G38="юн",H38="юн",I38="юн",J38="юн",K38="юн",L38="юн",M38="юн",N38="юн",O38="юн",P38="юн",Q38="юн",R38="юн",S38="юн",T38="юн",U38="юн",V38="юн",W38="юн",X38="юн",Y38="юн",Z38="юн",AA38="юн",AB38="юн",AC38="юн"),"юн","б/р"))))))) -> б/р
A39: Главацкий Сергей | B39: Пуховичский р-н | C39: 1998 | D39: 3 | F39: 1 | AD39: =IF(OR(D39="МС",E39="МС",F39="МС",G39="МС",H39="МС",I39="МС",J39="МС",K39="МС",L39="МС",M39="МС",N39="МС",O39="МС",P39="МС",Q39="МС",R39="МС",S39="МС",T39="МС",U39="МС",V39="МС",W39="МС",X39="МС",Y39="МС",Z39="МС",AA39="МС",AB39="МС",AC39="МС"),"МС",IF(OR(D39="КМС",E39="КМС",F39="КМС",G39="КМС",H39="КМС",I39="КМС",J39="КМС",K39="КМС",L39="КМС",M39="КМС",N39="КМС",O39="КМС",P39="КМС",Q39="КМС",R39="КМС",S39="КМС",T39="КМС",U39="КМС",V39="КМС",W39="КМС",X39="КМС",Y39="КМС",Z39="КМС",AA39="КМС",AB39="КМС",AC39="КМС"),"КМС",IF(OR(D39=1,E39=1,F39=1,G39=1,H39=1,I39=1,J39=1,K39=1,L39=1,M39=1,N39=1,O39=1,P39=1,Q39=1,R39=1,S39=1,T39=1,U39=1,V39=1,W39=1,X39=1,Y39=1,Z39=1,AA39=1,AB39=1,AC39=1),1,IF(OR(D39=2,E39=2,F39=2,G39=2,H39=2,I39=2,J39=2,K39=2,L39=2,M39=2,N39=2,O39=2,P39=2,Q39=2,R39=2,S39=2,T39=2,U39=2,V39=2,W39=2,X39=2,Y39=2,Z39=2,AA39=2,AB39=2,AC39=2),2,IF(OR(D39=3,E39=3,F39=3,G39=3,H39=3,I39=3,J39=3,K39=3,L39=3,M39=3,N39=3,O39=3,P39=3,Q39=3,R39=3,S39=3,T39=3,U39=3,V39=3,W39=3,X39=3,Y39=3,Z39=3,AA39=3,AB39=3,AC39=3),3,IF(OR(D39="1 юн",E39="1 юн",F39="1 юн",G39="1 юн",H39="1 юн",I39="1 юн",J39="1 юн",K39="1 юн",L39="1 юн",M39="1 юн",N39="1 юн",O39="1 юн",P39="1 юн",Q39="1 юн",R39="1 юн",S39="1 юн",T39="1 юн",U39="1 юн",V39="1 юн",W39="1 юн",X39="1 юн",Y39="1 юн",Z39="1 юн",AA39="1 юн",AB39="1 юн",AC39="1 юн"),"1 юн",IF(OR(D39="юн",E39="юн",F39="юн",G39="юн",H39="юн",I39="юн",J39="юн",K39="юн",L39="юн",M39="юн",N39="юн",O39="юн",P39="юн",Q39="юн",R39="юн",S39="юн",T39="юн",U39="юн",V39="юн",W39="юн",X39="юн",Y39="юн",Z39="юн",AA39="юн",AB39="юн",AC39="юн"),"юн","б/р"))))))) -> 1
A40: Головач Алексей | B40: ГОЦТиКДиМ Гомель | C40: 2003 | M40: 1 юн | N40: 1 юн | AD40: =IF(OR(D40="МС",E40="МС",F40="МС",G40="МС",H40="МС",I40="МС",J40="МС",K40="МС",L40="МС",M40="МС",N40="МС",O40="МС",P40="МС",Q40="МС",R40="МС",S40="МС",T40="МС",U40="МС",V40="МС",W40="МС",X40="МС",Y40="МС",Z40="МС",AA40="МС",AB40="МС",AC40="МС"),"МС",IF(OR(D40="КМС",E40="КМС",F40="КМС",G40="КМС",H40="КМС",I40="КМС",J40="КМС",K40="КМС",L40="КМС",M40="КМС",N40="КМС",O40="КМС",P40="КМС",Q40="КМС",R40="КМС",S40="КМС",T40="КМС",U40="КМС",V40="КМС",W40="КМС",X40="КМС",Y40="КМС",Z40="КМС",AA40="КМС",AB40="КМС",AC40="КМС"),"КМС",IF(OR(D40=1,E40=1,F40=1,G40=1,H40=1,I40=1,J40=1,K40=1,L40=1,M40=1,N40=1,O40=1,P40=1,Q40=1,R40=1,S40=1,T40=1,U40=1,V40=1,W40=1,X40=1,Y40=1,Z40=1,AA40=1,AB40=1,AC40=1),1,IF(OR(D40=2,E40=2,F40=2,G40=2,H40=2,I40=2,J40=2,K40=2,L40=2,M40=2,N40=2,O40=2,P40=2,Q40=2,R40=2,S40=2,T40=2,U40=2,V40=2,W40=2,X40=2,Y40=2,Z40=2,AA40=2,AB40=2,AC40=2),2,IF(OR(D40=3,E40=3,F40=3,G40=3,H40=3,I40=3,J40=3,K40=3,L40=3,M40=3,N40=3,O40=3,P40=3,Q40=3,R40=3,S40=3,T40=3,U40=3,V40=3,W40=3,X40=3,Y40=3,Z40=3,AA40=3,AB40=3,AC40=3),3,IF(OR(D40="1 юн",E40="1 юн",F40="1 юн",G40="1 юн",H40="1 юн",I40="1 юн",J40="1 юн",K40="1 юн",L40="1 юн",M40="1 юн",N40="1 юн",O40="1 юн",P40="1 юн",Q40="1 юн",R40="1 юн",S40="1 юн",T40="1 юн",U40="1 юн",V40="1 юн",W40="1 юн",X40="1 юн",Y40="1 юн",Z40="1 юн",AA40="1 юн",AB40="1 юн",AC40="1 юн"),"1 юн",IF(OR(D40="юн",E40="юн",F40="юн",G40="юн",H40="юн",I40="юн",J40="юн",K40="юн",L40="юн",M40="юн",N40="юн",O40="юн",P40="юн",Q40="юн",R40="юн",S40="юн",T40="юн",U40="юн",V40="юн",W40="юн",X40="юн",Y40="юн",Z40="юн",AA40="юн",AB40="юн",AC40="юн"),"юн","б/р"))))))) -> 1 юн
A41: Голубев Денис | B41: Витебск | C41: 1994 | E41: КМС | AD41: =IF(OR(D41="МС",E41="МС",F41="МС",G41="МС",H41="МС",I41="МС",J41="МС",K41="МС",L41="МС",M41="МС",N41="МС",O41="МС",P41="МС",Q41="МС",R41="МС",S41="МС",T41="МС",U41="МС",V41="МС",W41="МС",X41="МС",Y41="МС",Z41="МС",AA41="МС",AB41="МС",AC41="МС"),"МС",IF(OR(D41="КМС",E41="КМС",F41="КМС",G41="КМС",H41="КМС",I41="КМС",J41="КМС",K41="КМС",L41="КМС",M41="КМС",N41="КМС",O41="КМС",P41="КМС",Q41="КМС",R41="КМС",S41="КМС",T41="КМС",U41="КМС",V41="КМС",W41="КМС",X41="КМС",Y41="КМС",Z41="КМС",AA41="КМС",AB41="КМС",AC41="КМС"),"КМС",IF(OR(D41=1,E41=1,F41=1,G41=1,H41=1,I41=1,J41=1,K41=1,L41=1,M41=1,N41=1,O41=1,P41=1,Q41=1,R41=1,S41=1,T41=1,U41=1,V41=1,W41=1,X41=1,Y41=1,Z41=1,AA41=1,AB41=1,AC41=1),1,IF(OR(D41=2,E41=2,F41=2,G41=2,H41=2,I41=2,J41=2,K41=2,L41=2,M41=2,N41=2,O41=2,P41=2,Q41=2,R41=2,S41=2,T41=2,U41=2,V41=2,W41=2,X41=2,Y41=2,Z41=2,AA41=2,AB41=2,AC41=2),2,IF(OR(D41=3,E41=3,F41=3,G41=3,H41=3,I41=3,J41=3,K41=3,L41=3,M41=3,N41=3,O41=3,P41=3,Q41=3,R41=3,S41=3,T41=3,U41=3,V41=3,W41=3,X41=3,Y41=3,Z41=3,AA41=3,AB41=3,AC41=3),3,IF(OR(D41="1 юн",E41="1 юн",F41="1 юн",G41="1 юн",H41="1 юн",I41="1 юн",J41="1 юн",K41="1 юн",L41="1 юн",M41="1 юн",N41="1 юн",O41="1 юн",P41="1 юн",Q41="1 юн",R41="1 юн",S41="1 юн",T41="1 юн",U41="1 юн",V41="1 юн",W41="1 юн",X41="1 юн",Y41="1 юн",Z41="1 юн",AA41="1 юн",AB41="1 юн",AC41="1 юн"),"1 юн",IF(OR(D41="юн",E41="юн",F41="юн",G41="юн",H41="юн",I41="юн",J41="юн",K41="юн",L41="юн",M41="юн",N41="юн",O41="юн",P41="юн",Q41="юн",R41="юн",S41="юн",T41="юн",U41="юн",V41="юн",W41="юн",X41="юн",Y41="юн",Z41="юн",AA41="юн",AB41="юн",AC41="юн"),"юн","б/р"))))))) -> КМС
A42: Голубев Сергей | B42: MinskOnsight Мн. | C42: 1985 | O42: 2 | AC42: 2 | AD42: =IF(OR(D42="МС",E42="МС",F42="МС",G42="МС",H42="МС",I42="МС",J42="МС",K42="МС",L42="МС",M42="МС",N42="МС",O42="МС",P42="МС",Q42="МС",R42="МС",S42="МС",T42="МС",U42="МС",V42="МС",W42="МС",X42="МС",Y42="МС",Z42="МС",AA42="МС",AB42="МС",AC42="МС"),"МС",IF(OR(D42="КМС",E42="КМС",F42="КМС",G42="КМС",H42="КМС",I42="КМС",J42="КМС",K42="КМС",L42="КМС",M42="КМС",N42="КМС",O42="КМС",P42="КМС",Q42="КМС",R42="КМС",S42="КМС",T42="КМС",U42="КМС",V42="КМС",W42="КМС",X42="КМС",Y42="КМС",Z42="КМС",AA42="КМС",AB42="КМС",AC42="КМС"),"КМС",IF(OR(D42=1,E42=1,F42=1,G42=1,H42=1,I42=1,J42=1,K42=1,L42=1,M42=1,N42=1,O42=1,P42=1,Q42=1,R42=1,S42=1,T42=1,U42=1,V42=1,W42=1,X42=1,Y42=1,Z42=1,AA42=1,AB42=1,AC42=1),1,IF(OR(D42=2,E42=2,F42=2,G42=2,H42=2,I42=2,J42=2,K42=2,L42=2,M42=2,N42=2,O42=2,P42=2,Q42=2,R42=2,S42=2,T42=2,U42=2,V42=2,W42=2,X42=2,Y42=2,Z42=2,AA42=2,AB42=2,AC42=2),2,IF(OR(D42=3,E42=3,F42=3,G42=3,H42=3,I42=3,J42=3,K42=3,L42=3,M42=3,N42=3,O42=3,P42=3,Q42=3,R42=3,S42=3,T42=3,U42=3,V42=3,W42=3,X42=3,Y42=3,Z42=3,AA42=3,AB42=3,AC42=3),3,IF(OR(D42="1 юн",E42="1 юн",F42="1 юн",G42="1 юн",H42="1 юн",I42="1 юн",J42="1 юн",K42="1 юн",L42="1 юн",M42="1 юн",N42="1 юн",O42="1 юн",P42="1 юн",Q42="1 юн",R42="1 юн",S42="1 юн",T42="1 юн",U42="1 юн",V42="1 юн",W42="1 юн",X42="1 юн",Y42="1 юн",Z42="1 юн",AA42="1 юн",AB42="1 юн",AC42="1 юн"),"1 юн",IF(OR(D42="юн",E42="юн",F42="юн",G42="юн",H42="юн",I42="юн",J42="юн",K42="юн",L42="юн",M42="юн",N42="юн",O42="юн",P42="юн",Q42="юн",R42="юн",S42="юн",T42="юн",U42="юн",V42="юн",W42="юн",X42="юн",Y42="юн",Z42="юн",AA42="юн",AB42="юн",AC42="юн"),"юн","б/р"))))))) -> 2
A43: Горбачевский Дмитрий | B43: Брестская область | C43: 1998 | AD43: =IF(OR(D43="МС",E43="МС",F43="МС",G43="МС",H43="МС",I43="МС",J43="МС",K43="МС",L43="МС",M43="МС",N43="МС",O43="МС",P43="МС",Q43="МС",R43="МС",S43="МС",T43="МС",U43="МС",V43="МС",W43="МС",X43="МС",Y43="МС",Z43="МС",AA43="МС",AB43="МС",AC43="МС"),"МС",IF(OR(D43="КМС",E43="КМС",F43="КМС",G43="КМС",H43="КМС",I43="КМС",J43="КМС",K43="КМС",L43="КМС",M43="КМС",N43="КМС",O43="КМС",P43="КМС",Q43="КМС",R43="КМС",S43="КМС",T43="КМС",U43="КМС",V43="КМС",W43="КМС",X43="КМС",Y43="КМС",Z43="КМС",AA43="КМС",AB43="КМС",AC43="КМС"),"КМС",IF(OR(D43=1,E43=1,F43=1,G43=1,H43=1,I43=1,J43=1,K43=1,L43=1,M43=1,N43=1,O43=1,P43=1,Q43=1,R43=1,S43=1,T43=1,U43=1,V43=1,W43=1,X43=1,Y43=1,Z43=1,AA43=1,AB43=1,AC43=1),1,IF(OR(D43=2,E43=2,F43=2,G43=2,H43=2,I43=2,J43=2,K43=2,L43=2,M43=2,N43=2,O43=2,P43=2,Q43=2,R43=2,S43=2,T43=2,U43=2,V43=2,W43=2,X43=2,Y43=2,Z43=2,AA43=2,AB43=2,AC43=2),2,IF(OR(D43=3,E43=3,F43=3,G43=3,H43=3,I43=3,J43=3,K43=3,L43=3,M43=3,N43=3,O43=3,P43=3,Q43=3,R43=3,S43=3,T43=3,U43=3,V43=3,W43=3,X43=3,Y43=3,Z43=3,AA43=3,AB43=3,AC43=3),3,IF(OR(D43="1 юн",E43="1 юн",F43="1 юн",G43="1 юн",H43="1 юн",I43="1 юн",J43="1 юн",K43="1 юн",L43="1 юн",M43="1 юн",N43="1 юн",O43="1 юн",P43="1 юн",Q43="1 юн",R43="1 юн",S43="1 юн",T43="1 юн",U43="1 юн",V43="1 юн",W43="1 юн",X43="1 юн",Y43="1 юн",Z43="1 юн",AA43="1 юн",AB43="1 юн",AC43="1 юн"),"1 юн",IF(OR(D43="юн",E43="юн",F43="юн",G43="юн",H43="юн",I43="юн",J43="юн",K43="юн",L43="юн",M43="юн",N43="юн",O43="юн",P43="юн",Q43="юн",R43="юн",S43="юн",T43="юн",U43="юн",V43="юн",W43="юн",X43="юн",Y43="юн",Z43="юн",AA43="юн",AB43="юн",AC43="юн"),"юн","б/р"))))))) -> б/р
A44: Граменицкий Игорь | B44: РЦЭК | C44: 2006 | T44: юн | X44: юн | AD44: =IF(OR(D44="МС",E44="МС",F44="МС",G44="МС",H44="МС",I44="МС",J44="МС",K44="МС",L44="МС",M44="МС",N44="МС",O44="МС",P44="МС",Q44="МС",R44="МС",S44="МС",T44="МС",U44="МС",V44="МС",W44="МС",X44="МС",Y44="МС",Z44="МС",AA44="МС",AB44="МС",AC44="МС"),"МС",IF(OR(D44="КМС",E44="КМС",F44="КМС",G44="КМС",H44="КМС",I44="КМС",J44="КМС",K44="КМС",L44="КМС",M44="КМС",N44="КМС",O44="КМС",P44="КМС",Q44="КМС",R44="КМС",S44="КМС",T44="КМС",U44="КМС",V44="КМС",W44="КМС",X44="КМС",Y44="КМС",Z44="КМС",AA44="КМС",AB44="КМС",AC44="КМС"),"КМС",IF(OR(D44=1,E44=1,F44=1,G44=1,H44=1,I44=1,J44=1,K44=1,L44=1,M44=1,N44=1,O44=1,P44=1,Q44=1,R44=1,S44=1,T44=1,U44=1,V44=1,W44=1,X44=1,Y44=1,Z44=1,AA44=1,AB44=1,AC44=1),1,IF(OR(D44=2,E44=2,F44=2,G44=2,H44=2,I44=2,J44=2,K44=2,L44=2,M44=2,N44=2,O44=2,P44=2,Q44=2,R44=2,S44=2,T44=2,U44=2,V44=2,W44=2,X44=2,Y44=2,Z44=2,AA44=2,AB44=2,AC44=2),2,IF(OR(D44=3,E44=3,F44=3,G44=3,H44=3,I44=3,J44=3,K44=3,L44=3,M44=3,N44=3,O44=3,P44=3,Q44=3,R44=3,S44=3,T44=3,U44=3,V44=3,W44=3,X44=3,Y44=3,Z44=3,AA44=3,AB44=3,AC44=3),3,IF(OR(D44="1 юн",E44="1 юн",F44="1 юн",G44="1 юн",H44="1 юн",I44="1 юн",J44="1 юн",K44="1 юн",L44="1 юн",M44="1 юн",N44="1 юн",O44="1 юн",P44="1 юн",Q44="1 юн",R44="1 юн",S44="1 юн",T44="1 юн",U44="1 юн",V44="1 юн",W44="1 юн",X44="1 юн",Y44="1 юн",Z44="1 юн",AA44="1 юн",AB44="1 юн",AC44="1 юн"),"1 юн",IF(OR(D44="юн",E44="юн",F44="юн",G44="юн",H44="юн",I44="юн",J44="юн",K44="юн",L44="юн",M44="юн",N44="юн",O44="юн",P44="юн",Q44="юн",R44="юн",S44="юн",T44="юн",U44="юн",V44="юн",W44="юн",X44="юн",Y44="юн",Z44="юн",AA44="юн",AB44="юн",AC44="юн"),"юн","б/р"))))))) -> юн
A45: Грибовский Павел | B45: Бобруйск | C45: 1885 | G45: КМС | O45: 2 | P45: 1 | AD45: =IF(OR(D45="МС",E45="МС",F45="МС",G45="МС",H45="МС",I45="МС",J45="МС",K45="МС",L45="МС",M45="МС",N45="МС",O45="МС",P45="МС",Q45="МС",R45="МС",S45="МС",T45="МС",U45="МС",V45="МС",W45="МС",X45="МС",Y45="МС",Z45="МС",AA45="МС",AB45="МС",AC45="МС"),"МС",IF(OR(D45="КМС",E45="КМС",F45="КМС",G45="КМС",H45="КМС",I45="КМС",J45="КМС",K45="КМС",L45="КМС",M45="КМС",N45="КМС",O45="КМС",P45="КМС",Q45="КМС",R45="КМС",S45="КМС",T45="КМС",U45="КМС",V45="КМС",W45="КМС",X45="КМС",Y45="КМС",Z45="КМС",AA45="КМС",AB45="КМС",AC45="КМС"),"КМС",IF(OR(D45=1,E45=1,F45=1,G45=1,H45=1,I45=1,J45=1,K45=1,L45=1,M45=1,N45=1,O45=1,P45=1,Q45=1,R45=1,S45=1,T45=1,U45=1,V45=1,W45=1,X45=1,Y45=1,Z45=1,AA45=1,AB45=1,AC45=1),1,IF(OR(D45=2,E45=2,F45=2,G45=2,H45=2,I45=2,J45=2,K45=2,L45=2,M45=2,N45=2,O45=2,P45=2,Q45=2,R45=2,S45=2,T45=2,U45=2,V45=2,W45=2,X45=2,Y45=2,Z45=2,AA45=2,AB45=2,AC45=2),2,IF(OR(D45=3,E45=3,F45=3,G45=3,H45=3,I45=3,J45=3,K45=3,L45=3,M45=3,N45=3,O45=3,P45=3,Q45=3,R45=3,S45=3,T45=3,U45=3,V45=3,W45=3,X45=3,Y45=3,Z45=3,AA45=3,AB45=3,AC45=3),3,IF(OR(D45="1 юн",E45="1 юн",F45="1 юн",G45="1 юн",H45="1 юн",I45="1 юн",J45="1 юн",K45="1 юн",L45="1 юн",M45="1 юн",N45="1 юн",O45="1 юн",P45="1 юн",Q45="1 юн",R45="1 юн",S45="1 юн",T45="1 юн",U45="1 юн",V45="1 юн",W45="1 юн",X45="1 юн",Y45="1 юн",Z45="1 юн",AA45="1 юн",AB45="1 юн",AC45="1 юн"),"1 юн",IF(OR(D45="юн",E45="юн",F45="юн",G45="юн",H45="юн",I45="юн",J45="юн",K45="юн",L45="юн",M45="юн",N45="юн",O45="юн",P45="юн",Q45="юн",R45="юн",S45="юн",T45="юн",U45="юн",V45="юн",W45="юн",X45="юн",Y45="юн",Z45="юн",AA45="юн",AB45="юн",AC45="юн"),"юн","б/р"))))))) -> КМС
A46: Гришанов Григорий | B46: РЦЭК | C46: 2003 | H46: юн | I46: 1 юн | J46: 1 юн | AA46: 1 юн | AB46: юн | AD46: =IF(OR(D46="МС",E46="МС",F46="МС",G46="МС",H46="МС",I46="МС",J46="МС",K46="МС",L46="МС",M46="МС",N46="МС",O46="МС",P46="МС",Q46="МС",R46="МС",S46="МС",T46="МС",U46="МС",V46="МС",W46="МС",X46="МС",Y46="МС",Z46="МС",AA46="МС",AB46="МС",AC46="МС"),"МС",IF(OR(D46="КМС",E46="КМС",F46="КМС",G46="КМС",H46="КМС",I46="КМС",J46="КМС",K46="КМС",L46="КМС",M46="КМС",N46="КМС",O46="КМС",P46="КМС",Q46="КМС",R46="КМС",S46="КМС",T46="КМС",U46="КМС",V46="КМС",W46="КМС",X46="КМС",Y46="КМС",Z46="КМС",AA46="КМС",AB46="КМС",AC46="КМС"),"КМС",IF(OR(D46=1,E46=1,F46=1,G46=1,H46=1,I46=1,J46=1,K46=1,L46=1,M46=1,N46=1,O46=1,P46=1,Q46=1,R46=1,S46=1,T46=1,U46=1,V46=1,W46=1,X46=1,Y46=1,Z46=1,AA46=1,AB46=1,AC46=1),1,IF(OR(D46=2,E46=2,F46=2,G46=2,H46=2,I46=2,J46=2,K46=2,L46=2,M46=2,N46=2,O46=2,P46=2,Q46=2,R46=2,S46=2,T46=2,U46=2,V46=2,W46=2,X46=2,Y46=2,Z46=2,AA46=2,AB46=2,AC46=2),2,IF(OR(D46=3,E46=3,F46=3,G46=3,H46=3,I46=3,J46=3,K46=3,L46=3,M46=3,N46=3,O46=3,P46=3,Q46=3,R46=3,S46=3,T46=3,U46=3,V46=3,W46=3,X46=3,Y46=3,Z46=3,AA46=3,AB46=3,AC46=3),3,IF(OR(D46="1 юн",E46="1 юн",F46="1 юн",G46="1 юн",H46="1 юн",I46="1 юн",J46="1 юн",K46="1 юн",L46="1 юн",M46="1 юн",N46="1 юн",O46="1 юн",P46="1 юн",Q46="1 юн",R46="1 юн",S46="1 юн",T46="1 юн",U46="1 юн",V46="1 юн",W46="1 юн",X46="1 юн",Y46="1 юн",Z46="1 юн",AA46="1 юн",AB46="1 юн",AC46="1 юн"),"1 юн",IF(OR(D46="юн",E46="юн",F46="юн",G46="юн",H46="юн",I46="юн",J46="юн",K46="юн",L46="юн",M46="юн",N46="юн",O46="юн",P46="юн",Q46="юн",R46="юн",S46="юн",T46="юн",U46="юн",V46="юн",W46="юн",X46="юн",Y46="юн",Z46="юн",AA46="юн",AB46="юн",AC46="юн"),"юн","б/р"))))))) -> 1 юн
A47: Гурков Тимофей | B47: РЦЭК | C47: 2006 | X47: юн | AD47: =IF(OR(D47="МС",E47="МС",F47="МС",G47="МС",H47="МС",I47="МС",J47="МС",K47="МС",L47="МС",M47="МС",N47="МС",O47="МС",P47="МС",Q47="МС",R47="МС",S47="МС",T47="МС",U47="МС",V47="МС",W47="МС",X47="МС",Y47="МС",Z47="МС",AA47="МС",AB47="МС",AC47="МС"),"МС",IF(OR(D47="КМС",E47="КМС",F47="КМС",G47="КМС",H47="КМС",I47="КМС",J47="КМС",K47="КМС",L47="КМС",M47="КМС",N47="КМС",O47="КМС",P47="КМС",Q47="КМС",R47="КМС",S47="КМС",T47="КМС",U47="КМС",V47="КМС",W47="КМС",X47="КМС",Y47="КМС",Z47="КМС",AA47="КМС",AB47="КМС",AC47="КМС"),"КМС",IF(OR(D47=1,E47=1,F47=1,G47=1,H47=1,I47=1,J47=1,K47=1,L47=1,M47=1,N47=1,O47=1,P47=1,Q47=1,R47=1,S47=1,T47=1,U47=1,V47=1,W47=1,X47=1,Y47=1,Z47=1,AA47=1,AB47=1,AC47=1),1,IF(OR(D47=2,E47=2,F47=2,G47=2,H47=2,I47=2,J47=2,K47=2,L47=2,M47=2,N47=2,O47=2,P47=2,Q47=2,R47=2,S47=2,T47=2,U47=2,V47=2,W47=2,X47=2,Y47=2,Z47=2,AA47=2,AB47=2,AC47=2),2,IF(OR(D47=3,E47=3,F47=3,G47=3,H47=3,I47=3,J47=3,K47=3,L47=3,M47=3,N47=3,O47=3,P47=3,Q47=3,R47=3,S47=3,T47=3,U47=3,V47=3,W47=3,X47=3,Y47=3,Z47=3,AA47=3,AB47=3,AC47=3),3,IF(OR(D47="1 юн",E47="1 юн",F47="1 юн",G47="1 юн",H47="1 юн",I47="1 юн",J47="1 юн",K47="1 юн",L47="1 юн",M47="1 юн",N47="1 юн",O47="1 юн",P47="1 юн",Q47="1 юн",R47="1 юн",S47="1 юн",T47="1 юн",U47="1 юн",V47="1 юн",W47="1 юн",X47="1 юн",Y47="1 юн",Z47="1 юн",AA47="1 юн",AB47="1 юн",AC47="1 юн"),"1 юн",IF(OR(D47="юн",E47="юн",F47="юн",G47="юн",H47="юн",I47="юн",J47="юн",K47="юн",L47="юн",M47="юн",N47="юн",O47="юн",P47="юн",Q47="юн",R47="юн",S47="юн",T47="юн",U47="юн",V47="юн",W47="юн",X47="юн",Y47="юн",Z47="юн",AA47="юн",AB47="юн",AC47="юн"),"юн","б/р"))))))) -> юн
A48: Гусев Дмитрий | B48: ДЮСШ «Омега» Гом. | C48: 2003 | H48: 3 | M48: 1 юн | N48: 1 юн | X48: юн | AA48: юн | AB48: 1 юн | AD48: =IF(OR(D48="МС",E48="МС",F48="МС",G48="МС",H48="МС",I48="МС",J48="МС",K48="МС",L48="МС",M48="МС",N48="МС",O48="МС",P48="МС",Q48="МС",R48="МС",S48="МС",T48="МС",U48="МС",V48="МС",W48="МС",X48="МС",Y48="МС",Z48="МС",AA48="МС",AB48="МС",AC48="МС"),"МС",IF(OR(D48="КМС",E48="КМС",F48="КМС",G48="КМС",H48="КМС",I48="КМС",J48="КМС",K48="КМС",L48="КМС",M48="КМС",N48="КМС",O48="КМС",P48="КМС",Q48="КМС",R48="КМС",S48="КМС",T48="КМС",U48="КМС",V48="КМС",W48="КМС",X48="КМС",Y48="КМС",Z48="КМС",AA48="КМС",AB48="КМС",AC48="КМС"),"КМС",IF(OR(D48=1,E48=1,F48=1,G48=1,H48=1,I48=1,J48=1,K48=1,L48=1,M48=1,N48=1,O48=1,P48=1,Q48=1,R48=1,S48=1,T48=1,U48=1,V48=1,W48=1,X48=1,Y48=1,Z48=1,AA48=1,AB48=1,AC48=1),1,IF(OR(D48=2,E48=2,F48=2,G48=2,H48=2,I48=2,J48=2,K48=2,L48=2,M48=2,N48=2,O48=2,P48=2,Q48=2,R48=2,S48=2,T48=2,U48=2,V48=2,W48=2,X48=2,Y48=2,Z48=2,AA48=2,AB48=2,AC48=2),2,IF(OR(D48=3,E48=3,F48=3,G48=3,H48=3,I48=3,J48=3,K48=3,L48=3,M48=3,N48=3,O48=3,P48=3,Q48=3,R48=3,S48=3,T48=3,U48=3,V48=3,W48=3,X48=3,Y48=3,Z48=3,AA48=3,AB48=3,AC48=3),3,IF(OR(D48="1 юн",E48="1 юн",F48="1 юн",G48="1 юн",H48="1 юн",I48="1 юн",J48="1 юн",K48="1 юн",L48="1 юн",M48="1 юн",N48="1 юн",O48="1 юн",P48="1 юн",Q48="1 юн",R48="1 юн",S48="1 юн",T48="1 юн",U48="1 юн",V48="1 юн",W48="1 юн",X48="1 юн",Y48="1 юн",Z48="1 юн",AA48="1 юн",AB48="1 юн",AC48="1 юн"),"1 юн",IF(OR(D48="юн",E48="юн",F48="юн",G48="юн",H48="юн",I48="юн",J48="юн",K48="юн",L48="юн",M48="юн",N48="юн",O48="юн",P48="юн",Q48="юн",R48="юн",S48="юн",T48="юн",U48="юн",V48="юн",W48="юн",X48="юн",Y48="юн",Z48="юн",AA48="юн",AB48="юн",AC48="юн"),"юн","б/р"))))))) -> 3
A49: Гутиков Роман | B49: Орша | C49: 1989 | G49: 1 | AC49: 2 | AD49: =IF(OR(D49="МС",E49="МС",F49="МС",G49="МС",H49="МС",I49="МС",J49="МС",K49="МС",L49="МС",M49="МС",N49="МС",O49="МС",P49="МС",Q49="МС",R49="МС",S49="МС",T49="МС",U49="МС",V49="МС",W49="МС",X49="МС",Y49="МС",Z49="МС",AA49="МС",AB49="МС",AC49="МС"),"МС",IF(OR(D49="КМС",E49="КМС",F49="КМС",G49="КМС",H49="КМС",I49="КМС",J49="КМС",K49="КМС",L49="КМС",M49="КМС",N49="КМС",O49="КМС",P49="КМС",Q49="КМС",R49="КМС",S49="КМС",T49="КМС",U49="КМС",V49="КМС",W49="КМС",X49="КМС",Y49="КМС",Z49="КМС",AA49="КМС",AB49="КМС",AC49="КМС"),"КМС",IF(OR(D49=1,E49=1,F49=1,G49=1,H49=1,I49=1,J49=1,K49=1,L49=1,M49=1,N49=1,O49=1,P49=1,Q49=1,R49=1,S49=1,T49=1,U49=1,V49=1,W49=1,X49=1,Y49=1,Z49=1,AA49=1,AB49=1,AC49=1),1,IF(OR(D49=2,E49=2,F49=2,G49=2,H49=2,I49=2,J49=2,K49=2,L49=2,M49=2,N49=2,O49=2,P49=2,Q49=2,R49=2,S49=2,T49=2,U49=2,V49=2,W49=2,X49=2,Y49=2,Z49=2,AA49=2,AB49=2,AC49=2),2,IF(OR(D49=3,E49=3,F49=3,G49=3,H49=3,I49=3,J49=3,K49=3,L49=3,M49=3,N49=3,O49=3,P49=3,Q49=3,R49=3,S49=3,T49=3,U49=3,V49=3,W49=3,X49=3,Y49=3,Z49=3,AA49=3,AB49=3,AC49=3),3,IF(OR(D49="1 юн",E49="1 юн",F49="1 юн",G49="1 юн",H49="1 юн",I49="1 юн",J49="1 юн",K49="1 юн",L49="1 юн",M49="1 юн",N49="1 юн",O49="1 юн",P49="1 юн",Q49="1 юн",R49="1 юн",S49="1 юн",T49="1 юн",U49="1 юн",V49="1 юн",W49="1 юн",X49="1 юн",Y49="1 юн",Z49="1 юн",AA49="1 юн",AB49="1 юн",AC49="1 юн"),"1 юн",IF(OR(D49="юн",E49="юн",F49="юн",G49="юн",H49="юн",I49="юн",J49="юн",K49="юн",L49="юн",M49="юн",N49="юн",O49="юн",P49="юн",Q49="юн",R49="юн",S49="юн",T49="юн",U49="юн",V49="юн",W49="юн",X49="юн",Y49="юн",Z49="юн",AA49="юн",AB49="юн",AC49="юн"),"юн","б/р"))))))) -> 1
A50: Давыдов Денис | B50: Минск | C50: 2000 | D50: 2 | E50: юн | F50: 1 | G50: 2 | K50: 2 | L50: 1 | O50: 2 | Q50: 2 | AA50: юн | AB50: 2 | AD50: =IF(OR(D50="МС",E50="МС",F50="МС",G50="МС",H50="МС",I50="МС",J50="МС",K50="МС",L50="МС",M50="МС",N50="МС",O50="МС",P50="МС",Q50="МС",R50="МС",S50="МС",T50="МС",U50="МС",V50="МС",W50="МС",X50="МС",Y50="МС",Z50="МС",AA50="МС",AB50="МС",AC50="МС"),"МС",IF(OR(D50="КМС",E50="КМС",F50="КМС",G50="КМС",H50="КМС",I50="КМС",J50="КМС",K50="КМС",L50="КМС",M50="КМС",N50="КМС",O50="КМС",P50="КМС",Q50="КМС",R50="КМС",S50="КМС",T50="КМС",U50="КМС",V50="КМС",W50="КМС",X50="КМС",Y50="КМС",Z50="КМС",AA50="КМС",AB50="КМС",AC50="КМС"),"КМС",IF(OR(D50=1,E50=1,F50=1,G50=1,H50=1,I50=1,J50=1,K50=1,L50=1,M50=1,N50=1,O50=1,P50=1,Q50=1,R50=1,S50=1,T50=1,U50=1,V50=1,W50=1,X50=1,Y50=1,Z50=1,AA50=1,AB50=1,AC50=1),1,IF(OR(D50=2,E50=2,F50=2,G50=2,H50=2,I50=2,J50=2,K50=2,L50=2,M50=2,N50=2,O50=2,P50=2,Q50=2,R50=2,S50=2,T50=2,U50=2,V50=2,W50=2,X50=2,Y50=2,Z50=2,AA50=2,AB50=2,AC50=2),2,IF(OR(D50=3,E50=3,F50=3,G50=3,H50=3,I50=3,J50=3,K50=3,L50=3,M50=3,N50=3,O50=3,P50=3,Q50=3,R50=3,S50=3,T50=3,U50=3,V50=3,W50=3,X50=3,Y50=3,Z50=3,AA50=3,AB50=3,AC50=3),3,IF(OR(D50="1 юн",E50="1 юн",F50="1 юн",G50="1 юн",H50="1 юн",I50="1 юн",J50="1 юн",K50="1 юн",L50="1 юн",M50="1 юн",N50="1 юн",O50="1 юн",P50="1 юн",Q50="1 юн",R50="1 юн",S50="1 юн",T50="1 юн",U50="1 юн",V50="1 юн",W50="1 юн",X50="1 юн",Y50="1 юн",Z50="1 юн",AA50="1 юн",AB50="1 юн",AC50="1 юн"),"1 юн",IF(OR(D50="юн",E50="юн",F50="юн",G50="юн",H50="юн",I50="юн",J50="юн",K50="юн",L50="юн",M50="юн",N50="юн",O50="юн",P50="юн",Q50="юн",R50="юн",S50="юн",T50="юн",U50="юн",V50="юн",W50="юн",X50="юн",Y50="юн",Z50="юн",AA50="юн",AB50="юн",AC50="юн"),"юн","б/р"))))))) -> 1
A51: Даниленко Ярослав | B51: ГОЦТиКДиМ Гомель | C51: 2001 | AD51: =IF(OR(D51="МС",E51="МС",F51="МС",G51="МС",H51="МС",I51="МС",J51="МС",K51="МС",L51="МС",M51="МС",N51="МС",O51="МС",P51="МС",Q51="МС",R51="МС",S51="МС",T51="МС",U51="МС",V51="МС",W51="МС",X51="МС",Y51="МС",Z51="МС",AA51="МС",AB51="МС",AC51="МС"),"МС",IF(OR(D51="КМС",E51="КМС",F51="КМС",G51="КМС",H51="КМС",I51="КМС",J51="КМС",K51="КМС",L51="КМС",M51="КМС",N51="КМС",O51="КМС",P51="КМС",Q51="КМС",R51="КМС",S51="КМС",T51="КМС",U51="КМС",V51="КМС",W51="КМС",X51="КМС",Y51="КМС",Z51="КМС",AA51="КМС",AB51="КМС",AC51="КМС"),"КМС",IF(OR(D51=1,E51=1,F51=1,G51=1,H51=1,I51=1,J51=1,K51=1,L51=1,M51=1,N51=1,O51=1,P51=1,Q51=1,R51=1,S51=1,T51=1,U51=1,V51=1,W51=1,X51=1,Y51=1,Z51=1,AA51=1,AB51=1,AC51=1),1,IF(OR(D51=2,E51=2,F51=2,G51=2,H51=2,I51=2,J51=2,K51=2,L51=2,M51=2,N51=2,O51=2,P51=2,Q51=2,R51=2,S51=2,T51=2,U51=2,V51=2,W51=2,X51=2,Y51=2,Z51=2,AA51=2,AB51=2,AC51=2),2,IF(OR(D51=3,E51=3,F51=3,G51=3,H51=3,I51=3,J51=3,K51=3,L51=3,M51=3,N51=3,O51=3,P51=3,Q51=3,R51=3,S51=3,T51=3,U51=3,V51=3,W51=3,X51=3,Y51=3,Z51=3,AA51=3,AB51=3,AC51=3),3,IF(OR(D51="1 юн",E51="1 юн",F51="1 юн",G51="1 юн",H51="1 юн",I51="1 юн",J51="1 юн",K51="1 юн",L51="1 юн",M51="1 юн",N51="1 юн",O51="1 юн",P51="1 юн",Q51="1 юн",R51="1 юн",S51="1 юн",T51="1 юн",U51="1 юн",V51="1 юн",W51="1 юн",X51="1 юн",Y51="1 юн",Z51="1 юн",AA51="1 юн",AB51="1 юн",AC51="1 юн"),"1 юн",IF(OR(D51="юн",E51="юн",F51="юн",G51="юн",H51="юн",I51="юн",J51="юн",K51="юн",L51="юн",M51="юн",N51="юн",O51="юн",P51="юн",Q51="юн",R51="юн",S51="юн",T51="юн",U51="юн",V51="юн",W51="юн",X51="юн",Y51="юн",Z51="юн",AA51="юн",AB51="юн",AC51="юн"),"юн","б/р"))))))) -> б/р
A52: Демешко Александр | B52: Хан-Тенгри | C52: 1994 | Q52: 1 | AC52: 2 | AD52: =IF(OR(D52="МС",E52="МС",F52="МС",G52="МС",H52="МС",I52="МС",J52="МС",K52="МС",L52="МС",M52="МС",N52="МС",O52="МС",P52="МС",Q52="МС",R52="МС",S52="МС",T52="МС",U52="МС",V52="МС",W52="МС",X52="МС",Y52="МС",Z52="МС",AA52="МС",AB52="МС",AC52="МС"),"МС",IF(OR(D52="КМС",E52="КМС",F52="КМС",G52="КМС",H52="КМС",I52="КМС",J52="КМС",K52="КМС",L52="КМС",M52="КМС",N52="КМС",O52="КМС",P52="КМС",Q52="КМС",R52="КМС",S52="КМС",T52="КМС",U52="КМС",V52="КМС",W52="КМС",X52="КМС",Y52="КМС",Z52="КМС",AA52="КМС",AB52="КМС",AC52="КМС"),"КМС",IF(OR(D52=1,E52=1,F52=1,G52=1,H52=1,I52=1,J52=1,K52=1,L52=1,M52=1,N52=1,O52=1,P52=1,Q52=1,R52=1,S52=1,T52=1,U52=1,V52=1,W52=1,X52=1,Y52=1,Z52=1,AA52=1,AB52=1,AC52=1),1,IF(OR(D52=2,E52=2,F52=2,G52=2,H52=2,I52=2,J52=2,K52=2,L52=2,M52=2,N52=2,O52=2,P52=2,Q52=2,R52=2,S52=2,T52=2,U52=2,V52=2,W52=2,X52=2,Y52=2,Z52=2,AA52=2,AB52=2,AC52=2),2,IF(OR(D52=3,E52=3,F52=3,G52=3,H52=3,I52=3,J52=3,K52=3,L52=3,M52=3,N52=3,O52=3,P52=3,Q52=3,R52=3,S52=3,T52=3,U52=3,V52=3,W52=3,X52=3,Y52=3,Z52=3,AA52=3,AB52=3,AC52=3),3,IF(OR(D52="1 юн",E52="1 юн",F52="1 юн",G52="1 юн",H52="1 юн",I52="1 юн",J52="1 юн",K52="1 юн",L52="1 юн",M52="1 юн",N52="1 юн",O52="1 юн",P52="1 юн",Q52="1 юн",R52="1 юн",S52="1 юн",T52="1 юн",U52="1 юн",V52="1 юн",W52="1 юн",X52="1 юн",Y52="1 юн",Z52="1 юн",AA52="1 юн",AB52="1 юн",AC52="1 юн"),"1 юн",IF(OR(D52="юн",E52="юн",F52="юн",G52="юн",H52="юн",I52="юн",J52="юн",K52="юн",L52="юн",M52="юн",N52="юн",O52="юн",P52="юн",Q52="юн",R52="юн",S52="юн",T52="юн",U52="юн",V52="юн",W52="юн",X52="юн",Y52="юн",Z52="юн",AA52="юн",AB52="юн",AC52="юн"),"юн","б/р"))))))) -> 1
A53: Демешко Кирилл | B53: г. Минск | C53: 1996 | AD53: =IF(OR(D53="МС",E53="МС",F53="МС",G53="МС",H53="МС",I53="МС",J53="МС",K53="МС",L53="МС",M53="МС",N53="МС",O53="МС",P53="МС",Q53="МС",R53="МС",S53="МС",T53="МС",U53="МС",V53="МС",W53="МС",X53="МС",Y53="МС",Z53="МС",AA53="МС",AB53="МС",AC53="МС"),"МС",IF(OR(D53="КМС",E53="КМС",F53="КМС",G53="КМС",H53="КМС",I53="КМС",J53="КМС",K53="КМС",L53="КМС",M53="КМС",N53="КМС",O53="КМС",P53="КМС",Q53="КМС",R53="КМС",S53="КМС",T53="КМС",U53="КМС",V53="КМС",W53="КМС",X53="КМС",Y53="КМС",Z53="КМС",AA53="КМС",AB53="КМС",AC53="КМС"),"КМС",IF(OR(D53=1,E53=1,F53=1,G53=1,H53=1,I53=1,J53=1,K53=1,L53=1,M53=1,N53=1,O53=1,P53=1,Q53=1,R53=1,S53=1,T53=1,U53=1,V53=1,W53=1,X53=1,Y53=1,Z53=1,AA53=1,AB53=1,AC53=1),1,IF(OR(D53=2,E53=2,F53=2,G53=2,H53=2,I53=2,J53=2,K53=2,L53=2,M53=2,N53=2,O53=2,P53=2,Q53=2,R53=2,S53=2,T53=2,U53=2,V53=2,W53=2,X53=2,Y53=2,Z53=2,AA53=2,AB53=2,AC53=2),2,IF(OR(D53=3,E53=3,F53=3,G53=3,H53=3,I53=3,J53=3,K53=3,L53=3,M53=3,N53=3,O53=3,P53=3,Q53=3,R53=3,S53=3,T53=3,U53=3,V53=3,W53=3,X53=3,Y53=3,Z53=3,AA53=3,AB53=3,AC53=3),3,IF(OR(D53="1 юн",E53="1 юн",F53="1 юн",G53="1 юн",H53="1 юн",I53="1 юн",J53="1 юн",K53="1 юн",L53="1 юн",M53="1 юн",N53="1 юн",O53="1 юн",P53="1 юн",Q53="1 юн",R53="1 юн",S53="1 юн",T53="1 юн",U53="1 юн",V53="1 юн",W53="1 юн",X53="1 юн",Y53="1 юн",Z53="1 юн",AA53="1 юн",AB53="1 юн",AC53="1 юн"),"1 юн",IF(OR(D53="юн",E53="юн",F53="юн",G53="юн",H53="юн",I53="юн",J53="юн",K53="юн",L53="юн",M53="юн",N53="юн",O53="юн",P53="юн",Q53="юн",R53="юн",S53="юн",T53="юн",U53="юн",V53="юн",W53="юн",X53="юн",Y53="юн",Z53="юн",AA53="юн",AB53="юн",AC53="юн"),"юн","б/р"))))))) -> б/р
A54: Демещенко Александр | B54: Брестская область | C54: 2001 | F54: 2 | P54: 2 | Q54: 3 | AA54: юн | AB54: юн | AD54: =IF(OR(D54="МС",E54="МС",F54="МС",G54="МС",H54="МС",I54="МС",J54="МС",K54="МС",L54="МС",M54="МС",N54="МС",O54="МС",P54="МС",Q54="МС",R54="МС",S54="МС",T54="МС",U54="МС",V54="МС",W54="МС",X54="МС",Y54="МС",Z54="МС",AA54="МС",AB54="МС",AC54="МС"),"МС",IF(OR(D54="КМС",E54="КМС",F54="КМС",G54="КМС",H54="КМС",I54="КМС",J54="КМС",K54="КМС",L54="КМС",M54="КМС",N54="КМС",O54="КМС",P54="КМС",Q54="КМС",R54="КМС",S54="КМС",T54="КМС",U54="КМС",V54="КМС",W54="КМС",X54="КМС",Y54="КМС",Z54="КМС",AA54="КМС",AB54="КМС",AC54="КМС"),"КМС",IF(OR(D54=1,E54=1,F54=1,G54=1,H54=1,I54=1,J54=1,K54=1,L54=1,M54=1,N54=1,O54=1,P54=1,Q54=1,R54=1,S54=1,T54=1,U54=1,V54=1,W54=1,X54=1,Y54=1,Z54=1,AA54=1,AB54=1,AC54=1),1,IF(OR(D54=2,E54=2,F54=2,G54=2,H54=2,I54=2,J54=2,K54=2,L54=2,M54=2,N54=2,O54=2,P54=2,Q54=2,R54=2,S54=2,T54=2,U54=2,V54=2,W54=2,X54=2,Y54=2,Z54=2,AA54=2,AB54=2,AC54=2),2,IF(OR(D54=3,E54=3,F54=3,G54=3,H54=3,I54=3,J54=3,K54=3,L54=3,M54=3,N54=3,O54=3,P54=3,Q54=3,R54=3,S54=3,T54=3,U54=3,V54=3,W54=3,X54=3,Y54=3,Z54=3,AA54=3,AB54=3,AC54=3),3,IF(OR(D54="1 юн",E54="1 юн",F54="1 юн",G54="1 юн",H54="1 юн",I54="1 юн",J54="1 юн",K54="1 юн",L54="1 юн",M54="1 юн",N54="1 юн",O54="1 юн",P54="1 юн",Q54="1 юн",R54="1 юн",S54="1 юн",T54="1 юн",U54="1 юн",V54="1 юн",W54="1 юн",X54="1 юн",Y54="1 юн",Z54="1 юн",AA54="1 юн",AB54="1 юн",AC54="1 юн"),"1 юн",IF(OR(D54="юн",E54="юн",F54="юн",G54="юн",H54="юн",I54="юн",J54="юн",K54="юн",L54="юн",M54="юн",N54="юн",O54="юн",P54="юн",Q54="юн",R54="юн",S54="юн",T54="юн",U54="юн",V54="юн",W54="юн",X54="юн",Y54="юн",Z54="юн",AA54="юн",AB54="юн",AC54="юн"),"юн","б/р"))))))) -> 2
A55: Демидович Алексей | B55: Пуховичский р-н | C55: 2000 | P55: 1 юн | AD55: =IF(OR(D55="МС",E55="МС",F55="МС",G55="МС",H55="МС",I55="МС",J55="МС",K55="МС",L55="МС",M55="МС",N55="МС",O55="МС",P55="МС",Q55="МС",R55="МС",S55="МС",T55="МС",U55="МС",V55="МС",W55="МС",X55="МС",Y55="МС",Z55="МС",AA55="МС",AB55="МС",AC55="МС"),"МС",IF(OR(D55="КМС",E55="КМС",F55="КМС",G55="КМС",H55="КМС",I55="КМС",J55="КМС",K55="КМС",L55="КМС",M55="КМС",N55="КМС",O55="КМС",P55="КМС",Q55="КМС",R55="КМС",S55="КМС",T55="КМС",U55="КМС",V55="КМС",W55="КМС",X55="КМС",Y55="КМС",Z55="КМС",AA55="КМС",AB55="КМС",AC55="КМС"),"КМС",IF(OR(D55=1,E55=1,F55=1,G55=1,H55=1,I55=1,J55=1,K55=1,L55=1,M55=1,N55=1,O55=1,P55=1,Q55=1,R55=1,S55=1,T55=1,U55=1,V55=1,W55=1,X55=1,Y55=1,Z55=1,AA55=1,AB55=1,AC55=1),1,IF(OR(D55=2,E55=2,F55=2,G55=2,H55=2,I55=2,J55=2,K55=2,L55=2,M55=2,N55=2,O55=2,P55=2,Q55=2,R55=2,S55=2,T55=2,U55=2,V55=2,W55=2,X55=2,Y55=2,Z55=2,AA55=2,AB55=2,AC55=2),2,IF(OR(D55=3,E55=3,F55=3,G55=3,H55=3,I55=3,J55=3,K55=3,L55=3,M55=3,N55=3,O55=3,P55=3,Q55=3,R55=3,S55=3,T55=3,U55=3,V55=3,W55=3,X55=3,Y55=3,Z55=3,AA55=3,AB55=3,AC55=3),3,IF(OR(D55="1 юн",E55="1 юн",F55="1 юн",G55="1 юн",H55="1 юн",I55="1 юн",J55="1 юн",K55="1 юн",L55="1 юн",M55="1 юн",N55="1 юн",O55="1 юн",P55="1 юн",Q55="1 юн",R55="1 юн",S55="1 юн",T55="1 юн",U55="1 юн",V55="1 юн",W55="1 юн",X55="1 юн",Y55="1 юн",Z55="1 юн",AA55="1 юн",AB55="1 юн",AC55="1 юн"),"1 юн",IF(OR(D55="юн",E55="юн",F55="юн",G55="юн",H55="юн",I55="юн",J55="юн",K55="юн",L55="юн",M55="юн",N55="юн",O55="юн",P55="юн",Q55="юн",R55="юн",S55="юн",T55="юн",U55="юн",V55="юн",W55="юн",X55="юн",Y55="юн",Z55="юн",AA55="юн",AB55="юн",AC55="юн"),"юн","б/р"))))))) -> 1 юн
A56: Денисевич Евгений | B56: Брестская область | C56: 1994 | D56: КМС | E56: 2 | AC56: 2 | AD56: =IF(OR(D56="МС",E56="МС",F56="МС",G56="МС",H56="МС",I56="МС",J56="МС",K56="МС",L56="МС",M56="МС",N56="МС",O56="МС",P56="МС",Q56="МС",R56="МС",S56="МС",T56="МС",U56="МС",V56="МС",W56="МС",X56="МС",Y56="МС",Z56="МС",AA56="МС",AB56="МС",AC56="МС"),"МС",IF(OR(D56="КМС",E56="КМС",F56="КМС",G56="КМС",H56="КМС",I56="КМС",J56="КМС",K56="КМС",L56="КМС",M56="КМС",N56="КМС",O56="КМС",P56="КМС",Q56="КМС",R56="КМС",S56="КМС",T56="КМС",U56="КМС",V56="КМС",W56="КМС",X56="КМС",Y56="КМС",Z56="КМС",AA56="КМС",AB56="КМС",AC56="КМС"),"КМС",IF(OR(D56=1,E56=1,F56=1,G56=1,H56=1,I56=1,J56=1,K56=1,L56=1,M56=1,N56=1,O56=1,P56=1,Q56=1,R56=1,S56=1,T56=1,U56=1,V56=1,W56=1,X56=1,Y56=1,Z56=1,AA56=1,AB56=1,AC56=1),1,IF(OR(D56=2,E56=2,F56=2,G56=2,H56=2,I56=2,J56=2,K56=2,L56=2,M56=2,N56=2,O56=2,P56=2,Q56=2,R56=2,S56=2,T56=2,U56=2,V56=2,W56=2,X56=2,Y56=2,Z56=2,AA56=2,AB56=2,AC56=2),2,IF(OR(D56=3,E56=3,F56=3,G56=3,H56=3,I56=3,J56=3,K56=3,L56=3,M56=3,N56=3,O56=3,P56=3,Q56=3,R56=3,S56=3,T56=3,U56=3,V56=3,W56=3,X56=3,Y56=3,Z56=3,AA56=3,AB56=3,AC56=3),3,IF(OR(D56="1 юн",E56="1 юн",F56="1 юн",G56="1 юн",H56="1 юн",I56="1 юн",J56="1 юн",K56="1 юн",L56="1 юн",M56="1 юн",N56="1 юн",O56="1 юн",P56="1 юн",Q56="1 юн",R56="1 юн",S56="1 юн",T56="1 юн",U56="1 юн",V56="1 юн",W56="1 юн",X56="1 юн",Y56="1 юн",Z56="1 юн",AA56="1 юн",AB56="1 юн",AC56="1 юн"),"1 юн",IF(OR(D56="юн",E56="юн",F56="юн",G56="юн",H56="юн",I56="юн",J56="юн",K56="юн",L56="юн",M56="юн",N56="юн",O56="юн",P56="юн",Q56="юн",R56="юн",S56="юн",T56="юн",U56="юн",V56="юн",W56="юн",X56="юн",Y56="юн",Z56="юн",AA56="юн",AB56="юн",AC56="юн"),"юн","б/р"))))))) -> КМС
A57: Денисман Юрий | B57: MinskOnsight Мн. | C57: 1982 | G57: 1 | AC57: КМС | AD57: =IF(OR(D57="МС",E57="МС",F57="МС",G57="МС",H57="МС",I57="МС",J57="МС",K57="МС",L57="МС",M57="МС",N57="МС",O57="МС",P57="МС",Q57="МС",R57="МС",S57="МС",T57="МС",U57="МС",V57="МС",W57="МС",X57="МС",Y57="МС",Z57="МС",AA57="МС",AB57="МС",AC57="МС"),"МС",IF(OR(D57="КМС",E57="КМС",F57="КМС",G57="КМС",H57="КМС",I57="КМС",J57="КМС",K57="КМС",L57="КМС",M57="КМС",N57="КМС",O57="КМС",P57="КМС",Q57="КМС",R57="КМС",S57="КМС",T57="КМС",U57="КМС",V57="КМС",W57="КМС",X57="КМС",Y57="КМС",Z57="КМС",AA57="КМС",AB57="КМС",AC57="КМС"),"КМС",IF(OR(D57=1,E57=1,F57=1,G57=1,H57=1,I57=1,J57=1,K57=1,L57=1,M57=1,N57=1,O57=1,P57=1,Q57=1,R57=1,S57=1,T57=1,U57=1,V57=1,W57=1,X57=1,Y57=1,Z57=1,AA57=1,AB57=1,AC57=1),1,IF(OR(D57=2,E57=2,F57=2,G57=2,H57=2,I57=2,J57=2,K57=2,L57=2,M57=2,N57=2,O57=2,P57=2,Q57=2,R57=2,S57=2,T57=2,U57=2,V57=2,W57=2,X57=2,Y57=2,Z57=2,AA57=2,AB57=2,AC57=2),2,IF(OR(D57=3,E57=3,F57=3,G57=3,H57=3,I57=3,J57=3,K57=3,L57=3,M57=3,N57=3,O57=3,P57=3,Q57=3,R57=3,S57=3,T57=3,U57=3,V57=3,W57=3,X57=3,Y57=3,Z57=3,AA57=3,AB57=3,AC57=3),3,IF(OR(D57="1 юн",E57="1 юн",F57="1 юн",G57="1 юн",H57="1 юн",I57="1 юн",J57="1 юн",K57="1 юн",L57="1 юн",M57="1 юн",N57="1 юн",O57="1 юн",P57="1 юн",Q57="1 юн",R57="1 юн",S57="1 юн",T57="1 юн",U57="1 юн",V57="1 юн",W57="1 юн",X57="1 юн",Y57="1 юн",Z57="1 юн",AA57="1 юн",AB57="1 юн",AC57="1 юн"),"1 юн",IF(OR(D57="юн",E57="юн",F57="юн",G57="юн",H57="юн",I57="юн",J57="юн",K57="юн",L57="юн",M57="юн",N57="юн",O57="юн",P57="юн",Q57="юн",R57="юн",S57="юн",T57="юн",U57="юн",V57="юн",W57="юн",X57="юн",Y57="юн",Z57="юн",AA57="юн",AB57="юн",AC57="юн"),"юн","б/р"))))))) -> КМС
A58: Дишук Вадим | B58: Хан-Тенгри | C58: 1985 | AD58: =IF(OR(D58="МС",E58="МС",F58="МС",G58="МС",H58="МС",I58="МС",J58="МС",K58="МС",L58="МС",M58="МС",N58="МС",O58="МС",P58="МС",Q58="МС",R58="МС",S58="МС",T58="МС",U58="МС",V58="МС",W58="МС",X58="МС",Y58="МС",Z58="МС",AA58="МС",AB58="МС",AC58="МС"),"МС",IF(OR(D58="КМС",E58="КМС",F58="КМС",G58="КМС",H58="КМС",I58="КМС",J58="КМС",K58="КМС",L58="КМС",M58="КМС",N58="КМС",O58="КМС",P58="КМС",Q58="КМС",R58="КМС",S58="КМС",T58="КМС",U58="КМС",V58="КМС",W58="КМС",X58="КМС",Y58="КМС",Z58="КМС",AA58="КМС",AB58="КМС",AC58="КМС"),"КМС",IF(OR(D58=1,E58=1,F58=1,G58=1,H58=1,I58=1,J58=1,K58=1,L58=1,M58=1,N58=1,O58=1,P58=1,Q58=1,R58=1,S58=1,T58=1,U58=1,V58=1,W58=1,X58=1,Y58=1,Z58=1,AA58=1,AB58=1,AC58=1),1,IF(OR(D58=2,E58=2,F58=2,G58=2,H58=2,I58=2,J58=2,K58=2,L58=2,M58=2,N58=2,O58=2,P58=2,Q58=2,R58=2,S58=2,T58=2,U58=2,V58=2,W58=2,X58=2,Y58=2,Z58=2,AA58=2,AB58=2,AC58=2),2,IF(OR(D58=3,E58=3,F58=3,G58=3,H58=3,I58=3,J58=3,K58=3,L58=3,M58=3,N58=3,O58=3,P58=3,Q58=3,R58=3,S58=3,T58=3,U58=3,V58=3,W58=3,X58=3,Y58=3,Z58=3,AA58=3,AB58=3,AC58=3),3,IF(OR(D58="1 юн",E58="1 юн",F58="1 юн",G58="1 юн",H58="1 юн",I58="1 юн",J58="1 юн",K58="1 юн",L58="1 юн",M58="1 юн",N58="1 юн",O58="1 юн",P58="1 юн",Q58="1 юн",R58="1 юн",S58="1 юн",T58="1 юн",U58="1 юн",V58="1 юн",W58="1 юн",X58="1 юн",Y58="1 юн",Z58="1 юн",AA58="1 юн",AB58="1 юн",AC58="1 юн"),"1 юн",IF(OR(D58="юн",E58="юн",F58="юн",G58="юн",H58="юн",I58="юн",J58="юн",K58="юн",L58="юн",M58="юн",N58="юн",O58="юн",P58="юн",Q58="юн",R58="юн",S58="юн",T58="юн",U58="юн",V58="юн",W58="юн",X58="юн",Y58="юн",Z58="юн",AA58="юн",AB58="юн",AC58="юн"),"юн","б/р"))))))) -> б/р
A59: Добрянский Александр | B59: Шклов | C59: 1994 | O59: 1 | AD59: =IF(OR(D59="МС",E59="МС",F59="МС",G59="МС",H59="МС",I59="МС",J59="МС",K59="МС",L59="МС",M59="МС",N59="МС",O59="МС",P59="МС",Q59="МС",R59="МС",S59="МС",T59="МС",U59="МС",V59="МС",W59="МС",X59="МС",Y59="МС",Z59="МС",AA59="МС",AB59="МС",AC59="МС"),"МС",IF(OR(D59="КМС",E59="КМС",F59="КМС",G59="КМС",H59="КМС",I59="КМС",J59="КМС",K59="КМС",L59="КМС",M59="КМС",N59="КМС",O59="КМС",P59="КМС",Q59="КМС",R59="КМС",S59="КМС",T59="КМС",U59="КМС",V59="КМС",W59="КМС",X59="КМС",Y59="КМС",Z59="КМС",AA59="КМС",AB59="КМС",AC59="КМС"),"КМС",IF(OR(D59=1,E59=1,F59=1,G59=1,H59=1,I59=1,J59=1,K59=1,L59=1,M59=1,N59=1,O59=1,P59=1,Q59=1,R59=1,S59=1,T59=1,U59=1,V59=1,W59=1,X59=1,Y59=1,Z59=1,AA59=1,AB59=1,AC59=1),1,IF(OR(D59=2,E59=2,F59=2,G59=2,H59=2,I59=2,J59=2,K59=2,L59=2,M59=2,N59=2,O59=2,P59=2,Q59=2,R59=2,S59=2,T59=2,U59=2,V59=2,W59=2,X59=2,Y59=2,Z59=2,AA59=2,AB59=2,AC59=2),2,IF(OR(D59=3,E59=3,F59=3,G59=3,H59=3,I59=3,J59=3,K59=3,L59=3,M59=3,N59=3,O59=3,P59=3,Q59=3,R59=3,S59=3,T59=3,U59=3,V59=3,W59=3,X59=3,Y59=3,Z59=3,AA59=3,AB59=3,AC59=3),3,IF(OR(D59="1 юн",E59="1 юн",F59="1 юн",G59="1 юн",H59="1 юн",I59="1 юн",J59="1 юн",K59="1 юн",L59="1 юн",M59="1 юн",N59="1 юн",O59="1 юн",P59="1 юн",Q59="1 юн",R59="1 юн",S59="1 юн",T59="1 юн",U59="1 юн",V59="1 юн",W59="1 юн",X59="1 юн",Y59="1 юн",Z59="1 юн",AA59="1 юн",AB59="1 юн",AC59="1 юн"),"1 юн",IF(OR(D59="юн",E59="юн",F59="юн",G59="юн",H59="юн",I59="юн",J59="юн",K59="юн",L59="юн",M59="юн",N59="юн",O59="юн",P59="юн",Q59="юн",R59="юн",S59="юн",T59="юн",U59="юн",V59="юн",W59="юн",X59="юн",Y59="юн",Z59="юн",AA59="юн",AB59="юн",AC59="юн"),"юн","б/р"))))))) -> 1
A60: Домашевич Артем | B60: Хан-Тенгри | C60: 1988 | AD60: =IF(OR(D60="МС",E60="МС",F60="МС",G60="МС",H60="МС",I60="МС",J60="МС",K60="МС",L60="МС",M60="МС",N60="МС",O60="МС",P60="МС",Q60="МС",R60="МС",S60="МС",T60="МС",U60="МС",V60="МС",W60="МС",X60="МС",Y60="МС",Z60="МС",AA60="МС",AB60="МС",AC60="МС"),"МС",IF(OR(D60="КМС",E60="КМС",F60="КМС",G60="КМС",H60="КМС",I60="КМС",J60="КМС",K60="КМС",L60="КМС",M60="КМС",N60="КМС",O60="КМС",P60="КМС",Q60="КМС",R60="КМС",S60="КМС",T60="КМС",U60="КМС",V60="КМС",W60="КМС",X60="КМС",Y60="КМС",Z60="КМС",AA60="КМС",AB60="КМС",AC60="КМС"),"КМС",IF(OR(D60=1,E60=1,F60=1,G60=1,H60=1,I60=1,J60=1,K60=1,L60=1,M60=1,N60=1,O60=1,P60=1,Q60=1,R60=1,S60=1,T60=1,U60=1,V60=1,W60=1,X60=1,Y60=1,Z60=1,AA60=1,AB60=1,AC60=1),1,IF(OR(D60=2,E60=2,F60=2,G60=2,H60=2,I60=2,J60=2,K60=2,L60=2,M60=2,N60=2,O60=2,P60=2,Q60=2,R60=2,S60=2,T60=2,U60=2,V60=2,W60=2,X60=2,Y60=2,Z60=2,AA60=2,AB60=2,AC60=2),2,IF(OR(D60=3,E60=3,F60=3,G60=3,H60=3,I60=3,J60=3,K60=3,L60=3,M60=3,N60=3,O60=3,P60=3,Q60=3,R60=3,S60=3,T60=3,U60=3,V60=3,W60=3,X60=3,Y60=3,Z60=3,AA60=3,AB60=3,AC60=3),3,IF(OR(D60="1 юн",E60="1 юн",F60="1 юн",G60="1 юн",H60="1 юн",I60="1 юн",J60="1 юн",K60="1 юн",L60="1 юн",M60="1 юн",N60="1 юн",O60="1 юн",P60="1 юн",Q60="1 юн",R60="1 юн",S60="1 юн",T60="1 юн",U60="1 юн",V60="1 юн",W60="1 юн",X60="1 юн",Y60="1 юн",Z60="1 юн",AA60="1 юн",AB60="1 юн",AC60="1 юн"),"1 юн",IF(OR(D60="юн",E60="юн",F60="юн",G60="юн",H60="юн",I60="юн",J60="юн",K60="юн",L60="юн",M60="юн",N60="юн",O60="юн",P60="юн",Q60="юн",R60="юн",S60="юн",T60="юн",U60="юн",V60="юн",W60="юн",X60="юн",Y60="юн",Z60="юн",AA60="юн",AB60="юн",AC60="юн"),"юн","б/р"))))))) -> б/р
A61: Драбинко Артур | B61: Бобруйск | C61: 1994 | G61: КМС | O61: КМС | P61: 1 | AC61: 1 | AD61: =IF(OR(D61="МС",E61="МС",F61="МС",G61="МС",H61="МС",I61="МС",J61="МС",K61="МС",L61="МС",M61="МС",N61="МС",O61="МС",P61="МС",Q61="МС",R61="МС",S61="МС",T61="МС",U61="МС",V61="МС",W61="МС",X61="МС",Y61="МС",Z61="МС",AA61="МС",AB61="МС",AC61="МС"),"МС",IF(OR(D61="КМС",E61="КМС",F61="КМС",G61="КМС",H61="КМС",I61="КМС",J61="КМС",K61="КМС",L61="КМС",M61="КМС",N61="КМС",O61="КМС",P61="КМС",Q61="КМС",R61="КМС",S61="КМС",T61="КМС",U61="КМС",V61="КМС",W61="КМС",X61="КМС",Y61="КМС",Z61="КМС",AA61="КМС",AB61="КМС",AC61="КМС"),"КМС",IF(OR(D61=1,E61=1,F61=1,G61=1,H61=1,I61=1,J61=1,K61=1,L61=1,M61=1,N61=1,O61=1,P61=1,Q61=1,R61=1,S61=1,T61=1,U61=1,V61=1,W61=1,X61=1,Y61=1,Z61=1,AA61=1,AB61=1,AC61=1),1,IF(OR(D61=2,E61=2,F61=2,G61=2,H61=2,I61=2,J61=2,K61=2,L61=2,M61=2,N61=2,O61=2,P61=2,Q61=2,R61=2,S61=2,T61=2,U61=2,V61=2,W61=2,X61=2,Y61=2,Z61=2,AA61=2,AB61=2,AC61=2),2,IF(OR(D61=3,E61=3,F61=3,G61=3,H61=3,I61=3,J61=3,K61=3,L61=3,M61=3,N61=3,O61=3,P61=3,Q61=3,R61=3,S61=3,T61=3,U61=3,V61=3,W61=3,X61=3,Y61=3,Z61=3,AA61=3,AB61=3,AC61=3),3,IF(OR(D61="1 юн",E61="1 юн",F61="1 юн",G61="1 юн",H61="1 юн",I61="1 юн",J61="1 юн",K61="1 юн",L61="1 юн",M61="1 юн",N61="1 юн",O61="1 юн",P61="1 юн",Q61="1 юн",R61="1 юн",S61="1 юн",T61="1 юн",U61="1 юн",V61="1 юн",W61="1 юн",X61="1 юн",Y61="1 юн",Z61="1 юн",AA61="1 юн",AB61="1 юн",AC61="1 юн"),"1 юн",IF(OR(D61="юн",E61="юн",F61="юн",G61="юн",H61="юн",I61="юн",J61="юн",K61="юн",L61="юн",M61="юн",N61="юн",O61="юн",P61="юн",Q61="юн",R61="юн",S61="юн",T61="юн",U61="юн",V61="юн",W61="юн",X61="юн",Y61="юн",Z61="юн",AA61="юн",AB61="юн",AC61="юн"),"юн","б/р"))))))) -> КМС
A62: Дубовский Андрей | B62: Хан-Тенгри | C62: 1987 | AD62: =IF(OR(D62="МС",E62="МС",F62="МС",G62="МС",H62="МС",I62="МС",J62="МС",K62="МС",L62="МС",M62="МС",N62="МС",O62="МС",P62="МС",Q62="МС",R62="МС",S62="МС",T62="МС",U62="МС",V62="МС",W62="МС",X62="МС",Y62="МС",Z62="МС",AA62="МС",AB62="МС",AC62="МС"),"МС",IF(OR(D62="КМС",E62="КМС",F62="КМС",G62="КМС",H62="КМС",I62="КМС",J62="КМС",K62="КМС",L62="КМС",M62="КМС",N62="КМС",O62="КМС",P62="КМС",Q62="КМС",R62="КМС",S62="КМС",T62="КМС",U62="КМС",V62="КМС",W62="КМС",X62="КМС",Y62="КМС",Z62="КМС",AA62="КМС",AB62="КМС",AC62="КМС"),"КМС",IF(OR(D62=1,E62=1,F62=1,G62=1,H62=1,I62=1,J62=1,K62=1,L62=1,M62=1,N62=1,O62=1,P62=1,Q62=1,R62=1,S62=1,T62=1,U62=1,V62=1,W62=1,X62=1,Y62=1,Z62=1,AA62=1,AB62=1,AC62=1),1,IF(OR(D62=2,E62=2,F62=2,G62=2,H62=2,I62=2,J62=2,K62=2,L62=2,M62=2,N62=2,O62=2,P62=2,Q62=2,R62=2,S62=2,T62=2,U62=2,V62=2,W62=2,X62=2,Y62=2,Z62=2,AA62=2,AB62=2,AC62=2),2,IF(OR(D62=3,E62=3,F62=3,G62=3,H62=3,I62=3,J62=3,K62=3,L62=3,M62=3,N62=3,O62=3,P62=3,Q62=3,R62=3,S62=3,T62=3,U62=3,V62=3,W62=3,X62=3,Y62=3,Z62=3,AA62=3,AB62=3,AC62=3),3,IF(OR(D62="1 юн",E62="1 юн",F62="1 юн",G62="1 юн",H62="1 юн",I62="1 юн",J62="1 юн",K62="1 юн",L62="1 юн",M62="1 юн",N62="1 юн",O62="1 юн",P62="1 юн",Q62="1 юн",R62="1 юн",S62="1 юн",T62="1 юн",U62="1 юн",V62="1 юн",W62="1 юн",X62="1 юн",Y62="1 юн",Z62="1 юн",AA62="1 юн",AB62="1 юн",AC62="1 юн"),"1 юн",IF(OR(D62="юн",E62="юн",F62="юн",G62="юн",H62="юн",I62="юн",J62="юн",K62="юн",L62="юн",M62="юн",N62="юн",O62="юн",P62="юн",Q62="юн",R62="юн",S62="юн",T62="юн",U62="юн",V62="юн",W62="юн",X62="юн",Y62="юн",Z62="юн",AA62="юн",AB62="юн",AC62="юн"),"юн","б/р"))))))) -> б/р
A63: Дудянов Евгений | B63: ГОЦТиКДиМ Гомель | C63: 1996 | O63: 3 | P63: юн | AD63: =IF(OR(D63="МС",E63="МС",F63="МС",G63="МС",H63="МС",I63="МС",J63="МС",K63="МС",L63="МС",M63="МС",N63="МС",O63="МС",P63="МС",Q63="МС",R63="МС",S63="МС",T63="МС",U63="МС",V63="МС",W63="МС",X63="МС",Y63="МС",Z63="МС",AA63="МС",AB63="МС",AC63="МС"),"МС",IF(OR(D63="КМС",E63="КМС",F63="КМС",G63="КМС",H63="КМС",I63="КМС",J63="КМС",K63="КМС",L63="КМС",M63="КМС",N63="КМС",O63="КМС",P63="КМС",Q63="КМС",R63="КМС",S63="КМС",T63="КМС",U63="КМС",V63="КМС",W63="КМС",X63="КМС",Y63="КМС",Z63="КМС",AA63="КМС",AB63="КМС",AC63="КМС"),"КМС",IF(OR(D63=1,E63=1,F63=1,G63=1,H63=1,I63=1,J63=1,K63=1,L63=1,M63=1,N63=1,O63=1,P63=1,Q63=1,R63=1,S63=1,T63=1,U63=1,V63=1,W63=1,X63=1,Y63=1,Z63=1,AA63=1,AB63=1,AC63=1),1,IF(OR(D63=2,E63=2,F63=2,G63=2,H63=2,I63=2,J63=2,K63=2,L63=2,M63=2,N63=2,O63=2,P63=2,Q63=2,R63=2,S63=2,T63=2,U63=2,V63=2,W63=2,X63=2,Y63=2,Z63=2,AA63=2,AB63=2,AC63=2),2,IF(OR(D63=3,E63=3,F63=3,G63=3,H63=3,I63=3,J63=3,K63=3,L63=3,M63=3,N63=3,O63=3,P63=3,Q63=3,R63=3,S63=3,T63=3,U63=3,V63=3,W63=3,X63=3,Y63=3,Z63=3,AA63=3,AB63=3,AC63=3),3,IF(OR(D63="1 юн",E63="1 юн",F63="1 юн",G63="1 юн",H63="1 юн",I63="1 юн",J63="1 юн",K63="1 юн",L63="1 юн",M63="1 юн",N63="1 юн",O63="1 юн",P63="1 юн",Q63="1 юн",R63="1 юн",S63="1 юн",T63="1 юн",U63="1 юн",V63="1 юн",W63="1 юн",X63="1 юн",Y63="1 юн",Z63="1 юн",AA63="1 юн",AB63="1 юн",AC63="1 юн"),"1 юн",IF(OR(D63="юн",E63="юн",F63="юн",G63="юн",H63="юн",I63="юн",J63="юн",K63="юн",L63="юн",M63="юн",N63="юн",O63="юн",P63="юн",Q63="юн",R63="юн",S63="юн",T63="юн",U63="юн",V63="юн",W63="юн",X63="юн",Y63="юн",Z63="юн",AA63="юн",AB63="юн",AC63="юн"),"юн","б/р"))))))) -> 3
A64: Дуло Кирилл | B64: Минск | C64: 2003 | H64: юн | AD64: =IF(OR(D64="МС",E64="МС",F64="МС",G64="МС",H64="МС",I64="МС",J64="МС",K64="МС",L64="МС",M64="МС",N64="МС",O64="МС",P64="МС",Q64="МС",R64="МС",S64="МС",T64="МС",U64="МС",V64="МС",W64="МС",X64="МС",Y64="МС",Z64="МС",AA64="МС",AB64="МС",AC64="МС"),"МС",IF(OR(D64="КМС",E64="КМС",F64="КМС",G64="КМС",H64="КМС",I64="КМС",J64="КМС",K64="КМС",L64="КМС",M64="КМС",N64="КМС",O64="КМС",P64="КМС",Q64="КМС",R64="КМС",S64="КМС",T64="КМС",U64="КМС",V64="КМС",W64="КМС",X64="КМС",Y64="КМС",Z64="КМС",AA64="КМС",AB64="КМС",AC64="КМС"),"КМС",IF(OR(D64=1,E64=1,F64=1,G64=1,H64=1,I64=1,J64=1,K64=1,L64=1,M64=1,N64=1,O64=1,P64=1,Q64=1,R64=1,S64=1,T64=1,U64=1,V64=1,W64=1,X64=1,Y64=1,Z64=1,AA64=1,AB64=1,AC64=1),1,IF(OR(D64=2,E64=2,F64=2,G64=2,H64=2,I64=2,J64=2,K64=2,L64=2,M64=2,N64=2,O64=2,P64=2,Q64=2,R64=2,S64=2,T64=2,U64=2,V64=2,W64=2,X64=2,Y64=2,Z64=2,AA64=2,AB64=2,AC64=2),2,IF(OR(D64=3,E64=3,F64=3,G64=3,H64=3,I64=3,J64=3,K64=3,L64=3,M64=3,N64=3,O64=3,P64=3,Q64=3,R64=3,S64=3,T64=3,U64=3,V64=3,W64=3,X64=3,Y64=3,Z64=3,AA64=3,AB64=3,AC64=3),3,IF(OR(D64="1 юн",E64="1 юн",F64="1 юн",G64="1 юн",H64="1 юн",I64="1 юн",J64="1 юн",K64="1 юн",L64="1 юн",M64="1 юн",N64="1 юн",O64="1 юн",P64="1 юн",Q64="1 юн",R64="1 юн",S64="1 юн",T64="1 юн",U64="1 юн",V64="1 юн",W64="1 юн",X64="1 юн",Y64="1 юн",Z64="1 юн",AA64="1 юн",AB64="1 юн",AC64="1 юн"),"1 юн",IF(OR(D64="юн",E64="юн",F64="юн",G64="юн",H64="юн",I64="юн",J64="юн",K64="юн",L64="юн",M64="юн",N64="юн",O64="юн",P64="юн",Q64="юн",R64="юн",S64="юн",T64="юн",U64="юн",V64="юн",W64="юн",X64="юн",Y64="юн",Z64="юн",AA64="юн",AB64="юн",AC64="юн"),"юн","б/р"))))))) -> юн
A65: Дюбенков Дмитрий | B65: ГУО «ГОЦТКДМ» | C65: 1992 | D65: КМС | E65: 2 | G65: 1 | K65: КМС | L65: 1 | P65: 2 | Q65: КМС | V65: 2 | Y65: МС | Z65: 1 | AC65: 2 | AD65: =IF(OR(D65="МС",E65="МС",F65="МС",G65="МС",H65="МС",I65="МС",J65="МС",K65="МС",L65="МС",M65="МС",N65="МС",O65="МС",P65="МС",Q65="МС",R65="МС",S65="МС",T65="МС",U65="МС",V65="МС",W65="МС",X65="МС",Y65="МС",Z65="МС",AA65="МС",AB65="МС",AC65="МС"),"МС",IF(OR(D65="КМС",E65="КМС",F65="КМС",G65="КМС",H65="КМС",I65="КМС",J65="КМС",K65="КМС",L65="КМС",M65="КМС",N65="КМС",O65="КМС",P65="КМС",Q65="КМС",R65="КМС",S65="КМС",T65="КМС",U65="КМС",V65="КМС",W65="КМС",X65="КМС",Y65="КМС",Z65="КМС",AA65="КМС",AB65="КМС",AC65="КМС"),"КМС",IF(OR(D65=1,E65=1,F65=1,G65=1,H65=1,I65=1,J65=1,K65=1,L65=1,M65=1,N65=1,O65=1,P65=1,Q65=1,R65=1,S65=1,T65=1,U65=1,V65=1,W65=1,X65=1,Y65=1,Z65=1,AA65=1,AB65=1,AC65=1),1,IF(OR(D65=2,E65=2,F65=2,G65=2,H65=2,I65=2,J65=2,K65=2,L65=2,M65=2,N65=2,O65=2,P65=2,Q65=2,R65=2,S65=2,T65=2,U65=2,V65=2,W65=2,X65=2,Y65=2,Z65=2,AA65=2,AB65=2,AC65=2),2,IF(OR(D65=3,E65=3,F65=3,G65=3,H65=3,I65=3,J65=3,K65=3,L65=3,M65=3,N65=3,O65=3,P65=3,Q65=3,R65=3,S65=3,T65=3,U65=3,V65=3,W65=3,X65=3,Y65=3,Z65=3,AA65=3,AB65=3,AC65=3),3,IF(OR(D65="1 юн",E65="1 юн",F65="1 юн",G65="1 юн",H65="1 юн",I65="1 юн",J65="1 юн",K65="1 юн",L65="1 юн",M65="1 юн",N65="1 юн",O65="1 юн",P65="1 юн",Q65="1 юн",R65="1 юн",S65="1 юн",T65="1 юн",U65="1 юн",V65="1 юн",W65="1 юн",X65="1 юн",Y65="1 юн",Z65="1 юн",AA65="1 юн",AB65="1 юн",AC65="1 юн"),"1 юн",IF(OR(D65="юн",E65="юн",F65="юн",G65="юн",H65="юн",I65="юн",J65="юн",K65="юн",L65="юн",M65="юн",N65="юн",O65="юн",P65="юн",Q65="юн",R65="юн",S65="юн",T65="юн",U65="юн",V65="юн",W65="юн",X65="юн",Y65="юн",Z65="юн",AA65="юн",AB65="юн",AC65="юн"),"юн","б/р"))))))) -> МС
A66: Евченко Александр | B66: Минск | C66: 1990 | AD66: =IF(OR(D66="МС",E66="МС",F66="МС",G66="МС",H66="МС",I66="МС",J66="МС",K66="МС",L66="МС",M66="МС",N66="МС",O66="МС",P66="МС",Q66="МС",R66="МС",S66="МС",T66="МС",U66="МС",V66="МС",W66="МС",X66="МС",Y66="МС",Z66="МС",AA66="МС",AB66="МС",AC66="МС"),"МС",IF(OR(D66="КМС",E66="КМС",F66="КМС",G66="КМС",H66="КМС",I66="КМС",J66="КМС",K66="КМС",L66="КМС",M66="КМС",N66="КМС",O66="КМС",P66="КМС",Q66="КМС",R66="КМС",S66="КМС",T66="КМС",U66="КМС",V66="КМС",W66="КМС",X66="КМС",Y66="КМС",Z66="КМС",AA66="КМС",AB66="КМС",AC66="КМС"),"КМС",IF(OR(D66=1,E66=1,F66=1,G66=1,H66=1,I66=1,J66=1,K66=1,L66=1,M66=1,N66=1,O66=1,P66=1,Q66=1,R66=1,S66=1,T66=1,U66=1,V66=1,W66=1,X66=1,Y66=1,Z66=1,AA66=1,AB66=1,AC66=1),1,IF(OR(D66=2,E66=2,F66=2,G66=2,H66=2,I66=2,J66=2,K66=2,L66=2,M66=2,N66=2,O66=2,P66=2,Q66=2,R66=2,S66=2,T66=2,U66=2,V66=2,W66=2,X66=2,Y66=2,Z66=2,AA66=2,AB66=2,AC66=2),2,IF(OR(D66=3,E66=3,F66=3,G66=3,H66=3,I66=3,J66=3,K66=3,L66=3,M66=3,N66=3,O66=3,P66=3,Q66=3,R66=3,S66=3,T66=3,U66=3,V66=3,W66=3,X66=3,Y66=3,Z66=3,AA66=3,AB66=3,AC66=3),3,IF(OR(D66="1 юн",E66="1 юн",F66="1 юн",G66="1 юн",H66="1 юн",I66="1 юн",J66="1 юн",K66="1 юн",L66="1 юн",M66="1 юн",N66="1 юн",O66="1 юн",P66="1 юн",Q66="1 юн",R66="1 юн",S66="1 юн",T66="1 юн",U66="1 юн",V66="1 юн",W66="1 юн",X66="1 юн",Y66="1 юн",Z66="1 юн",AA66="1 юн",AB66="1 юн",AC66="1 юн"),"1 юн",IF(OR(D66="юн",E66="юн",F66="юн",G66="юн",H66="юн",I66="юн",J66="юн",K66="юн",L66="юн",M66="юн",N66="юн",O66="юн",P66="юн",Q66="юн",R66="юн",S66="юн",T66="юн",U66="юн",V66="юн",W66="юн",X66="юн",Y66="юн",Z66="юн",AA66="юн",AB66="юн",AC66="юн"),"юн","б/р"))))))) -> б/р
A67: Ермохин Вадим | B67: РЦЭК | C67: 2005 | H67: юн | J67: 1 юн | M67: юн | N67: юн | AD67: =IF(OR(D67="МС",E67="МС",F67="МС",G67="МС",H67="МС",I67="МС",J67="МС",K67="МС",L67="МС",M67="МС",N67="МС",O67="МС",P67="МС",Q67="МС",R67="МС",S67="МС",T67="МС",U67="МС",V67="МС",W67="МС",X67="МС",Y67="МС",Z67="МС",AA67="МС",AB67="МС",AC67="МС"),"МС",IF(OR(D67="КМС",E67="КМС",F67="КМС",G67="КМС",H67="КМС",I67="КМС",J67="КМС",K67="КМС",L67="КМС",M67="КМС",N67="КМС",O67="КМС",P67="КМС",Q67="КМС",R67="КМС",S67="КМС",T67="КМС",U67="КМС",V67="КМС",W67="КМС",X67="КМС",Y67="КМС",Z67="КМС",AA67="КМС",AB67="КМС",AC67="КМС"),"КМС",IF(OR(D67=1,E67=1,F67=1,G67=1,H67=1,I67=1,J67=1,K67=1,L67=1,M67=1,N67=1,O67=1,P67=1,Q67=1,R67=1,S67=1,T67=1,U67=1,V67=1,W67=1,X67=1,Y67=1,Z67=1,AA67=1,AB67=1,AC67=1),1,IF(OR(D67=2,E67=2,F67=2,G67=2,H67=2,I67=2,J67=2,K67=2,L67=2,M67=2,N67=2,O67=2,P67=2,Q67=2,R67=2,S67=2,T67=2,U67=2,V67=2,W67=2,X67=2,Y67=2,Z67=2,AA67=2,AB67=2,AC67=2),2,IF(OR(D67=3,E67=3,F67=3,G67=3,H67=3,I67=3,J67=3,K67=3,L67=3,M67=3,N67=3,O67=3,P67=3,Q67=3,R67=3,S67=3,T67=3,U67=3,V67=3,W67=3,X67=3,Y67=3,Z67=3,AA67=3,AB67=3,AC67=3),3,IF(OR(D67="1 юн",E67="1 юн",F67="1 юн",G67="1 юн",H67="1 юн",I67="1 юн",J67="1 юн",K67="1 юн",L67="1 юн",M67="1 юн",N67="1 юн",O67="1 юн",P67="1 юн",Q67="1 юн",R67="1 юн",S67="1 юн",T67="1 юн",U67="1 юн",V67="1 юн",W67="1 юн",X67="1 юн",Y67="1 юн",Z67="1 юн",AA67="1 юн",AB67="1 юн",AC67="1 юн"),"1 юн",IF(OR(D67="юн",E67="юн",F67="юн",G67="юн",H67="юн",I67="юн",J67="юн",K67="юн",L67="юн",M67="юн",N67="юн",O67="юн",P67="юн",Q67="юн",R67="юн",S67="юн",T67="юн",U67="юн",V67="юн",W67="юн",X67="юн",Y67="юн",Z67="юн",AA67="юн",AB67="юн",AC67="юн"),"юн","б/р"))))))) -> 1 юн
A68: Есипенок Алексей | B68: Пуховичский р-н | C68: 2004 | H68: юн | N68: юн | R68: 1 юн | S68: юн | AD68: =IF(OR(D68="МС",E68="МС",F68="МС",G68="МС",H68="МС",I68="МС",J68="МС",K68="МС",L68="МС",M68="МС",N68="МС",O68="МС",P68="МС",Q68="МС",R68="МС",S68="МС",T68="МС",U68="МС",V68="МС",W68="МС",X68="МС",Y68="МС",Z68="МС",AA68="МС",AB68="МС",AC68="МС"),"МС",IF(OR(D68="КМС",E68="КМС",F68="КМС",G68="КМС",H68="КМС",I68="КМС",J68="КМС",K68="КМС",L68="КМС",M68="КМС",N68="КМС",O68="КМС",P68="КМС",Q68="КМС",R68="КМС",S68="КМС",T68="КМС",U68="КМС",V68="КМС",W68="КМС",X68="КМС",Y68="КМС",Z68="КМС",AA68="КМС",AB68="КМС",AC68="КМС"),"КМС",IF(OR(D68=1,E68=1,F68=1,G68=1,H68=1,I68=1,J68=1,K68=1,L68=1,M68=1,N68=1,O68=1,P68=1,Q68=1,R68=1,S68=1,T68=1,U68=1,V68=1,W68=1,X68=1,Y68=1,Z68=1,AA68=1,AB68=1,AC68=1),1,IF(OR(D68=2,E68=2,F68=2,G68=2,H68=2,I68=2,J68=2,K68=2,L68=2,M68=2,N68=2,O68=2,P68=2,Q68=2,R68=2,S68=2,T68=2,U68=2,V68=2,W68=2,X68=2,Y68=2,Z68=2,AA68=2,AB68=2,AC68=2),2,IF(OR(D68=3,E68=3,F68=3,G68=3,H68=3,I68=3,J68=3,K68=3,L68=3,M68=3,N68=3,O68=3,P68=3,Q68=3,R68=3,S68=3,T68=3,U68=3,V68=3,W68=3,X68=3,Y68=3,Z68=3,AA68=3,AB68=3,AC68=3),3,IF(OR(D68="1 юн",E68="1 юн",F68="1 юн",G68="1 юн",H68="1 юн",I68="1 юн",J68="1 юн",K68="1 юн",L68="1 юн",M68="1 юн",N68="1 юн",O68="1 юн",P68="1 юн",Q68="1 юн",R68="1 юн",S68="1 юн",T68="1 юн",U68="1 юн",V68="1 юн",W68="1 юн",X68="1 юн",Y68="1 юн",Z68="1 юн",AA68="1 юн",AB68="1 юн",AC68="1 юн"),"1 юн",IF(OR(D68="юн",E68="юн",F68="юн",G68="юн",H68="юн",I68="юн",J68="юн",K68="юн",L68="юн",M68="юн",N68="юн",O68="юн",P68="юн",Q68="юн",R68="юн",S68="юн",T68="юн",U68="юн",V68="юн",W68="юн",X68="юн",Y68="юн",Z68="юн",AA68="юн",AB68="юн",AC68="юн"),"юн","б/р"))))))) -> 1 юн
A69: Живица Арсений | B69: Минск | C69: 2000 | D69: 2 | E69: 2 | F69: 1 | G69: 1 | Q69: 2 | Y69: 3 | Z69: 3 | AA69: юн | AB69: 2 | AD69: =IF(OR(D69="МС",E69="МС",F69="МС",G69="МС",H69="МС",I69="МС",J69="МС",K69="МС",L69="МС",M69="МС",N69="МС",O69="МС",P69="МС",Q69="МС",R69="МС",S69="МС",T69="МС",U69="МС",V69="МС",W69="МС",X69="МС",Y69="МС",Z69="МС",AA69="МС",AB69="МС",AC69="МС"),"МС",IF(OR(D69="КМС",E69="КМС",F69="КМС",G69="КМС",H69="КМС",I69="КМС",J69="КМС",K69="КМС",L69="КМС",M69="КМС",N69="КМС",O69="КМС",P69="КМС",Q69="КМС",R69="КМС",S69="КМС",T69="КМС",U69="КМС",V69="КМС",W69="КМС",X69="КМС",Y69="КМС",Z69="КМС",AA69="КМС",AB69="КМС",AC69="КМС"),"КМС",IF(OR(D69=1,E69=1,F69=1,G69=1,H69=1,I69=1,J69=1,K69=1,L69=1,M69=1,N69=1,O69=1,P69=1,Q69=1,R69=1,S69=1,T69=1,U69=1,V69=1,W69=1,X69=1,Y69=1,Z69=1,AA69=1,AB69=1,AC69=1),1,IF(OR(D69=2,E69=2,F69=2,G69=2,H69=2,I69=2,J69=2,K69=2,L69=2,M69=2,N69=2,O69=2,P69=2,Q69=2,R69=2,S69=2,T69=2,U69=2,V69=2,W69=2,X69=2,Y69=2,Z69=2,AA69=2,AB69=2,AC69=2),2,IF(OR(D69=3,E69=3,F69=3,G69=3,H69=3,I69=3,J69=3,K69=3,L69=3,M69=3,N69=3,O69=3,P69=3,Q69=3,R69=3,S69=3,T69=3,U69=3,V69=3,W69=3,X69=3,Y69=3,Z69=3,AA69=3,AB69=3,AC69=3),3,IF(OR(D69="1 юн",E69="1 юн",F69="1 юн",G69="1 юн",H69="1 юн",I69="1 юн",J69="1 юн",K69="1 юн",L69="1 юн",M69="1 юн",N69="1 юн",O69="1 юн",P69="1 юн",Q69="1 юн",R69="1 юн",S69="1 юн",T69="1 юн",U69="1 юн",V69="1 юн",W69="1 юн",X69="1 юн",Y69="1 юн",Z69="1 юн",AA69="1 юн",AB69="1 юн",AC69="1 юн"),"1 юн",IF(OR(D69="юн",E69="юн",F69="юн",G69="юн",H69="юн",I69="юн",J69="юн",K69="юн",L69="юн",M69="юн",N69="юн",O69="юн",P69="юн",Q69="юн",R69="юн",S69="юн",T69="юн",U69="юн",V69="юн",W69="юн",X69="юн",Y69="юн",Z69="юн",AA69="юн",AB69="юн",AC69="юн"),"юн","б/р"))))))) -> 1
A70: Живица Елисей | B70: Минск | C70: 2005 | AA70: юн | AD70: =IF(OR(D70="МС",E70="МС",F70="МС",G70="МС",H70="МС",I70="МС",J70="МС",K70="МС",L70="МС",M70="МС",N70="МС",O70="МС",P70="МС",Q70="МС",R70="МС",S70="МС",T70="МС",U70="МС",V70="МС",W70="МС",X70="МС",Y70="МС",Z70="МС",AA70="МС",AB70="МС",AC70="МС"),"МС",IF(OR(D70="КМС",E70="КМС",F70="КМС",G70="КМС",H70="КМС",I70="КМС",J70="КМС",K70="КМС",L70="КМС",M70="КМС",N70="КМС",O70="КМС",P70="КМС",Q70="КМС",R70="КМС",S70="КМС",T70="КМС",U70="КМС",V70="КМС",W70="КМС",X70="КМС",Y70="КМС",Z70="КМС",AA70="КМС",AB70="КМС",AC70="КМС"),"КМС",IF(OR(D70=1,E70=1,F70=1,G70=1,H70=1,I70=1,J70=1,K70=1,L70=1,M70=1,N70=1,O70=1,P70=1,Q70=1,R70=1,S70=1,T70=1,U70=1,V70=1,W70=1,X70=1,Y70=1,Z70=1,AA70=1,AB70=1,AC70=1),1,IF(OR(D70=2,E70=2,F70=2,G70=2,H70=2,I70=2,J70=2,K70=2,L70=2,M70=2,N70=2,O70=2,P70=2,Q70=2,R70=2,S70=2,T70=2,U70=2,V70=2,W70=2,X70=2,Y70=2,Z70=2,AA70=2,AB70=2,AC70=2),2,IF(OR(D70=3,E70=3,F70=3,G70=3,H70=3,I70=3,J70=3,K70=3,L70=3,M70=3,N70=3,O70=3,P70=3,Q70=3,R70=3,S70=3,T70=3,U70=3,V70=3,W70=3,X70=3,Y70=3,Z70=3,AA70=3,AB70=3,AC70=3),3,IF(OR(D70="1 юн",E70="1 юн",F70="1 юн",G70="1 юн",H70="1 юн",I70="1 юн",J70="1 юн",K70="1 юн",L70="1 юн",M70="1 юн",N70="1 юн",O70="1 юн",P70="1 юн",Q70="1 юн",R70="1 юн",S70="1 юн",T70="1 юн",U70="1 юн",V70="1 юн",W70="1 юн",X70="1 юн",Y70="1 юн",Z70="1 юн",AA70="1 юн",AB70="1 юн",AC70="1 юн"),"1 юн",IF(OR(D70="юн",E70="юн",F70="юн",G70="юн",H70="юн",I70="юн",J70="юн",K70="юн",L70="юн",M70="юн",N70="юн",O70="юн",P70="юн",Q70="юн",R70="юн",S70="юн",T70="юн",U70="юн",V70="юн",W70="юн",X70="юн",Y70="юн",Z70="юн",AA70="юн",AB70="юн",AC70="юн"),"юн","б/р"))))))) -> юн
A71: Журавлев Артем | B71: ГОЦТиКДиМ Гомель | C71: 2000 | P71: 2 | Q71: 2 | Y71: 2 | Z71: 3 | AD71: =IF(OR(D71="МС",E71="МС",F71="МС",G71="МС",H71="МС",I71="МС",J71="МС",K71="МС",L71="МС",M71="МС",N71="МС",O71="МС",P71="МС",Q71="МС",R71="МС",S71="МС",T71="МС",U71="МС",V71="МС",W71="МС",X71="МС",Y71="МС",Z71="МС",AA71="МС",AB71="МС",AC71="МС"),"МС",IF(OR(D71="КМС",E71="КМС",F71="КМС",G71="КМС",H71="КМС",I71="КМС",J71="КМС",K71="КМС",L71="КМС",M71="КМС",N71="КМС",O71="КМС",P71="КМС",Q71="КМС",R71="КМС",S71="КМС",T71="КМС",U71="КМС",V71="КМС",W71="КМС",X71="КМС",Y71="КМС",Z71="КМС",AA71="КМС",AB71="КМС",AC71="КМС"),"КМС",IF(OR(D71=1,E71=1,F71=1,G71=1,H71=1,I71=1,J71=1,K71=1,L71=1,M71=1,N71=1,O71=1,P71=1,Q71=1,R71=1,S71=1,T71=1,U71=1,V71=1,W71=1,X71=1,Y71=1,Z71=1,AA71=1,AB71=1,AC71=1),1,IF(OR(D71=2,E71=2,F71=2,G71=2,H71=2,I71=2,J71=2,K71=2,L71=2,M71=2,N71=2,O71=2,P71=2,Q71=2,R71=2,S71=2,T71=2,U71=2,V71=2,W71=2,X71=2,Y71=2,Z71=2,AA71=2,AB71=2,AC71=2),2,IF(OR(D71=3,E71=3,F71=3,G71=3,H71=3,I71=3,J71=3,K71=3,L71=3,M71=3,N71=3,O71=3,P71=3,Q71=3,R71=3,S71=3,T71=3,U71=3,V71=3,W71=3,X71=3,Y71=3,Z71=3,AA71=3,AB71=3,AC71=3),3,IF(OR(D71="1 юн",E71="1 юн",F71="1 юн",G71="1 юн",H71="1 юн",I71="1 юн",J71="1 юн",K71="1 юн",L71="1 юн",M71="1 юн",N71="1 юн",O71="1 юн",P71="1 юн",Q71="1 юн",R71="1 юн",S71="1 юн",T71="1 юн",U71="1 юн",V71="1 юн",W71="1 юн",X71="1 юн",Y71="1 юн",Z71="1 юн",AA71="1 юн",AB71="1 юн",AC71="1 юн"),"1 юн",IF(OR(D71="юн",E71="юн",F71="юн",G71="юн",H71="юн",I71="юн",J71="юн",K71="юн",L71="юн",M71="юн",N71="юн",O71="юн",P71="юн",Q71="юн",R71="юн",S71="юн",T71="юн",U71="юн",V71="юн",W71="юн",X71="юн",Y71="юн",Z71="юн",AA71="юн",AB71="юн",AC71="юн"),"юн","б/р"))))))) -> 2
A72: Загорский Владислав | B72: Могилевская область | C72: 1998 | F72: юн | AD72: =IF(OR(D72="МС",E72="МС",F72="МС",G72="МС",H72="МС",I72="МС",J72="МС",K72="МС",L72="МС",M72="МС",N72="МС",O72="МС",P72="МС",Q72="МС",R72="МС",S72="МС",T72="МС",U72="МС",V72="МС",W72="МС",X72="МС",Y72="МС",Z72="МС",AA72="МС",AB72="МС",AC72="МС"),"МС",IF(OR(D72="КМС",E72="КМС",F72="КМС",G72="КМС",H72="КМС",I72="КМС",J72="КМС",K72="КМС",L72="КМС",M72="КМС",N72="КМС",O72="КМС",P72="КМС",Q72="КМС",R72="КМС",S72="КМС",T72="КМС",U72="КМС",V72="КМС",W72="КМС",X72="КМС",Y72="КМС",Z72="КМС",AA72="КМС",AB72="КМС",AC72="КМС"),"КМС",IF(OR(D72=1,E72=1,F72=1,G72=1,H72=1,I72=1,J72=1,K72=1,L72=1,M72=1,N72=1,O72=1,P72=1,Q72=1,R72=1,S72=1,T72=1,U72=1,V72=1,W72=1,X72=1,Y72=1,Z72=1,AA72=1,AB72=1,AC72=1),1,IF(OR(D72=2,E72=2,F72=2,G72=2,H72=2,I72=2,J72=2,K72=2,L72=2,M72=2,N72=2,O72=2,P72=2,Q72=2,R72=2,S72=2,T72=2,U72=2,V72=2,W72=2,X72=2,Y72=2,Z72=2,AA72=2,AB72=2,AC72=2),2,IF(OR(D72=3,E72=3,F72=3,G72=3,H72=3,I72=3,J72=3,K72=3,L72=3,M72=3,N72=3,O72=3,P72=3,Q72=3,R72=3,S72=3,T72=3,U72=3,V72=3,W72=3,X72=3,Y72=3,Z72=3,AA72=3,AB72=3,AC72=3),3,IF(OR(D72="1 юн",E72="1 юн",F72="1 юн",G72="1 юн",H72="1 юн",I72="1 юн",J72="1 юн",K72="1 юн",L72="1 юн",M72="1 юн",N72="1 юн",O72="1 юн",P72="1 юн",Q72="1 юн",R72="1 юн",S72="1 юн",T72="1 юн",U72="1 юн",V72="1 юн",W72="1 юн",X72="1 юн",Y72="1 юн",Z72="1 юн",AA72="1 юн",AB72="1 юн",AC72="1 юн"),"1 юн",IF(OR(D72="юн",E72="юн",F72="юн",G72="юн",H72="юн",I72="юн",J72="юн",K72="юн",L72="юн",M72="юн",N72="юн",O72="юн",P72="юн",Q72="юн",R72="юн",S72="юн",T72="юн",U72="юн",V72="юн",W72="юн",X72="юн",Y72="юн",Z72="юн",AA72="юн",AB72="юн",AC72="юн"),"юн","б/р"))))))) -> юн
A73: Зайцев Даниил | B73: Речица | C73: 2000 | AD73: =IF(OR(D73="МС",E73="МС",F73="МС",G73="МС",H73="МС",I73="МС",J73="МС",K73="МС",L73="МС",M73="МС",N73="МС",O73="МС",P73="МС",Q73="МС",R73="МС",S73="МС",T73="МС",U73="МС",V73="МС",W73="МС",X73="МС",Y73="МС",Z73="МС",AA73="МС",AB73="МС",AC73="МС"),"МС",IF(OR(D73="КМС",E73="КМС",F73="КМС",G73="КМС",H73="КМС",I73="КМС",J73="КМС",K73="КМС",L73="КМС",M73="КМС",N73="КМС",O73="КМС",P73="КМС",Q73="КМС",R73="КМС",S73="КМС",T73="КМС",U73="КМС",V73="КМС",W73="КМС",X73="КМС",Y73="КМС",Z73="КМС",AA73="КМС",AB73="КМС",AC73="КМС"),"КМС",IF(OR(D73=1,E73=1,F73=1,G73=1,H73=1,I73=1,J73=1,K73=1,L73=1,M73=1,N73=1,O73=1,P73=1,Q73=1,R73=1,S73=1,T73=1,U73=1,V73=1,W73=1,X73=1,Y73=1,Z73=1,AA73=1,AB73=1,AC73=1),1,IF(OR(D73=2,E73=2,F73=2,G73=2,H73=2,I73=2,J73=2,K73=2,L73=2,M73=2,N73=2,O73=2,P73=2,Q73=2,R73=2,S73=2,T73=2,U73=2,V73=2,W73=2,X73=2,Y73=2,Z73=2,AA73=2,AB73=2,AC73=2),2,IF(OR(D73=3,E73=3,F73=3,G73=3,H73=3,I73=3,J73=3,K73=3,L73=3,M73=3,N73=3,O73=3,P73=3,Q73=3,R73=3,S73=3,T73=3,U73=3,V73=3,W73=3,X73=3,Y73=3,Z73=3,AA73=3,AB73=3,AC73=3),3,IF(OR(D73="1 юн",E73="1 юн",F73="1 юн",G73="1 юн",H73="1 юн",I73="1 юн",J73="1 юн",K73="1 юн",L73="1 юн",M73="1 юн",N73="1 юн",O73="1 юн",P73="1 юн",Q73="1 юн",R73="1 юн",S73="1 юн",T73="1 юн",U73="1 юн",V73="1 юн",W73="1 юн",X73="1 юн",Y73="1 юн",Z73="1 юн",AA73="1 юн",AB73="1 юн",AC73="1 юн"),"1 юн",IF(OR(D73="юн",E73="юн",F73="юн",G73="юн",H73="юн",I73="юн",J73="юн",K73="юн",L73="юн",M73="юн",N73="юн",O73="юн",P73="юн",Q73="юн",R73="юн",S73="юн",T73="юн",U73="юн",V73="юн",W73="юн",X73="юн",Y73="юн",Z73="юн",AA73="юн",AB73="юн",AC73="юн"),"юн","б/р"))))))) -> б/р
A74: Зайцев Данила | B74: Брестская область | C74: 2003 | R74: юн | X74: 3 | AD74: =IF(OR(D74="МС",E74="МС",F74="МС",G74="МС",H74="МС",I74="МС",J74="МС",K74="МС",L74="МС",M74="МС",N74="МС",O74="МС",P74="МС",Q74="МС",R74="МС",S74="МС",T74="МС",U74="МС",V74="МС",W74="МС",X74="МС",Y74="МС",Z74="МС",AA74="МС",AB74="МС",AC74="МС"),"МС",IF(OR(D74="КМС",E74="КМС",F74="КМС",G74="КМС",H74="КМС",I74="КМС",J74="КМС",K74="КМС",L74="КМС",M74="КМС",N74="КМС",O74="КМС",P74="КМС",Q74="КМС",R74="КМС",S74="КМС",T74="КМС",U74="КМС",V74="КМС",W74="КМС",X74="КМС",Y74="КМС",Z74="КМС",AA74="КМС",AB74="КМС",AC74="КМС"),"КМС",IF(OR(D74=1,E74=1,F74=1,G74=1,H74=1,I74=1,J74=1,K74=1,L74=1,M74=1,N74=1,O74=1,P74=1,Q74=1,R74=1,S74=1,T74=1,U74=1,V74=1,W74=1,X74=1,Y74=1,Z74=1,AA74=1,AB74=1,AC74=1),1,IF(OR(D74=2,E74=2,F74=2,G74=2,H74=2,I74=2,J74=2,K74=2,L74=2,M74=2,N74=2,O74=2,P74=2,Q74=2,R74=2,S74=2,T74=2,U74=2,V74=2,W74=2,X74=2,Y74=2,Z74=2,AA74=2,AB74=2,AC74=2),2,IF(OR(D74=3,E74=3,F74=3,G74=3,H74=3,I74=3,J74=3,K74=3,L74=3,M74=3,N74=3,O74=3,P74=3,Q74=3,R74=3,S74=3,T74=3,U74=3,V74=3,W74=3,X74=3,Y74=3,Z74=3,AA74=3,AB74=3,AC74=3),3,IF(OR(D74="1 юн",E74="1 юн",F74="1 юн",G74="1 юн",H74="1 юн",I74="1 юн",J74="1 юн",K74="1 юн",L74="1 юн",M74="1 юн",N74="1 юн",O74="1 юн",P74="1 юн",Q74="1 юн",R74="1 юн",S74="1 юн",T74="1 юн",U74="1 юн",V74="1 юн",W74="1 юн",X74="1 юн",Y74="1 юн",Z74="1 юн",AA74="1 юн",AB74="1 юн",AC74="1 юн"),"1 юн",IF(OR(D74="юн",E74="юн",F74="юн",G74="юн",H74="юн",I74="юн",J74="юн",K74="юн",L74="юн",M74="юн",N74="юн",O74="юн",P74="юн",Q74="юн",R74="юн",S74="юн",T74="юн",U74="юн",V74="юн",W74="юн",X74="юн",Y74="юн",Z74="юн",AA74="юн",AB74="юн",AC74="юн"),"юн","б/р"))))))) -> 3
A75: Зборовский Андрей | B75: Речица | C75: 2001 | I75: 1 юн | AD75: =IF(OR(D75="МС",E75="МС",F75="МС",G75="МС",H75="МС",I75="МС",J75="МС",K75="МС",L75="МС",M75="МС",N75="МС",O75="МС",P75="МС",Q75="МС",R75="МС",S75="МС",T75="МС",U75="МС",V75="МС",W75="МС",X75="МС",Y75="МС",Z75="МС",AA75="МС",AB75="МС",AC75="МС"),"МС",IF(OR(D75="КМС",E75="КМС",F75="КМС",G75="КМС",H75="КМС",I75="КМС",J75="КМС",K75="КМС",L75="КМС",M75="КМС",N75="КМС",O75="КМС",P75="КМС",Q75="КМС",R75="КМС",S75="КМС",T75="КМС",U75="КМС",V75="КМС",W75="КМС",X75="КМС",Y75="КМС",Z75="КМС",AA75="КМС",AB75="КМС",AC75="КМС"),"КМС",IF(OR(D75=1,E75=1,F75=1,G75=1,H75=1,I75=1,J75=1,K75=1,L75=1,M75=1,N75=1,O75=1,P75=1,Q75=1,R75=1,S75=1,T75=1,U75=1,V75=1,W75=1,X75=1,Y75=1,Z75=1,AA75=1,AB75=1,AC75=1),1,IF(OR(D75=2,E75=2,F75=2,G75=2,H75=2,I75=2,J75=2,K75=2,L75=2,M75=2,N75=2,O75=2,P75=2,Q75=2,R75=2,S75=2,T75=2,U75=2,V75=2,W75=2,X75=2,Y75=2,Z75=2,AA75=2,AB75=2,AC75=2),2,IF(OR(D75=3,E75=3,F75=3,G75=3,H75=3,I75=3,J75=3,K75=3,L75=3,M75=3,N75=3,O75=3,P75=3,Q75=3,R75=3,S75=3,T75=3,U75=3,V75=3,W75=3,X75=3,Y75=3,Z75=3,AA75=3,AB75=3,AC75=3),3,IF(OR(D75="1 юн",E75="1 юн",F75="1 юн",G75="1 юн",H75="1 юн",I75="1 юн",J75="1 юн",K75="1 юн",L75="1 юн",M75="1 юн",N75="1 юн",O75="1 юн",P75="1 юн",Q75="1 юн",R75="1 юн",S75="1 юн",T75="1 юн",U75="1 юн",V75="1 юн",W75="1 юн",X75="1 юн",Y75="1 юн",Z75="1 юн",AA75="1 юн",AB75="1 юн",AC75="1 юн"),"1 юн",IF(OR(D75="юн",E75="юн",F75="юн",G75="юн",H75="юн",I75="юн",J75="юн",K75="юн",L75="юн",M75="юн",N75="юн",O75="юн",P75="юн",Q75="юн",R75="юн",S75="юн",T75="юн",U75="юн",V75="юн",W75="юн",X75="юн",Y75="юн",Z75="юн",AA75="юн",AB75="юн",AC75="юн"),"юн","б/р"))))))) -> 1 юн
A76: Зюзин Иван | B76: Минск | C76: 2001 | F76: 2 | H76: 1 | Q76: 2 | Y76: 3 | Z76: 2 | AA76: юн | AB76: 2 | AD76: =IF(OR(D76="МС",E76="МС",F76="МС",G76="МС",H76="МС",I76="МС",J76="МС",K76="МС",L76="МС",M76="МС",N76="МС",O76="МС",P76="МС",Q76="МС",R76="МС",S76="МС",T76="МС",U76="МС",V76="МС",W76="МС",X76="МС",Y76="МС",Z76="МС",AA76="МС",AB76="МС",AC76="МС"),"МС",IF(OR(D76="КМС",E76="КМС",F76="КМС",G76="КМС",H76="КМС",I76="КМС",J76="КМС",K76="КМС",L76="КМС",M76="КМС",N76="КМС",O76="КМС",P76="КМС",Q76="КМС",R76="КМС",S76="КМС",T76="КМС",U76="КМС",V76="КМС",W76="КМС",X76="КМС",Y76="КМС",Z76="КМС",AA76="КМС",AB76="КМС",AC76="КМС"),"КМС",IF(OR(D76=1,E76=1,F76=1,G76=1,H76=1,I76=1,J76=1,K76=1,L76=1,M76=1,N76=1,O76=1,P76=1,Q76=1,R76=1,S76=1,T76=1,U76=1,V76=1,W76=1,X76=1,Y76=1,Z76=1,AA76=1,AB76=1,AC76=1),1,IF(OR(D76=2,E76=2,F76=2,G76=2,H76=2,I76=2,J76=2,K76=2,L76=2,M76=2,N76=2,O76=2,P76=2,Q76=2,R76=2,S76=2,T76=2,U76=2,V76=2,W76=2,X76=2,Y76=2,Z76=2,AA76=2,AB76=2,AC76=2),2,IF(OR(D76=3,E76=3,F76=3,G76=3,H76=3,I76=3,J76=3,K76=3,L76=3,M76=3,N76=3,O76=3,P76=3,Q76=3,R76=3,S76=3,T76=3,U76=3,V76=3,W76=3,X76=3,Y76=3,Z76=3,AA76=3,AB76=3,AC76=3),3,IF(OR(D76="1 юн",E76="1 юн",F76="1 юн",G76="1 юн",H76="1 юн",I76="1 юн",J76="1 юн",K76="1 юн",L76="1 юн",M76="1 юн",N76="1 юн",O76="1 юн",P76="1 юн",Q76="1 юн",R76="1 юн",S76="1 юн",T76="1 юн",U76="1 юн",V76="1 юн",W76="1 юн",X76="1 юн",Y76="1 юн",Z76="1 юн",AA76="1 юн",AB76="1 юн",AC76="1 юн"),"1 юн",IF(OR(D76="юн",E76="юн",F76="юн",G76="юн",H76="юн",I76="юн",J76="юн",K76="юн",L76="юн",M76="юн",N76="юн",O76="юн",P76="юн",Q76="юн",R76="юн",S76="юн",T76="юн",U76="юн",V76="юн",W76="юн",X76="юн",Y76="юн",Z76="юн",AA76="юн",AB76="юн",AC76="юн"),"юн","б/р"))))))) -> 1
A77: Зюзь Сергей | B77: Пуховичский р-н | C77: 2001 | F77: юн | AA77: 2 | AD77: =IF(OR(D77="МС",E77="МС",F77="МС",G77="МС",H77="МС",I77="МС",J77="МС",K77="МС",L77="МС",M77="МС",N77="МС",O77="МС",P77="МС",Q77="МС",R77="МС",S77="МС",T77="МС",U77="МС",V77="МС",W77="МС",X77="МС",Y77="МС",Z77="МС",AA77="МС",AB77="МС",AC77="МС"),"МС",IF(OR(D77="КМС",E77="КМС",F77="КМС",G77="КМС",H77="КМС",I77="КМС",J77="КМС",K77="КМС",L77="КМС",M77="КМС",N77="КМС",O77="КМС",P77="КМС",Q77="КМС",R77="КМС",S77="КМС",T77="КМС",U77="КМС",V77="КМС",W77="КМС",X77="КМС",Y77="КМС",Z77="КМС",AA77="КМС",AB77="КМС",AC77="КМС"),"КМС",IF(OR(D77=1,E77=1,F77=1,G77=1,H77=1,I77=1,J77=1,K77=1,L77=1,M77=1,N77=1,O77=1,P77=1,Q77=1,R77=1,S77=1,T77=1,U77=1,V77=1,W77=1,X77=1,Y77=1,Z77=1,AA77=1,AB77=1,AC77=1),1,IF(OR(D77=2,E77=2,F77=2,G77=2,H77=2,I77=2,J77=2,K77=2,L77=2,M77=2,N77=2,O77=2,P77=2,Q77=2,R77=2,S77=2,T77=2,U77=2,V77=2,W77=2,X77=2,Y77=2,Z77=2,AA77=2,AB77=2,AC77=2),2,IF(OR(D77=3,E77=3,F77=3,G77=3,H77=3,I77=3,J77=3,K77=3,L77=3,M77=3,N77=3,O77=3,P77=3,Q77=3,R77=3,S77=3,T77=3,U77=3,V77=3,W77=3,X77=3,Y77=3,Z77=3,AA77=3,AB77=3,AC77=3),3,IF(OR(D77="1 юн",E77="1 юн",F77="1 юн",G77="1 юн",H77="1 юн",I77="1 юн",J77="1 юн",K77="1 юн",L77="1 юн",M77="1 юн",N77="1 юн",O77="1 юн",P77="1 юн",Q77="1 юн",R77="1 юн",S77="1 юн",T77="1 юн",U77="1 юн",V77="1 юн",W77="1 юн",X77="1 юн",Y77="1 юн",Z77="1 юн",AA77="1 юн",AB77="1 юн",AC77="1 юн"),"1 юн",IF(OR(D77="юн",E77="юн",F77="юн",G77="юн",H77="юн",I77="юн",J77="юн",K77="юн",L77="юн",M77="юн",N77="юн",O77="юн",P77="юн",Q77="юн",R77="юн",S77="юн",T77="юн",U77="юн",V77="юн",W77="юн",X77="юн",Y77="юн",Z77="юн",AA77="юн",AB77="юн",AC77="юн"),"юн","б/р"))))))) -> 2
A78: Иванов Александр | B78: Минск | C78: 1992 | O78: 2 | P78: 2 | AD78: =IF(OR(D78="МС",E78="МС",F78="МС",G78="МС",H78="МС",I78="МС",J78="МС",K78="МС",L78="МС",M78="МС",N78="МС",O78="МС",P78="МС",Q78="МС",R78="МС",S78="МС",T78="МС",U78="МС",V78="МС",W78="МС",X78="МС",Y78="МС",Z78="МС",AA78="МС",AB78="МС",AC78="МС"),"МС",IF(OR(D78="КМС",E78="КМС",F78="КМС",G78="КМС",H78="КМС",I78="КМС",J78="КМС",K78="КМС",L78="КМС",M78="КМС",N78="КМС",O78="КМС",P78="КМС",Q78="КМС",R78="КМС",S78="КМС",T78="КМС",U78="КМС",V78="КМС",W78="КМС",X78="КМС",Y78="КМС",Z78="КМС",AA78="КМС",AB78="КМС",AC78="КМС"),"КМС",IF(OR(D78=1,E78=1,F78=1,G78=1,H78=1,I78=1,J78=1,K78=1,L78=1,M78=1,N78=1,O78=1,P78=1,Q78=1,R78=1,S78=1,T78=1,U78=1,V78=1,W78=1,X78=1,Y78=1,Z78=1,AA78=1,AB78=1,AC78=1),1,IF(OR(D78=2,E78=2,F78=2,G78=2,H78=2,I78=2,J78=2,K78=2,L78=2,M78=2,N78=2,O78=2,P78=2,Q78=2,R78=2,S78=2,T78=2,U78=2,V78=2,W78=2,X78=2,Y78=2,Z78=2,AA78=2,AB78=2,AC78=2),2,IF(OR(D78=3,E78=3,F78=3,G78=3,H78=3,I78=3,J78=3,K78=3,L78=3,M78=3,N78=3,O78=3,P78=3,Q78=3,R78=3,S78=3,T78=3,U78=3,V78=3,W78=3,X78=3,Y78=3,Z78=3,AA78=3,AB78=3,AC78=3),3,IF(OR(D78="1 юн",E78="1 юн",F78="1 юн",G78="1 юн",H78="1 юн",I78="1 юн",J78="1 юн",K78="1 юн",L78="1 юн",M78="1 юн",N78="1 юн",O78="1 юн",P78="1 юн",Q78="1 юн",R78="1 юн",S78="1 юн",T78="1 юн",U78="1 юн",V78="1 юн",W78="1 юн",X78="1 юн",Y78="1 юн",Z78="1 юн",AA78="1 юн",AB78="1 юн",AC78="1 юн"),"1 юн",IF(OR(D78="юн",E78="юн",F78="юн",G78="юн",H78="юн",I78="юн",J78="юн",K78="юн",L78="юн",M78="юн",N78="юн",O78="юн",P78="юн",Q78="юн",R78="юн",S78="юн",T78="юн",U78="юн",V78="юн",W78="юн",X78="юн",Y78="юн",Z78="юн",AA78="юн",AB78="юн",AC78="юн"),"юн","б/р"))))))) -> 2
A79: Изидеров Никита | B79: Полоцк | C79: 1994 | E79: КМС | G79: КМС | H79: КМС | V79: 2 | Z79: КМС | AD79: =IF(OR(D79="МС",E79="МС",F79="МС",G79="МС",H79="МС",I79="МС",J79="МС",K79="МС",L79="МС",M79="МС",N79="МС",O79="МС",P79="МС",Q79="МС",R79="МС",S79="МС",T79="МС",U79="МС",V79="МС",W79="МС",X79="МС",Y79="МС",Z79="МС",AA79="МС",AB79="МС",AC79="МС"),"МС",IF(OR(D79="КМС",E79="КМС",F79="КМС",G79="КМС",H79="КМС",I79="КМС",J79="КМС",K79="КМС",L79="КМС",M79="КМС",N79="КМС",O79="КМС",P79="КМС",Q79="КМС",R79="КМС",S79="КМС",T79="КМС",U79="КМС",V79="КМС",W79="КМС",X79="КМС",Y79="КМС",Z79="КМС",AA79="КМС",AB79="КМС",AC79="КМС"),"КМС",IF(OR(D79=1,E79=1,F79=1,G79=1,H79=1,I79=1,J79=1,K79=1,L79=1,M79=1,N79=1,O79=1,P79=1,Q79=1,R79=1,S79=1,T79=1,U79=1,V79=1,W79=1,X79=1,Y79=1,Z79=1,AA79=1,AB79=1,AC79=1),1,IF(OR(D79=2,E79=2,F79=2,G79=2,H79=2,I79=2,J79=2,K79=2,L79=2,M79=2,N79=2,O79=2,P79=2,Q79=2,R79=2,S79=2,T79=2,U79=2,V79=2,W79=2,X79=2,Y79=2,Z79=2,AA79=2,AB79=2,AC79=2),2,IF(OR(D79=3,E79=3,F79=3,G79=3,H79=3,I79=3,J79=3,K79=3,L79=3,M79=3,N79=3,O79=3,P79=3,Q79=3,R79=3,S79=3,T79=3,U79=3,V79=3,W79=3,X79=3,Y79=3,Z79=3,AA79=3,AB79=3,AC79=3),3,IF(OR(D79="1 юн",E79="1 юн",F79="1 юн",G79="1 юн",H79="1 юн",I79="1 юн",J79="1 юн",K79="1 юн",L79="1 юн",M79="1 юн",N79="1 юн",O79="1 юн",P79="1 юн",Q79="1 юн",R79="1 юн",S79="1 юн",T79="1 юн",U79="1 юн",V79="1 юн",W79="1 юн",X79="1 юн",Y79="1 юн",Z79="1 юн",AA79="1 юн",AB79="1 юн",AC79="1 юн"),"1 юн",IF(OR(D79="юн",E79="юн",F79="юн",G79="юн",H79="юн",I79="юн",J79="юн",K79="юн",L79="юн",M79="юн",N79="юн",O79="юн",P79="юн",Q79="юн",R79="юн",S79="юн",T79="юн",U79="юн",V79="юн",W79="юн",X79="юн",Y79="юн",Z79="юн",AA79="юн",AB79="юн",AC79="юн"),"юн","б/р"))))))) -> КМС
A80: Ильинков Виталик | B80: Минск | C80: 2003 | AD80: =IF(OR(D80="МС",E80="МС",F80="МС",G80="МС",H80="МС",I80="МС",J80="МС",K80="МС",L80="МС",M80="МС",N80="МС",O80="МС",P80="МС",Q80="МС",R80="МС",S80="МС",T80="МС",U80="МС",V80="МС",W80="МС",X80="МС",Y80="МС",Z80="МС",AA80="МС",AB80="МС",AC80="МС"),"МС",IF(OR(D80="КМС",E80="КМС",F80="КМС",G80="КМС",H80="КМС",I80="КМС",J80="КМС",K80="КМС",L80="КМС",M80="КМС",N80="КМС",O80="КМС",P80="КМС",Q80="КМС",R80="КМС",S80="КМС",T80="КМС",U80="КМС",V80="КМС",W80="КМС",X80="КМС",Y80="КМС",Z80="КМС",AA80="КМС",AB80="КМС",AC80="КМС"),"КМС",IF(OR(D80=1,E80=1,F80=1,G80=1,H80=1,I80=1,J80=1,K80=1,L80=1,M80=1,N80=1,O80=1,P80=1,Q80=1,R80=1,S80=1,T80=1,U80=1,V80=1,W80=1,X80=1,Y80=1,Z80=1,AA80=1,AB80=1,AC80=1),1,IF(OR(D80=2,E80=2,F80=2,G80=2,H80=2,I80=2,J80=2,K80=2,L80=2,M80=2,N80=2,O80=2,P80=2,Q80=2,R80=2,S80=2,T80=2,U80=2,V80=2,W80=2,X80=2,Y80=2,Z80=2,AA80=2,AB80=2,AC80=2),2,IF(OR(D80=3,E80=3,F80=3,G80=3,H80=3,I80=3,J80=3,K80=3,L80=3,M80=3,N80=3,O80=3,P80=3,Q80=3,R80=3,S80=3,T80=3,U80=3,V80=3,W80=3,X80=3,Y80=3,Z80=3,AA80=3,AB80=3,AC80=3),3,IF(OR(D80="1 юн",E80="1 юн",F80="1 юн",G80="1 юн",H80="1 юн",I80="1 юн",J80="1 юн",K80="1 юн",L80="1 юн",M80="1 юн",N80="1 юн",O80="1 юн",P80="1 юн",Q80="1 юн",R80="1 юн",S80="1 юн",T80="1 юн",U80="1 юн",V80="1 юн",W80="1 юн",X80="1 юн",Y80="1 юн",Z80="1 юн",AA80="1 юн",AB80="1 юн",AC80="1 юн"),"1 юн",IF(OR(D80="юн",E80="юн",F80="юн",G80="юн",H80="юн",I80="юн",J80="юн",K80="юн",L80="юн",M80="юн",N80="юн",O80="юн",P80="юн",Q80="юн",R80="юн",S80="юн",T80="юн",U80="юн",V80="юн",W80="юн",X80="юн",Y80="юн",Z80="юн",AA80="юн",AB80="юн",AC80="юн"),"юн","б/р"))))))) -> б/р
A81: Иосько Валик | B81: РЦЭК | C81: 2006 | AD81: =IF(OR(D81="МС",E81="МС",F81="МС",G81="МС",H81="МС",I81="МС",J81="МС",K81="МС",L81="МС",M81="МС",N81="МС",O81="МС",P81="МС",Q81="МС",R81="МС",S81="МС",T81="МС",U81="МС",V81="МС",W81="МС",X81="МС",Y81="МС",Z81="МС",AA81="МС",AB81="МС",AC81="МС"),"МС",IF(OR(D81="КМС",E81="КМС",F81="КМС",G81="КМС",H81="КМС",I81="КМС",J81="КМС",K81="КМС",L81="КМС",M81="КМС",N81="КМС",O81="КМС",P81="КМС",Q81="КМС",R81="КМС",S81="КМС",T81="КМС",U81="КМС",V81="КМС",W81="КМС",X81="КМС",Y81="КМС",Z81="КМС",AA81="КМС",AB81="КМС",AC81="КМС"),"КМС",IF(OR(D81=1,E81=1,F81=1,G81=1,H81=1,I81=1,J81=1,K81=1,L81=1,M81=1,N81=1,O81=1,P81=1,Q81=1,R81=1,S81=1,T81=1,U81=1,V81=1,W81=1,X81=1,Y81=1,Z81=1,AA81=1,AB81=1,AC81=1),1,IF(OR(D81=2,E81=2,F81=2,G81=2,H81=2,I81=2,J81=2,K81=2,L81=2,M81=2,N81=2,O81=2,P81=2,Q81=2,R81=2,S81=2,T81=2,U81=2,V81=2,W81=2,X81=2,Y81=2,Z81=2,AA81=2,AB81=2,AC81=2),2,IF(OR(D81=3,E81=3,F81=3,G81=3,H81=3,I81=3,J81=3,K81=3,L81=3,M81=3,N81=3,O81=3,P81=3,Q81=3,R81=3,S81=3,T81=3,U81=3,V81=3,W81=3,X81=3,Y81=3,Z81=3,AA81=3,AB81=3,AC81=3),3,IF(OR(D81="1 юн",E81="1 юн",F81="1 юн",G81="1 юн",H81="1 юн",I81="1 юн",J81="1 юн",K81="1 юн",L81="1 юн",M81="1 юн",N81="1 юн",O81="1 юн",P81="1 юн",Q81="1 юн",R81="1 юн",S81="1 юн",T81="1 юн",U81="1 юн",V81="1 юн",W81="1 юн",X81="1 юн",Y81="1 юн",Z81="1 юн",AA81="1 юн",AB81="1 юн",AC81="1 юн"),"1 юн",IF(OR(D81="юн",E81="юн",F81="юн",G81="юн",H81="юн",I81="юн",J81="юн",K81="юн",L81="юн",M81="юн",N81="юн",O81="юн",P81="юн",Q81="юн",R81="юн",S81="юн",T81="юн",U81="юн",V81="юн",W81="юн",X81="юн",Y81="юн",Z81="юн",AA81="юн",AB81="юн",AC81="юн"),"юн","б/р"))))))) -> б/р
A82: Казимирченко Антон | B82: РЦЭК | C82: 2004 | S82: 1 юн | T82: юн | W82: юн | X82: юн | AD82: =IF(OR(D82="МС",E82="МС",F82="МС",G82="МС",H82="МС",I82="МС",J82="МС",K82="МС",L82="МС",M82="МС",N82="МС",O82="МС",P82="МС",Q82="МС",R82="МС",S82="МС",T82="МС",U82="МС",V82="МС",W82="МС",X82="МС",Y82="МС",Z82="МС",AA82="МС",AB82="МС",AC82="МС"),"МС",IF(OR(D82="КМС",E82="КМС",F82="КМС",G82="КМС",H82="КМС",I82="КМС",J82="КМС",K82="КМС",L82="КМС",M82="КМС",N82="КМС",O82="КМС",P82="КМС",Q82="КМС",R82="КМС",S82="КМС",T82="КМС",U82="КМС",V82="КМС",W82="КМС",X82="КМС",Y82="КМС",Z82="КМС",AA82="КМС",AB82="КМС",AC82="КМС"),"КМС",IF(OR(D82=1,E82=1,F82=1,G82=1,H82=1,I82=1,J82=1,K82=1,L82=1,M82=1,N82=1,O82=1,P82=1,Q82=1,R82=1,S82=1,T82=1,U82=1,V82=1,W82=1,X82=1,Y82=1,Z82=1,AA82=1,AB82=1,AC82=1),1,IF(OR(D82=2,E82=2,F82=2,G82=2,H82=2,I82=2,J82=2,K82=2,L82=2,M82=2,N82=2,O82=2,P82=2,Q82=2,R82=2,S82=2,T82=2,U82=2,V82=2,W82=2,X82=2,Y82=2,Z82=2,AA82=2,AB82=2,AC82=2),2,IF(OR(D82=3,E82=3,F82=3,G82=3,H82=3,I82=3,J82=3,K82=3,L82=3,M82=3,N82=3,O82=3,P82=3,Q82=3,R82=3,S82=3,T82=3,U82=3,V82=3,W82=3,X82=3,Y82=3,Z82=3,AA82=3,AB82=3,AC82=3),3,IF(OR(D82="1 юн",E82="1 юн",F82="1 юн",G82="1 юн",H82="1 юн",I82="1 юн",J82="1 юн",K82="1 юн",L82="1 юн",M82="1 юн",N82="1 юн",O82="1 юн",P82="1 юн",Q82="1 юн",R82="1 юн",S82="1 юн",T82="1 юн",U82="1 юн",V82="1 юн",W82="1 юн",X82="1 юн",Y82="1 юн",Z82="1 юн",AA82="1 юн",AB82="1 юн",AC82="1 юн"),"1 юн",IF(OR(D82="юн",E82="юн",F82="юн",G82="юн",H82="юн",I82="юн",J82="юн",K82="юн",L82="юн",M82="юн",N82="юн",O82="юн",P82="юн",Q82="юн",R82="юн",S82="юн",T82="юн",U82="юн",V82="юн",W82="юн",X82="юн",Y82="юн",Z82="юн",AA82="юн",AB82="юн",AC82="юн"),"юн","б/р"))))))) -> 1 юн
A83: Кайдунов Антон | B83: ГОЦТиКДиМ Гомель | C83: 2004 | AB83: юн | AD83: =IF(OR(D83="МС",E83="МС",F83="МС",G83="МС",H83="МС",I83="МС",J83="МС",K83="МС",L83="МС",M83="МС",N83="МС",O83="МС",P83="МС",Q83="МС",R83="МС",S83="МС",T83="МС",U83="МС",V83="МС",W83="МС",X83="МС",Y83="МС",Z83="МС",AA83="МС",AB83="МС",AC83="МС"),"МС",IF(OR(D83="КМС",E83="КМС",F83="КМС",G83="КМС",H83="КМС",I83="КМС",J83="КМС",K83="КМС",L83="КМС",M83="КМС",N83="КМС",O83="КМС",P83="КМС",Q83="КМС",R83="КМС",S83="КМС",T83="КМС",U83="КМС",V83="КМС",W83="КМС",X83="КМС",Y83="КМС",Z83="КМС",AA83="КМС",AB83="КМС",AC83="КМС"),"КМС",IF(OR(D83=1,E83=1,F83=1,G83=1,H83=1,I83=1,J83=1,K83=1,L83=1,M83=1,N83=1,O83=1,P83=1,Q83=1,R83=1,S83=1,T83=1,U83=1,V83=1,W83=1,X83=1,Y83=1,Z83=1,AA83=1,AB83=1,AC83=1),1,IF(OR(D83=2,E83=2,F83=2,G83=2,H83=2,I83=2,J83=2,K83=2,L83=2,M83=2,N83=2,O83=2,P83=2,Q83=2,R83=2,S83=2,T83=2,U83=2,V83=2,W83=2,X83=2,Y83=2,Z83=2,AA83=2,AB83=2,AC83=2),2,IF(OR(D83=3,E83=3,F83=3,G83=3,H83=3,I83=3,J83=3,K83=3,L83=3,M83=3,N83=3,O83=3,P83=3,Q83=3,R83=3,S83=3,T83=3,U83=3,V83=3,W83=3,X83=3,Y83=3,Z83=3,AA83=3,AB83=3,AC83=3),3,IF(OR(D83="1 юн",E83="1 юн",F83="1 юн",G83="1 юн",H83="1 юн",I83="1 юн",J83="1 юн",K83="1 юн",L83="1 юн",M83="1 юн",N83="1 юн",O83="1 юн",P83="1 юн",Q83="1 юн",R83="1 юн",S83="1 юн",T83="1 юн",U83="1 юн",V83="1 юн",W83="1 юн",X83="1 юн",Y83="1 юн",Z83="1 юн",AA83="1 юн",AB83="1 юн",AC83="1 юн"),"1 юн",IF(OR(D83="юн",E83="юн",F83="юн",G83="юн",H83="юн",I83="юн",J83="юн",K83="юн",L83="юн",M83="юн",N83="юн",O83="юн",P83="юн",Q83="юн",R83="юн",S83="юн",T83="юн",U83="юн",V83="юн",W83="юн",X83="юн",Y83="юн",Z83="юн",AA83="юн",AB83="юн",AC83="юн"),"юн","б/р"))))))) -> юн
A84: Караваев Дмитрий | B84: ДЮСШ "Омега" | C84: 1993 | D84: КМС | E84: 1 | G84: КМС | K84: КМС | L84: 1 | U84: КМС | V84: 2 | Y84: 2 | Z84: 1 | AC84: 2 | AD84: =IF(OR(D84="МС",E84="МС",F84="МС",G84="МС",H84="МС",I84="МС",J84="МС",K84="МС",L84="МС",M84="МС",N84="МС",O84="МС",P84="МС",Q84="МС",R84="МС",S84="МС",T84="МС",U84="МС",V84="МС",W84="МС",X84="МС",Y84="МС",Z84="МС",AA84="МС",AB84="МС",AC84="МС"),"МС",IF(OR(D84="КМС",E84="КМС",F84="КМС",G84="КМС",H84="КМС",I84="КМС",J84="КМС",K84="КМС",L84="КМС",M84="КМС",N84="КМС",O84="КМС",P84="КМС",Q84="КМС",R84="КМС",S84="КМС",T84="КМС",U84="КМС",V84="КМС",W84="КМС",X84="КМС",Y84="КМС",Z84="КМС",AA84="КМС",AB84="КМС",AC84="КМС"),"КМС",IF(OR(D84=1,E84=1,F84=1,G84=1,H84=1,I84=1,J84=1,K84=1,L84=1,M84=1,N84=1,O84=1,P84=1,Q84=1,R84=1,S84=1,T84=1,U84=1,V84=1,W84=1,X84=1,Y84=1,Z84=1,AA84=1,AB84=1,AC84=1),1,IF(OR(D84=2,E84=2,F84=2,G84=2,H84=2,I84=2,J84=2,K84=2,L84=2,M84=2,N84=2,O84=2,P84=2,Q84=2,R84=2,S84=2,T84=2,U84=2,V84=2,W84=2,X84=2,Y84=2,Z84=2,AA84=2,AB84=2,AC84=2),2,IF(OR(D84=3,E84=3,F84=3,G84=3,H84=3,I84=3,J84=3,K84=3,L84=3,M84=3,N84=3,O84=3,P84=3,Q84=3,R84=3,S84=3,T84=3,U84=3,V84=3,W84=3,X84=3,Y84=3,Z84=3,AA84=3,AB84=3,AC84=3),3,IF(OR(D84="1 юн",E84="1 юн",F84="1 юн",G84="1 юн",H84="1 юн",I84="1 юн",J84="1 юн",K84="1 юн",L84="1 юн",M84="1 юн",N84="1 юн",O84="1 юн",P84="1 юн",Q84="1 юн",R84="1 юн",S84="1 юн",T84="1 юн",U84="1 юн",V84="1 юн",W84="1 юн",X84="1 юн",Y84="1 юн",Z84="1 юн",AA84="1 юн",AB84="1 юн",AC84="1 юн"),"1 юн",IF(OR(D84="юн",E84="юн",F84="юн",G84="юн",H84="юн",I84="юн",J84="юн",K84="юн",L84="юн",M84="юн",N84="юн",O84="юн",P84="юн",Q84="юн",R84="юн",S84="юн",T84="юн",U84="юн",V84="юн",W84="юн",X84="юн",Y84="юн",Z84="юн",AA84="юн",AB84="юн",AC84="юн"),"юн","б/р"))))))) -> КМС
A85: Карпов Роман | B85: MinskOnsight Мн. | C85: 1981 | L85: 2 | AD85: =IF(OR(D85="МС",E85="МС",F85="МС",G85="МС",H85="МС",I85="МС",J85="МС",K85="МС",L85="МС",M85="МС",N85="МС",O85="МС",P85="МС",Q85="МС",R85="МС",S85="МС",T85="МС",U85="МС",V85="МС",W85="МС",X85="МС",Y85="МС",Z85="МС",AA85="МС",AB85="МС",AC85="МС"),"МС",IF(OR(D85="КМС",E85="КМС",F85="КМС",G85="КМС",H85="КМС",I85="КМС",J85="КМС",K85="КМС",L85="КМС",M85="КМС",N85="КМС",O85="КМС",P85="КМС",Q85="КМС",R85="КМС",S85="КМС",T85="КМС",U85="КМС",V85="КМС",W85="КМС",X85="КМС",Y85="КМС",Z85="КМС",AA85="КМС",AB85="КМС",AC85="КМС"),"КМС",IF(OR(D85=1,E85=1,F85=1,G85=1,H85=1,I85=1,J85=1,K85=1,L85=1,M85=1,N85=1,O85=1,P85=1,Q85=1,R85=1,S85=1,T85=1,U85=1,V85=1,W85=1,X85=1,Y85=1,Z85=1,AA85=1,AB85=1,AC85=1),1,IF(OR(D85=2,E85=2,F85=2,G85=2,H85=2,I85=2,J85=2,K85=2,L85=2,M85=2,N85=2,O85=2,P85=2,Q85=2,R85=2,S85=2,T85=2,U85=2,V85=2,W85=2,X85=2,Y85=2,Z85=2,AA85=2,AB85=2,AC85=2),2,IF(OR(D85=3,E85=3,F85=3,G85=3,H85=3,I85=3,J85=3,K85=3,L85=3,M85=3,N85=3,O85=3,P85=3,Q85=3,R85=3,S85=3,T85=3,U85=3,V85=3,W85=3,X85=3,Y85=3,Z85=3,AA85=3,AB85=3,AC85=3),3,IF(OR(D85="1 юн",E85="1 юн",F85="1 юн",G85="1 юн",H85="1 юн",I85="1 юн",J85="1 юн",K85="1 юн",L85="1 юн",M85="1 юн",N85="1 юн",O85="1 юн",P85="1 юн",Q85="1 юн",R85="1 юн",S85="1 юн",T85="1 юн",U85="1 юн",V85="1 юн",W85="1 юн",X85="1 юн",Y85="1 юн",Z85="1 юн",AA85="1 юн",AB85="1 юн",AC85="1 юн"),"1 юн",IF(OR(D85="юн",E85="юн",F85="юн",G85="юн",H85="юн",I85="юн",J85="юн",K85="юн",L85="юн",M85="юн",N85="юн",O85="юн",P85="юн",Q85="юн",R85="юн",S85="юн",T85="юн",U85="юн",V85="юн",W85="юн",X85="юн",Y85="юн",Z85="юн",AA85="юн",AB85="юн",AC85="юн"),"юн","б/р"))))))) -> 2
A86: Качановский Евгений | B86: Хан-Тенгри | C86: 1983 | AD86: =IF(OR(D86="МС",E86="МС",F86="МС",G86="МС",H86="МС",I86="МС",J86="МС",K86="МС",L86="МС",M86="МС",N86="МС",O86="МС",P86="МС",Q86="МС",R86="МС",S86="МС",T86="МС",U86="МС",V86="МС",W86="МС",X86="МС",Y86="МС",Z86="МС",AA86="МС",AB86="МС",AC86="МС"),"МС",IF(OR(D86="КМС",E86="КМС",F86="КМС",G86="КМС",H86="КМС",I86="КМС",J86="КМС",K86="КМС",L86="КМС",M86="КМС",N86="КМС",O86="КМС",P86="КМС",Q86="КМС",R86="КМС",S86="КМС",T86="КМС",U86="КМС",V86="КМС",W86="КМС",X86="КМС",Y86="КМС",Z86="КМС",AA86="КМС",AB86="КМС",AC86="КМС"),"КМС",IF(OR(D86=1,E86=1,F86=1,G86=1,H86=1,I86=1,J86=1,K86=1,L86=1,M86=1,N86=1,O86=1,P86=1,Q86=1,R86=1,S86=1,T86=1,U86=1,V86=1,W86=1,X86=1,Y86=1,Z86=1,AA86=1,AB86=1,AC86=1),1,IF(OR(D86=2,E86=2,F86=2,G86=2,H86=2,I86=2,J86=2,K86=2,L86=2,M86=2,N86=2,O86=2,P86=2,Q86=2,R86=2,S86=2,T86=2,U86=2,V86=2,W86=2,X86=2,Y86=2,Z86=2,AA86=2,AB86=2,AC86=2),2,IF(OR(D86=3,E86=3,F86=3,G86=3,H86=3,I86=3,J86=3,K86=3,L86=3,M86=3,N86=3,O86=3,P86=3,Q86=3,R86=3,S86=3,T86=3,U86=3,V86=3,W86=3,X86=3,Y86=3,Z86=3,AA86=3,AB86=3,AC86=3),3,IF(OR(D86="1 юн",E86="1 юн",F86="1 юн",G86="1 юн",H86="1 юн",I86="1 юн",J86="1 юн",K86="1 юн",L86="1 юн",M86="1 юн",N86="1 юн",O86="1 юн",P86="1 юн",Q86="1 юн",R86="1 юн",S86="1 юн",T86="1 юн",U86="1 юн",V86="1 юн",W86="1 юн",X86="1 юн",Y86="1 юн",Z86="1 юн",AA86="1 юн",AB86="1 юн",AC86="1 юн"),"1 юн",IF(OR(D86="юн",E86="юн",F86="юн",G86="юн",H86="юн",I86="юн",J86="юн",K86="юн",L86="юн",M86="юн",N86="юн",O86="юн",P86="юн",Q86="юн",R86="юн",S86="юн",T86="юн",U86="юн",V86="юн",W86="юн",X86="юн",Y86="юн",Z86="юн",AA86="юн",AB86="юн",AC86="юн"),"юн","б/р"))))))) -> б/р
A87: Киселев Евгений | B87: Шклов | C87: 1999 | F87: 1 | G87: 2 | O87: 2 | AD87: =IF(OR(D87="МС",E87="МС",F87="МС",G87="МС",H87="МС",I87="МС",J87="МС",K87="МС",L87="МС",M87="МС",N87="МС",O87="МС",P87="МС",Q87="МС",R87="МС",S87="МС",T87="МС",U87="МС",V87="МС",W87="МС",X87="МС",Y87="МС",Z87="МС",AA87="МС",AB87="МС",AC87="МС"),"МС",IF(OR(D87="КМС",E87="КМС",F87="КМС",G87="КМС",H87="КМС",I87="КМС",J87="КМС",K87="КМС",L87="КМС",M87="КМС",N87="КМС",O87="КМС",P87="КМС",Q87="КМС",R87="КМС",S87="КМС",T87="КМС",U87="КМС",V87="КМС",W87="КМС",X87="КМС",Y87="КМС",Z87="КМС",AA87="КМС",AB87="КМС",AC87="КМС"),"КМС",IF(OR(D87=1,E87=1,F87=1,G87=1,H87=1,I87=1,J87=1,K87=1,L87=1,M87=1,N87=1,O87=1,P87=1,Q87=1,R87=1,S87=1,T87=1,U87=1,V87=1,W87=1,X87=1,Y87=1,Z87=1,AA87=1,AB87=1,AC87=1),1,IF(OR(D87=2,E87=2,F87=2,G87=2,H87=2,I87=2,J87=2,K87=2,L87=2,M87=2,N87=2,O87=2,P87=2,Q87=2,R87=2,S87=2,T87=2,U87=2,V87=2,W87=2,X87=2,Y87=2,Z87=2,AA87=2,AB87=2,AC87=2),2,IF(OR(D87=3,E87=3,F87=3,G87=3,H87=3,I87=3,J87=3,K87=3,L87=3,M87=3,N87=3,O87=3,P87=3,Q87=3,R87=3,S87=3,T87=3,U87=3,V87=3,W87=3,X87=3,Y87=3,Z87=3,AA87=3,AB87=3,AC87=3),3,IF(OR(D87="1 юн",E87="1 юн",F87="1 юн",G87="1 юн",H87="1 юн",I87="1 юн",J87="1 юн",K87="1 юн",L87="1 юн",M87="1 юн",N87="1 юн",O87="1 юн",P87="1 юн",Q87="1 юн",R87="1 юн",S87="1 юн",T87="1 юн",U87="1 юн",V87="1 юн",W87="1 юн",X87="1 юн",Y87="1 юн",Z87="1 юн",AA87="1 юн",AB87="1 юн",AC87="1 юн"),"1 юн",IF(OR(D87="юн",E87="юн",F87="юн",G87="юн",H87="юн",I87="юн",J87="юн",K87="юн",L87="юн",M87="юн",N87="юн",O87="юн",P87="юн",Q87="юн",R87="юн",S87="юн",T87="юн",U87="юн",V87="юн",W87="юн",X87="юн",Y87="юн",Z87="юн",AA87="юн",AB87="юн",AC87="юн"),"юн","б/р"))))))) -> 1
A88: Климович Алексей | B88: ЦТКиЭ Бобруйск | C88: 2008 | AD88: =IF(OR(D88="МС",E88="МС",F88="МС",G88="МС",H88="МС",I88="МС",J88="МС",K88="МС",L88="МС",M88="МС",N88="МС",O88="МС",P88="МС",Q88="МС",R88="МС",S88="МС",T88="МС",U88="МС",V88="МС",W88="МС",X88="МС",Y88="МС",Z88="МС",AA88="МС",AB88="МС",AC88="МС"),"МС",IF(OR(D88="КМС",E88="КМС",F88="КМС",G88="КМС",H88="КМС",I88="КМС",J88="КМС",K88="КМС",L88="КМС",M88="КМС",N88="КМС",O88="КМС",P88="КМС",Q88="КМС",R88="КМС",S88="КМС",T88="КМС",U88="КМС",V88="КМС",W88="КМС",X88="КМС",Y88="КМС",Z88="КМС",AA88="КМС",AB88="КМС",AC88="КМС"),"КМС",IF(OR(D88=1,E88=1,F88=1,G88=1,H88=1,I88=1,J88=1,K88=1,L88=1,M88=1,N88=1,O88=1,P88=1,Q88=1,R88=1,S88=1,T88=1,U88=1,V88=1,W88=1,X88=1,Y88=1,Z88=1,AA88=1,AB88=1,AC88=1),1,IF(OR(D88=2,E88=2,F88=2,G88=2,H88=2,I88=2,J88=2,K88=2,L88=2,M88=2,N88=2,O88=2,P88=2,Q88=2,R88=2,S88=2,T88=2,U88=2,V88=2,W88=2,X88=2,Y88=2,Z88=2,AA88=2,AB88=2,AC88=2),2,IF(OR(D88=3,E88=3,F88=3,G88=3,H88=3,I88=3,J88=3,K88=3,L88=3,M88=3,N88=3,O88=3,P88=3,Q88=3,R88=3,S88=3,T88=3,U88=3,V88=3,W88=3,X88=3,Y88=3,Z88=3,AA88=3,AB88=3,AC88=3),3,IF(OR(D88="1 юн",E88="1 юн",F88="1 юн",G88="1 юн",H88="1 юн",I88="1 юн",J88="1 юн",K88="1 юн",L88="1 юн",M88="1 юн",N88="1 юн",O88="1 юн",P88="1 юн",Q88="1 юн",R88="1 юн",S88="1 юн",T88="1 юн",U88="1 юн",V88="1 юн",W88="1 юн",X88="1 юн",Y88="1 юн",Z88="1 юн",AA88="1 юн",AB88="1 юн",AC88="1 юн"),"1 юн",IF(OR(D88="юн",E88="юн",F88="юн",G88="юн",H88="юн",I88="юн",J88="юн",K88="юн",L88="юн",M88="юн",N88="юн",O88="юн",P88="юн",Q88="юн",R88="юн",S88="юн",T88="юн",U88="юн",V88="юн",W88="юн",X88="юн",Y88="юн",Z88="юн",AA88="юн",AB88="юн",AC88="юн"),"юн","б/р"))))))) -> б/р
A89: Клюжев Александр | B89: ГУО «ГОЦТКДМ» | C89: 1997 | D89: КМС | E89: МС | F89: 1 | G89: КМС | K89: КМС | L89: КМС | O89: КМС | Q89: КМС | U89: КМС | V89: МС | Y89: КМС | Z89: МС | AC89: МС | AD89: =IF(OR(D89="МС",E89="МС",F89="МС",G89="МС",H89="МС",I89="МС",J89="МС",K89="МС",L89="МС",M89="МС",N89="МС",O89="МС",P89="МС",Q89="МС",R89="МС",S89="МС",T89="МС",U89="МС",V89="МС",W89="МС",X89="МС",Y89="МС",Z89="МС",AA89="МС",AB89="МС",AC89="МС"),"МС",IF(OR(D89="КМС",E89="КМС",F89="КМС",G89="КМС",H89="КМС",I89="КМС",J89="КМС",K89="КМС",L89="КМС",M89="КМС",N89="КМС",O89="КМС",P89="КМС",Q89="КМС",R89="КМС",S89="КМС",T89="КМС",U89="КМС",V89="КМС",W89="КМС",X89="КМС",Y89="КМС",Z89="КМС",AA89="КМС",AB89="КМС",AC89="КМС"),"КМС",IF(OR(D89=1,E89=1,F89=1,G89=1,H89=1,I89=1,J89=1,K89=1,L89=1,M89=1,N89=1,O89=1,P89=1,Q89=1,R89=1,S89=1,T89=1,U89=1,V89=1,W89=1,X89=1,Y89=1,Z89=1,AA89=1,AB89=1,AC89=1),1,IF(OR(D89=2,E89=2,F89=2,G89=2,H89=2,I89=2,J89=2,K89=2,L89=2,M89=2,N89=2,O89=2,P89=2,Q89=2,R89=2,S89=2,T89=2,U89=2,V89=2,W89=2,X89=2,Y89=2,Z89=2,AA89=2,AB89=2,AC89=2),2,IF(OR(D89=3,E89=3,F89=3,G89=3,H89=3,I89=3,J89=3,K89=3,L89=3,M89=3,N89=3,O89=3,P89=3,Q89=3,R89=3,S89=3,T89=3,U89=3,V89=3,W89=3,X89=3,Y89=3,Z89=3,AA89=3,AB89=3,AC89=3),3,IF(OR(D89="1 юн",E89="1 юн",F89="1 юн",G89="1 юн",H89="1 юн",I89="1 юн",J89="1 юн",K89="1 юн",L89="1 юн",M89="1 юн",N89="1 юн",O89="1 юн",P89="1 юн",Q89="1 юн",R89="1 юн",S89="1 юн",T89="1 юн",U89="1 юн",V89="1 юн",W89="1 юн",X89="1 юн",Y89="1 юн",Z89="1 юн",AA89="1 юн",AB89="1 юн",AC89="1 юн"),"1 юн",IF(OR(D89="юн",E89="юн",F89="юн",G89="юн",H89="юн",I89="юн",J89="юн",K89="юн",L89="юн",M89="юн",N89="юн",O89="юн",P89="юн",Q89="юн",R89="юн",S89="юн",T89="юн",U89="юн",V89="юн",W89="юн",X89="юн",Y89="юн",Z89="юн",AA89="юн",AB89="юн",AC89="юн"),"юн","б/р"))))))) -> МС
A90: Козловский Петр | B90: Речица | C90: 1998 | AD90: =IF(OR(D90="МС",E90="МС",F90="МС",G90="МС",H90="МС",I90="МС",J90="МС",K90="МС",L90="МС",M90="МС",N90="МС",O90="МС",P90="МС",Q90="МС",R90="МС",S90="МС",T90="МС",U90="МС",V90="МС",W90="МС",X90="МС",Y90="МС",Z90="МС",AA90="МС",AB90="МС",AC90="МС"),"МС",IF(OR(D90="КМС",E90="КМС",F90="КМС",G90="КМС",H90="КМС",I90="КМС",J90="КМС",K90="КМС",L90="КМС",M90="КМС",N90="КМС",O90="КМС",P90="КМС",Q90="КМС",R90="КМС",S90="КМС",T90="КМС",U90="КМС",V90="КМС",W90="КМС",X90="КМС",Y90="КМС",Z90="КМС",AA90="КМС",AB90="КМС",AC90="КМС"),"КМС",IF(OR(D90=1,E90=1,F90=1,G90=1,H90=1,I90=1,J90=1,K90=1,L90=1,M90=1,N90=1,O90=1,P90=1,Q90=1,R90=1,S90=1,T90=1,U90=1,V90=1,W90=1,X90=1,Y90=1,Z90=1,AA90=1,AB90=1,AC90=1),1,IF(OR(D90=2,E90=2,F90=2,G90=2,H90=2,I90=2,J90=2,K90=2,L90=2,M90=2,N90=2,O90=2,P90=2,Q90=2,R90=2,S90=2,T90=2,U90=2,V90=2,W90=2,X90=2,Y90=2,Z90=2,AA90=2,AB90=2,AC90=2),2,IF(OR(D90=3,E90=3,F90=3,G90=3,H90=3,I90=3,J90=3,K90=3,L90=3,M90=3,N90=3,O90=3,P90=3,Q90=3,R90=3,S90=3,T90=3,U90=3,V90=3,W90=3,X90=3,Y90=3,Z90=3,AA90=3,AB90=3,AC90=3),3,IF(OR(D90="1 юн",E90="1 юн",F90="1 юн",G90="1 юн",H90="1 юн",I90="1 юн",J90="1 юн",K90="1 юн",L90="1 юн",M90="1 юн",N90="1 юн",O90="1 юн",P90="1 юн",Q90="1 юн",R90="1 юн",S90="1 юн",T90="1 юн",U90="1 юн",V90="1 юн",W90="1 юн",X90="1 юн",Y90="1 юн",Z90="1 юн",AA90="1 юн",AB90="1 юн",AC90="1 юн"),"1 юн",IF(OR(D90="юн",E90="юн",F90="юн",G90="юн",H90="юн",I90="юн",J90="юн",K90="юн",L90="юн",M90="юн",N90="юн",O90="юн",P90="юн",Q90="юн",R90="юн",S90="юн",T90="юн",U90="юн",V90="юн",W90="юн",X90="юн",Y90="юн",Z90="юн",AA90="юн",AB90="юн",AC90="юн"),"юн","б/р"))))))) -> б/р
A91: Короткевич Павел | B91: Яновский УПК дс-СШ Красноп.р. | C91: 2000 | Y91: юн | Z91: юн | AD91: =IF(OR(D91="МС",E91="МС",F91="МС",G91="МС",H91="МС",I91="МС",J91="МС",K91="МС",L91="МС",M91="МС",N91="МС",O91="МС",P91="МС",Q91="МС",R91="МС",S91="МС",T91="МС",U91="МС",V91="МС",W91="МС",X91="МС",Y91="МС",Z91="МС",AA91="МС",AB91="МС",AC91="МС"),"МС",IF(OR(D91="КМС",E91="КМС",F91="КМС",G91="КМС",H91="КМС",I91="КМС",J91="КМС",K91="КМС",L91="КМС",M91="КМС",N91="КМС",O91="КМС",P91="КМС",Q91="КМС",R91="КМС",S91="КМС",T91="КМС",U91="КМС",V91="КМС",W91="КМС",X91="КМС",Y91="КМС",Z91="КМС",AA91="КМС",AB91="КМС",AC91="КМС"),"КМС",IF(OR(D91=1,E91=1,F91=1,G91=1,H91=1,I91=1,J91=1,K91=1,L91=1,M91=1,N91=1,O91=1,P91=1,Q91=1,R91=1,S91=1,T91=1,U91=1,V91=1,W91=1,X91=1,Y91=1,Z91=1,AA91=1,AB91=1,AC91=1),1,IF(OR(D91=2,E91=2,F91=2,G91=2,H91=2,I91=2,J91=2,K91=2,L91=2,M91=2,N91=2,O91=2,P91=2,Q91=2,R91=2,S91=2,T91=2,U91=2,V91=2,W91=2,X91=2,Y91=2,Z91=2,AA91=2,AB91=2,AC91=2),2,IF(OR(D91=3,E91=3,F91=3,G91=3,H91=3,I91=3,J91=3,K91=3,L91=3,M91=3,N91=3,O91=3,P91=3,Q91=3,R91=3,S91=3,T91=3,U91=3,V91=3,W91=3,X91=3,Y91=3,Z91=3,AA91=3,AB91=3,AC91=3),3,IF(OR(D91="1 юн",E91="1 юн",F91="1 юн",G91="1 юн",H91="1 юн",I91="1 юн",J91="1 юн",K91="1 юн",L91="1 юн",M91="1 юн",N91="1 юн",O91="1 юн",P91="1 юн",Q91="1 юн",R91="1 юн",S91="1 юн",T91="1 юн",U91="1 юн",V91="1 юн",W91="1 юн",X91="1 юн",Y91="1 юн",Z91="1 юн",AA91="1 юн",AB91="1 юн",AC91="1 юн"),"1 юн",IF(OR(D91="юн",E91="юн",F91="юн",G91="юн",H91="юн",I91="юн",J91="юн",K91="юн",L91="юн",M91="юн",N91="юн",O91="юн",P91="юн",Q91="юн",R91="юн",S91="юн",T91="юн",U91="юн",V91="юн",W91="юн",X91="юн",Y91="юн",Z91="юн",AA91="юн",AB91="юн",AC91="юн"),"юн","б/р"))))))) -> юн
A92: Корявко Владислав | B92: СК "Торпедо" | C92: 1990 | AD92: =IF(OR(D92="МС",E92="МС",F92="МС",G92="МС",H92="МС",I92="МС",J92="МС",K92="МС",L92="МС",M92="МС",N92="МС",O92="МС",P92="МС",Q92="МС",R92="МС",S92="МС",T92="МС",U92="МС",V92="МС",W92="МС",X92="МС",Y92="МС",Z92="МС",AA92="МС",AB92="МС",AC92="МС"),"МС",IF(OR(D92="КМС",E92="КМС",F92="КМС",G92="КМС",H92="КМС",I92="КМС",J92="КМС",K92="КМС",L92="КМС",M92="КМС",N92="КМС",O92="КМС",P92="КМС",Q92="КМС",R92="КМС",S92="КМС",T92="КМС",U92="КМС",V92="КМС",W92="КМС",X92="КМС",Y92="КМС",Z92="КМС",AA92="КМС",AB92="КМС",AC92="КМС"),"КМС",IF(OR(D92=1,E92=1,F92=1,G92=1,H92=1,I92=1,J92=1,K92=1,L92=1,M92=1,N92=1,O92=1,P92=1,Q92=1,R92=1,S92=1,T92=1,U92=1,V92=1,W92=1,X92=1,Y92=1,Z92=1,AA92=1,AB92=1,AC92=1),1,IF(OR(D92=2,E92=2,F92=2,G92=2,H92=2,I92=2,J92=2,K92=2,L92=2,M92=2,N92=2,O92=2,P92=2,Q92=2,R92=2,S92=2,T92=2,U92=2,V92=2,W92=2,X92=2,Y92=2,Z92=2,AA92=2,AB92=2,AC92=2),2,IF(OR(D92=3,E92=3,F92=3,G92=3,H92=3,I92=3,J92=3,K92=3,L92=3,M92=3,N92=3,O92=3,P92=3,Q92=3,R92=3,S92=3,T92=3,U92=3,V92=3,W92=3,X92=3,Y92=3,Z92=3,AA92=3,AB92=3,AC92=3),3,IF(OR(D92="1 юн",E92="1 юн",F92="1 юн",G92="1 юн",H92="1 юн",I92="1 юн",J92="1 юн",K92="1 юн",L92="1 юн",M92="1 юн",N92="1 юн",O92="1 юн",P92="1 юн",Q92="1 юн",R92="1 юн",S92="1 юн",T92="1 юн",U92="1 юн",V92="1 юн",W92="1 юн",X92="1 юн",Y92="1 юн",Z92="1 юн",AA92="1 юн",AB92="1 юн",AC92="1 юн"),"1 юн",IF(OR(D92="юн",E92="юн",F92="юн",G92="юн",H92="юн",I92="юн",J92="юн",K92="юн",L92="юн",M92="юн",N92="юн",O92="юн",P92="юн",Q92="юн",R92="юн",S92="юн",T92="юн",U92="юн",V92="юн",W92="юн",X92="юн",Y92="юн",Z92="юн",AA92="юн",AB92="юн",AC92="юн"),"юн","б/р"))))))) -> б/р
A93: Косач Павел | B93: ГОЦТиКДиМ Гомель | C93: 2004 | M93: юн | R93: юн | S93: 1 юн | T93: 1 юн | AD93: =IF(OR(D93="МС",E93="МС",F93="МС",G93="МС",H93="МС",I93="МС",J93="МС",K93="МС",L93="МС",M93="МС",N93="МС",O93="МС",P93="МС",Q93="МС",R93="МС",S93="МС",T93="МС",U93="МС",V93="МС",W93="МС",X93="МС",Y93="МС",Z93="МС",AA93="МС",AB93="МС",AC93="МС"),"МС",IF(OR(D93="КМС",E93="КМС",F93="КМС",G93="КМС",H93="КМС",I93="КМС",J93="КМС",K93="КМС",L93="КМС",M93="КМС",N93="КМС",O93="КМС",P93="КМС",Q93="КМС",R93="КМС",S93="КМС",T93="КМС",U93="КМС",V93="КМС",W93="КМС",X93="КМС",Y93="КМС",Z93="КМС",AA93="КМС",AB93="КМС",AC93="КМС"),"КМС",IF(OR(D93=1,E93=1,F93=1,G93=1,H93=1,I93=1,J93=1,K93=1,L93=1,M93=1,N93=1,O93=1,P93=1,Q93=1,R93=1,S93=1,T93=1,U93=1,V93=1,W93=1,X93=1,Y93=1,Z93=1,AA93=1,AB93=1,AC93=1),1,IF(OR(D93=2,E93=2,F93=2,G93=2,H93=2,I93=2,J93=2,K93=2,L93=2,M93=2,N93=2,O93=2,P93=2,Q93=2,R93=2,S93=2,T93=2,U93=2,V93=2,W93=2,X93=2,Y93=2,Z93=2,AA93=2,AB93=2,AC93=2),2,IF(OR(D93=3,E93=3,F93=3,G93=3,H93=3,I93=3,J93=3,K93=3,L93=3,M93=3,N93=3,O93=3,P93=3,Q93=3,R93=3,S93=3,T93=3,U93=3,V93=3,W93=3,X93=3,Y93=3,Z93=3,AA93=3,AB93=3,AC93=3),3,IF(OR(D93="1 юн",E93="1 юн",F93="1 юн",G93="1 юн",H93="1 юн",I93="1 юн",J93="1 юн",K93="1 юн",L93="1 юн",M93="1 юн",N93="1 юн",O93="1 юн",P93="1 юн",Q93="1 юн",R93="1 юн",S93="1 юн",T93="1 юн",U93="1 юн",V93="1 юн",W93="1 юн",X93="1 юн",Y93="1 юн",Z93="1 юн",AA93="1 юн",AB93="1 юн",AC93="1 юн"),"1 юн",IF(OR(D93="юн",E93="юн",F93="юн",G93="юн",H93="юн",I93="юн",J93="юн",K93="юн",L93="юн",M93="юн",N93="юн",O93="юн",P93="юн",Q93="юн",R93="юн",S93="юн",T93="юн",U93="юн",V93="юн",W93="юн",X93="юн",Y93="юн",Z93="юн",AA93="юн",AB93="юн",AC93="юн"),"юн","б/р"))))))) -> 1 юн
A94: Красильников Виктор | B94: Минск | C94: 1998 | AD94: =IF(OR(D94="МС",E94="МС",F94="МС",G94="МС",H94="МС",I94="МС",J94="МС",K94="МС",L94="МС",M94="МС",N94="МС",O94="МС",P94="МС",Q94="МС",R94="МС",S94="МС",T94="МС",U94="МС",V94="МС",W94="МС",X94="МС",Y94="МС",Z94="МС",AA94="МС",AB94="МС",AC94="МС"),"МС",IF(OR(D94="КМС",E94="КМС",F94="КМС",G94="КМС",H94="КМС",I94="КМС",J94="КМС",K94="КМС",L94="КМС",M94="КМС",N94="КМС",O94="КМС",P94="КМС",Q94="КМС",R94="КМС",S94="КМС",T94="КМС",U94="КМС",V94="КМС",W94="КМС",X94="КМС",Y94="КМС",Z94="КМС",AA94="КМС",AB94="КМС",AC94="КМС"),"КМС",IF(OR(D94=1,E94=1,F94=1,G94=1,H94=1,I94=1,J94=1,K94=1,L94=1,M94=1,N94=1,O94=1,P94=1,Q94=1,R94=1,S94=1,T94=1,U94=1,V94=1,W94=1,X94=1,Y94=1,Z94=1,AA94=1,AB94=1,AC94=1),1,IF(OR(D94=2,E94=2,F94=2,G94=2,H94=2,I94=2,J94=2,K94=2,L94=2,M94=2,N94=2,O94=2,P94=2,Q94=2,R94=2,S94=2,T94=2,U94=2,V94=2,W94=2,X94=2,Y94=2,Z94=2,AA94=2,AB94=2,AC94=2),2,IF(OR(D94=3,E94=3,F94=3,G94=3,H94=3,I94=3,J94=3,K94=3,L94=3,M94=3,N94=3,O94=3,P94=3,Q94=3,R94=3,S94=3,T94=3,U94=3,V94=3,W94=3,X94=3,Y94=3,Z94=3,AA94=3,AB94=3,AC94=3),3,IF(OR(D94="1 юн",E94="1 юн",F94="1 юн",G94="1 юн",H94="1 юн",I94="1 юн",J94="1 юн",K94="1 юн",L94="1 юн",M94="1 юн",N94="1 юн",O94="1 юн",P94="1 юн",Q94="1 юн",R94="1 юн",S94="1 юн",T94="1 юн",U94="1 юн",V94="1 юн",W94="1 юн",X94="1 юн",Y94="1 юн",Z94="1 юн",AA94="1 юн",AB94="1 юн",AC94="1 юн"),"1 юн",IF(OR(D94="юн",E94="юн",F94="юн",G94="юн",H94="юн",I94="юн",J94="юн",K94="юн",L94="юн",M94="юн",N94="юн",O94="юн",P94="юн",Q94="юн",R94="юн",S94="юн",T94="юн",U94="юн",V94="юн",W94="юн",X94="юн",Y94="юн",Z94="юн",AA94="юн",AB94="юн",AC94="юн"),"юн","б/р"))))))) -> б/р
A95: Крез Владислав | B95: Пуховичский р-н | C95: 2001 | AD95: =IF(OR(D95="МС",E95="МС",F95="МС",G95="МС",H95="МС",I95="МС",J95="МС",K95="МС",L95="МС",M95="МС",N95="МС",O95="МС",P95="МС",Q95="МС",R95="МС",S95="МС",T95="МС",U95="МС",V95="МС",W95="МС",X95="МС",Y95="МС",Z95="МС",AA95="МС",AB95="МС",AC95="МС"),"МС",IF(OR(D95="КМС",E95="КМС",F95="КМС",G95="КМС",H95="КМС",I95="КМС",J95="КМС",K95="КМС",L95="КМС",M95="КМС",N95="КМС",O95="КМС",P95="КМС",Q95="КМС",R95="КМС",S95="КМС",T95="КМС",U95="КМС",V95="КМС",W95="КМС",X95="КМС",Y95="КМС",Z95="КМС",AA95="КМС",AB95="КМС",AC95="КМС"),"КМС",IF(OR(D95=1,E95=1,F95=1,G95=1,H95=1,I95=1,J95=1,K95=1,L95=1,M95=1,N95=1,O95=1,P95=1,Q95=1,R95=1,S95=1,T95=1,U95=1,V95=1,W95=1,X95=1,Y95=1,Z95=1,AA95=1,AB95=1,AC95=1),1,IF(OR(D95=2,E95=2,F95=2,G95=2,H95=2,I95=2,J95=2,K95=2,L95=2,M95=2,N95=2,O95=2,P95=2,Q95=2,R95=2,S95=2,T95=2,U95=2,V95=2,W95=2,X95=2,Y95=2,Z95=2,AA95=2,AB95=2,AC95=2),2,IF(OR(D95=3,E95=3,F95=3,G95=3,H95=3,I95=3,J95=3,K95=3,L95=3,M95=3,N95=3,O95=3,P95=3,Q95=3,R95=3,S95=3,T95=3,U95=3,V95=3,W95=3,X95=3,Y95=3,Z95=3,AA95=3,AB95=3,AC95=3),3,IF(OR(D95="1 юн",E95="1 юн",F95="1 юн",G95="1 юн",H95="1 юн",I95="1 юн",J95="1 юн",K95="1 юн",L95="1 юн",M95="1 юн",N95="1 юн",O95="1 юн",P95="1 юн",Q95="1 юн",R95="1 юн",S95="1 юн",T95="1 юн",U95="1 юн",V95="1 юн",W95="1 юн",X95="1 юн",Y95="1 юн",Z95="1 юн",AA95="1 юн",AB95="1 юн",AC95="1 юн"),"1 юн",IF(OR(D95="юн",E95="юн",F95="юн",G95="юн",H95="юн",I95="юн",J95="юн",K95="юн",L95="юн",M95="юн",N95="юн",O95="юн",P95="юн",Q95="юн",R95="юн",S95="юн",T95="юн",U95="юн",V95="юн",W95="юн",X95="юн",Y95="юн",Z95="юн",AA95="юн",AB95="юн",AC95="юн"),"юн","б/р"))))))) -> б/р
A96: Криворот Александр | B96: Минск | C96: 1997 | AD96: =IF(OR(D96="МС",E96="МС",F96="МС",G96="МС",H96="МС",I96="МС",J96="МС",K96="МС",L96="МС",M96="МС",N96="МС",O96="МС",P96="МС",Q96="МС",R96="МС",S96="МС",T96="МС",U96="МС",V96="МС",W96="МС",X96="МС",Y96="МС",Z96="МС",AA96="МС",AB96="МС",AC96="МС"),"МС",IF(OR(D96="КМС",E96="КМС",F96="КМС",G96="КМС",H96="КМС",I96="КМС",J96="КМС",K96="КМС",L96="КМС",M96="КМС",N96="КМС",O96="КМС",P96="КМС",Q96="КМС",R96="КМС",S96="КМС",T96="КМС",U96="КМС",V96="КМС",W96="КМС",X96="КМС",Y96="КМС",Z96="КМС",AA96="КМС",AB96="КМС",AC96="КМС"),"КМС",IF(OR(D96=1,E96=1,F96=1,G96=1,H96=1,I96=1,J96=1,K96=1,L96=1,M96=1,N96=1,O96=1,P96=1,Q96=1,R96=1,S96=1,T96=1,U96=1,V96=1,W96=1,X96=1,Y96=1,Z96=1,AA96=1,AB96=1,AC96=1),1,IF(OR(D96=2,E96=2,F96=2,G96=2,H96=2,I96=2,J96=2,K96=2,L96=2,M96=2,N96=2,O96=2,P96=2,Q96=2,R96=2,S96=2,T96=2,U96=2,V96=2,W96=2,X96=2,Y96=2,Z96=2,AA96=2,AB96=2,AC96=2),2,IF(OR(D96=3,E96=3,F96=3,G96=3,H96=3,I96=3,J96=3,K96=3,L96=3,M96=3,N96=3,O96=3,P96=3,Q96=3,R96=3,S96=3,T96=3,U96=3,V96=3,W96=3,X96=3,Y96=3,Z96=3,AA96=3,AB96=3,AC96=3),3,IF(OR(D96="1 юн",E96="1 юн",F96="1 юн",G96="1 юн",H96="1 юн",I96="1 юн",J96="1 юн",K96="1 юн",L96="1 юн",M96="1 юн",N96="1 юн",O96="1 юн",P96="1 юн",Q96="1 юн",R96="1 юн",S96="1 юн",T96="1 юн",U96="1 юн",V96="1 юн",W96="1 юн",X96="1 юн",Y96="1 юн",Z96="1 юн",AA96="1 юн",AB96="1 юн",AC96="1 юн"),"1 юн",IF(OR(D96="юн",E96="юн",F96="юн",G96="юн",H96="юн",I96="юн",J96="юн",K96="юн",L96="юн",M96="юн",N96="юн",O96="юн",P96="юн",Q96="юн",R96="юн",S96="юн",T96="юн",U96="юн",V96="юн",W96="юн",X96="юн",Y96="юн",Z96="юн",AA96="юн",AB96="юн",AC96="юн"),"юн","б/р"))))))) -> б/р
A97: Кудрявцев Александр | B97: ГОЦТиКДиМ Гомель | C97: 2004 | M97: юн | N97: 1 юн | R97: юн | S97: 1 юн | T97: юн | AA97: юн | AD97: =IF(OR(D97="МС",E97="МС",F97="МС",G97="МС",H97="МС",I97="МС",J97="МС",K97="МС",L97="МС",M97="МС",N97="МС",O97="МС",P97="МС",Q97="МС",R97="МС",S97="МС",T97="МС",U97="МС",V97="МС",W97="МС",X97="МС",Y97="МС",Z97="МС",AA97="МС",AB97="МС",AC97="МС"),"МС",IF(OR(D97="КМС",E97="КМС",F97="КМС",G97="КМС",H97="КМС",I97="КМС",J97="КМС",K97="КМС",L97="КМС",M97="КМС",N97="КМС",O97="КМС",P97="КМС",Q97="КМС",R97="КМС",S97="КМС",T97="КМС",U97="КМС",V97="КМС",W97="КМС",X97="КМС",Y97="КМС",Z97="КМС",AA97="КМС",AB97="КМС",AC97="КМС"),"КМС",IF(OR(D97=1,E97=1,F97=1,G97=1,H97=1,I97=1,J97=1,K97=1,L97=1,M97=1,N97=1,O97=1,P97=1,Q97=1,R97=1,S97=1,T97=1,U97=1,V97=1,W97=1,X97=1,Y97=1,Z97=1,AA97=1,AB97=1,AC97=1),1,IF(OR(D97=2,E97=2,F97=2,G97=2,H97=2,I97=2,J97=2,K97=2,L97=2,M97=2,N97=2,O97=2,P97=2,Q97=2,R97=2,S97=2,T97=2,U97=2,V97=2,W97=2,X97=2,Y97=2,Z97=2,AA97=2,AB97=2,AC97=2),2,IF(OR(D97=3,E97=3,F97=3,G97=3,H97=3,I97=3,J97=3,K97=3,L97=3,M97=3,N97=3,O97=3,P97=3,Q97=3,R97=3,S97=3,T97=3,U97=3,V97=3,W97=3,X97=3,Y97=3,Z97=3,AA97=3,AB97=3,AC97=3),3,IF(OR(D97="1 юн",E97="1 юн",F97="1 юн",G97="1 юн",H97="1 юн",I97="1 юн",J97="1 юн",K97="1 юн",L97="1 юн",M97="1 юн",N97="1 юн",O97="1 юн",P97="1 юн",Q97="1 юн",R97="1 юн",S97="1 юн",T97="1 юн",U97="1 юн",V97="1 юн",W97="1 юн",X97="1 юн",Y97="1 юн",Z97="1 юн",AA97="1 юн",AB97="1 юн",AC97="1 юн"),"1 юн",IF(OR(D97="юн",E97="юн",F97="юн",G97="юн",H97="юн",I97="юн",J97="юн",K97="юн",L97="юн",M97="юн",N97="юн",O97="юн",P97="юн",Q97="юн",R97="юн",S97="юн",T97="юн",U97="юн",V97="юн",W97="юн",X97="юн",Y97="юн",Z97="юн",AA97="юн",AB97="юн",AC97="юн"),"юн","б/р"))))))) -> 1 юн
A98: Кузан Никита | B98: Могилевская область | C98: 2004 | H98: юн | AD98: =IF(OR(D98="МС",E98="МС",F98="МС",G98="МС",H98="МС",I98="МС",J98="МС",K98="МС",L98="МС",M98="МС",N98="МС",O98="МС",P98="МС",Q98="МС",R98="МС",S98="МС",T98="МС",U98="МС",V98="МС",W98="МС",X98="МС",Y98="МС",Z98="МС",AA98="МС",AB98="МС",AC98="МС"),"МС",IF(OR(D98="КМС",E98="КМС",F98="КМС",G98="КМС",H98="КМС",I98="КМС",J98="КМС",K98="КМС",L98="КМС",M98="КМС",N98="КМС",O98="КМС",P98="КМС",Q98="КМС",R98="КМС",S98="КМС",T98="КМС",U98="КМС",V98="КМС",W98="КМС",X98="КМС",Y98="КМС",Z98="КМС",AA98="КМС",AB98="КМС",AC98="КМС"),"КМС",IF(OR(D98=1,E98=1,F98=1,G98=1,H98=1,I98=1,J98=1,K98=1,L98=1,M98=1,N98=1,O98=1,P98=1,Q98=1,R98=1,S98=1,T98=1,U98=1,V98=1,W98=1,X98=1,Y98=1,Z98=1,AA98=1,AB98=1,AC98=1),1,IF(OR(D98=2,E98=2,F98=2,G98=2,H98=2,I98=2,J98=2,K98=2,L98=2,M98=2,N98=2,O98=2,P98=2,Q98=2,R98=2,S98=2,T98=2,U98=2,V98=2,W98=2,X98=2,Y98=2,Z98=2,AA98=2,AB98=2,AC98=2),2,IF(OR(D98=3,E98=3,F98=3,G98=3,H98=3,I98=3,J98=3,K98=3,L98=3,M98=3,N98=3,O98=3,P98=3,Q98=3,R98=3,S98=3,T98=3,U98=3,V98=3,W98=3,X98=3,Y98=3,Z98=3,AA98=3,AB98=3,AC98=3),3,IF(OR(D98="1 юн",E98="1 юн",F98="1 юн",G98="1 юн",H98="1 юн",I98="1 юн",J98="1 юн",K98="1 юн",L98="1 юн",M98="1 юн",N98="1 юн",O98="1 юн",P98="1 юн",Q98="1 юн",R98="1 юн",S98="1 юн",T98="1 юн",U98="1 юн",V98="1 юн",W98="1 юн",X98="1 юн",Y98="1 юн",Z98="1 юн",AA98="1 юн",AB98="1 юн",AC98="1 юн"),"1 юн",IF(OR(D98="юн",E98="юн",F98="юн",G98="юн",H98="юн",I98="юн",J98="юн",K98="юн",L98="юн",M98="юн",N98="юн",O98="юн",P98="юн",Q98="юн",R98="юн",S98="юн",T98="юн",U98="юн",V98="юн",W98="юн",X98="юн",Y98="юн",Z98="юн",AA98="юн",AB98="юн",AC98="юн"),"юн","б/р"))))))) -> юн
A99: Кульченко Артем | B99: Пуховичский р-н | C99: 2008 | T99: юн | AD99: =IF(OR(D99="МС",E99="МС",F99="МС",G99="МС",H99="МС",I99="МС",J99="МС",K99="МС",L99="МС",M99="МС",N99="МС",O99="МС",P99="МС",Q99="МС",R99="МС",S99="МС",T99="МС",U99="МС",V99="МС",W99="МС",X99="МС",Y99="МС",Z99="МС",AA99="МС",AB99="МС",AC99="МС"),"МС",IF(OR(D99="КМС",E99="КМС",F99="КМС",G99="КМС",H99="КМС",I99="КМС",J99="КМС",K99="КМС",L99="КМС",M99="КМС",N99="КМС",O99="КМС",P99="КМС",Q99="КМС",R99="КМС",S99="КМС",T99="КМС",U99="КМС",V99="КМС",W99="КМС",X99="КМС",Y99="КМС",Z99="КМС",AA99="КМС",AB99="КМС",AC99="КМС"),"КМС",IF(OR(D99=1,E99=1,F99=1,G99=1,H99=1,I99=1,J99=1,K99=1,L99=1,M99=1,N99=1,O99=1,P99=1,Q99=1,R99=1,S99=1,T99=1,U99=1,V99=1,W99=1,X99=1,Y99=1,Z99=1,AA99=1,AB99=1,AC99=1),1,IF(OR(D99=2,E99=2,F99=2,G99=2,H99=2,I99=2,J99=2,K99=2,L99=2,M99=2,N99=2,O99=2,P99=2,Q99=2,R99=2,S99=2,T99=2,U99=2,V99=2,W99=2,X99=2,Y99=2,Z99=2,AA99=2,AB99=2,AC99=2),2,IF(OR(D99=3,E99=3,F99=3,G99=3,H99=3,I99=3,J99=3,K99=3,L99=3,M99=3,N99=3,O99=3,P99=3,Q99=3,R99=3,S99=3,T99=3,U99=3,V99=3,W99=3,X99=3,Y99=3,Z99=3,AA99=3,AB99=3,AC99=3),3,IF(OR(D99="1 юн",E99="1 юн",F99="1 юн",G99="1 юн",H99="1 юн",I99="1 юн",J99="1 юн",K99="1 юн",L99="1 юн",M99="1 юн",N99="1 юн",O99="1 юн",P99="1 юн",Q99="1 юн",R99="1 юн",S99="1 юн",T99="1 юн",U99="1 юн",V99="1 юн",W99="1 юн",X99="1 юн",Y99="1 юн",Z99="1 юн",AA99="1 юн",AB99="1 юн",AC99="1 юн"),"1 юн",IF(OR(D99="юн",E99="юн",F99="юн",G99="юн",H99="юн",I99="юн",J99="юн",K99="юн",L99="юн",M99="юн",N99="юн",O99="юн",P99="юн",Q99="юн",R99="юн",S99="юн",T99="юн",U99="юн",V99="юн",W99="юн",X99="юн",Y99="юн",Z99="юн",AA99="юн",AB99="юн",AC99="юн"),"юн","б/р"))))))) -> юн
A100: Кухоренко Максим | B100: Витебск | C100: 1985 | L100: 1 | AD100: =IF(OR(D100="МС",E100="МС",F100="МС",G100="МС",H100="МС",I100="МС",J100="МС",K100="МС",L100="МС",M100="МС",N100="МС",O100="МС",P100="МС",Q100="МС",R100="МС",S100="МС",T100="МС",U100="МС",V100="МС",W100="МС",X100="МС",Y100="МС",Z100="МС",AA100="МС",AB100="МС",AC100="МС"),"МС",IF(OR(D100="КМС",E100="КМС",F100="КМС",G100="КМС",H100="КМС",I100="КМС",J100="КМС",K100="КМС",L100="КМС",M100="КМС",N100="КМС",O100="КМС",P100="КМС",Q100="КМС",R100="КМС",S100="КМС",T100="КМС",U100="КМС",V100="КМС",W100="КМС",X100="КМС",Y100="КМС",Z100="КМС",AA100="КМС",AB100="КМС",AC100="КМС"),"КМС",IF(OR(D100=1,E100=1,F100=1,G100=1,H100=1,I100=1,J100=1,K100=1,L100=1,M100=1,N100=1,O100=1,P100=1,Q100=1,R100=1,S100=1,T100=1,U100=1,V100=1,W100=1,X100=1,Y100=1,Z100=1,AA100=1,AB100=1,AC100=1),1,IF(OR(D100=2,E100=2,F100=2,G100=2,H100=2,I100=2,J100=2,K100=2,L100=2,M100=2,N100=2,O100=2,P100=2,Q100=2,R100=2,S100=2,T100=2,U100=2,V100=2,W100=2,X100=2,Y100=2,Z100=2,AA100=2,AB100=2,AC100=2),2,IF(OR(D100=3,E100=3,F100=3,G100=3,H100=3,I100=3,J100=3,K100=3,L100=3,M100=3,N100=3,O100=3,P100=3,Q100=3,R100=3,S100=3,T100=3,U100=3,V100=3,W100=3,X100=3,Y100=3,Z100=3,AA100=3,AB100=3,AC100=3),3,IF(OR(D100="1 юн",E100="1 юн",F100="1 юн",G100="1 юн",H100="1 юн",I100="1 юн",J100="1 юн",K100="1 юн",L100="1 юн",M100="1 юн",N100="1 юн",O100="1 юн",P100="1 юн",Q100="1 юн",R100="1 юн",S100="1 юн",T100="1 юн",U100="1 юн",V100="1 юн",W100="1 юн",X100="1 юн",Y100="1 юн",Z100="1 юн",AA100="1 юн",AB100="1 юн",AC100="1 юн"),"1 юн",IF(OR(D100="юн",E100="юн",F100="юн",G100="юн",H100="юн",I100="юн",J100="юн",K100="юн",L100="юн",M100="юн",N100="юн",O100="юн",P100="юн",Q100="юн",R100="юн",S100="юн",T100="юн",U100="юн",V100="юн",W100="юн",X100="юн",Y100="юн",Z100="юн",AA100="юн",AB100="юн",AC100="юн"),"юн","б/р"))))))) -> 1
A101: Лашук Кирилл | B101: РЦЭК | C101: 2005 | AD101: =IF(OR(D101="МС",E101="МС",F101="МС",G101="МС",H101="МС",I101="МС",J101="МС",K101="МС",L101="МС",M101="МС",N101="МС",O101="МС",P101="МС",Q101="МС",R101="МС",S101="МС",T101="МС",U101="МС",V101="МС",W101="МС",X101="МС",Y101="МС",Z101="МС",AA101="МС",AB101="МС",AC101="МС"),"МС",IF(OR(D101="КМС",E101="КМС",F101="КМС",G101="КМС",H101="КМС",I101="КМС",J101="КМС",K101="КМС",L101="КМС",M101="КМС",N101="КМС",O101="КМС",P101="КМС",Q101="КМС",R101="КМС",S101="КМС",T101="КМС",U101="КМС",V101="КМС",W101="КМС",X101="КМС",Y101="КМС",Z101="КМС",AA101="КМС",AB101="КМС",AC101="КМС"),"КМС",IF(OR(D101=1,E101=1,F101=1,G101=1,H101=1,I101=1,J101=1,K101=1,L101=1,M101=1,N101=1,O101=1,P101=1,Q101=1,R101=1,S101=1,T101=1,U101=1,V101=1,W101=1,X101=1,Y101=1,Z101=1,AA101=1,AB101=1,AC101=1),1,IF(OR(D101=2,E101=2,F101=2,G101=2,H101=2,I101=2,J101=2,K101=2,L101=2,M101=2,N101=2,O101=2,P101=2,Q101=2,R101=2,S101=2,T101=2,U101=2,V101=2,W101=2,X101=2,Y101=2,Z101=2,AA101=2,AB101=2,AC101=2),2,IF(OR(D101=3,E101=3,F101=3,G101=3,H101=3,I101=3,J101=3,K101=3,L101=3,M101=3,N101=3,O101=3,P101=3,Q101=3,R101=3,S101=3,T101=3,U101=3,V101=3,W101=3,X101=3,Y101=3,Z101=3,AA101=3,AB101=3,AC101=3),3,IF(OR(D101="1 юн",E101="1 юн",F101="1 юн",G101="1 юн",H101="1 юн",I101="1 юн",J101="1 юн",K101="1 юн",L101="1 юн",M101="1 юн",N101="1 юн",O101="1 юн",P101="1 юн",Q101="1 юн",R101="1 юн",S101="1 юн",T101="1 юн",U101="1 юн",V101="1 юн",W101="1 юн",X101="1 юн",Y101="1 юн",Z101="1 юн",AA101="1 юн",AB101="1 юн",AC101="1 юн"),"1 юн",IF(OR(D101="юн",E101="юн",F101="юн",G101="юн",H101="юн",I101="юн",J101="юн",K101="юн",L101="юн",M101="юн",N101="юн",O101="юн",P101="юн",Q101="юн",R101="юн",S101="юн",T101="юн",U101="юн",V101="юн",W101="юн",X101="юн",Y101="юн",Z101="юн",AA101="юн",AB101="юн",AC101="юн"),"юн","б/р"))))))) -> б/р
A102: Липский Кирилл | B102: Минск | C102: 1986 | G102: 2 | O102: 3 | P102: 2 | Q102: 2 | AD102: =IF(OR(D102="МС",E102="МС",F102="МС",G102="МС",H102="МС",I102="МС",J102="МС",K102="МС",L102="МС",M102="МС",N102="МС",O102="МС",P102="МС",Q102="МС",R102="МС",S102="МС",T102="МС",U102="МС",V102="МС",W102="МС",X102="МС",Y102="МС",Z102="МС",AA102="МС",AB102="МС",AC102="МС"),"МС",IF(OR(D102="КМС",E102="КМС",F102="КМС",G102="КМС",H102="КМС",I102="КМС",J102="КМС",K102="КМС",L102="КМС",M102="КМС",N102="КМС",O102="КМС",P102="КМС",Q102="КМС",R102="КМС",S102="КМС",T102="КМС",U102="КМС",V102="КМС",W102="КМС",X102="КМС",Y102="КМС",Z102="КМС",AA102="КМС",AB102="КМС",AC102="КМС"),"КМС",IF(OR(D102=1,E102=1,F102=1,G102=1,H102=1,I102=1,J102=1,K102=1,L102=1,M102=1,N102=1,O102=1,P102=1,Q102=1,R102=1,S102=1,T102=1,U102=1,V102=1,W102=1,X102=1,Y102=1,Z102=1,AA102=1,AB102=1,AC102=1),1,IF(OR(D102=2,E102=2,F102=2,G102=2,H102=2,I102=2,J102=2,K102=2,L102=2,M102=2,N102=2,O102=2,P102=2,Q102=2,R102=2,S102=2,T102=2,U102=2,V102=2,W102=2,X102=2,Y102=2,Z102=2,AA102=2,AB102=2,AC102=2),2,IF(OR(D102=3,E102=3,F102=3,G102=3,H102=3,I102=3,J102=3,K102=3,L102=3,M102=3,N102=3,O102=3,P102=3,Q102=3,R102=3,S102=3,T102=3,U102=3,V102=3,W102=3,X102=3,Y102=3,Z102=3,AA102=3,AB102=3,AC102=3),3,IF(OR(D102="1 юн",E102="1 юн",F102="1 юн",G102="1 юн",H102="1 юн",I102="1 юн",J102="1 юн",K102="1 юн",L102="1 юн",M102="1 юн",N102="1 юн",O102="1 юн",P102="1 юн",Q102="1 юн",R102="1 юн",S102="1 юн",T102="1 юн",U102="1 юн",V102="1 юн",W102="1 юн",X102="1 юн",Y102="1 юн",Z102="1 юн",AA102="1 юн",AB102="1 юн",AC102="1 юн"),"1 юн",IF(OR(D102="юн",E102="юн",F102="юн",G102="юн",H102="юн",I102="юн",J102="юн",K102="юн",L102="юн",M102="юн",N102="юн",O102="юн",P102="юн",Q102="юн",R102="юн",S102="юн",T102="юн",U102="юн",V102="юн",W102="юн",X102="юн",Y102="юн",Z102="юн",AA102="юн",AB102="юн",AC102="юн"),"юн","б/р"))))))) -> 2
A103: Литвин Кирилл | B103: Брестская область | C103: 2002 | H103: 3 | Y103: 3 | Z103: 3 | AA103: 3 | AB103: юн | AD103: =IF(OR(D103="МС",E103="МС",F103="МС",G103="МС",H103="МС",I103="МС",J103="МС",K103="МС",L103="МС",M103="МС",N103="МС",O103="МС",P103="МС",Q103="МС",R103="МС",S103="МС",T103="МС",U103="МС",V103="МС",W103="МС",X103="МС",Y103="МС",Z103="МС",AA103="МС",AB103="МС",AC103="МС"),"МС",IF(OR(D103="КМС",E103="КМС",F103="КМС",G103="КМС",H103="КМС",I103="КМС",J103="КМС",K103="КМС",L103="КМС",M103="КМС",N103="КМС",O103="КМС",P103="КМС",Q103="КМС",R103="КМС",S103="КМС",T103="КМС",U103="КМС",V103="КМС",W103="КМС",X103="КМС",Y103="КМС",Z103="КМС",AA103="КМС",AB103="КМС",AC103="КМС"),"КМС",IF(OR(D103=1,E103=1,F103=1,G103=1,H103=1,I103=1,J103=1,K103=1,L103=1,M103=1,N103=1,O103=1,P103=1,Q103=1,R103=1,S103=1,T103=1,U103=1,V103=1,W103=1,X103=1,Y103=1,Z103=1,AA103=1,AB103=1,AC103=1),1,IF(OR(D103=2,E103=2,F103=2,G103=2,H103=2,I103=2,J103=2,K103=2,L103=2,M103=2,N103=2,O103=2,P103=2,Q103=2,R103=2,S103=2,T103=2,U103=2,V103=2,W103=2,X103=2,Y103=2,Z103=2,AA103=2,AB103=2,AC103=2),2,IF(OR(D103=3,E103=3,F103=3,G103=3,H103=3,I103=3,J103=3,K103=3,L103=3,M103=3,N103=3,O103=3,P103=3,Q103=3,R103=3,S103=3,T103=3,U103=3,V103=3,W103=3,X103=3,Y103=3,Z103=3,AA103=3,AB103=3,AC103=3),3,IF(OR(D103="1 юн",E103="1 юн",F103="1 юн",G103="1 юн",H103="1 юн",I103="1 юн",J103="1 юн",K103="1 юн",L103="1 юн",M103="1 юн",N103="1 юн",O103="1 юн",P103="1 юн",Q103="1 юн",R103="1 юн",S103="1 юн",T103="1 юн",U103="1 юн",V103="1 юн",W103="1 юн",X103="1 юн",Y103="1 юн",Z103="1 юн",AA103="1 юн",AB103="1 юн",AC103="1 юн"),"1 юн",IF(OR(D103="юн",E103="юн",F103="юн",G103="юн",H103="юн",I103="юн",J103="юн",K103="юн",L103="юн",M103="юн",N103="юн",O103="юн",P103="юн",Q103="юн",R103="юн",S103="юн",T103="юн",U103="юн",V103="юн",W103="юн",X103="юн",Y103="юн",Z103="юн",AA103="юн",AB103="юн",AC103="юн"),"юн","б/р"))))))) -> 3
A104: Логунов Никита | B104: ДЮСШ «Омега» Гом. | C104: 1999 | D104: 1 | E104: КМС | F104: 1 | G104: КМС | L104: КМС | P104: КМС | U104: 1 | V104: КМС | Y104: 2 | AC104: КМС | AD104: =IF(OR(D104="МС",E104="МС",F104="МС",G104="МС",H104="МС",I104="МС",J104="МС",K104="МС",L104="МС",M104="МС",N104="МС",O104="МС",P104="МС",Q104="МС",R104="МС",S104="МС",T104="МС",U104="МС",V104="МС",W104="МС",X104="МС",Y104="МС",Z104="МС",AA104="МС",AB104="МС",AC104="МС"),"МС",IF(OR(D104="КМС",E104="КМС",F104="КМС",G104="КМС",H104="КМС",I104="КМС",J104="КМС",K104="КМС",L104="КМС",M104="КМС",N104="КМС",O104="КМС",P104="КМС",Q104="КМС",R104="КМС",S104="КМС",T104="КМС",U104="КМС",V104="КМС",W104="КМС",X104="КМС",Y104="КМС",Z104="КМС",AA104="КМС",AB104="КМС",AC104="КМС"),"КМС",IF(OR(D104=1,E104=1,F104=1,G104=1,H104=1,I104=1,J104=1,K104=1,L104=1,M104=1,N104=1,O104=1,P104=1,Q104=1,R104=1,S104=1,T104=1,U104=1,V104=1,W104=1,X104=1,Y104=1,Z104=1,AA104=1,AB104=1,AC104=1),1,IF(OR(D104=2,E104=2,F104=2,G104=2,H104=2,I104=2,J104=2,K104=2,L104=2,M104=2,N104=2,O104=2,P104=2,Q104=2,R104=2,S104=2,T104=2,U104=2,V104=2,W104=2,X104=2,Y104=2,Z104=2,AA104=2,AB104=2,AC104=2),2,IF(OR(D104=3,E104=3,F104=3,G104=3,H104=3,I104=3,J104=3,K104=3,L104=3,M104=3,N104=3,O104=3,P104=3,Q104=3,R104=3,S104=3,T104=3,U104=3,V104=3,W104=3,X104=3,Y104=3,Z104=3,AA104=3,AB104=3,AC104=3),3,IF(OR(D104="1 юн",E104="1 юн",F104="1 юн",G104="1 юн",H104="1 юн",I104="1 юн",J104="1 юн",K104="1 юн",L104="1 юн",M104="1 юн",N104="1 юн",O104="1 юн",P104="1 юн",Q104="1 юн",R104="1 юн",S104="1 юн",T104="1 юн",U104="1 юн",V104="1 юн",W104="1 юн",X104="1 юн",Y104="1 юн",Z104="1 юн",AA104="1 юн",AB104="1 юн",AC104="1 юн"),"1 юн",IF(OR(D104="юн",E104="юн",F104="юн",G104="юн",H104="юн",I104="юн",J104="юн",K104="юн",L104="юн",M104="юн",N104="юн",O104="юн",P104="юн",Q104="юн",R104="юн",S104="юн",T104="юн",U104="юн",V104="юн",W104="юн",X104="юн",Y104="юн",Z104="юн",AA104="юн",AB104="юн",AC104="юн"),"юн","б/р"))))))) -> КМС
A105: Ложкин Денис | B105: MinskOnsight Мн. | C105: 1983 | G105: 1 | L105: 1 | O105: 2 | AD105: =IF(OR(D105="МС",E105="МС",F105="МС",G105="МС",H105="МС",I105="МС",J105="МС",K105="МС",L105="МС",M105="МС",N105="МС",O105="МС",P105="МС",Q105="МС",R105="МС",S105="МС",T105="МС",U105="МС",V105="МС",W105="МС",X105="МС",Y105="МС",Z105="МС",AA105="МС",AB105="МС",AC105="МС"),"МС",IF(OR(D105="КМС",E105="КМС",F105="КМС",G105="КМС",H105="КМС",I105="КМС",J105="КМС",K105="КМС",L105="КМС",M105="КМС",N105="КМС",O105="КМС",P105="КМС",Q105="КМС",R105="КМС",S105="КМС",T105="КМС",U105="КМС",V105="КМС",W105="КМС",X105="КМС",Y105="КМС",Z105="КМС",AA105="КМС",AB105="КМС",AC105="КМС"),"КМС",IF(OR(D105=1,E105=1,F105=1,G105=1,H105=1,I105=1,J105=1,K105=1,L105=1,M105=1,N105=1,O105=1,P105=1,Q105=1,R105=1,S105=1,T105=1,U105=1,V105=1,W105=1,X105=1,Y105=1,Z105=1,AA105=1,AB105=1,AC105=1),1,IF(OR(D105=2,E105=2,F105=2,G105=2,H105=2,I105=2,J105=2,K105=2,L105=2,M105=2,N105=2,O105=2,P105=2,Q105=2,R105=2,S105=2,T105=2,U105=2,V105=2,W105=2,X105=2,Y105=2,Z105=2,AA105=2,AB105=2,AC105=2),2,IF(OR(D105=3,E105=3,F105=3,G105=3,H105=3,I105=3,J105=3,K105=3,L105=3,M105=3,N105=3,O105=3,P105=3,Q105=3,R105=3,S105=3,T105=3,U105=3,V105=3,W105=3,X105=3,Y105=3,Z105=3,AA105=3,AB105=3,AC105=3),3,IF(OR(D105="1 юн",E105="1 юн",F105="1 юн",G105="1 юн",H105="1 юн",I105="1 юн",J105="1 юн",K105="1 юн",L105="1 юн",M105="1 юн",N105="1 юн",O105="1 юн",P105="1 юн",Q105="1 юн",R105="1 юн",S105="1 юн",T105="1 юн",U105="1 юн",V105="1 юн",W105="1 юн",X105="1 юн",Y105="1 юн",Z105="1 юн",AA105="1 юн",AB105="1 юн",AC105="1 юн"),"1 юн",IF(OR(D105="юн",E105="юн",F105="юн",G105="юн",H105="юн",I105="юн",J105="юн",K105="юн",L105="юн",M105="юн",N105="юн",O105="юн",P105="юн",Q105="юн",R105="юн",S105="юн",T105="юн",U105="юн",V105="юн",W105="юн",X105="юн",Y105="юн",Z105="юн",AA105="юн",AB105="юн",AC105="юн"),"юн","б/р"))))))) -> 1
A106: Лопухов Глеб | B106: СШ № 1 г. Ветка | C106: 2003 | I106: 2 | J106: юн | M106: 1 юн | S106: 1 юн | T106: 1 юн | AA106: юн | AB106: юн | AD106: =IF(OR(D106="МС",E106="МС",F106="МС",G106="МС",H106="МС",I106="МС",J106="МС",K106="МС",L106="МС",M106="МС",N106="МС",O106="МС",P106="МС",Q106="МС",R106="МС",S106="МС",T106="МС",U106="МС",V106="МС",W106="МС",X106="МС",Y106="МС",Z106="МС",AA106="МС",AB106="МС",AC106="МС"),"МС",IF(OR(D106="КМС",E106="КМС",F106="КМС",G106="КМС",H106="КМС",I106="КМС",J106="КМС",K106="КМС",L106="КМС",M106="КМС",N106="КМС",O106="КМС",P106="КМС",Q106="КМС",R106="КМС",S106="КМС",T106="КМС",U106="КМС",V106="КМС",W106="КМС",X106="КМС",Y106="КМС",Z106="КМС",AA106="КМС",AB106="КМС",AC106="КМС"),"КМС",IF(OR(D106=1,E106=1,F106=1,G106=1,H106=1,I106=1,J106=1,K106=1,L106=1,M106=1,N106=1,O106=1,P106=1,Q106=1,R106=1,S106=1,T106=1,U106=1,V106=1,W106=1,X106=1,Y106=1,Z106=1,AA106=1,AB106=1,AC106=1),1,IF(OR(D106=2,E106=2,F106=2,G106=2,H106=2,I106=2,J106=2,K106=2,L106=2,M106=2,N106=2,O106=2,P106=2,Q106=2,R106=2,S106=2,T106=2,U106=2,V106=2,W106=2,X106=2,Y106=2,Z106=2,AA106=2,AB106=2,AC106=2),2,IF(OR(D106=3,E106=3,F106=3,G106=3,H106=3,I106=3,J106=3,K106=3,L106=3,M106=3,N106=3,O106=3,P106=3,Q106=3,R106=3,S106=3,T106=3,U106=3,V106=3,W106=3,X106=3,Y106=3,Z106=3,AA106=3,AB106=3,AC106=3),3,IF(OR(D106="1 юн",E106="1 юн",F106="1 юн",G106="1 юн",H106="1 юн",I106="1 юн",J106="1 юн",K106="1 юн",L106="1 юн",M106="1 юн",N106="1 юн",O106="1 юн",P106="1 юн",Q106="1 юн",R106="1 юн",S106="1 юн",T106="1 юн",U106="1 юн",V106="1 юн",W106="1 юн",X106="1 юн",Y106="1 юн",Z106="1 юн",AA106="1 юн",AB106="1 юн",AC106="1 юн"),"1 юн",IF(OR(D106="юн",E106="юн",F106="юн",G106="юн",H106="юн",I106="юн",J106="юн",K106="юн",L106="юн",M106="юн",N106="юн",O106="юн",P106="юн",Q106="юн",R106="юн",S106="юн",T106="юн",U106="юн",V106="юн",W106="юн",X106="юн",Y106="юн",Z106="юн",AA106="юн",AB106="юн",AC106="юн"),"юн","б/р"))))))) -> 2
A107: Лялюк Александр | B107: г. Витебск | C107: 1989 | U107: 2 | AD107: =IF(OR(D107="МС",E107="МС",F107="МС",G107="МС",H107="МС",I107="МС",J107="МС",K107="МС",L107="МС",M107="МС",N107="МС",O107="МС",P107="МС",Q107="МС",R107="МС",S107="МС",T107="МС",U107="МС",V107="МС",W107="МС",X107="МС",Y107="МС",Z107="МС",AA107="МС",AB107="МС",AC107="МС"),"МС",IF(OR(D107="КМС",E107="КМС",F107="КМС",G107="КМС",H107="КМС",I107="КМС",J107="КМС",K107="КМС",L107="КМС",M107="КМС",N107="КМС",O107="КМС",P107="КМС",Q107="КМС",R107="КМС",S107="КМС",T107="КМС",U107="КМС",V107="КМС",W107="КМС",X107="КМС",Y107="КМС",Z107="КМС",AA107="КМС",AB107="КМС",AC107="КМС"),"КМС",IF(OR(D107=1,E107=1,F107=1,G107=1,H107=1,I107=1,J107=1,K107=1,L107=1,M107=1,N107=1,O107=1,P107=1,Q107=1,R107=1,S107=1,T107=1,U107=1,V107=1,W107=1,X107=1,Y107=1,Z107=1,AA107=1,AB107=1,AC107=1),1,IF(OR(D107=2,E107=2,F107=2,G107=2,H107=2,I107=2,J107=2,K107=2,L107=2,M107=2,N107=2,O107=2,P107=2,Q107=2,R107=2,S107=2,T107=2,U107=2,V107=2,W107=2,X107=2,Y107=2,Z107=2,AA107=2,AB107=2,AC107=2),2,IF(OR(D107=3,E107=3,F107=3,G107=3,H107=3,I107=3,J107=3,K107=3,L107=3,M107=3,N107=3,O107=3,P107=3,Q107=3,R107=3,S107=3,T107=3,U107=3,V107=3,W107=3,X107=3,Y107=3,Z107=3,AA107=3,AB107=3,AC107=3),3,IF(OR(D107="1 юн",E107="1 юн",F107="1 юн",G107="1 юн",H107="1 юн",I107="1 юн",J107="1 юн",K107="1 юн",L107="1 юн",M107="1 юн",N107="1 юн",O107="1 юн",P107="1 юн",Q107="1 юн",R107="1 юн",S107="1 юн",T107="1 юн",U107="1 юн",V107="1 юн",W107="1 юн",X107="1 юн",Y107="1 юн",Z107="1 юн",AA107="1 юн",AB107="1 юн",AC107="1 юн"),"1 юн",IF(OR(D107="юн",E107="юн",F107="юн",G107="юн",H107="юн",I107="юн",J107="юн",K107="юн",L107="юн",M107="юн",N107="юн",O107="юн",P107="юн",Q107="юн",R107="юн",S107="юн",T107="юн",U107="юн",V107="юн",W107="юн",X107="юн",Y107="юн",Z107="юн",AA107="юн",AB107="юн",AC107="юн"),"юн","б/р"))))))) -> 2
A108: Магер Даниил | B108: Полоцк | C108: 1998 | E108: юн | AD108: =IF(OR(D108="МС",E108="МС",F108="МС",G108="МС",H108="МС",I108="МС",J108="МС",K108="МС",L108="МС",M108="МС",N108="МС",O108="МС",P108="МС",Q108="МС",R108="МС",S108="МС",T108="МС",U108="МС",V108="МС",W108="МС",X108="МС",Y108="МС",Z108="МС",AA108="МС",AB108="МС",AC108="МС"),"МС",IF(OR(D108="КМС",E108="КМС",F108="КМС",G108="КМС",H108="КМС",I108="КМС",J108="КМС",K108="КМС",L108="КМС",M108="КМС",N108="КМС",O108="КМС",P108="КМС",Q108="КМС",R108="КМС",S108="КМС",T108="КМС",U108="КМС",V108="КМС",W108="КМС",X108="КМС",Y108="КМС",Z108="КМС",AA108="КМС",AB108="КМС",AC108="КМС"),"КМС",IF(OR(D108=1,E108=1,F108=1,G108=1,H108=1,I108=1,J108=1,K108=1,L108=1,M108=1,N108=1,O108=1,P108=1,Q108=1,R108=1,S108=1,T108=1,U108=1,V108=1,W108=1,X108=1,Y108=1,Z108=1,AA108=1,AB108=1,AC108=1),1,IF(OR(D108=2,E108=2,F108=2,G108=2,H108=2,I108=2,J108=2,K108=2,L108=2,M108=2,N108=2,O108=2,P108=2,Q108=2,R108=2,S108=2,T108=2,U108=2,V108=2,W108=2,X108=2,Y108=2,Z108=2,AA108=2,AB108=2,AC108=2),2,IF(OR(D108=3,E108=3,F108=3,G108=3,H108=3,I108=3,J108=3,K108=3,L108=3,M108=3,N108=3,O108=3,P108=3,Q108=3,R108=3,S108=3,T108=3,U108=3,V108=3,W108=3,X108=3,Y108=3,Z108=3,AA108=3,AB108=3,AC108=3),3,IF(OR(D108="1 юн",E108="1 юн",F108="1 юн",G108="1 юн",H108="1 юн",I108="1 юн",J108="1 юн",K108="1 юн",L108="1 юн",M108="1 юн",N108="1 юн",O108="1 юн",P108="1 юн",Q108="1 юн",R108="1 юн",S108="1 юн",T108="1 юн",U108="1 юн",V108="1 юн",W108="1 юн",X108="1 юн",Y108="1 юн",Z108="1 юн",AA108="1 юн",AB108="1 юн",AC108="1 юн"),"1 юн",IF(OR(D108="юн",E108="юн",F108="юн",G108="юн",H108="юн",I108="юн",J108="юн",K108="юн",L108="юн",M108="юн",N108="юн",O108="юн",P108="юн",Q108="юн",R108="юн",S108="юн",T108="юн",U108="юн",V108="юн",W108="юн",X108="юн",Y108="юн",Z108="юн",AA108="юн",AB108="юн",AC108="юн"),"юн","б/р"))))))) -> юн
A109: Макаренко Виктор | B109: Калинковичи | C109: 2003 | M109: 2 | AD109: =IF(OR(D109="МС",E109="МС",F109="МС",G109="МС",H109="МС",I109="МС",J109="МС",K109="МС",L109="МС",M109="МС",N109="МС",O109="МС",P109="МС",Q109="МС",R109="МС",S109="МС",T109="МС",U109="МС",V109="МС",W109="МС",X109="МС",Y109="МС",Z109="МС",AA109="МС",AB109="МС",AC109="МС"),"МС",IF(OR(D109="КМС",E109="КМС",F109="КМС",G109="КМС",H109="КМС",I109="КМС",J109="КМС",K109="КМС",L109="КМС",M109="КМС",N109="КМС",O109="КМС",P109="КМС",Q109="КМС",R109="КМС",S109="КМС",T109="КМС",U109="КМС",V109="КМС",W109="КМС",X109="КМС",Y109="КМС",Z109="КМС",AA109="КМС",AB109="КМС",AC109="КМС"),"КМС",IF(OR(D109=1,E109=1,F109=1,G109=1,H109=1,I109=1,J109=1,K109=1,L109=1,M109=1,N109=1,O109=1,P109=1,Q109=1,R109=1,S109=1,T109=1,U109=1,V109=1,W109=1,X109=1,Y109=1,Z109=1,AA109=1,AB109=1,AC109=1),1,IF(OR(D109=2,E109=2,F109=2,G109=2,H109=2,I109=2,J109=2,K109=2,L109=2,M109=2,N109=2,O109=2,P109=2,Q109=2,R109=2,S109=2,T109=2,U109=2,V109=2,W109=2,X109=2,Y109=2,Z109=2,AA109=2,AB109=2,AC109=2),2,IF(OR(D109=3,E109=3,F109=3,G109=3,H109=3,I109=3,J109=3,K109=3,L109=3,M109=3,N109=3,O109=3,P109=3,Q109=3,R109=3,S109=3,T109=3,U109=3,V109=3,W109=3,X109=3,Y109=3,Z109=3,AA109=3,AB109=3,AC109=3),3,IF(OR(D109="1 юн",E109="1 юн",F109="1 юн",G109="1 юн",H109="1 юн",I109="1 юн",J109="1 юн",K109="1 юн",L109="1 юн",M109="1 юн",N109="1 юн",O109="1 юн",P109="1 юн",Q109="1 юн",R109="1 юн",S109="1 юн",T109="1 юн",U109="1 юн",V109="1 юн",W109="1 юн",X109="1 юн",Y109="1 юн",Z109="1 юн",AA109="1 юн",AB109="1 юн",AC109="1 юн"),"1 юн",IF(OR(D109="юн",E109="юн",F109="юн",G109="юн",H109="юн",I109="юн",J109="юн",K109="юн",L109="юн",M109="юн",N109="юн",O109="юн",P109="юн",Q109="юн",R109="юн",S109="юн",T109="юн",U109="юн",V109="юн",W109="юн",X109="юн",Y109="юн",Z109="юн",AA109="юн",AB109="юн",AC109="юн"),"юн","б/р"))))))) -> 2
A110: Максименя Александр | B110: Хан-Тенгри | C110: 1975 | G110: 1 | AD110: =IF(OR(D110="МС",E110="МС",F110="МС",G110="МС",H110="МС",I110="МС",J110="МС",K110="МС",L110="МС",M110="МС",N110="МС",O110="МС",P110="МС",Q110="МС",R110="МС",S110="МС",T110="МС",U110="МС",V110="МС",W110="МС",X110="МС",Y110="МС",Z110="МС",AA110="МС",AB110="МС",AC110="МС"),"МС",IF(OR(D110="КМС",E110="КМС",F110="КМС",G110="КМС",H110="КМС",I110="КМС",J110="КМС",K110="КМС",L110="КМС",M110="КМС",N110="КМС",O110="КМС",P110="КМС",Q110="КМС",R110="КМС",S110="КМС",T110="КМС",U110="КМС",V110="КМС",W110="КМС",X110="КМС",Y110="КМС",Z110="КМС",AA110="КМС",AB110="КМС",AC110="КМС"),"КМС",IF(OR(D110=1,E110=1,F110=1,G110=1,H110=1,I110=1,J110=1,K110=1,L110=1,M110=1,N110=1,O110=1,P110=1,Q110=1,R110=1,S110=1,T110=1,U110=1,V110=1,W110=1,X110=1,Y110=1,Z110=1,AA110=1,AB110=1,AC110=1),1,IF(OR(D110=2,E110=2,F110=2,G110=2,H110=2,I110=2,J110=2,K110=2,L110=2,M110=2,N110=2,O110=2,P110=2,Q110=2,R110=2,S110=2,T110=2,U110=2,V110=2,W110=2,X110=2,Y110=2,Z110=2,AA110=2,AB110=2,AC110=2),2,IF(OR(D110=3,E110=3,F110=3,G110=3,H110=3,I110=3,J110=3,K110=3,L110=3,M110=3,N110=3,O110=3,P110=3,Q110=3,R110=3,S110=3,T110=3,U110=3,V110=3,W110=3,X110=3,Y110=3,Z110=3,AA110=3,AB110=3,AC110=3),3,IF(OR(D110="1 юн",E110="1 юн",F110="1 юн",G110="1 юн",H110="1 юн",I110="1 юн",J110="1 юн",K110="1 юн",L110="1 юн",M110="1 юн",N110="1 юн",O110="1 юн",P110="1 юн",Q110="1 юн",R110="1 юн",S110="1 юн",T110="1 юн",U110="1 юн",V110="1 юн",W110="1 юн",X110="1 юн",Y110="1 юн",Z110="1 юн",AA110="1 юн",AB110="1 юн",AC110="1 юн"),"1 юн",IF(OR(D110="юн",E110="юн",F110="юн",G110="юн",H110="юн",I110="юн",J110="юн",K110="юн",L110="юн",M110="юн",N110="юн",O110="юн",P110="юн",Q110="юн",R110="юн",S110="юн",T110="юн",U110="юн",V110="юн",W110="юн",X110="юн",Y110="юн",Z110="юн",AA110="юн",AB110="юн",AC110="юн"),"юн","б/р"))))))) -> 1
A111: Максименя Денис | B111: Минск | C111: 1996 | G111: КМС | O111: 1 | P111: КМС | AC111: 1 | AD111: =IF(OR(D111="МС",E111="МС",F111="МС",G111="МС",H111="МС",I111="МС",J111="МС",K111="МС",L111="МС",M111="МС",N111="МС",O111="МС",P111="МС",Q111="МС",R111="МС",S111="МС",T111="МС",U111="МС",V111="МС",W111="МС",X111="МС",Y111="МС",Z111="МС",AA111="МС",AB111="МС",AC111="МС"),"МС",IF(OR(D111="КМС",E111="КМС",F111="КМС",G111="КМС",H111="КМС",I111="КМС",J111="КМС",K111="КМС",L111="КМС",M111="КМС",N111="КМС",O111="КМС",P111="КМС",Q111="КМС",R111="КМС",S111="КМС",T111="КМС",U111="КМС",V111="КМС",W111="КМС",X111="КМС",Y111="КМС",Z111="КМС",AA111="КМС",AB111="КМС",AC111="КМС"),"КМС",IF(OR(D111=1,E111=1,F111=1,G111=1,H111=1,I111=1,J111=1,K111=1,L111=1,M111=1,N111=1,O111=1,P111=1,Q111=1,R111=1,S111=1,T111=1,U111=1,V111=1,W111=1,X111=1,Y111=1,Z111=1,AA111=1,AB111=1,AC111=1),1,IF(OR(D111=2,E111=2,F111=2,G111=2,H111=2,I111=2,J111=2,K111=2,L111=2,M111=2,N111=2,O111=2,P111=2,Q111=2,R111=2,S111=2,T111=2,U111=2,V111=2,W111=2,X111=2,Y111=2,Z111=2,AA111=2,AB111=2,AC111=2),2,IF(OR(D111=3,E111=3,F111=3,G111=3,H111=3,I111=3,J111=3,K111=3,L111=3,M111=3,N111=3,O111=3,P111=3,Q111=3,R111=3,S111=3,T111=3,U111=3,V111=3,W111=3,X111=3,Y111=3,Z111=3,AA111=3,AB111=3,AC111=3),3,IF(OR(D111="1 юн",E111="1 юн",F111="1 юн",G111="1 юн",H111="1 юн",I111="1 юн",J111="1 юн",K111="1 юн",L111="1 юн",M111="1 юн",N111="1 юн",O111="1 юн",P111="1 юн",Q111="1 юн",R111="1 юн",S111="1 юн",T111="1 юн",U111="1 юн",V111="1 юн",W111="1 юн",X111="1 юн",Y111="1 юн",Z111="1 юн",AA111="1 юн",AB111="1 юн",AC111="1 юн"),"1 юн",IF(OR(D111="юн",E111="юн",F111="юн",G111="юн",H111="юн",I111="юн",J111="юн",K111="юн",L111="юн",M111="юн",N111="юн",O111="юн",P111="юн",Q111="юн",R111="юн",S111="юн",T111="юн",U111="юн",V111="юн",W111="юн",X111="юн",Y111="юн",Z111="юн",AA111="юн",AB111="юн",AC111="юн"),"юн","б/р"))))))) -> КМС
A112: Малаховский Александр | B112: Хан-Тенгри | C112: 1985 | E112: 1 | Q112: 1 | AC112: 1 | AD112: =IF(OR(D112="МС",E112="МС",F112="МС",G112="МС",H112="МС",I112="МС",J112="МС",K112="МС",L112="МС",M112="МС",N112="МС",O112="МС",P112="МС",Q112="МС",R112="МС",S112="МС",T112="МС",U112="МС",V112="МС",W112="МС",X112="МС",Y112="МС",Z112="МС",AA112="МС",AB112="МС",AC112="МС"),"МС",IF(OR(D112="КМС",E112="КМС",F112="КМС",G112="КМС",H112="КМС",I112="КМС",J112="КМС",K112="КМС",L112="КМС",M112="КМС",N112="КМС",O112="КМС",P112="КМС",Q112="КМС",R112="КМС",S112="КМС",T112="КМС",U112="КМС",V112="КМС",W112="КМС",X112="КМС",Y112="КМС",Z112="КМС",AA112="КМС",AB112="КМС",AC112="КМС"),"КМС",IF(OR(D112=1,E112=1,F112=1,G112=1,H112=1,I112=1,J112=1,K112=1,L112=1,M112=1,N112=1,O112=1,P112=1,Q112=1,R112=1,S112=1,T112=1,U112=1,V112=1,W112=1,X112=1,Y112=1,Z112=1,AA112=1,AB112=1,AC112=1),1,IF(OR(D112=2,E112=2,F112=2,G112=2,H112=2,I112=2,J112=2,K112=2,L112=2,M112=2,N112=2,O112=2,P112=2,Q112=2,R112=2,S112=2,T112=2,U112=2,V112=2,W112=2,X112=2,Y112=2,Z112=2,AA112=2,AB112=2,AC112=2),2,IF(OR(D112=3,E112=3,F112=3,G112=3,H112=3,I112=3,J112=3,K112=3,L112=3,M112=3,N112=3,O112=3,P112=3,Q112=3,R112=3,S112=3,T112=3,U112=3,V112=3,W112=3,X112=3,Y112=3,Z112=3,AA112=3,AB112=3,AC112=3),3,IF(OR(D112="1 юн",E112="1 юн",F112="1 юн",G112="1 юн",H112="1 юн",I112="1 юн",J112="1 юн",K112="1 юн",L112="1 юн",M112="1 юн",N112="1 юн",O112="1 юн",P112="1 юн",Q112="1 юн",R112="1 юн",S112="1 юн",T112="1 юн",U112="1 юн",V112="1 юн",W112="1 юн",X112="1 юн",Y112="1 юн",Z112="1 юн",AA112="1 юн",AB112="1 юн",AC112="1 юн"),"1 юн",IF(OR(D112="юн",E112="юн",F112="юн",G112="юн",H112="юн",I112="юн",J112="юн",K112="юн",L112="юн",M112="юн",N112="юн",O112="юн",P112="юн",Q112="юн",R112="юн",S112="юн",T112="юн",U112="юн",V112="юн",W112="юн",X112="юн",Y112="юн",Z112="юн",AA112="юн",AB112="юн",AC112="юн"),"юн","б/р"))))))) -> 1
A113: Мельченко Арсений | B113: РЦЭК | C113: 2005 | AD113: =IF(OR(D113="МС",E113="МС",F113="МС",G113="МС",H113="МС",I113="МС",J113="МС",K113="МС",L113="МС",M113="МС",N113="МС",O113="МС",P113="МС",Q113="МС",R113="МС",S113="МС",T113="МС",U113="МС",V113="МС",W113="МС",X113="МС",Y113="МС",Z113="МС",AA113="МС",AB113="МС",AC113="МС"),"МС",IF(OR(D113="КМС",E113="КМС",F113="КМС",G113="КМС",H113="КМС",I113="КМС",J113="КМС",K113="КМС",L113="КМС",M113="КМС",N113="КМС",O113="КМС",P113="КМС",Q113="КМС",R113="КМС",S113="КМС",T113="КМС",U113="КМС",V113="КМС",W113="КМС",X113="КМС",Y113="КМС",Z113="КМС",AA113="КМС",AB113="КМС",AC113="КМС"),"КМС",IF(OR(D113=1,E113=1,F113=1,G113=1,H113=1,I113=1,J113=1,K113=1,L113=1,M113=1,N113=1,O113=1,P113=1,Q113=1,R113=1,S113=1,T113=1,U113=1,V113=1,W113=1,X113=1,Y113=1,Z113=1,AA113=1,AB113=1,AC113=1),1,IF(OR(D113=2,E113=2,F113=2,G113=2,H113=2,I113=2,J113=2,K113=2,L113=2,M113=2,N113=2,O113=2,P113=2,Q113=2,R113=2,S113=2,T113=2,U113=2,V113=2,W113=2,X113=2,Y113=2,Z113=2,AA113=2,AB113=2,AC113=2),2,IF(OR(D113=3,E113=3,F113=3,G113=3,H113=3,I113=3,J113=3,K113=3,L113=3,M113=3,N113=3,O113=3,P113=3,Q113=3,R113=3,S113=3,T113=3,U113=3,V113=3,W113=3,X113=3,Y113=3,Z113=3,AA113=3,AB113=3,AC113=3),3,IF(OR(D113="1 юн",E113="1 юн",F113="1 юн",G113="1 юн",H113="1 юн",I113="1 юн",J113="1 юн",K113="1 юн",L113="1 юн",M113="1 юн",N113="1 юн",O113="1 юн",P113="1 юн",Q113="1 юн",R113="1 юн",S113="1 юн",T113="1 юн",U113="1 юн",V113="1 юн",W113="1 юн",X113="1 юн",Y113="1 юн",Z113="1 юн",AA113="1 юн",AB113="1 юн",AC113="1 юн"),"1 юн",IF(OR(D113="юн",E113="юн",F113="юн",G113="юн",H113="юн",I113="юн",J113="юн",K113="юн",L113="юн",M113="юн",N113="юн",O113="юн",P113="юн",Q113="юн",R113="юн",S113="юн",T113="юн",U113="юн",V113="юн",W113="юн",X113="юн",Y113="юн",Z113="юн",AA113="юн",AB113="юн",AC113="юн"),"юн","б/р"))))))) -> б/р
A114: Мертенс Андрей | B114: г. Витебск | C114: 1992 | U114: 3 | AD114: =IF(OR(D114="МС",E114="МС",F114="МС",G114="МС",H114="МС",I114="МС",J114="МС",K114="МС",L114="МС",M114="МС",N114="МС",O114="МС",P114="МС",Q114="МС",R114="МС",S114="МС",T114="МС",U114="МС",V114="МС",W114="МС",X114="МС",Y114="МС",Z114="МС",AA114="МС",AB114="МС",AC114="МС"),"МС",IF(OR(D114="КМС",E114="КМС",F114="КМС",G114="КМС",H114="КМС",I114="КМС",J114="КМС",K114="КМС",L114="КМС",M114="КМС",N114="КМС",O114="КМС",P114="КМС",Q114="КМС",R114="КМС",S114="КМС",T114="КМС",U114="КМС",V114="КМС",W114="КМС",X114="КМС",Y114="КМС",Z114="КМС",AA114="КМС",AB114="КМС",AC114="КМС"),"КМС",IF(OR(D114=1,E114=1,F114=1,G114=1,H114=1,I114=1,J114=1,K114=1,L114=1,M114=1,N114=1,O114=1,P114=1,Q114=1,R114=1,S114=1,T114=1,U114=1,V114=1,W114=1,X114=1,Y114=1,Z114=1,AA114=1,AB114=1,AC114=1),1,IF(OR(D114=2,E114=2,F114=2,G114=2,H114=2,I114=2,J114=2,K114=2,L114=2,M114=2,N114=2,O114=2,P114=2,Q114=2,R114=2,S114=2,T114=2,U114=2,V114=2,W114=2,X114=2,Y114=2,Z114=2,AA114=2,AB114=2,AC114=2),2,IF(OR(D114=3,E114=3,F114=3,G114=3,H114=3,I114=3,J114=3,K114=3,L114=3,M114=3,N114=3,O114=3,P114=3,Q114=3,R114=3,S114=3,T114=3,U114=3,V114=3,W114=3,X114=3,Y114=3,Z114=3,AA114=3,AB114=3,AC114=3),3,IF(OR(D114="1 юн",E114="1 юн",F114="1 юн",G114="1 юн",H114="1 юн",I114="1 юн",J114="1 юн",K114="1 юн",L114="1 юн",M114="1 юн",N114="1 юн",O114="1 юн",P114="1 юн",Q114="1 юн",R114="1 юн",S114="1 юн",T114="1 юн",U114="1 юн",V114="1 юн",W114="1 юн",X114="1 юн",Y114="1 юн",Z114="1 юн",AA114="1 юн",AB114="1 юн",AC114="1 юн"),"1 юн",IF(OR(D114="юн",E114="юн",F114="юн",G114="юн",H114="юн",I114="юн",J114="юн",K114="юн",L114="юн",M114="юн",N114="юн",O114="юн",P114="юн",Q114="юн",R114="юн",S114="юн",T114="юн",U114="юн",V114="юн",W114="юн",X114="юн",Y114="юн",Z114="юн",AA114="юн",AB114="юн",AC114="юн"),"юн","б/р"))))))) -> 3
A115: Миненко Игорь | B115: Хан-Тенгри | C115: 1982 | G115: 2 | AD115: =IF(OR(D115="МС",E115="МС",F115="МС",G115="МС",H115="МС",I115="МС",J115="МС",K115="МС",L115="МС",M115="МС",N115="МС",O115="МС",P115="МС",Q115="МС",R115="МС",S115="МС",T115="МС",U115="МС",V115="МС",W115="МС",X115="МС",Y115="МС",Z115="МС",AA115="МС",AB115="МС",AC115="МС"),"МС",IF(OR(D115="КМС",E115="КМС",F115="КМС",G115="КМС",H115="КМС",I115="КМС",J115="КМС",K115="КМС",L115="КМС",M115="КМС",N115="КМС",O115="КМС",P115="КМС",Q115="КМС",R115="КМС",S115="КМС",T115="КМС",U115="КМС",V115="КМС",W115="КМС",X115="КМС",Y115="КМС",Z115="КМС",AA115="КМС",AB115="КМС",AC115="КМС"),"КМС",IF(OR(D115=1,E115=1,F115=1,G115=1,H115=1,I115=1,J115=1,K115=1,L115=1,M115=1,N115=1,O115=1,P115=1,Q115=1,R115=1,S115=1,T115=1,U115=1,V115=1,W115=1,X115=1,Y115=1,Z115=1,AA115=1,AB115=1,AC115=1),1,IF(OR(D115=2,E115=2,F115=2,G115=2,H115=2,I115=2,J115=2,K115=2,L115=2,M115=2,N115=2,O115=2,P115=2,Q115=2,R115=2,S115=2,T115=2,U115=2,V115=2,W115=2,X115=2,Y115=2,Z115=2,AA115=2,AB115=2,AC115=2),2,IF(OR(D115=3,E115=3,F115=3,G115=3,H115=3,I115=3,J115=3,K115=3,L115=3,M115=3,N115=3,O115=3,P115=3,Q115=3,R115=3,S115=3,T115=3,U115=3,V115=3,W115=3,X115=3,Y115=3,Z115=3,AA115=3,AB115=3,AC115=3),3,IF(OR(D115="1 юн",E115="1 юн",F115="1 юн",G115="1 юн",H115="1 юн",I115="1 юн",J115="1 юн",K115="1 юн",L115="1 юн",M115="1 юн",N115="1 юн",O115="1 юн",P115="1 юн",Q115="1 юн",R115="1 юн",S115="1 юн",T115="1 юн",U115="1 юн",V115="1 юн",W115="1 юн",X115="1 юн",Y115="1 юн",Z115="1 юн",AA115="1 юн",AB115="1 юн",AC115="1 юн"),"1 юн",IF(OR(D115="юн",E115="юн",F115="юн",G115="юн",H115="юн",I115="юн",J115="юн",K115="юн",L115="юн",M115="юн",N115="юн",O115="юн",P115="юн",Q115="юн",R115="юн",S115="юн",T115="юн",U115="юн",V115="юн",W115="юн",X115="юн",Y115="юн",Z115="юн",AA115="юн",AB115="юн",AC115="юн"),"юн","б/р"))))))) -> 2
A116: Мишкин Данила | B116: Брестская область | C116: 2004 | R116: юн | X116: юн | AD116: =IF(OR(D116="МС",E116="МС",F116="МС",G116="МС",H116="МС",I116="МС",J116="МС",K116="МС",L116="МС",M116="МС",N116="МС",O116="МС",P116="МС",Q116="МС",R116="МС",S116="МС",T116="МС",U116="МС",V116="МС",W116="МС",X116="МС",Y116="МС",Z116="МС",AA116="МС",AB116="МС",AC116="МС"),"МС",IF(OR(D116="КМС",E116="КМС",F116="КМС",G116="КМС",H116="КМС",I116="КМС",J116="КМС",K116="КМС",L116="КМС",M116="КМС",N116="КМС",O116="КМС",P116="КМС",Q116="КМС",R116="КМС",S116="КМС",T116="КМС",U116="КМС",V116="КМС",W116="КМС",X116="КМС",Y116="КМС",Z116="КМС",AA116="КМС",AB116="КМС",AC116="КМС"),"КМС",IF(OR(D116=1,E116=1,F116=1,G116=1,H116=1,I116=1,J116=1,K116=1,L116=1,M116=1,N116=1,O116=1,P116=1,Q116=1,R116=1,S116=1,T116=1,U116=1,V116=1,W116=1,X116=1,Y116=1,Z116=1,AA116=1,AB116=1,AC116=1),1,IF(OR(D116=2,E116=2,F116=2,G116=2,H116=2,I116=2,J116=2,K116=2,L116=2,M116=2,N116=2,O116=2,P116=2,Q116=2,R116=2,S116=2,T116=2,U116=2,V116=2,W116=2,X116=2,Y116=2,Z116=2,AA116=2,AB116=2,AC116=2),2,IF(OR(D116=3,E116=3,F116=3,G116=3,H116=3,I116=3,J116=3,K116=3,L116=3,M116=3,N116=3,O116=3,P116=3,Q116=3,R116=3,S116=3,T116=3,U116=3,V116=3,W116=3,X116=3,Y116=3,Z116=3,AA116=3,AB116=3,AC116=3),3,IF(OR(D116="1 юн",E116="1 юн",F116="1 юн",G116="1 юн",H116="1 юн",I116="1 юн",J116="1 юн",K116="1 юн",L116="1 юн",M116="1 юн",N116="1 юн",O116="1 юн",P116="1 юн",Q116="1 юн",R116="1 юн",S116="1 юн",T116="1 юн",U116="1 юн",V116="1 юн",W116="1 юн",X116="1 юн",Y116="1 юн",Z116="1 юн",AA116="1 юн",AB116="1 юн",AC116="1 юн"),"1 юн",IF(OR(D116="юн",E116="юн",F116="юн",G116="юн",H116="юн",I116="юн",J116="юн",K116="юн",L116="юн",M116="юн",N116="юн",O116="юн",P116="юн",Q116="юн",R116="юн",S116="юн",T116="юн",U116="юн",V116="юн",W116="юн",X116="юн",Y116="юн",Z116="юн",AA116="юн",AB116="юн",AC116="юн"),"юн","б/р"))))))) -> юн
A117: Мокеев Алексей | B117: Пуховичский р-н | C117: 2002 | N117: юн | AD117: =IF(OR(D117="МС",E117="МС",F117="МС",G117="МС",H117="МС",I117="МС",J117="МС",K117="МС",L117="МС",M117="МС",N117="МС",O117="МС",P117="МС",Q117="МС",R117="МС",S117="МС",T117="МС",U117="МС",V117="МС",W117="МС",X117="МС",Y117="МС",Z117="МС",AA117="МС",AB117="МС",AC117="МС"),"МС",IF(OR(D117="КМС",E117="КМС",F117="КМС",G117="КМС",H117="КМС",I117="КМС",J117="КМС",K117="КМС",L117="КМС",M117="КМС",N117="КМС",O117="КМС",P117="КМС",Q117="КМС",R117="КМС",S117="КМС",T117="КМС",U117="КМС",V117="КМС",W117="КМС",X117="КМС",Y117="КМС",Z117="КМС",AA117="КМС",AB117="КМС",AC117="КМС"),"КМС",IF(OR(D117=1,E117=1,F117=1,G117=1,H117=1,I117=1,J117=1,K117=1,L117=1,M117=1,N117=1,O117=1,P117=1,Q117=1,R117=1,S117=1,T117=1,U117=1,V117=1,W117=1,X117=1,Y117=1,Z117=1,AA117=1,AB117=1,AC117=1),1,IF(OR(D117=2,E117=2,F117=2,G117=2,H117=2,I117=2,J117=2,K117=2,L117=2,M117=2,N117=2,O117=2,P117=2,Q117=2,R117=2,S117=2,T117=2,U117=2,V117=2,W117=2,X117=2,Y117=2,Z117=2,AA117=2,AB117=2,AC117=2),2,IF(OR(D117=3,E117=3,F117=3,G117=3,H117=3,I117=3,J117=3,K117=3,L117=3,M117=3,N117=3,O117=3,P117=3,Q117=3,R117=3,S117=3,T117=3,U117=3,V117=3,W117=3,X117=3,Y117=3,Z117=3,AA117=3,AB117=3,AC117=3),3,IF(OR(D117="1 юн",E117="1 юн",F117="1 юн",G117="1 юн",H117="1 юн",I117="1 юн",J117="1 юн",K117="1 юн",L117="1 юн",M117="1 юн",N117="1 юн",O117="1 юн",P117="1 юн",Q117="1 юн",R117="1 юн",S117="1 юн",T117="1 юн",U117="1 юн",V117="1 юн",W117="1 юн",X117="1 юн",Y117="1 юн",Z117="1 юн",AA117="1 юн",AB117="1 юн",AC117="1 юн"),"1 юн",IF(OR(D117="юн",E117="юн",F117="юн",G117="юн",H117="юн",I117="юн",J117="юн",K117="юн",L117="юн",M117="юн",N117="юн",O117="юн",P117="юн",Q117="юн",R117="юн",S117="юн",T117="юн",U117="юн",V117="юн",W117="юн",X117="юн",Y117="юн",Z117="юн",AA117="юн",AB117="юн",AC117="юн"),"юн","б/р"))))))) -> юн
A118: Морозов Игорь | B118: Хан-Тенгри | C118: 1970 | AD118: =IF(OR(D118="МС",E118="МС",F118="МС",G118="МС",H118="МС",I118="МС",J118="МС",K118="МС",L118="МС",M118="МС",N118="МС",O118="МС",P118="МС",Q118="МС",R118="МС",S118="МС",T118="МС",U118="МС",V118="МС",W118="МС",X118="МС",Y118="МС",Z118="МС",AA118="МС",AB118="МС",AC118="МС"),"МС",IF(OR(D118="КМС",E118="КМС",F118="КМС",G118="КМС",H118="КМС",I118="КМС",J118="КМС",K118="КМС",L118="КМС",M118="КМС",N118="КМС",O118="КМС",P118="КМС",Q118="КМС",R118="КМС",S118="КМС",T118="КМС",U118="КМС",V118="КМС",W118="КМС",X118="КМС",Y118="КМС",Z118="КМС",AA118="КМС",AB118="КМС",AC118="КМС"),"КМС",IF(OR(D118=1,E118=1,F118=1,G118=1,H118=1,I118=1,J118=1,K118=1,L118=1,M118=1,N118=1,O118=1,P118=1,Q118=1,R118=1,S118=1,T118=1,U118=1,V118=1,W118=1,X118=1,Y118=1,Z118=1,AA118=1,AB118=1,AC118=1),1,IF(OR(D118=2,E118=2,F118=2,G118=2,H118=2,I118=2,J118=2,K118=2,L118=2,M118=2,N118=2,O118=2,P118=2,Q118=2,R118=2,S118=2,T118=2,U118=2,V118=2,W118=2,X118=2,Y118=2,Z118=2,AA118=2,AB118=2,AC118=2),2,IF(OR(D118=3,E118=3,F118=3,G118=3,H118=3,I118=3,J118=3,K118=3,L118=3,M118=3,N118=3,O118=3,P118=3,Q118=3,R118=3,S118=3,T118=3,U118=3,V118=3,W118=3,X118=3,Y118=3,Z118=3,AA118=3,AB118=3,AC118=3),3,IF(OR(D118="1 юн",E118="1 юн",F118="1 юн",G118="1 юн",H118="1 юн",I118="1 юн",J118="1 юн",K118="1 юн",L118="1 юн",M118="1 юн",N118="1 юн",O118="1 юн",P118="1 юн",Q118="1 юн",R118="1 юн",S118="1 юн",T118="1 юн",U118="1 юн",V118="1 юн",W118="1 юн",X118="1 юн",Y118="1 юн",Z118="1 юн",AA118="1 юн",AB118="1 юн",AC118="1 юн"),"1 юн",IF(OR(D118="юн",E118="юн",F118="юн",G118="юн",H118="юн",I118="юн",J118="юн",K118="юн",L118="юн",M118="юн",N118="юн",O118="юн",P118="юн",Q118="юн",R118="юн",S118="юн",T118="юн",U118="юн",V118="юн",W118="юн",X118="юн",Y118="юн",Z118="юн",AA118="юн",AB118="юн",AC118="юн"),"юн","б/р"))))))) -> б/р
A119: Морозов Юрий | B119: Хан-Тенгри | C119: 1992 | G119: КМС | Q119: 2 | AC119: 1 | AD119: =IF(OR(D119="МС",E119="МС",F119="МС",G119="МС",H119="МС",I119="МС",J119="МС",K119="МС",L119="МС",M119="МС",N119="МС",O119="МС",P119="МС",Q119="МС",R119="МС",S119="МС",T119="МС",U119="МС",V119="МС",W119="МС",X119="МС",Y119="МС",Z119="МС",AA119="МС",AB119="МС",AC119="МС"),"МС",IF(OR(D119="КМС",E119="КМС",F119="КМС",G119="КМС",H119="КМС",I119="КМС",J119="КМС",K119="КМС",L119="КМС",M119="КМС",N119="КМС",O119="КМС",P119="КМС",Q119="КМС",R119="КМС",S119="КМС",T119="КМС",U119="КМС",V119="КМС",W119="КМС",X119="КМС",Y119="КМС",Z119="КМС",AA119="КМС",AB119="КМС",AC119="КМС"),"КМС",IF(OR(D119=1,E119=1,F119=1,G119=1,H119=1,I119=1,J119=1,K119=1,L119=1,M119=1,N119=1,O119=1,P119=1,Q119=1,R119=1,S119=1,T119=1,U119=1,V119=1,W119=1,X119=1,Y119=1,Z119=1,AA119=1,AB119=1,AC119=1),1,IF(OR(D119=2,E119=2,F119=2,G119=2,H119=2,I119=2,J119=2,K119=2,L119=2,M119=2,N119=2,O119=2,P119=2,Q119=2,R119=2,S119=2,T119=2,U119=2,V119=2,W119=2,X119=2,Y119=2,Z119=2,AA119=2,AB119=2,AC119=2),2,IF(OR(D119=3,E119=3,F119=3,G119=3,H119=3,I119=3,J119=3,K119=3,L119=3,M119=3,N119=3,O119=3,P119=3,Q119=3,R119=3,S119=3,T119=3,U119=3,V119=3,W119=3,X119=3,Y119=3,Z119=3,AA119=3,AB119=3,AC119=3),3,IF(OR(D119="1 юн",E119="1 юн",F119="1 юн",G119="1 юн",H119="1 юн",I119="1 юн",J119="1 юн",K119="1 юн",L119="1 юн",M119="1 юн",N119="1 юн",O119="1 юн",P119="1 юн",Q119="1 юн",R119="1 юн",S119="1 юн",T119="1 юн",U119="1 юн",V119="1 юн",W119="1 юн",X119="1 юн",Y119="1 юн",Z119="1 юн",AA119="1 юн",AB119="1 юн",AC119="1 юн"),"1 юн",IF(OR(D119="юн",E119="юн",F119="юн",G119="юн",H119="юн",I119="юн",J119="юн",K119="юн",L119="юн",M119="юн",N119="юн",O119="юн",P119="юн",Q119="юн",R119="юн",S119="юн",T119="юн",U119="юн",V119="юн",W119="юн",X119="юн",Y119="юн",Z119="юн",AA119="юн",AB119="юн",AC119="юн"),"юн","б/р"))))))) -> КМС
A120: Мостков Слава | B120: Минск | C120: 2006 | X120: юн | AD120: =IF(OR(D120="МС",E120="МС",F120="МС",G120="МС",H120="МС",I120="МС",J120="МС",K120="МС",L120="МС",M120="МС",N120="МС",O120="МС",P120="МС",Q120="МС",R120="МС",S120="МС",T120="МС",U120="МС",V120="МС",W120="МС",X120="МС",Y120="МС",Z120="МС",AA120="МС",AB120="МС",AC120="МС"),"МС",IF(OR(D120="КМС",E120="КМС",F120="КМС",G120="КМС",H120="КМС",I120="КМС",J120="КМС",K120="КМС",L120="КМС",M120="КМС",N120="КМС",O120="КМС",P120="КМС",Q120="КМС",R120="КМС",S120="КМС",T120="КМС",U120="КМС",V120="КМС",W120="КМС",X120="КМС",Y120="КМС",Z120="КМС",AA120="КМС",AB120="КМС",AC120="КМС"),"КМС",IF(OR(D120=1,E120=1,F120=1,G120=1,H120=1,I120=1,J120=1,K120=1,L120=1,M120=1,N120=1,O120=1,P120=1,Q120=1,R120=1,S120=1,T120=1,U120=1,V120=1,W120=1,X120=1,Y120=1,Z120=1,AA120=1,AB120=1,AC120=1),1,IF(OR(D120=2,E120=2,F120=2,G120=2,H120=2,I120=2,J120=2,K120=2,L120=2,M120=2,N120=2,O120=2,P120=2,Q120=2,R120=2,S120=2,T120=2,U120=2,V120=2,W120=2,X120=2,Y120=2,Z120=2,AA120=2,AB120=2,AC120=2),2,IF(OR(D120=3,E120=3,F120=3,G120=3,H120=3,I120=3,J120=3,K120=3,L120=3,M120=3,N120=3,O120=3,P120=3,Q120=3,R120=3,S120=3,T120=3,U120=3,V120=3,W120=3,X120=3,Y120=3,Z120=3,AA120=3,AB120=3,AC120=3),3,IF(OR(D120="1 юн",E120="1 юн",F120="1 юн",G120="1 юн",H120="1 юн",I120="1 юн",J120="1 юн",K120="1 юн",L120="1 юн",M120="1 юн",N120="1 юн",O120="1 юн",P120="1 юн",Q120="1 юн",R120="1 юн",S120="1 юн",T120="1 юн",U120="1 юн",V120="1 юн",W120="1 юн",X120="1 юн",Y120="1 юн",Z120="1 юн",AA120="1 юн",AB120="1 юн",AC120="1 юн"),"1 юн",IF(OR(D120="юн",E120="юн",F120="юн",G120="юн",H120="юн",I120="юн",J120="юн",K120="юн",L120="юн",M120="юн",N120="юн",O120="юн",P120="юн",Q120="юн",R120="юн",S120="юн",T120="юн",U120="юн",V120="юн",W120="юн",X120="юн",Y120="юн",Z120="юн",AA120="юн",AB120="юн",AC120="юн"),"юн","б/р"))))))) -> юн
A121: Найденшев Владимир | B121: Пуховичский р-н | C121: 2002 | H121: 3 | N121: юн | R121: 2 | S121: юн | T121: 1 юн | Z121: 3 | AD121: =IF(OR(D121="МС",E121="МС",F121="МС",G121="МС",H121="МС",I121="МС",J121="МС",K121="МС",L121="МС",M121="МС",N121="МС",O121="МС",P121="МС",Q121="МС",R121="МС",S121="МС",T121="МС",U121="МС",V121="МС",W121="МС",X121="МС",Y121="МС",Z121="МС",AA121="МС",AB121="МС",AC121="МС"),"МС",IF(OR(D121="КМС",E121="КМС",F121="КМС",G121="КМС",H121="КМС",I121="КМС",J121="КМС",K121="КМС",L121="КМС",M121="КМС",N121="КМС",O121="КМС",P121="КМС",Q121="КМС",R121="КМС",S121="КМС",T121="КМС",U121="КМС",V121="КМС",W121="КМС",X121="КМС",Y121="КМС",Z121="КМС",AA121="КМС",AB121="КМС",AC121="КМС"),"КМС",IF(OR(D121=1,E121=1,F121=1,G121=1,H121=1,I121=1,J121=1,K121=1,L121=1,M121=1,N121=1,O121=1,P121=1,Q121=1,R121=1,S121=1,T121=1,U121=1,V121=1,W121=1,X121=1,Y121=1,Z121=1,AA121=1,AB121=1,AC121=1),1,IF(OR(D121=2,E121=2,F121=2,G121=2,H121=2,I121=2,J121=2,K121=2,L121=2,M121=2,N121=2,O121=2,P121=2,Q121=2,R121=2,S121=2,T121=2,U121=2,V121=2,W121=2,X121=2,Y121=2,Z121=2,AA121=2,AB121=2,AC121=2),2,IF(OR(D121=3,E121=3,F121=3,G121=3,H121=3,I121=3,J121=3,K121=3,L121=3,M121=3,N121=3,O121=3,P121=3,Q121=3,R121=3,S121=3,T121=3,U121=3,V121=3,W121=3,X121=3,Y121=3,Z121=3,AA121=3,AB121=3,AC121=3),3,IF(OR(D121="1 юн",E121="1 юн",F121="1 юн",G121="1 юн",H121="1 юн",I121="1 юн",J121="1 юн",K121="1 юн",L121="1 юн",M121="1 юн",N121="1 юн",O121="1 юн",P121="1 юн",Q121="1 юн",R121="1 юн",S121="1 юн",T121="1 юн",U121="1 юн",V121="1 юн",W121="1 юн",X121="1 юн",Y121="1 юн",Z121="1 юн",AA121="1 юн",AB121="1 юн",AC121="1 юн"),"1 юн",IF(OR(D121="юн",E121="юн",F121="юн",G121="юн",H121="юн",I121="юн",J121="юн",K121="юн",L121="юн",M121="юн",N121="юн",O121="юн",P121="юн",Q121="юн",R121="юн",S121="юн",T121="юн",U121="юн",V121="юн",W121="юн",X121="юн",Y121="юн",Z121="юн",AA121="юн",AB121="юн",AC121="юн"),"юн","б/р"))))))) -> 2
A122: Насиров Ренат | B122: ГОЦТиКДиМ Гомель | C122: 2004 | N122: юн | AD122: =IF(OR(D122="МС",E122="МС",F122="МС",G122="МС",H122="МС",I122="МС",J122="МС",K122="МС",L122="МС",M122="МС",N122="МС",O122="МС",P122="МС",Q122="МС",R122="МС",S122="МС",T122="МС",U122="МС",V122="МС",W122="МС",X122="МС",Y122="МС",Z122="МС",AA122="МС",AB122="МС",AC122="МС"),"МС",IF(OR(D122="КМС",E122="КМС",F122="КМС",G122="КМС",H122="КМС",I122="КМС",J122="КМС",K122="КМС",L122="КМС",M122="КМС",N122="КМС",O122="КМС",P122="КМС",Q122="КМС",R122="КМС",S122="КМС",T122="КМС",U122="КМС",V122="КМС",W122="КМС",X122="КМС",Y122="КМС",Z122="КМС",AA122="КМС",AB122="КМС",AC122="КМС"),"КМС",IF(OR(D122=1,E122=1,F122=1,G122=1,H122=1,I122=1,J122=1,K122=1,L122=1,M122=1,N122=1,O122=1,P122=1,Q122=1,R122=1,S122=1,T122=1,U122=1,V122=1,W122=1,X122=1,Y122=1,Z122=1,AA122=1,AB122=1,AC122=1),1,IF(OR(D122=2,E122=2,F122=2,G122=2,H122=2,I122=2,J122=2,K122=2,L122=2,M122=2,N122=2,O122=2,P122=2,Q122=2,R122=2,S122=2,T122=2,U122=2,V122=2,W122=2,X122=2,Y122=2,Z122=2,AA122=2,AB122=2,AC122=2),2,IF(OR(D122=3,E122=3,F122=3,G122=3,H122=3,I122=3,J122=3,K122=3,L122=3,M122=3,N122=3,O122=3,P122=3,Q122=3,R122=3,S122=3,T122=3,U122=3,V122=3,W122=3,X122=3,Y122=3,Z122=3,AA122=3,AB122=3,AC122=3),3,IF(OR(D122="1 юн",E122="1 юн",F122="1 юн",G122="1 юн",H122="1 юн",I122="1 юн",J122="1 юн",K122="1 юн",L122="1 юн",M122="1 юн",N122="1 юн",O122="1 юн",P122="1 юн",Q122="1 юн",R122="1 юн",S122="1 юн",T122="1 юн",U122="1 юн",V122="1 юн",W122="1 юн",X122="1 юн",Y122="1 юн",Z122="1 юн",AA122="1 юн",AB122="1 юн",AC122="1 юн"),"1 юн",IF(OR(D122="юн",E122="юн",F122="юн",G122="юн",H122="юн",I122="юн",J122="юн",K122="юн",L122="юн",M122="юн",N122="юн",O122="юн",P122="юн",Q122="юн",R122="юн",S122="юн",T122="юн",U122="юн",V122="юн",W122="юн",X122="юн",Y122="юн",Z122="юн",AA122="юн",AB122="юн",AC122="юн"),"юн","б/р"))))))) -> юн
A123: Нестеренко Егор | B123: ДЮСШ «Омега» Гом. | C123: 2003 | M123: юн | AD123: =IF(OR(D123="МС",E123="МС",F123="МС",G123="МС",H123="МС",I123="МС",J123="МС",K123="МС",L123="МС",M123="МС",N123="МС",O123="МС",P123="МС",Q123="МС",R123="МС",S123="МС",T123="МС",U123="МС",V123="МС",W123="МС",X123="МС",Y123="МС",Z123="МС",AA123="МС",AB123="МС",AC123="МС"),"МС",IF(OR(D123="КМС",E123="КМС",F123="КМС",G123="КМС",H123="КМС",I123="КМС",J123="КМС",K123="КМС",L123="КМС",M123="КМС",N123="КМС",O123="КМС",P123="КМС",Q123="КМС",R123="КМС",S123="КМС",T123="КМС",U123="КМС",V123="КМС",W123="КМС",X123="КМС",Y123="КМС",Z123="КМС",AA123="КМС",AB123="КМС",AC123="КМС"),"КМС",IF(OR(D123=1,E123=1,F123=1,G123=1,H123=1,I123=1,J123=1,K123=1,L123=1,M123=1,N123=1,O123=1,P123=1,Q123=1,R123=1,S123=1,T123=1,U123=1,V123=1,W123=1,X123=1,Y123=1,Z123=1,AA123=1,AB123=1,AC123=1),1,IF(OR(D123=2,E123=2,F123=2,G123=2,H123=2,I123=2,J123=2,K123=2,L123=2,M123=2,N123=2,O123=2,P123=2,Q123=2,R123=2,S123=2,T123=2,U123=2,V123=2,W123=2,X123=2,Y123=2,Z123=2,AA123=2,AB123=2,AC123=2),2,IF(OR(D123=3,E123=3,F123=3,G123=3,H123=3,I123=3,J123=3,K123=3,L123=3,M123=3,N123=3,O123=3,P123=3,Q123=3,R123=3,S123=3,T123=3,U123=3,V123=3,W123=3,X123=3,Y123=3,Z123=3,AA123=3,AB123=3,AC123=3),3,IF(OR(D123="1 юн",E123="1 юн",F123="1 юн",G123="1 юн",H123="1 юн",I123="1 юн",J123="1 юн",K123="1 юн",L123="1 юн",M123="1 юн",N123="1 юн",O123="1 юн",P123="1 юн",Q123="1 юн",R123="1 юн",S123="1 юн",T123="1 юн",U123="1 юн",V123="1 юн",W123="1 юн",X123="1 юн",Y123="1 юн",Z123="1 юн",AA123="1 юн",AB123="1 юн",AC123="1 юн"),"1 юн",IF(OR(D123="юн",E123="юн",F123="юн",G123="юн",H123="юн",I123="юн",J123="юн",K123="юн",L123="юн",M123="юн",N123="юн",O123="юн",P123="юн",Q123="юн",R123="юн",S123="юн",T123="юн",U123="юн",V123="юн",W123="юн",X123="юн",Y123="юн",Z123="юн",AA123="юн",AB123="юн",AC123="юн"),"юн","б/р"))))))) -> юн
A124: Никипелов Вадим | B124: Речица | C124: 1998 | AD124: =IF(OR(D124="МС",E124="МС",F124="МС",G124="МС",H124="МС",I124="МС",J124="МС",K124="МС",L124="МС",M124="МС",N124="МС",O124="МС",P124="МС",Q124="МС",R124="МС",S124="МС",T124="МС",U124="МС",V124="МС",W124="МС",X124="МС",Y124="МС",Z124="МС",AA124="МС",AB124="МС",AC124="МС"),"МС",IF(OR(D124="КМС",E124="КМС",F124="КМС",G124="КМС",H124="КМС",I124="КМС",J124="КМС",K124="КМС",L124="КМС",M124="КМС",N124="КМС",O124="КМС",P124="КМС",Q124="КМС",R124="КМС",S124="КМС",T124="КМС",U124="КМС",V124="КМС",W124="КМС",X124="КМС",Y124="КМС",Z124="КМС",AA124="КМС",AB124="КМС",AC124="КМС"),"КМС",IF(OR(D124=1,E124=1,F124=1,G124=1,H124=1,I124=1,J124=1,K124=1,L124=1,M124=1,N124=1,O124=1,P124=1,Q124=1,R124=1,S124=1,T124=1,U124=1,V124=1,W124=1,X124=1,Y124=1,Z124=1,AA124=1,AB124=1,AC124=1),1,IF(OR(D124=2,E124=2,F124=2,G124=2,H124=2,I124=2,J124=2,K124=2,L124=2,M124=2,N124=2,O124=2,P124=2,Q124=2,R124=2,S124=2,T124=2,U124=2,V124=2,W124=2,X124=2,Y124=2,Z124=2,AA124=2,AB124=2,AC124=2),2,IF(OR(D124=3,E124=3,F124=3,G124=3,H124=3,I124=3,J124=3,K124=3,L124=3,M124=3,N124=3,O124=3,P124=3,Q124=3,R124=3,S124=3,T124=3,U124=3,V124=3,W124=3,X124=3,Y124=3,Z124=3,AA124=3,AB124=3,AC124=3),3,IF(OR(D124="1 юн",E124="1 юн",F124="1 юн",G124="1 юн",H124="1 юн",I124="1 юн",J124="1 юн",K124="1 юн",L124="1 юн",M124="1 юн",N124="1 юн",O124="1 юн",P124="1 юн",Q124="1 юн",R124="1 юн",S124="1 юн",T124="1 юн",U124="1 юн",V124="1 юн",W124="1 юн",X124="1 юн",Y124="1 юн",Z124="1 юн",AA124="1 юн",AB124="1 юн",AC124="1 юн"),"1 юн",IF(OR(D124="юн",E124="юн",F124="юн",G124="юн",H124="юн",I124="юн",J124="юн",K124="юн",L124="юн",M124="юн",N124="юн",O124="юн",P124="юн",Q124="юн",R124="юн",S124="юн",T124="юн",U124="юн",V124="юн",W124="юн",X124="юн",Y124="юн",Z124="юн",AA124="юн",AB124="юн",AC124="юн"),"юн","б/р"))))))) -> б/р
A125: Никифоровец Андрей | B125: Минск | C125: 1974 | D125: 1 | E125: МС | K125: 1 | L125: КМС | O125: КМС | Q125: 1 | V125: МС | Y125: 3 | Z125: МС | AC125: МС | AD125: =IF(OR(D125="МС",E125="МС",F125="МС",G125="МС",H125="МС",I125="МС",J125="МС",K125="МС",L125="МС",M125="МС",N125="МС",O125="МС",P125="МС",Q125="МС",R125="МС",S125="МС",T125="МС",U125="МС",V125="МС",W125="МС",X125="МС",Y125="МС",Z125="МС",AA125="МС",AB125="МС",AC125="МС"),"МС",IF(OR(D125="КМС",E125="КМС",F125="КМС",G125="КМС",H125="КМС",I125="КМС",J125="КМС",K125="КМС",L125="КМС",M125="КМС",N125="КМС",O125="КМС",P125="КМС",Q125="КМС",R125="КМС",S125="КМС",T125="КМС",U125="КМС",V125="КМС",W125="КМС",X125="КМС",Y125="КМС",Z125="КМС",AA125="КМС",AB125="КМС",AC125="КМС"),"КМС",IF(OR(D125=1,E125=1,F125=1,G125=1,H125=1,I125=1,J125=1,K125=1,L125=1,M125=1,N125=1,O125=1,P125=1,Q125=1,R125=1,S125=1,T125=1,U125=1,V125=1,W125=1,X125=1,Y125=1,Z125=1,AA125=1,AB125=1,AC125=1),1,IF(OR(D125=2,E125=2,F125=2,G125=2,H125=2,I125=2,J125=2,K125=2,L125=2,M125=2,N125=2,O125=2,P125=2,Q125=2,R125=2,S125=2,T125=2,U125=2,V125=2,W125=2,X125=2,Y125=2,Z125=2,AA125=2,AB125=2,AC125=2),2,IF(OR(D125=3,E125=3,F125=3,G125=3,H125=3,I125=3,J125=3,K125=3,L125=3,M125=3,N125=3,O125=3,P125=3,Q125=3,R125=3,S125=3,T125=3,U125=3,V125=3,W125=3,X125=3,Y125=3,Z125=3,AA125=3,AB125=3,AC125=3),3,IF(OR(D125="1 юн",E125="1 юн",F125="1 юн",G125="1 юн",H125="1 юн",I125="1 юн",J125="1 юн",K125="1 юн",L125="1 юн",M125="1 юн",N125="1 юн",O125="1 юн",P125="1 юн",Q125="1 юн",R125="1 юн",S125="1 юн",T125="1 юн",U125="1 юн",V125="1 юн",W125="1 юн",X125="1 юн",Y125="1 юн",Z125="1 юн",AA125="1 юн",AB125="1 юн",AC125="1 юн"),"1 юн",IF(OR(D125="юн",E125="юн",F125="юн",G125="юн",H125="юн",I125="юн",J125="юн",K125="юн",L125="юн",M125="юн",N125="юн",O125="юн",P125="юн",Q125="юн",R125="юн",S125="юн",T125="юн",U125="юн",V125="юн",W125="юн",X125="юн",Y125="юн",Z125="юн",AA125="юн",AB125="юн",AC125="юн"),"юн","б/р"))))))) -> МС
A126: Никифоровец Максим | B126: Минск | C126: 1997 | D126: 2 | E126: 2 | F126: 1 | G126: КМС | P126: КМС | Q126: КМС | Y126: 1 | Z126: КМС | AC126: КМС | AD126: =IF(OR(D126="МС",E126="МС",F126="МС",G126="МС",H126="МС",I126="МС",J126="МС",K126="МС",L126="МС",M126="МС",N126="МС",O126="МС",P126="МС",Q126="МС",R126="МС",S126="МС",T126="МС",U126="МС",V126="МС",W126="МС",X126="МС",Y126="МС",Z126="МС",AA126="МС",AB126="МС",AC126="МС"),"МС",IF(OR(D126="КМС",E126="КМС",F126="КМС",G126="КМС",H126="КМС",I126="КМС",J126="КМС",K126="КМС",L126="КМС",M126="КМС",N126="КМС",O126="КМС",P126="КМС",Q126="КМС",R126="КМС",S126="КМС",T126="КМС",U126="КМС",V126="КМС",W126="КМС",X126="КМС",Y126="КМС",Z126="КМС",AA126="КМС",AB126="КМС",AC126="КМС"),"КМС",IF(OR(D126=1,E126=1,F126=1,G126=1,H126=1,I126=1,J126=1,K126=1,L126=1,M126=1,N126=1,O126=1,P126=1,Q126=1,R126=1,S126=1,T126=1,U126=1,V126=1,W126=1,X126=1,Y126=1,Z126=1,AA126=1,AB126=1,AC126=1),1,IF(OR(D126=2,E126=2,F126=2,G126=2,H126=2,I126=2,J126=2,K126=2,L126=2,M126=2,N126=2,O126=2,P126=2,Q126=2,R126=2,S126=2,T126=2,U126=2,V126=2,W126=2,X126=2,Y126=2,Z126=2,AA126=2,AB126=2,AC126=2),2,IF(OR(D126=3,E126=3,F126=3,G126=3,H126=3,I126=3,J126=3,K126=3,L126=3,M126=3,N126=3,O126=3,P126=3,Q126=3,R126=3,S126=3,T126=3,U126=3,V126=3,W126=3,X126=3,Y126=3,Z126=3,AA126=3,AB126=3,AC126=3),3,IF(OR(D126="1 юн",E126="1 юн",F126="1 юн",G126="1 юн",H126="1 юн",I126="1 юн",J126="1 юн",K126="1 юн",L126="1 юн",M126="1 юн",N126="1 юн",O126="1 юн",P126="1 юн",Q126="1 юн",R126="1 юн",S126="1 юн",T126="1 юн",U126="1 юн",V126="1 юн",W126="1 юн",X126="1 юн",Y126="1 юн",Z126="1 юн",AA126="1 юн",AB126="1 юн",AC126="1 юн"),"1 юн",IF(OR(D126="юн",E126="юн",F126="юн",G126="юн",H126="юн",I126="юн",J126="юн",K126="юн",L126="юн",M126="юн",N126="юн",O126="юн",P126="юн",Q126="юн",R126="юн",S126="юн",T126="юн",U126="юн",V126="юн",W126="юн",X126="юн",Y126="юн",Z126="юн",AA126="юн",AB126="юн",AC126="юн"),"юн","б/р"))))))) -> КМС
A127: Никоноров Дмитрий | B127: Пуховичский р-н | C127: 1997 | E127: 1 | F127: 1 | G127: КМС | P127: 1 | Q127: 1 | AC127: 1 | AD127: =IF(OR(D127="МС",E127="МС",F127="МС",G127="МС",H127="МС",I127="МС",J127="МС",K127="МС",L127="МС",M127="МС",N127="МС",O127="МС",P127="МС",Q127="МС",R127="МС",S127="МС",T127="МС",U127="МС",V127="МС",W127="МС",X127="МС",Y127="МС",Z127="МС",AA127="МС",AB127="МС",AC127="МС"),"МС",IF(OR(D127="КМС",E127="КМС",F127="КМС",G127="КМС",H127="КМС",I127="КМС",J127="КМС",K127="КМС",L127="КМС",M127="КМС",N127="КМС",O127="КМС",P127="КМС",Q127="КМС",R127="КМС",S127="КМС",T127="КМС",U127="КМС",V127="КМС",W127="КМС",X127="КМС",Y127="КМС",Z127="КМС",AA127="КМС",AB127="КМС",AC127="КМС"),"КМС",IF(OR(D127=1,E127=1,F127=1,G127=1,H127=1,I127=1,J127=1,K127=1,L127=1,M127=1,N127=1,O127=1,P127=1,Q127=1,R127=1,S127=1,T127=1,U127=1,V127=1,W127=1,X127=1,Y127=1,Z127=1,AA127=1,AB127=1,AC127=1),1,IF(OR(D127=2,E127=2,F127=2,G127=2,H127=2,I127=2,J127=2,K127=2,L127=2,M127=2,N127=2,O127=2,P127=2,Q127=2,R127=2,S127=2,T127=2,U127=2,V127=2,W127=2,X127=2,Y127=2,Z127=2,AA127=2,AB127=2,AC127=2),2,IF(OR(D127=3,E127=3,F127=3,G127=3,H127=3,I127=3,J127=3,K127=3,L127=3,M127=3,N127=3,O127=3,P127=3,Q127=3,R127=3,S127=3,T127=3,U127=3,V127=3,W127=3,X127=3,Y127=3,Z127=3,AA127=3,AB127=3,AC127=3),3,IF(OR(D127="1 юн",E127="1 юн",F127="1 юн",G127="1 юн",H127="1 юн",I127="1 юн",J127="1 юн",K127="1 юн",L127="1 юн",M127="1 юн",N127="1 юн",O127="1 юн",P127="1 юн",Q127="1 юн",R127="1 юн",S127="1 юн",T127="1 юн",U127="1 юн",V127="1 юн",W127="1 юн",X127="1 юн",Y127="1 юн",Z127="1 юн",AA127="1 юн",AB127="1 юн",AC127="1 юн"),"1 юн",IF(OR(D127="юн",E127="юн",F127="юн",G127="юн",H127="юн",I127="юн",J127="юн",K127="юн",L127="юн",M127="юн",N127="юн",O127="юн",P127="юн",Q127="юн",R127="юн",S127="юн",T127="юн",U127="юн",V127="юн",W127="юн",X127="юн",Y127="юн",Z127="юн",AA127="юн",AB127="юн",AC127="юн"),"юн","б/р"))))))) -> КМС
A128: Оверчук Даниил | B128: Речица | C128: 2001 | I128: 1 юн | J128: 1 юн | M128: юн | P128: юн | AD128: =IF(OR(D128="МС",E128="МС",F128="МС",G128="МС",H128="МС",I128="МС",J128="МС",K128="МС",L128="МС",M128="МС",N128="МС",O128="МС",P128="МС",Q128="МС",R128="МС",S128="МС",T128="МС",U128="МС",V128="МС",W128="МС",X128="МС",Y128="МС",Z128="МС",AA128="МС",AB128="МС",AC128="МС"),"МС",IF(OR(D128="КМС",E128="КМС",F128="КМС",G128="КМС",H128="КМС",I128="КМС",J128="КМС",K128="КМС",L128="КМС",M128="КМС",N128="КМС",O128="КМС",P128="КМС",Q128="КМС",R128="КМС",S128="КМС",T128="КМС",U128="КМС",V128="КМС",W128="КМС",X128="КМС",Y128="КМС",Z128="КМС",AA128="КМС",AB128="КМС",AC128="КМС"),"КМС",IF(OR(D128=1,E128=1,F128=1,G128=1,H128=1,I128=1,J128=1,K128=1,L128=1,M128=1,N128=1,O128=1,P128=1,Q128=1,R128=1,S128=1,T128=1,U128=1,V128=1,W128=1,X128=1,Y128=1,Z128=1,AA128=1,AB128=1,AC128=1),1,IF(OR(D128=2,E128=2,F128=2,G128=2,H128=2,I128=2,J128=2,K128=2,L128=2,M128=2,N128=2,O128=2,P128=2,Q128=2,R128=2,S128=2,T128=2,U128=2,V128=2,W128=2,X128=2,Y128=2,Z128=2,AA128=2,AB128=2,AC128=2),2,IF(OR(D128=3,E128=3,F128=3,G128=3,H128=3,I128=3,J128=3,K128=3,L128=3,M128=3,N128=3,O128=3,P128=3,Q128=3,R128=3,S128=3,T128=3,U128=3,V128=3,W128=3,X128=3,Y128=3,Z128=3,AA128=3,AB128=3,AC128=3),3,IF(OR(D128="1 юн",E128="1 юн",F128="1 юн",G128="1 юн",H128="1 юн",I128="1 юн",J128="1 юн",K128="1 юн",L128="1 юн",M128="1 юн",N128="1 юн",O128="1 юн",P128="1 юн",Q128="1 юн",R128="1 юн",S128="1 юн",T128="1 юн",U128="1 юн",V128="1 юн",W128="1 юн",X128="1 юн",Y128="1 юн",Z128="1 юн",AA128="1 юн",AB128="1 юн",AC128="1 юн"),"1 юн",IF(OR(D128="юн",E128="юн",F128="юн",G128="юн",H128="юн",I128="юн",J128="юн",K128="юн",L128="юн",M128="юн",N128="юн",O128="юн",P128="юн",Q128="юн",R128="юн",S128="юн",T128="юн",U128="юн",V128="юн",W128="юн",X128="юн",Y128="юн",Z128="юн",AA128="юн",AB128="юн",AC128="юн"),"юн","б/р"))))))) -> 1 юн
A129: Осененко Василий | B129: Хан-Тенгри | C129: 1987 | AD129: =IF(OR(D129="МС",E129="МС",F129="МС",G129="МС",H129="МС",I129="МС",J129="МС",K129="МС",L129="МС",M129="МС",N129="МС",O129="МС",P129="МС",Q129="МС",R129="МС",S129="МС",T129="МС",U129="МС",V129="МС",W129="МС",X129="МС",Y129="МС",Z129="МС",AA129="МС",AB129="МС",AC129="МС"),"МС",IF(OR(D129="КМС",E129="КМС",F129="КМС",G129="КМС",H129="КМС",I129="КМС",J129="КМС",K129="КМС",L129="КМС",M129="КМС",N129="КМС",O129="КМС",P129="КМС",Q129="КМС",R129="КМС",S129="КМС",T129="КМС",U129="КМС",V129="КМС",W129="КМС",X129="КМС",Y129="КМС",Z129="КМС",AA129="КМС",AB129="КМС",AC129="КМС"),"КМС",IF(OR(D129=1,E129=1,F129=1,G129=1,H129=1,I129=1,J129=1,K129=1,L129=1,M129=1,N129=1,O129=1,P129=1,Q129=1,R129=1,S129=1,T129=1,U129=1,V129=1,W129=1,X129=1,Y129=1,Z129=1,AA129=1,AB129=1,AC129=1),1,IF(OR(D129=2,E129=2,F129=2,G129=2,H129=2,I129=2,J129=2,K129=2,L129=2,M129=2,N129=2,O129=2,P129=2,Q129=2,R129=2,S129=2,T129=2,U129=2,V129=2,W129=2,X129=2,Y129=2,Z129=2,AA129=2,AB129=2,AC129=2),2,IF(OR(D129=3,E129=3,F129=3,G129=3,H129=3,I129=3,J129=3,K129=3,L129=3,M129=3,N129=3,O129=3,P129=3,Q129=3,R129=3,S129=3,T129=3,U129=3,V129=3,W129=3,X129=3,Y129=3,Z129=3,AA129=3,AB129=3,AC129=3),3,IF(OR(D129="1 юн",E129="1 юн",F129="1 юн",G129="1 юн",H129="1 юн",I129="1 юн",J129="1 юн",K129="1 юн",L129="1 юн",M129="1 юн",N129="1 юн",O129="1 юн",P129="1 юн",Q129="1 юн",R129="1 юн",S129="1 юн",T129="1 юн",U129="1 юн",V129="1 юн",W129="1 юн",X129="1 юн",Y129="1 юн",Z129="1 юн",AA129="1 юн",AB129="1 юн",AC129="1 юн"),"1 юн",IF(OR(D129="юн",E129="юн",F129="юн",G129="юн",H129="юн",I129="юн",J129="юн",K129="юн",L129="юн",M129="юн",N129="юн",O129="юн",P129="юн",Q129="юн",R129="юн",S129="юн",T129="юн",U129="юн",V129="юн",W129="юн",X129="юн",Y129="юн",Z129="юн",AA129="юн",AB129="юн",AC129="юн"),"юн","б/р"))))))) -> б/р
A130: Остроухов Егор | B130: ПРЦДиМ Полоцк | C130: 1973 | E130: 2 | G130: 1 | Z130: 3 | AD130: =IF(OR(D130="МС",E130="МС",F130="МС",G130="МС",H130="МС",I130="МС",J130="МС",K130="МС",L130="МС",M130="МС",N130="МС",O130="МС",P130="МС",Q130="МС",R130="МС",S130="МС",T130="МС",U130="МС",V130="МС",W130="МС",X130="МС",Y130="МС",Z130="МС",AA130="МС",AB130="МС",AC130="МС"),"МС",IF(OR(D130="КМС",E130="КМС",F130="КМС",G130="КМС",H130="КМС",I130="КМС",J130="КМС",K130="КМС",L130="КМС",M130="КМС",N130="КМС",O130="КМС",P130="КМС",Q130="КМС",R130="КМС",S130="КМС",T130="КМС",U130="КМС",V130="КМС",W130="КМС",X130="КМС",Y130="КМС",Z130="КМС",AA130="КМС",AB130="КМС",AC130="КМС"),"КМС",IF(OR(D130=1,E130=1,F130=1,G130=1,H130=1,I130=1,J130=1,K130=1,L130=1,M130=1,N130=1,O130=1,P130=1,Q130=1,R130=1,S130=1,T130=1,U130=1,V130=1,W130=1,X130=1,Y130=1,Z130=1,AA130=1,AB130=1,AC130=1),1,IF(OR(D130=2,E130=2,F130=2,G130=2,H130=2,I130=2,J130=2,K130=2,L130=2,M130=2,N130=2,O130=2,P130=2,Q130=2,R130=2,S130=2,T130=2,U130=2,V130=2,W130=2,X130=2,Y130=2,Z130=2,AA130=2,AB130=2,AC130=2),2,IF(OR(D130=3,E130=3,F130=3,G130=3,H130=3,I130=3,J130=3,K130=3,L130=3,M130=3,N130=3,O130=3,P130=3,Q130=3,R130=3,S130=3,T130=3,U130=3,V130=3,W130=3,X130=3,Y130=3,Z130=3,AA130=3,AB130=3,AC130=3),3,IF(OR(D130="1 юн",E130="1 юн",F130="1 юн",G130="1 юн",H130="1 юн",I130="1 юн",J130="1 юн",K130="1 юн",L130="1 юн",M130="1 юн",N130="1 юн",O130="1 юн",P130="1 юн",Q130="1 юн",R130="1 юн",S130="1 юн",T130="1 юн",U130="1 юн",V130="1 юн",W130="1 юн",X130="1 юн",Y130="1 юн",Z130="1 юн",AA130="1 юн",AB130="1 юн",AC130="1 юн"),"1 юн",IF(OR(D130="юн",E130="юн",F130="юн",G130="юн",H130="юн",I130="юн",J130="юн",K130="юн",L130="юн",M130="юн",N130="юн",O130="юн",P130="юн",Q130="юн",R130="юн",S130="юн",T130="юн",U130="юн",V130="юн",W130="юн",X130="юн",Y130="юн",Z130="юн",AA130="юн",AB130="юн",AC130="юн"),"юн","б/р"))))))) -> 1
A131: Пагудо Евгений | B131: Минск | C131: 2002 | H131: 3 | I131: 1 юн | AD131: =IF(OR(D131="МС",E131="МС",F131="МС",G131="МС",H131="МС",I131="МС",J131="МС",K131="МС",L131="МС",M131="МС",N131="МС",O131="МС",P131="МС",Q131="МС",R131="МС",S131="МС",T131="МС",U131="МС",V131="МС",W131="МС",X131="МС",Y131="МС",Z131="МС",AA131="МС",AB131="МС",AC131="МС"),"МС",IF(OR(D131="КМС",E131="КМС",F131="КМС",G131="КМС",H131="КМС",I131="КМС",J131="КМС",K131="КМС",L131="КМС",M131="КМС",N131="КМС",O131="КМС",P131="КМС",Q131="КМС",R131="КМС",S131="КМС",T131="КМС",U131="КМС",V131="КМС",W131="КМС",X131="КМС",Y131="КМС",Z131="КМС",AA131="КМС",AB131="КМС",AC131="КМС"),"КМС",IF(OR(D131=1,E131=1,F131=1,G131=1,H131=1,I131=1,J131=1,K131=1,L131=1,M131=1,N131=1,O131=1,P131=1,Q131=1,R131=1,S131=1,T131=1,U131=1,V131=1,W131=1,X131=1,Y131=1,Z131=1,AA131=1,AB131=1,AC131=1),1,IF(OR(D131=2,E131=2,F131=2,G131=2,H131=2,I131=2,J131=2,K131=2,L131=2,M131=2,N131=2,O131=2,P131=2,Q131=2,R131=2,S131=2,T131=2,U131=2,V131=2,W131=2,X131=2,Y131=2,Z131=2,AA131=2,AB131=2,AC131=2),2,IF(OR(D131=3,E131=3,F131=3,G131=3,H131=3,I131=3,J131=3,K131=3,L131=3,M131=3,N131=3,O131=3,P131=3,Q131=3,R131=3,S131=3,T131=3,U131=3,V131=3,W131=3,X131=3,Y131=3,Z131=3,AA131=3,AB131=3,AC131=3),3,IF(OR(D131="1 юн",E131="1 юн",F131="1 юн",G131="1 юн",H131="1 юн",I131="1 юн",J131="1 юн",K131="1 юн",L131="1 юн",M131="1 юн",N131="1 юн",O131="1 юн",P131="1 юн",Q131="1 юн",R131="1 юн",S131="1 юн",T131="1 юн",U131="1 юн",V131="1 юн",W131="1 юн",X131="1 юн",Y131="1 юн",Z131="1 юн",AA131="1 юн",AB131="1 юн",AC131="1 юн"),"1 юн",IF(OR(D131="юн",E131="юн",F131="юн",G131="юн",H131="юн",I131="юн",J131="юн",K131="юн",L131="юн",M131="юн",N131="юн",O131="юн",P131="юн",Q131="юн",R131="юн",S131="юн",T131="юн",U131="юн",V131="юн",W131="юн",X131="юн",Y131="юн",Z131="юн",AA131="юн",AB131="юн",AC131="юн"),"юн","б/р"))))))) -> 3
A132: Пастухов Никита | B132: Пуховичский р-н | C132: 2000 | AD132: =IF(OR(D132="МС",E132="МС",F132="МС",G132="МС",H132="МС",I132="МС",J132="МС",K132="МС",L132="МС",M132="МС",N132="МС",O132="МС",P132="МС",Q132="МС",R132="МС",S132="МС",T132="МС",U132="МС",V132="МС",W132="МС",X132="МС",Y132="МС",Z132="МС",AA132="МС",AB132="МС",AC132="МС"),"МС",IF(OR(D132="КМС",E132="КМС",F132="КМС",G132="КМС",H132="КМС",I132="КМС",J132="КМС",K132="КМС",L132="КМС",M132="КМС",N132="КМС",O132="КМС",P132="КМС",Q132="КМС",R132="КМС",S132="КМС",T132="КМС",U132="КМС",V132="КМС",W132="КМС",X132="КМС",Y132="КМС",Z132="КМС",AA132="КМС",AB132="КМС",AC132="КМС"),"КМС",IF(OR(D132=1,E132=1,F132=1,G132=1,H132=1,I132=1,J132=1,K132=1,L132=1,M132=1,N132=1,O132=1,P132=1,Q132=1,R132=1,S132=1,T132=1,U132=1,V132=1,W132=1,X132=1,Y132=1,Z132=1,AA132=1,AB132=1,AC132=1),1,IF(OR(D132=2,E132=2,F132=2,G132=2,H132=2,I132=2,J132=2,K132=2,L132=2,M132=2,N132=2,O132=2,P132=2,Q132=2,R132=2,S132=2,T132=2,U132=2,V132=2,W132=2,X132=2,Y132=2,Z132=2,AA132=2,AB132=2,AC132=2),2,IF(OR(D132=3,E132=3,F132=3,G132=3,H132=3,I132=3,J132=3,K132=3,L132=3,M132=3,N132=3,O132=3,P132=3,Q132=3,R132=3,S132=3,T132=3,U132=3,V132=3,W132=3,X132=3,Y132=3,Z132=3,AA132=3,AB132=3,AC132=3),3,IF(OR(D132="1 юн",E132="1 юн",F132="1 юн",G132="1 юн",H132="1 юн",I132="1 юн",J132="1 юн",K132="1 юн",L132="1 юн",M132="1 юн",N132="1 юн",O132="1 юн",P132="1 юн",Q132="1 юн",R132="1 юн",S132="1 юн",T132="1 юн",U132="1 юн",V132="1 юн",W132="1 юн",X132="1 юн",Y132="1 юн",Z132="1 юн",AA132="1 юн",AB132="1 юн",AC132="1 юн"),"1 юн",IF(OR(D132="юн",E132="юн",F132="юн",G132="юн",H132="юн",I132="юн",J132="юн",K132="юн",L132="юн",M132="юн",N132="юн",O132="юн",P132="юн",Q132="юн",R132="юн",S132="юн",T132="юн",U132="юн",V132="юн",W132="юн",X132="юн",Y132="юн",Z132="юн",AA132="юн",AB132="юн",AC132="юн"),"юн","б/р"))))))) -> б/р
A133: Пауля Павел | B133: Минск | C133: 2000 | AD133: =IF(OR(D133="МС",E133="МС",F133="МС",G133="МС",H133="МС",I133="МС",J133="МС",K133="МС",L133="МС",M133="МС",N133="МС",O133="МС",P133="МС",Q133="МС",R133="МС",S133="МС",T133="МС",U133="МС",V133="МС",W133="МС",X133="МС",Y133="МС",Z133="МС",AA133="МС",AB133="МС",AC133="МС"),"МС",IF(OR(D133="КМС",E133="КМС",F133="КМС",G133="КМС",H133="КМС",I133="КМС",J133="КМС",K133="КМС",L133="КМС",M133="КМС",N133="КМС",O133="КМС",P133="КМС",Q133="КМС",R133="КМС",S133="КМС",T133="КМС",U133="КМС",V133="КМС",W133="КМС",X133="КМС",Y133="КМС",Z133="КМС",AA133="КМС",AB133="КМС",AC133="КМС"),"КМС",IF(OR(D133=1,E133=1,F133=1,G133=1,H133=1,I133=1,J133=1,K133=1,L133=1,M133=1,N133=1,O133=1,P133=1,Q133=1,R133=1,S133=1,T133=1,U133=1,V133=1,W133=1,X133=1,Y133=1,Z133=1,AA133=1,AB133=1,AC133=1),1,IF(OR(D133=2,E133=2,F133=2,G133=2,H133=2,I133=2,J133=2,K133=2,L133=2,M133=2,N133=2,O133=2,P133=2,Q133=2,R133=2,S133=2,T133=2,U133=2,V133=2,W133=2,X133=2,Y133=2,Z133=2,AA133=2,AB133=2,AC133=2),2,IF(OR(D133=3,E133=3,F133=3,G133=3,H133=3,I133=3,J133=3,K133=3,L133=3,M133=3,N133=3,O133=3,P133=3,Q133=3,R133=3,S133=3,T133=3,U133=3,V133=3,W133=3,X133=3,Y133=3,Z133=3,AA133=3,AB133=3,AC133=3),3,IF(OR(D133="1 юн",E133="1 юн",F133="1 юн",G133="1 юн",H133="1 юн",I133="1 юн",J133="1 юн",K133="1 юн",L133="1 юн",M133="1 юн",N133="1 юн",O133="1 юн",P133="1 юн",Q133="1 юн",R133="1 юн",S133="1 юн",T133="1 юн",U133="1 юн",V133="1 юн",W133="1 юн",X133="1 юн",Y133="1 юн",Z133="1 юн",AA133="1 юн",AB133="1 юн",AC133="1 юн"),"1 юн",IF(OR(D133="юн",E133="юн",F133="юн",G133="юн",H133="юн",I133="юн",J133="юн",K133="юн",L133="юн",M133="юн",N133="юн",O133="юн",P133="юн",Q133="юн",R133="юн",S133="юн",T133="юн",U133="юн",V133="юн",W133="юн",X133="юн",Y133="юн",Z133="юн",AA133="юн",AB133="юн",AC133="юн"),"юн","б/р"))))))) -> б/р
A134: Пахомов Александр | B134: Бобруйск | C134: 1983 | G134: КМС | O134: 1 | P134: 1 | AC134: 1 | AD134: =IF(OR(D134="МС",E134="МС",F134="МС",G134="МС",H134="МС",I134="МС",J134="МС",K134="МС",L134="МС",M134="МС",N134="МС",O134="МС",P134="МС",Q134="МС",R134="МС",S134="МС",T134="МС",U134="МС",V134="МС",W134="МС",X134="МС",Y134="МС",Z134="МС",AA134="МС",AB134="МС",AC134="МС"),"МС",IF(OR(D134="КМС",E134="КМС",F134="КМС",G134="КМС",H134="КМС",I134="КМС",J134="КМС",K134="КМС",L134="КМС",M134="КМС",N134="КМС",O134="КМС",P134="КМС",Q134="КМС",R134="КМС",S134="КМС",T134="КМС",U134="КМС",V134="КМС",W134="КМС",X134="КМС",Y134="КМС",Z134="КМС",AA134="КМС",AB134="КМС",AC134="КМС"),"КМС",IF(OR(D134=1,E134=1,F134=1,G134=1,H134=1,I134=1,J134=1,K134=1,L134=1,M134=1,N134=1,O134=1,P134=1,Q134=1,R134=1,S134=1,T134=1,U134=1,V134=1,W134=1,X134=1,Y134=1,Z134=1,AA134=1,AB134=1,AC134=1),1,IF(OR(D134=2,E134=2,F134=2,G134=2,H134=2,I134=2,J134=2,K134=2,L134=2,M134=2,N134=2,O134=2,P134=2,Q134=2,R134=2,S134=2,T134=2,U134=2,V134=2,W134=2,X134=2,Y134=2,Z134=2,AA134=2,AB134=2,AC134=2),2,IF(OR(D134=3,E134=3,F134=3,G134=3,H134=3,I134=3,J134=3,K134=3,L134=3,M134=3,N134=3,O134=3,P134=3,Q134=3,R134=3,S134=3,T134=3,U134=3,V134=3,W134=3,X134=3,Y134=3,Z134=3,AA134=3,AB134=3,AC134=3),3,IF(OR(D134="1 юн",E134="1 юн",F134="1 юн",G134="1 юн",H134="1 юн",I134="1 юн",J134="1 юн",K134="1 юн",L134="1 юн",M134="1 юн",N134="1 юн",O134="1 юн",P134="1 юн",Q134="1 юн",R134="1 юн",S134="1 юн",T134="1 юн",U134="1 юн",V134="1 юн",W134="1 юн",X134="1 юн",Y134="1 юн",Z134="1 юн",AA134="1 юн",AB134="1 юн",AC134="1 юн"),"1 юн",IF(OR(D134="юн",E134="юн",F134="юн",G134="юн",H134="юн",I134="юн",J134="юн",K134="юн",L134="юн",M134="юн",N134="юн",O134="юн",P134="юн",Q134="юн",R134="юн",S134="юн",T134="юн",U134="юн",V134="юн",W134="юн",X134="юн",Y134="юн",Z134="юн",AA134="юн",AB134="юн",AC134="юн"),"юн","б/р"))))))) -> КМС
A135: Петровский Максим | B135: Минск | C135: 1987 | AD135: =IF(OR(D135="МС",E135="МС",F135="МС",G135="МС",H135="МС",I135="МС",J135="МС",K135="МС",L135="МС",M135="МС",N135="МС",O135="МС",P135="МС",Q135="МС",R135="МС",S135="МС",T135="МС",U135="МС",V135="МС",W135="МС",X135="МС",Y135="МС",Z135="МС",AA135="МС",AB135="МС",AC135="МС"),"МС",IF(OR(D135="КМС",E135="КМС",F135="КМС",G135="КМС",H135="КМС",I135="КМС",J135="КМС",K135="КМС",L135="КМС",M135="КМС",N135="КМС",O135="КМС",P135="КМС",Q135="КМС",R135="КМС",S135="КМС",T135="КМС",U135="КМС",V135="КМС",W135="КМС",X135="КМС",Y135="КМС",Z135="КМС",AA135="КМС",AB135="КМС",AC135="КМС"),"КМС",IF(OR(D135=1,E135=1,F135=1,G135=1,H135=1,I135=1,J135=1,K135=1,L135=1,M135=1,N135=1,O135=1,P135=1,Q135=1,R135=1,S135=1,T135=1,U135=1,V135=1,W135=1,X135=1,Y135=1,Z135=1,AA135=1,AB135=1,AC135=1),1,IF(OR(D135=2,E135=2,F135=2,G135=2,H135=2,I135=2,J135=2,K135=2,L135=2,M135=2,N135=2,O135=2,P135=2,Q135=2,R135=2,S135=2,T135=2,U135=2,V135=2,W135=2,X135=2,Y135=2,Z135=2,AA135=2,AB135=2,AC135=2),2,IF(OR(D135=3,E135=3,F135=3,G135=3,H135=3,I135=3,J135=3,K135=3,L135=3,M135=3,N135=3,O135=3,P135=3,Q135=3,R135=3,S135=3,T135=3,U135=3,V135=3,W135=3,X135=3,Y135=3,Z135=3,AA135=3,AB135=3,AC135=3),3,IF(OR(D135="1 юн",E135="1 юн",F135="1 юн",G135="1 юн",H135="1 юн",I135="1 юн",J135="1 юн",K135="1 юн",L135="1 юн",M135="1 юн",N135="1 юн",O135="1 юн",P135="1 юн",Q135="1 юн",R135="1 юн",S135="1 юн",T135="1 юн",U135="1 юн",V135="1 юн",W135="1 юн",X135="1 юн",Y135="1 юн",Z135="1 юн",AA135="1 юн",AB135="1 юн",AC135="1 юн"),"1 юн",IF(OR(D135="юн",E135="юн",F135="юн",G135="юн",H135="юн",I135="юн",J135="юн",K135="юн",L135="юн",M135="юн",N135="юн",O135="юн",P135="юн",Q135="юн",R135="юн",S135="юн",T135="юн",U135="юн",V135="юн",W135="юн",X135="юн",Y135="юн",Z135="юн",AA135="юн",AB135="юн",AC135="юн"),"юн","б/р"))))))) -> б/р
A136: Пилипенчук Артем | B136: ЦТКиЭ г Бобруйска | C136: 2000 | Y136: 2 | Z136: 2 | AD136: =IF(OR(D136="МС",E136="МС",F136="МС",G136="МС",H136="МС",I136="МС",J136="МС",K136="МС",L136="МС",M136="МС",N136="МС",O136="МС",P136="МС",Q136="МС",R136="МС",S136="МС",T136="МС",U136="МС",V136="МС",W136="МС",X136="МС",Y136="МС",Z136="МС",AA136="МС",AB136="МС",AC136="МС"),"МС",IF(OR(D136="КМС",E136="КМС",F136="КМС",G136="КМС",H136="КМС",I136="КМС",J136="КМС",K136="КМС",L136="КМС",M136="КМС",N136="КМС",O136="КМС",P136="КМС",Q136="КМС",R136="КМС",S136="КМС",T136="КМС",U136="КМС",V136="КМС",W136="КМС",X136="КМС",Y136="КМС",Z136="КМС",AA136="КМС",AB136="КМС",AC136="КМС"),"КМС",IF(OR(D136=1,E136=1,F136=1,G136=1,H136=1,I136=1,J136=1,K136=1,L136=1,M136=1,N136=1,O136=1,P136=1,Q136=1,R136=1,S136=1,T136=1,U136=1,V136=1,W136=1,X136=1,Y136=1,Z136=1,AA136=1,AB136=1,AC136=1),1,IF(OR(D136=2,E136=2,F136=2,G136=2,H136=2,I136=2,J136=2,K136=2,L136=2,M136=2,N136=2,O136=2,P136=2,Q136=2,R136=2,S136=2,T136=2,U136=2,V136=2,W136=2,X136=2,Y136=2,Z136=2,AA136=2,AB136=2,AC136=2),2,IF(OR(D136=3,E136=3,F136=3,G136=3,H136=3,I136=3,J136=3,K136=3,L136=3,M136=3,N136=3,O136=3,P136=3,Q136=3,R136=3,S136=3,T136=3,U136=3,V136=3,W136=3,X136=3,Y136=3,Z136=3,AA136=3,AB136=3,AC136=3),3,IF(OR(D136="1 юн",E136="1 юн",F136="1 юн",G136="1 юн",H136="1 юн",I136="1 юн",J136="1 юн",K136="1 юн",L136="1 юн",M136="1 юн",N136="1 юн",O136="1 юн",P136="1 юн",Q136="1 юн",R136="1 юн",S136="1 юн",T136="1 юн",U136="1 юн",V136="1 юн",W136="1 юн",X136="1 юн",Y136="1 юн",Z136="1 юн",AA136="1 юн",AB136="1 юн",AC136="1 юн"),"1 юн",IF(OR(D136="юн",E136="юн",F136="юн",G136="юн",H136="юн",I136="юн",J136="юн",K136="юн",L136="юн",M136="юн",N136="юн",O136="юн",P136="юн",Q136="юн",R136="юн",S136="юн",T136="юн",U136="юн",V136="юн",W136="юн",X136="юн",Y136="юн",Z136="юн",AA136="юн",AB136="юн",AC136="юн"),"юн","б/р"))))))) -> 2
